Workbook

Sheet Cover

Sheet GSR Alterations
C1: Sheet | D1: Cells | E1: Values
B2: Subsidies | C2: Control | D2: Rows 83,87,91,95 / Col's D:H | E2: From Subsidies Working Sheet
C3: Appliance Costs | D3: Rows 1,3,7,11,15 / Col's D:J | E3: Links to control sheet, note in Col J appliance costs 'bounce back up' to their normal trajectory
B4: Growth Related Policy | C4: Control | D4: K17 | E4: 0, 1 and 2 per cent test cases | G4: 0 | H4: 0.01 | I4: 0.02
B5: Wholesale Gas Prices | C5: Scenarios | D5: J48 | E5: Max cumulative percentage escalation per year, before gas volumes go to zero in 2040 under each Growth Related Policy test case @ zero accelerated dep | G5: 0.01965 | H5: 0.02318 | I5: 0.02639
B6: S-Curve | C6: Scenarios | D6: J:M28 | E6: Same values as 'Dual Fuel' and 'Muddling Through' | G6: NOTE - We had to reshape the S-Curves to calibrate the model back to meeting the KPMG scenario narrative outcomes, ie ending before 2050 for Dual Fuel. This has resulted in a much steeper S-Curve than previously. Since we are using Dual Fuel as the 'middle S-Curve' case to match the GSR narrative the recalibrated Dual Fuel S-Curve supplants Electric dream's S-Curve.
B8: 100% Electrification | C8: RES S curve-disconnect | D8: C168:CD201 | E8: Make a copy of original model and hardcode to 1
C9: RES S curve-connect | D9: B168:CD201 | E9: Make a copy of original model and hardcode to 0

Sheet Control
A1: Customer discount rates | B1: % | K1: Cumulative DF assuming 15 years
A2: High income | B2: =Scenarios!G4 -> 0.06646118392 | D2: Recoonections as share of gross connections | E2: 0.25 | G2: Asset lives | H2: Years | J2: High income | K2: =((1+$B2)^-1+(1+$B2)^-2+(1+$B2)^-3+(1+$B2)^-4+(1+$B2)^-5+(1+$B2)^-6+(1+$B2)^-7+(1+$B2)^-8+(1+$B2)^-9+(1+$B2)^-10+(1+$B2)^-11+(1+$B2)^-12+(1+$B2)^-13+(1+$B2)^-14+(1+$B2)^-15) -> 9.31503711
A3: Medium income | B3: =Scenarios!G5 -> 0.09704565749 | G3: Cooking | H3: 15 | J3: Medium income | K3: =((1+$B3)^-1+(1+$B3)^-2+(1+$B3)^-3+(1+$B3)^-4+(1+$B3)^-5+(1+$B3)^-6+(1+$B3)^-7+(1+$B3)^-8+(1+$B3)^-9+(1+$B3)^-10+(1+$B3)^-11+(1+$B3)^-12+(1+$B3)^-13+(1+$B3)^-14+(1+$B3)^-15) -> 7.736083147
A4: Low income | B4: =Scenarios!G6 -> 0.1735068414 | D4: Appliance capital costs | G4: Hot water | H4: 12 | J4: Low income | K4: 5.240585136
A5: Commercial | B5: =Scenarios!G7 -> 0.0472 | D5: Cooking | E5: $ real 2021 | G5: Room heating | H5: 15 | J5: Commercial | K5: 10.5789295
D6: Electric cooktop (induction) | E6: 2286.666667 | G6: Ducted heating | H6: 15
D7: Gas stove | E7: 1386.111111 | G7: Service charge | H7: 15
D9: Hot water | G9: Decision point | H9: 15
D10: Heat pump hot water | E10: 4622.222222
D11: Gas instant hot water | E11: 2230 | G11: Elasticities | H11: Residential | I11: Commercial
G12: Weather | H12: =Scenarios!G46 -> 0.3555523 | I12: =Scenarios!G50 -> 0.1551871
D13: Room heating | G13: Gas price | H13: =Scenarios!G47 -> -0.8 | I13: =Scenarios!G51 -> -0.9
D14: RCAC split system | E14: 3324.421687 | G14: Elecricity price | H14: =Scenarios!G48 -> 0.008 | I14: =Scenarios!G52 -> 0.008
D15: Gas wall furnace | E15: 2322.2
K16: Residential | L16: Commercial
D17: Ducted heating | G17: Distribution share of retail fixed charge | H17: % | J17: Non-Appliance Cost Related Growth | K17: 0.01 | L17: 0.02
D18: Ducted RCAC | E18: 6388.552083 | G18: Residential | H18: 0.28 | J18: Non-Appliance Cost Related Disconnections | K18: 0.005 | L18: 0.005
D19: Ducted gas heating | E19: 4578.333333 | G19: Commercial | H19: 0.348
D21: Gas disconnection charge | E21: 100
D22: Electricity connection upgrade | E22: 2225
A27: Appliance consumption | D27: Appliance efficiency | H27: Maintenance costs (p/a) | J27: Maintenance costs
A28: Cooking | B28: Average consumption | D28: Cooking | E28: % change (p.a.) | G28: Cooking | H28: $ | J28: Cooking | K28: real % change (p.a.)
A29: Electric cooktop (induction) kWh | B29: 133.3 | D29: Electric cooktop (induction) | E29: =Scenarios!G11 -> 0.0064 | G29: Electric cooktop (induction) | H29: 0 | J29: Electric cooktop (induction) | K29: =Scenarios!G29 -> -0.0064
A30: Gas stove (GJ) | B30: 1.2 | D30: Gas stove | E30: =Scenarios!G12 -> 0 | G30: Gas stove | H30: 2.160528801 | J30: Gas stove | K30: =Scenarios!G30 -> 0
B31: 0
A32: Hot water | B32: 0 | D32: Hot water | G32: Hot water | J32: Hot water
A33: Heat pump hot water (kWh) | B33: 2200 | D33: Heat pump hot water | E33: =Scenarios!G15 -> 0.0064 | G33: Heat pump hot water | H33: 43.21057602 | J33: Heat pump hot water | K33: =Scenarios!G33 -> -0.0064
A34: Gas instant hot water (GJ) | B34: 20.6 | D34: Gas instant hot water | E34: =Scenarios!G16 -> 0 | G34: Gas instant hot water | H34: 32.40793201 | J34: Gas instant hot water | K34: =Scenarios!G34 -> 0
B35: 0
A36: Room heating | B36: 0 | D36: Room heating | G36: Room heating | J36: Room heating
A37: RCAC split system (kWh) | B37: 1170 | D37: RCAC split system | E37: =Scenarios!G19 -> 0 | G37: RCAC split system | H37: 29.16713881 | J37: RCAC split system | K37: =Scenarios!G37 -> 0
A38: Gas wall furnace (GJ) | B38: 19.36551724 | D38: Gas wall furnace | E38: =Scenarios!G20 -> 0 | G38: Gas wall furnace | H38: 25.92634561 | J38: Gas wall furnace | K38: =Scenarios!G38 -> 0
B39: 0
A40: Ducted heating | B40: 0 | D40: Ducted heating | G40: Ducted heating | J40: Ducted heating
A41: Ducted RCAC (kWh) | B41: 4735.714286 | D41: Ducted RCAC | E41: =Scenarios!G23 -> 0.0029 | G41: Ducted RCAC | H41: 29.16713881 | J41: Ducted RCAC | K41: =Scenarios!G41 -> -0.0029
A42: Ducted gas heating (GJ) | B42: 68.5862069 | D42: Ducted gas heating | E42: =Scenarios!G24 -> 0 | G42: Ducted gas heating | H42: 29.16713881 | J42: Ducted gas heating | K42: =Scenarios!G42 -> 0
A45: LGA | B45: Income class
A46: Albury (C) | B46: L | C46: Albury (C) | D46: M-L (Low)
A47: Banyule (C) | B47: M | C47: Banyule (C) | D47: M (Medium)
A48: Baw Baw (S) | B48: L | C48: Baw Baw (S) | D48: M-H (High)
A49: Benalla (RC) | B49: L | C49: Benalla (RC)
A50: Berrigan (A) | B50: L | C50: Berrigan (A)
A51: Campaspe (S) | B51: L | C51: Campaspe (S)
A52: Cardinia (S) | B52: L | C52: Cardinia (S)
A53: Casey (C) | B53: M | C53: Casey (C)
A54: Corowa Shire (A) | B54: L | C54: Corowa Shire (A)
A55: Darebin (C) | B55: L | C55: Darebin (C)
A56: East Gippsland (S) | B56: L | C56: East Gippsland (S)
A57: Frankston (C) | B57: L | C57: Frankston (C)
A58: Greater Dandenong (C) | B58: L | C58: Greater Dandenong (C)
A59: Greater Hume Shire (A) | B59: L | C59: Greater Hume Shire (A)
A60: Greater Shepparton (C) | B60: L | C60: Greater Shepparton (C)
A61: Hume (C) | B61: L | C61: Hume (C)
A62: Indigo (S) | B62: L | C62: Indigo (S)
A63: Latrobe (C) | B63: L | C63: Latrobe (C)
A64: Manningham (C) | B64: M | C64: Manningham (C)
A65: Melbourne (C) | B65: L | C65: Melbourne (C)
A66: Mildura (RC) | B66: L | C66: Mildura (RC)
A67: Mitchell (S) | B67: L | C67: Mitchell (S)
A68: Moira (S) | B68: L | C68: Moira (S)
A69: Moreland (C) | B69: M | C69: Moreland (C)
A70: Mornington Peninsula (S) | B70: L | C70: Mornington Peninsula (S)
A71: Murray (A) | B71: L | C71: Murray (A)
A72: Nillumbik (S) | B72: H | C72: Nillumbik (S)
A73: Strathbogie (S) | B73: L | C73: Strathbogie (S)
A74: Wangaratta (RC) | B74: L | C74: Wangaratta (RC)
A75: Wellington (S) | B75: L | C75: Wellington (S)
A76: Whittlesea (C) | B76: L | C76: Whittlesea (C)
A77: Wodonga (C) | B77: L | C77: Wodonga (C)
A78: Yarra (C) | B78: H | C78: Yarra (C)
A79: Yarra Ranges (S) | B79: M | C79: Yarra Ranges (S)
A81: Appliance costs
A82: Cooking | B82: real % change (p.a.) | C82: 2022 | D82: 2023 | E82: 2024 | F82: 2025 | G82: 2026 | H82: 2027 | I82: 2028 | J82: 2029 | K82: 2030 | L82: 2031 | M82: 2032 | N82: 2033 | O82: 2034 | P82: 2035 | Q82: 2036 | R82: 2037 | S82: 2038 | T82: 2039 | U82: 2040 | V82: 2041 | W82: 2042 | X82: 2043 | Y82: 2044 | Z82: 2045 | AA82: 2046 | AB82: 2047 | AC82: 2048 | AD82: 2049 | AE82: 2050 | AF82: 2051 | AG82: 2052 | AH82: 2053 | AI82: 2054 | AJ82: 2055 | AK82: 2056 | AL82: 2057 | AM82: 2058 | AN82: 2059 | AO82: 2060 | AP82: 2061 | AQ82: 2062 | AR82: 2063 | AS82: 2064 | AT82: 2065 | AU82: 2066 | AV82: 2067 | AW82: 2068 | AX82: 2069 | AY82: 2070 | AZ82: 2071 | BA82: 2072 | BB82: 2073 | BC82: 2074 | BD82: 2075 | BE82: 2076 | BF82: 2077 | BG82: 2078 | BH82: 2079 | BI82: 2080 | BJ82: 2081 | BK82: 2082 | BL82: 2083 | BM82: 2084 | BN82: 2085 | BO82: 2086 | BP82: 2087 | BQ82: 2088 | BR82: 2089 | BS82: 2090 | BT82: 2091 | BU82: 2092 | BV82: 2093 | BW82: 2094 | BX82: 2095 | BY82: 2096 | BZ82: 2097 | CA82: 2098 | CB82: 2099 | CC82: 2100
A83: Electric cooktop (induction) | B83: =Scenarios!K11 -> -0.005 | C83: 0 | D83: 0 | E83: 0 | F83: 0 | G83: 0 | H83: 0 | I83: =$B83 -> -0.005 | J83: -0.005 | K83: -0.005 | L83: -0.005 | M83: -0.005 | N83: -0.005 | O83: -0.005 | P83: -0.005 | Q83: -0.005 | R83: -0.005 | S83: -0.005 | T83: -0.005 | U83: -0.005 | V83: -0.005 | W83: -0.005 | X83: -0.005 | Y83: -0.005 | Z83: -0.005 | AA83: -0.005 | AB83: -0.005 | AC83: -0.005 | AD83: -0.005 | AE83: -0.005 | AF83: 0 | AG83: 0 | AH83: 0 | AI83: 0 | AJ83: 0 | AK83: 0 | AL83: 0 | AM83: 0 | AN83: 0 | AO83: 0 | AP83: 0 | AQ83: 0 | AR83: 0 | AS83: 0 | AT83: 0 | AU83: 0 | AV83: 0 | AW83: 0 | AX83: 0 | AY83: 0 | AZ83: 0 | BA83: 0 | BB83: 0 | BC83: 0 | BD83: 0 | BE83: 0 | BF83: 0 | BG83: 0 | BH83: 0 | BI83: 0 | BJ83: 0 | BK83: 0 | BL83: 0 | BM83: 0 | BN83: 0 | BO83: 0 | BP83: 0 | BQ83: 0 | BR83: 0 | BS83: 0 | BT83: 0 | BU83: 0 | BV83: 0 | BW83: 0 | BX83: 0 | BY83: 0 | BZ83: 0 | CA83: 0 | CB83: 0 | CC83: 0
A84: Gas stove | B84: =Scenarios!K12 -> 0
A86: Hot water
A87: Heat pump hot water | B87: =Scenarios!K15 -> -0.005 | C87: 0 | D87: -0.1108885695 | E87: -0.1108885695 | F87: -0.1108885695 | G87: -0.1108885695 | H87: -0.1108885695 | I87: =$B87 -> -0.005 | J87: -0.005 | K87: -0.005 | L87: -0.005 | M87: -0.005 | N87: -0.005 | O87: -0.005 | P87: -0.005 | Q87: -0.005 | R87: -0.005 | S87: -0.005 | T87: -0.005 | U87: -0.005 | V87: -0.005 | W87: -0.005 | X87: -0.005 | Y87: -0.005 | Z87: -0.005 | AA87: -0.005 | AB87: -0.005 | AC87: -0.005 | AD87: -0.005 | AE87: -0.005 | AF87: 0 | AG87: 0 | AH87: 0 | AI87: 0 | AJ87: 0 | AK87: 0 | AL87: 0 | AM87: 0 | AN87: 0 | AO87: 0 | AP87: 0 | AQ87: 0 | AR87: 0 | AS87: 0 | AT87: 0 | AU87: 0 | AV87: 0 | AW87: 0 | AX87: 0 | AY87: 0 | AZ87: 0 | BA87: 0 | BB87: 0 | BC87: 0 | BD87: 0 | BE87: 0 | BF87: 0 | BG87: 0 | BH87: 0 | BI87: 0 | BJ87: 0 | BK87: 0 | BL87: 0 | BM87: 0 | BN87: 0 | BO87: 0 | BP87: 0 | BQ87: 0 | BR87: 0 | BS87: 0 | BT87: 0 | BU87: 0 | BV87: 0 | BW87: 0 | BX87: 0 | BY87: 0 | BZ87: 0 | CA87: 0 | CB87: 0 | CC87: 0
A88: Gas instant hot water | B88: =Scenarios!K16 -> 0
A90: Room heating
A91: RCAC split system | B91: =Scenarios!K19 -> -0.005 | C91: 0 | D91: -0.07219300756 | E91: -0.07219300756 | F91: -0.07219300756 | G91: 0 | H91: 0 | I91: =$B91 -> -0.005 | J91: -0.005 | K91: -0.005 | L91: -0.005 | M91: -0.005 | N91: -0.005 | O91: -0.005 | P91: -0.005 | Q91: -0.005 | R91: -0.005 | S91: -0.005 | T91: -0.005 | U91: -0.005 | V91: -0.005 | W91: -0.005 | X91: -0.005 | Y91: -0.005 | Z91: -0.005 | AA91: -0.005 | AB91: -0.005 | AC91: -0.005 | AD91: -0.005 | AE91: -0.005 | AF91: 0 | AG91: 0 | AH91: 0 | AI91: 0 | AJ91: 0 | AK91: 0 | AL91: 0 | AM91: 0 | AN91: 0 | AO91: 0 | AP91: 0 | AQ91: 0 | AR91: 0 | AS91: 0 | AT91: 0 | AU91: 0 | AV91: 0 | AW91: 0 | AX91: 0 | AY91: 0 | AZ91: 0 | BA91: 0 | BB91: 0 | BC91: 0 | BD91: 0 | BE91: 0 | BF91: 0 | BG91: 0 | BH91: 0 | BI91: 0 | BJ91: 0 | BK91: 0 | BL91: 0 | BM91: 0 | BN91: 0 | BO91: 0 | BP91: 0 | BQ91: 0 | BR91: 0 | BS91: 0 | BT91: 0 | BU91: 0 | BV91: 0 | BW91: 0 | BX91: 0 | BY91: 0 | BZ91: 0 | CA91: 0 | CB91: 0 | CC91: 0
A92: Gas wall furnace | B92: =Scenarios!K20 -> 0
A94: Ducted heating
A95: Ducted RCAC | B95: =Scenarios!K23 -> -0.005 | C95: 0 | D95: -0.2097501879 | E95: -0.2097501879 | F95: 0 | G95: 0 | H95: 0 | I95: =$B95 -> -0.005 | J95: -0.005 | K95: -0.005 | L95: -0.005 | M95: -0.005 | N95: -0.005 | O95: -0.005 | P95: -0.005 | Q95: -0.005 | R95: -0.005 | S95: -0.005 | T95: -0.005 | U95: -0.005 | V95: -0.005 | W95: -0.005 | X95: -0.005 | Y95: -0.005 | Z95: -0.005 | AA95: -0.005 | AB95: -0.005 | AC95: -0.005 | AD95: -0.005 | AE95: -0.005 | AF95: 0 | AG95: 0 | AH95: 0 | AI95: 0 | AJ95: 0 | AK95: 0 | AL95: 0 | AM95: 0 | AN95: 0 | AO95: 0 | AP95: 0 | AQ95: 0 | AR95: 0 | AS95: 0 | AT95: 0 | AU95: 0 | AV95: 0 | AW95: 0 | AX95: 0 | AY95: 0 | AZ95: 0 | BA95: 0 | BB95: 0 | BC95: 0 | BD95: 0 | BE95: 0 | BF95: 0 | BG95: 0 | BH95: 0 | BI95: 0 | BJ95: 0 | BK95: 0 | BL95: 0 | BM95: 0 | BN95: 0 | BO95: 0 | BP95: 0 | BQ95: 0 | BR95: 0 | BS95: 0 | BT95: 0 | BU95: 0 | BV95: 0 | BW95: 0 | BX95: 0 | BY95: 0 | BZ95: 0 | CA95: 0 | CB95: 0 | CC95: 0
A96: Ducted gas heating | B96: =Scenarios!K24 -> 0
A98: Gas disconnection charge | B98: =Scenarios!K26 -> 0
A99: Electricity connection upgrade | B99: =Scenarios!K27 -> 0

Sheet Summary
A2: Customers | B2: 2020 | C2: =B2+1 -> 2021 | D2: =C2+1 -> 2022 | E2: 2023 | F2: 2024 | G2: 2025 | H2: 2026 | I2: 2027 | J2: 2028 | K2: 2029 | L2: 2030 | M2: 2031 | N2: 2032 | O2: 2033 | P2: 2034 | Q2: 2035 | R2: 2036 | S2: 2037 | T2: 2038 | U2: 2039 | V2: 2040 | W2: 2041 | X2: 2042 | Y2: 2043 | Z2: 2044 | AA2: 2045 | AB2: 2046 | AC2: 2047 | AD2: 2048 | AE2: 2049 | AF2: 2050 | AG2: 2051 | AH2: 2052 | AI2: 2053 | AJ2: 2054 | AK2: 2055 | AL2: 2056 | AM2: 2057 | AN2: 2058 | AO2: 2059 | AP2: 2060 | AQ2: 2061 | AR2: 2062 | AS2: 2063 | AT2: 2064 | AU2: 2065 | AV2: 2066 | AW2: 2067 | AX2: 2068 | AY2: 2069 | AZ2: 2070 | BA2: 2071 | BB2: 2072 | BC2: 2073 | BD2: 2074 | BE2: 2075 | BF2: 2076 | BG2: 2077 | BH2: 2078 | BI2: 2079 | BJ2: 2080 | BK2: 2081 | BL2: 2082 | BM2: 2083 | BN2: 2084 | BO2: 2085 | BP2: =BO2+1 -> 2086 | BQ2: 2087 | BR2: 2088 | BS2: 2089 | BT2: 2090 | BU2: 2091 | BV2: 2092 | BW2: 2093 | BX2: 2094 | BY2: 2095 | BZ2: 2096 | CA2: 2097 | CB2: 2098 | CC2: 2099 | CD2: 2100
A3: Residential | B3: =Forecasts!J75 -> 692736 | C3: =Forecasts!K75 -> 695807.32 | D3: =Forecasts!L75 -> 698953.2834 | E3: =Forecasts!M75 -> 702034.517 | F3: =Forecasts!N75 -> 705060.3444 | G3: =Forecasts!O75 -> 708290.0427 | H3: =Forecasts!P75 -> 711537.5925 | I3: =Forecasts!Q75 -> 714773.9045 | J3: =Forecasts!R75 -> 718048.035 | K3: =Forecasts!S75 -> 721156.7948 | L3: =Forecasts!T75 -> 724374.0108 | M3: =Forecasts!U75 -> 720750.1408 | N3: =Forecasts!V75 -> 717145.3901 | O3: =Forecasts!W75 -> 713556.6631 | P3: =Forecasts!X75 -> 709959.8798 | Q3: =Forecasts!Y75 -> 706248.0804 | R3: =Forecasts!Z75 -> 702323.84 | S3: =Forecasts!AA75 -> 697906.2208 | T3: =Forecasts!AB75 -> 692126.6897 | U3: =Forecasts!AC75 -> 684144.0563 | V3: =Forecasts!AD75 -> 674384.336 | W3: =Forecasts!AE75 -> 663406.4143 | X3: =Forecasts!AF75 -> 649552.3822 | Y3: =Forecasts!AG75 -> 633667.6203 | Z3: =Forecasts!AH75 -> 616510.2822 | AA3: =Forecasts!AI75 -> 597541.7308 | AB3: =Forecasts!AJ75 -> 576560.0221 | AC3: =Forecasts!AK75 -> 553036.222 | AD3: =Forecasts!AL75 -> 526945.0409 | AE3: =Forecasts!AM75 -> 498522.3157 | AF3: =Forecasts!AN75 -> 468249.7041 | AG3: =Forecasts!AO75 -> 437952.4556 | AH3: =Forecasts!AP75 -> 408244.6933 | AI3: =Forecasts!AQ75 -> 379832.4699 | AJ3: =Forecasts!AR75 -> 353045.3075 | AK3: =Forecasts!AS75 -> 327971.081 | AL3: =Forecasts!AT75 -> 304596.2256 | AM3: =Forecasts!AU75 -> 282845.2445 | AN3: =Forecasts!AV75 -> 262634.0182 | AO3: =Forecasts!AW75 -> 243861.8481 | AP3: =Forecasts!AX75 -> 226434.5389 | AQ3: =Forecasts!AY75 -> 210254.3662 | AR3: =Forecasts!AZ75 -> 195230.0944 | AS3: =Forecasts!BA75 -> 181282.9439 | AT3: =Forecasts!BB75 -> 168336.5292 | AU3: =Forecasts!BC75 -> 156316.8465 | AV3: =Forecasts!BD75 -> 145157.2623 | AW3: =Forecasts!BE75 -> 134798.476 | AX3: =Forecasts!BF75 -> 125182.4836 | AY3: =Forecasts!BG75 -> 116253.5712 | AZ3: =Forecasts!BH75 -> 107963.3033 | BA3: =Forecasts!BI75 -> 100250.4868 | BB3: =Forecasts!BJ75 -> 93082.23439 | BC3: =Forecasts!BK75 -> 86428.82321 | BD3: =Forecasts!BL75 -> 85902.6791 | BE3: =Forecasts!BM75 -> 85378.1657 | BF3: =Forecasts!BN75 -> 84857.27487 | BG3: =Forecasts!BO75 -> 84338.9885 | BH3: =Forecasts!BP75 -> 83823.29356 | BI3: =Forecasts!BQ75 -> 83308.17709 | BJ3: =Forecasts!BR75 -> 82795.6362 | BK3: =Forecasts!BS75 -> 82286.65802 | BL3: =Forecasts!BT75 -> 81780.22473 | BM3: =Forecasts!BU75 -> 81276.32361 | BN3: =Forecasts!BV75 -> 80775.94199 | BO3: =Forecasts!BW75 -> 80279.06228 | BP3: =Forecasts!BX75 -> 79784.66697 | BQ3: =Forecasts!BY75 -> 79292.74363 | BR3: =Forecasts!BZ75 -> 78804.27992 | BS3: =Forecasts!CA75 -> 78316.25852 | BT3: =Forecasts!CB75 -> 77831.67722 | BU3: =Forecasts!CC75 -> 77349.51884 | BV3: =Forecasts!CD75 -> 76871.77124 | BW3: =Forecasts!CE75 -> 76394.41239 | BX3: =Forecasts!CF75 -> 75920.44033 | BY3: =Forecasts!CG75 -> 75448.83812 | BZ3: =Forecasts!CH75 -> 74979.59393 | CA3: =Forecasts!CI75 -> 74512.69596 | CB3: =Forecasts!CJ75 -> 74047.13248 | CC3: =Forecasts!CK75 -> 73583.89682 | CD3: =Forecasts!CL75 -> 73123.97734
A4: Gross new connections | B4: =CustomersRes!J75 -> 20238 | C4: =CustomersRes!K75 -> 6548 | D4: =CustomersRes!L75 -> 6629 | E4: =CustomersRes!M75 -> 6587 | F4: =CustomersRes!N75 -> 6554 | G4: =CustomersRes!O75 -> 6756 | H4: =CustomersRes!P75 -> 6790 | I4: =CustomersRes!Q75 -> 6798 | J4: =CustomersRes!R75 -> 6850 | K4: =CustomersRes!S75 -> 6722 | L4: =CustomersRes!T75 -> 6834 | M4: =CustomersRes!U75 -> 0 | N4: =CustomersRes!V75 -> 0 | O4: =CustomersRes!W75 -> 0 | P4: =CustomersRes!X75 -> 0 | Q4: =CustomersRes!Y75 -> 0 | R4: =CustomersRes!Z75 -> 0 | S4: =CustomersRes!AA75 -> 0 | T4: =CustomersRes!AB75 -> 0 | U4: =CustomersRes!AC75 -> 0 | V4: =CustomersRes!AD75 -> 0 | W4: =CustomersRes!AE75 -> 0 | X4: =CustomersRes!AF75 -> 0 | Y4: =CustomersRes!AG75 -> 0 | Z4: =CustomersRes!AH75 -> 0 | AA4: =CustomersRes!AI75 -> 0 | AB4: =CustomersRes!AJ75 -> 0 | AC4: =CustomersRes!AK75 -> 0 | AD4: =CustomersRes!AL75 -> 0 | AE4: =CustomersRes!AM75 -> 0 | AF4: =CustomersRes!AN75 -> 0 | AG4: =CustomersRes!AO75 -> 0 | AH4: =CustomersRes!AP75 -> 0 | AI4: =CustomersRes!AQ75 -> 0 | AJ4: =CustomersRes!AR75 -> 0 | AK4: =CustomersRes!AS75 -> 0 | AL4: =CustomersRes!AT75 -> 0 | AM4: =CustomersRes!AU75 -> 0 | AN4: =CustomersRes!AV75 -> 0 | AO4: =CustomersRes!AW75 -> 0 | AP4: =CustomersRes!AX75 -> 0 | AQ4: =CustomersRes!AY75 -> 0 | AR4: =CustomersRes!AZ75 -> 0 | AS4: =CustomersRes!BA75 -> 0 | AT4: =CustomersRes!BB75 -> 0 | AU4: =CustomersRes!BC75 -> 0 | AV4: =CustomersRes!BD75 -> 0 | AW4: =CustomersRes!BE75 -> 0 | AX4: =CustomersRes!BF75 -> 0 | AY4: =CustomersRes!BG75 -> 0 | AZ4: =CustomersRes!BH75 -> 0 | BA4: =CustomersRes!BI75 -> 0 | BB4: =CustomersRes!BJ75 -> 0 | BC4: =CustomersRes!BK75 -> 0 | BD4: =CustomersRes!BL75 -> 0 | BE4: =CustomersRes!BM75 -> 0 | BF4: =CustomersRes!BN75 -> 0 | BG4: =CustomersRes!BO75 -> 0 | BH4: =CustomersRes!BP75 -> 0 | BI4: =CustomersRes!BQ75 -> 0 | BJ4: =CustomersRes!BR75 -> 0 | BK4: =CustomersRes!BS75 -> 0 | BL4: =CustomersRes!BT75 -> 0 | BM4: =CustomersRes!BU75 -> 0 | BN4: =CustomersRes!BV75 -> 0 | BO4: =CustomersRes!BW75 -> 0 | BP4: =CustomersRes!BX75 -> 0 | BQ4: =CustomersRes!BY75 -> 0 | BR4: =CustomersRes!BZ75 -> 0 | BS4: =CustomersRes!CA75 -> 0 | BT4: =CustomersRes!CB75 -> 0 | BU4: =CustomersRes!CC75 -> 0 | BV4: =CustomersRes!CD75 -> 0 | BW4: =CustomersRes!CE75 -> 0 | BX4: =CustomersRes!CF75 -> 0 | BY4: =CustomersRes!CG75 -> 0 | BZ4: =CustomersRes!CH75 -> 0 | CA4: =CustomersRes!CI75 -> 0 | CB4: =CustomersRes!CJ75 -> 0 | CC4: =CustomersRes!CK75 -> 0 | CD4: =CustomersRes!CL75 -> 0
A5: Disconnections | B5: =CustomersRes!J113 -> 4464 | C5: =-((C3-B3)-C4) -> 3476.68 | D5: =-((D3-C3)-D4) -> 3483.0366 | E5: 3505.766417 | F5: 3528.172585 | G5: 3526.301722 | H5: 3542.450213 | I5: 3561.687962 | J5: 3575.869523 | K5: 3613.240175 | L5: 3616.783974 | M5: 3623.870054 | N5: 3604.750704 | O5: 3588.72695 | P5: 3596.783316 | Q5: 3711.799399 | R5: 3924.240402 | S5: 4417.6192 | T5: 5779.531104 | U5: 7982.633448 | V5: 9759.720281 | W5: 10977.92168 | X5: 13854.03207 | Y5: 15884.76191 | Z5: 17157.3381 | AA5: 18968.55141 | AB5: =-((AB3-AA3)-AB4) -> 20981.70865 | AC5: =-((AC3-AB3)-AC4) -> 23523.80011 | AD5: 26091.18111 | AE5: =-((AE3-AD3)-AE4) -> 28422.7252 | AF5: =-((AF3-AE3)-AF4) -> 30272.61158 | AG5: =-((AG3-AF3)-AG4) -> 30297.24852 | AH5: =-((AH3-AG3)-AH4) -> 29707.76228 | AI5: =-((AI3-AH3)-AI4) -> 28412.22347 | AJ5: =-((AJ3-AI3)-AJ4) -> 26787.16235 | AK5: =-((AK3-AJ3)-AK4) -> 25074.22654 | AL5: =-((AL3-AK3)-AL4) -> 23374.8554 | AM5: =-((AM3-AL3)-AM4) -> 21750.98113 | AN5: =-((AN3-AM3)-AN4) -> 20211.22622 | AO5: =-((AO3-AN3)-AO4) -> 18772.17009 | AP5: =-((AP3-AO3)-AP4) -> 17427.30924 | AQ5: =-((AQ3-AP3)-AQ4) -> 16180.17269 | AR5: =-((AR3-AQ3)-AR4) -> 15024.27183 | AS5: =-((AS3-AR3)-AS4) -> 13947.15047 | AT5: =-((AT3-AS3)-AT4) -> 12946.41472 | AU5: =-((AU3-AT3)-AU4) -> 12019.68265 | AV5: =-((AV3-AU3)-AV4) -> 11159.58423 | AW5: =-((AW3-AV3)-AW4) -> 10358.78631 | AX5: =-((AX3-AW3)-AX4) -> 9615.99238 | AY5: =-((AY3-AX3)-AY4) -> 8928.912418 | AZ5: =-((AZ3-AY3)-AZ4) -> 8290.267856 | BA5: =-((BA3-AZ3)-BA4) -> 7712.816517 | BB5: =-((BB3-BA3)-BB4) -> 7168.252434 | BC5: =-((BC3-BB3)-BC4) -> 6653.411172 | BD5: =-((BD3-BC3)-BD4) -> 526.1441161 | BE5: =-((BE3-BD3)-BE4) -> 524.5133955 | BF5: =-((BF3-BE3)-BF4) -> 520.8908285 | BG5: =-((BG3-BF3)-BG4) -> 518.2863744 | BH5: =-((BH3-BG3)-BH4) -> 515.6949425 | BI5: =-((BI3-BH3)-BI4) -> 515.1164678 | BJ5: =-((BJ3-BI3)-BJ4) -> 512.5408854 | BK5: =-((BK3-BJ3)-BK4) -> 508.978181 | BL5: =-((BL3-BK3)-BL4) -> 506.4332901 | BM5: =-((BM3-BL3)-BM4) -> 503.9011237 | BN5: =-((BN3-BM3)-BN4) -> 500.381618 | BO5: =-((BO3-BN3)-BO4) -> 496.87971 | BP5: =-((BP3-BO3)-BP4) -> 494.3953114 | BQ5: =-((BQ3-BP3)-BQ4) -> 491.9233348 | BR5: =-((BR3-BQ3)-BR4) -> 488.4637182 | BS5: =-((BS3-BR3)-BS4) -> 488.0213996 | BT5: =-((BT3-BS3)-BT4) -> 484.5812926 | BU5: =-((BU3-BT3)-BU4) -> 482.1583861 | BV5: =-((BV3-BU3)-BV4) -> 477.7475942 | BW5: =-((BW3-BV3)-BW4) -> 477.3588562 | BX5: =-((BX3-BW3)-BX4) -> 473.9720619 | BY5: =-((BY3-BX3)-BY4) -> 471.6022016 | BZ5: =-((BZ3-BY3)-BZ4) -> 469.2441906 | CA5: =-((CA3-BZ3)-CA4) -> 466.8979697 | CB5: =-((CB3-CA3)-CB4) -> 465.5634798 | CC5: =-((CC3-CB3)-CC4) -> 463.2356624 | CD5: =-((CD3-CC3)-CD4) -> 459.9194841
A6: Commercial | B6: =Forecasts!J187 -> 23895 | C6: =Forecasts!K187 -> 23536.525 | D6: =Forecasts!L187 -> 22050.84238 | E6: =Forecasts!M187 -> 20524.58816 | F6: =Forecasts!N187 -> 19102.96522 | G6: =Forecasts!O187 -> 18183.4504 | H6: =Forecasts!P187 -> 17108.53314 | I6: =Forecasts!Q187 -> 15940.99048 | J6: =Forecasts!R187 -> 14851.28553 | K6: =Forecasts!S187 -> 13835.0291 | L6: =Forecasts!T187 -> 12891.85395 | M6: =Forecasts!U187 -> 12014.39468 | N6: =Forecasts!V187 -> 11201.32271 | O6: =Forecasts!W187 -> 10446.3161 | P6: =Forecasts!X187 -> 10294.08452 | Q6: =Forecasts!Y187 -> 9755.614093 | R6: =Forecasts!Z187 -> 9158.836023 | S6: =Forecasts!AA187 -> 8560.041843 | T6: =Forecasts!AB187 -> 7997.241633 | U6: =Forecasts!AC187 -> 7470.255425 | V6: =Forecasts!AD187 -> 6984.904148 | W6: =Forecasts!AE187 -> 6534.979627 | X6: =Forecasts!AF187 -> 6117.304729 | Y6: =Forecasts!AG187 -> 5728.718206 | Z6: =Forecasts!AH187 -> 5365.074615 | AA6: =Forecasts!AI187 -> 5027.249241 | AB6: =Forecasts!AJ187 -> 4715.112995 | AC6: =Forecasts!AK187 -> 4426.53743 | AD6: =Forecasts!AL187 -> 4155.404743 | AE6: =Forecasts!AM187 -> 3904.627719 | AF6: =Forecasts!AN187 -> 3671.104581 | AG6: =Forecasts!AO187 -> 3453.749058 | AH6: =Forecasts!AP187 -> 3252.480313 | AI6: =Forecasts!AQ187 -> 3067.217911 | AJ6: =Forecasts!AR187 -> 2895.881822 | AK6: =Forecasts!AS187 -> 2734.402412 | AL6: =Forecasts!AT187 -> 2585.7304 | AM6: =Forecasts!AU187 -> 2448.801748 | AN6: =Forecasts!AV187 -> 2321.55774 | AO6: =Forecasts!AW187 -> 2201.949951 | AP6: =Forecasts!AX187 -> 2091.940201 | AQ6: =Forecasts!AY187 -> 1987.4805 | AR6: =Forecasts!AZ187 -> 1891.543098 | AS6: =Forecasts!BA187 -> 1803.085382 | AT6: =Forecasts!BB187 -> 1722.069955 | AU6: =Forecasts!BC187 -> 1649.459605 | AV6: =Forecasts!BD187 -> 1580.212307 | AW6: =Forecasts!BE187 -> 1514.311246 | AX6: =Forecasts!BF187 -> 1450.73969 | AY6: =Forecasts!BG187 -> 1394.485991 | AZ6: =Forecasts!BH187 -> 1340.513561 | BA6: =Forecasts!BI187 -> 1294.810993 | BB6: =Forecasts!BJ187 -> 1250.336939 | BC6: =Forecasts!BK187 -> 1207.085254 | BD6: =Forecasts!BL187 -> 1168.049828 | BE6: =Forecasts!BM187 -> 1136.209578 | BF6: =Forecasts!BN187 -> 1105.528531 | BG6: =Forecasts!BO187 -> 1077.000888 | BH6: =Forecasts!BP187 -> 1048.615883 | BI6: =Forecasts!BQ187 -> 1022.372804 | BJ6: =Forecasts!BR187 -> 998.26094 | BK6: =Forecasts!BS187 -> 976.2696353 | BL6: =Forecasts!BT187 -> 955.3882871 | BM6: =Forecasts!BU187 -> 938.6113457 | BN6: =Forecasts!BV187 -> 922.9182889 | BO6: =Forecasts!BW187 -> 908.3036975 | BP6: =Forecasts!BX187 -> 894.762179 | BQ6: =Forecasts!BY187 -> 881.2883681 | BR6: =Forecasts!BZ187 -> 867.8819263 | BS6: =Forecasts!CA187 -> 857.5425166 | BT6: =Forecasts!CB187 -> 847.2548041 | BU6: =Forecasts!CC187 -> 838.01853 | BV6: =Forecasts!CD187 -> 828.8284374 | BW6: =Forecasts!CE187 -> 820.6842952 | BX6: =Forecasts!CF187 -> 813.5808737 | BY6: =Forecasts!CG187 -> 806.5129694 | BZ6: =Forecasts!CH187 -> 799.4804045 | CA6: =Forecasts!CI187 -> 792.4830025 | CB6: =Forecasts!CJ187 -> 787.5205875 | CC6: =Forecasts!CK187 -> 782.5829845 | CD6: =Forecasts!CL187 -> 777.6700696
A7: Gross new connections | B7: =CustomersCOM!J73 -> 599 | C7: =CustomersCOM!K73 -> 193 | D7: =CustomersCOM!L73 -> 4 | E7: =CustomersCOM!M73 -> 0 | F7: =CustomersCOM!N73 -> 0 | G7: =CustomersCOM!O73 -> 26 | H7: =CustomersCOM!P73 -> 5 | I7: =CustomersCOM!Q73 -> 0 | J7: =CustomersCOM!R73 -> 0 | K7: =CustomersCOM!S73 -> 0 | L7: =CustomersCOM!T73 -> 0 | M7: =CustomersCOM!U73 -> 0 | N7: =CustomersCOM!V73 -> 0 | O7: =CustomersCOM!W73 -> 0 | P7: =CustomersCOM!X73 -> 0 | Q7: =CustomersCOM!Y73 -> 0 | R7: =CustomersCOM!Z73 -> 0 | S7: =CustomersCOM!AA73 -> 0 | T7: =CustomersCOM!AB73 -> 0 | U7: =CustomersCOM!AC73 -> 0 | V7: =CustomersCOM!AD73 -> 0 | W7: =CustomersCOM!AE73 -> 0 | X7: =CustomersCOM!AF73 -> 0 | Y7: =CustomersCOM!AG73 -> 0 | Z7: =CustomersCOM!AH73 -> 0 | AA7: =CustomersCOM!AI73 -> 0 | AB7: =CustomersCOM!AJ73 -> 0 | AC7: =CustomersCOM!AK73 -> 0 | AD7: =CustomersCOM!AL73 -> 0 | AE7: =CustomersCOM!AM73 -> 0 | AF7: =CustomersCOM!AN73 -> 0 | AG7: =CustomersCOM!AO73 -> 0 | AH7: =CustomersCOM!AP73 -> 0 | AI7: =CustomersCOM!AQ73 -> 0 | AJ7: =CustomersCOM!AR73 -> 0 | AK7: =CustomersCOM!AS73 -> 0 | AL7: =CustomersCOM!AT73 -> 0 | AM7: =CustomersCOM!AU73 -> 0 | AN7: =CustomersCOM!AV73 -> 0 | AO7: =CustomersCOM!AW73 -> 0 | AP7: =CustomersCOM!AX73 -> 0 | AQ7: =CustomersCOM!AY73 -> 0 | AR7: =CustomersCOM!AZ73 -> 0 | AS7: =CustomersCOM!BA73 -> 0 | AT7: =CustomersCOM!BB73 -> 0 | AU7: =CustomersCOM!BC73 -> 0 | AV7: =CustomersCOM!BD73 -> 0 | AW7: =CustomersCOM!BE73 -> 0 | AX7: =CustomersCOM!BF73 -> 0 | AY7: =CustomersCOM!BG73 -> 0 | AZ7: =CustomersCOM!BH73 -> 0 | BA7: =CustomersCOM!BI73 -> 0 | BB7: =CustomersCOM!BJ73 -> 0 | BC7: =CustomersCOM!BK73 -> 0 | BD7: =CustomersCOM!BL73 -> 0 | BE7: =CustomersCOM!BM73 -> 0 | BF7: =CustomersCOM!BN73 -> 0 | BG7: =CustomersCOM!BO73 -> 0 | BH7: =CustomersCOM!BP73 -> 0 | BI7: =CustomersCOM!BQ73 -> 0 | BJ7: =CustomersCOM!BR73 -> 0 | BK7: =CustomersCOM!BS73 -> 0 | BL7: =CustomersCOM!BT73 -> 0 | BM7: =CustomersCOM!BU73 -> 0 | BN7: =CustomersCOM!BV73 -> 0 | BO7: =CustomersCOM!BW73 -> 0 | BP7: =CustomersCOM!BX73 -> 0 | BQ7: =CustomersCOM!BY73 -> 0 | BR7: =CustomersCOM!BZ73 -> 0 | BS7: =CustomersCOM!CA73 -> 0 | BT7: =CustomersCOM!CB73 -> 0 | BU7: =CustomersCOM!CC73 -> 0 | BV7: =CustomersCOM!CD73 -> 0 | BW7: =CustomersCOM!CE73 -> 0 | BX7: =CustomersCOM!CF73 -> 0 | BY7: =CustomersCOM!CG73 -> 0 | BZ7: =CustomersCOM!CH73 -> 0 | CA7: =CustomersCOM!CI73 -> 0 | CB7: =CustomersCOM!CJ73 -> 0 | CC7: =CustomersCOM!CK73 -> 0 | CD7: =CustomersCOM!CL73 -> 0
A8: Disconnections | B8: =CustomersCOM!J110 -> 559 | C8: =-((C6-B6)-C7) -> 551.475 | D8: =-((D6-C6)-D7) -> 1489.682625 | E8: 1526.254212 | F8: 1421.622941 | G8: 945.5148261 | H8: 1079.917252 | I8: 1167.542666 | J8: 1089.704952 | K8: 1016.256428 | L8: 943.1751455 | M8: 877.4592698 | N8: 813.0719734 | O8: 755.0066135 | P8: 152.2315805 | Q8: 538.4704226 | R8: 596.7780705 | S8: 598.7941801 | T8: 562.8002092 | U8: 526.9862082 | V8: 485.3512771 | W8: 449.9245207 | X8: 417.6748981 | Y8: 388.5865236 | Z8: 363.643591 | AA8: 337.8253731 | AB8: 312.1362462 | AC8: 288.575565 | AD8: 271.1326872 | AE8: 250.7770237 | AF8: 233.5231386 | AG8: 217.3555229 | AH8: 201.2687453 | AI8: 185.2624016 | AJ8: 171.3360896 | AK8: 161.4794091 | AL8: 148.6720121 | AM8: 136.928652 | AN8: 127.2440087 | AO8: 119.6077887 | AP8: 110.0097498 | AQ8: 104.459701 | AR8: 95.9374025 | AS8: 88.45771549 | AT8: 81.01542691 | AU8: 72.61034978 | AV8: 69.24729803 | AW8: 65.90106154 | AX8: 63.57155623 | AY8: 56.25369845 | AZ8: 53.97242996 | BA8: 45.70256781 | BB8: 44.47405497 | BC8: 43.25168469 | BD8: 39.03542627 | BE8: 31.84024914 | BF8: 30.68104789 | BG8: 28.52764265 | BH8: 28.38500444 | BI8: 26.24307942 | BJ8: 24.11186402 | BK8: 21.9913047 | BL8: 20.88134818 | BM8: 16.77694144 | BN8: 15.69305673 | BO8: 14.61459144 | BP8: =-((BP6-BO6)-BP7) -> 13.54151849 | BQ8: 13.4738109 | BR8: 13.40644184 | BS8: 10.33940963 | BT8: 10.28771258 | BU8: 9.23627402 | BV8: 9.19009265 | BW8: 8.144142187 | BX8: 7.103421476 | BY8: 7.067904369 | BZ8: 7.032564847 | CA8: 6.997402023 | CB8: 4.962415012 | CC8: 4.937602937 | CD8: 4.912914923
A9: AGN | B9: =SUM(B3:B6) -> 741333 | C9: =SUM(C3:C6) -> 729368.525 | D9: 731116.1624 | E9: 732651.8716 | F9: 734245.4822 | G9: 736755.7948 | H9: 738978.5758 | I9: 741074.5829 | J9: 743325.19 | K9: 745327.0641 | L9: 747716.6488 | M9: 736388.4055 | N9: 731951.4635 | O9: 727591.7062 | P9: 723850.7476 | Q9: 719715.4939 | R9: 715406.9164 | S9: 710883.8818 | T9: 705903.4624 | U9: 699596.9451 | V9: 691128.9604 | W9: 680919.3156 | X9: 669523.719 | Y9: 655281.1004 | Z9: 639032.6949 | AA9: 621537.5314 | AB9: 602256.8438 | AC9: 580986.5596 | AD9: 557191.6268 | AE9: 530849.6686 | AF9: 502193.4203 | AG9: 471703.4532 | AH9: 441204.9359 | AI9: 411311.9112 | AJ9: 382728.3517 | AK9: 355779.7099 | AL9: 330556.8114 | AM9: 307045.0273 | AN9: 285166.8022 | AO9: 264835.9682 | AP9: 245953.7883 | AQ9: 228422.0194 | AR9: 212145.9093 | AS9: 197033.1798 | AT9: 183005.0139 | AU9: 169985.9888 | AV9: 157897.0588 | AW9: 146671.5735 | AX9: 136249.2157 | AY9: 126576.9696 | AZ9: 117594.0848 | BA9: 109258.1143 | BB9: 101500.8238 | BC9: 94289.31964 | BD9: 87596.87304 | BE9: 87038.88868 | BF9: 86483.69423 | BG9: 85934.27576 | BH9: 85387.60438 | BI9: 84845.66636 | BJ9: 84306.43803 | BK9: 83771.90584 | BL9: 83242.04631 | BM9: 82718.83608 | BN9: 82199.2419 | BO9: =SUM(BO3:BO6) -> 81684.24569 | BP9: 81173.82446 | BQ9: 80665.95534 | BR9: 80160.62556 | BS9: 79661.82243 | BT9: 79163.51332 | BU9: 78669.69575 | BV9: 78178.34728 | BW9: 77692.45554 | BX9: 77207.99326 | BY9: 76726.9533 | BZ9: 76248.31853 | CA9: 75772.07694 | CB9: 75300.21655 | CC9: 74829.71547 | CD9: =SUM(CD3:CD6) -> 74361.56689
A11: Volumes (TJ) | B11: 2020 | C11: =B11+1 -> 2021 | D11: =C11+1 -> 2022 | E11: =D11+1 -> 2023 | F11: =E11+1 -> 2024 | G11: =F11+1 -> 2025 | H11: =G11+1 -> 2026 | I11: =H11+1 -> 2027 | J11: =I11+1 -> 2028 | K11: =J11+1 -> 2029 | L11: =K11+1 -> 2030 | M11: =L11+1 -> 2031 | N11: =M11+1 -> 2032 | O11: =N11+1 -> 2033 | P11: =O11+1 -> 2034 | Q11: =P11+1 -> 2035 | R11: =Q11+1 -> 2036 | S11: =R11+1 -> 2037 | T11: =S11+1 -> 2038 | U11: =T11+1 -> 2039 | V11: =U11+1 -> 2040 | W11: =V11+1 -> 2041 | X11: =W11+1 -> 2042 | Y11: =X11+1 -> 2043 | Z11: =Y11+1 -> 2044 | AA11: =Z11+1 -> 2045 | AB11: =AA11+1 -> 2046 | AC11: =AB11+1 -> 2047 | AD11: =AC11+1 -> 2048 | AE11: =AD11+1 -> 2049 | AF11: =AE11+1 -> 2050 | AG11: =AF11+1 -> 2051 | AH11: =AG11+1 -> 2052 | AI11: =AH11+1 -> 2053 | AJ11: =AI11+1 -> 2054 | AK11: =AJ11+1 -> 2055 | AL11: =AK11+1 -> 2056 | AM11: =AL11+1 -> 2057 | AN11: =AM11+1 -> 2058 | AO11: =AN11+1 -> 2059 | AP11: =AO11+1 -> 2060 | AQ11: =AP11+1 -> 2061 | AR11: =AQ11+1 -> 2062 | AS11: =AR11+1 -> 2063 | AT11: =AS11+1 -> 2064 | AU11: =AT11+1 -> 2065 | AV11: =AU11+1 -> 2066 | AW11: =AV11+1 -> 2067 | AX11: =AW11+1 -> 2068 | AY11: =AX11+1 -> 2069 | AZ11: =AY11+1 -> 2070 | BA11: =AZ11+1 -> 2071 | BB11: =BA11+1 -> 2072 | BC11: =BB11+1 -> 2073 | BD11: =BC11+1 -> 2074 | BE11: =BD11+1 -> 2075 | BF11: =BE11+1 -> 2076 | BG11: =BF11+1 -> 2077 | BH11: =BG11+1 -> 2078 | BI11: =BH11+1 -> 2079 | BJ11: =BI11+1 -> 2080 | BK11: =BJ11+1 -> 2081 | BL11: =BK11+1 -> 2082 | BM11: =BL11+1 -> 2083 | BN11: =BM11+1 -> 2084 | BO11: =BN11+1 -> 2085 | BP11: =BO11+1 -> 2086 | BQ11: =BP11+1 -> 2087 | BR11: =BQ11+1 -> 2088 | BS11: =BR11+1 -> 2089 | BT11: =BS11+1 -> 2090 | BU11: =BT11+1 -> 2091 | BV11: =BU11+1 -> 2092 | BW11: =BV11+1 -> 2093 | BX11: =BW11+1 -> 2094 | BY11: =BX11+1 -> 2095 | BZ11: =BY11+1 -> 2096 | CA11: =BZ11+1 -> 2097 | CB11: =CA11+1 -> 2098 | CC11: =CB11+1 -> 2099 | CD11: =CC11+1 -> 2100
A12: Residential | B12: =Forecasts!J113 -> 34540.20487 | C12: =Forecasts!K113 -> 32245.34808 | D12: =Forecasts!L113 -> 30494.44854 | E12: =Forecasts!M113 -> 32450.528 | F12: =Forecasts!N113 -> 32839.40783 | G12: =Forecasts!O113 -> 33596.92859 | H12: =Forecasts!P113 -> 33728.24159 | I12: =Forecasts!Q113 -> 33163.6371 | J12: =Forecasts!R113 -> 31650.51095 | K12: =Forecasts!S113 -> 30358.13599 | L12: =Forecasts!T113 -> 29705.41135 | M12: =Forecasts!U113 -> 31285.34459 | N12: =Forecasts!V113 -> 31792.73481 | O12: =Forecasts!W113 -> 31492.87375 | P12: =Forecasts!X113 -> 30343.22521 | Q12: =Forecasts!Y113 -> 29247.93359 | R12: =Forecasts!Z113 -> 28659.14726 | S12: =Forecasts!AA113 -> 28130.14865 | T12: =Forecasts!AB113 -> 27376.0166 | U12: =Forecasts!AC113 -> 26659.50536 | V12: =Forecasts!AD113 -> 26224.33426 | W12: =Forecasts!AE113 -> 25671.10786 | X12: =Forecasts!AF113 -> 24556.84392 | Y12: =Forecasts!AG113 -> 23333.10725 | Z12: =Forecasts!AH113 -> 22295.55471 | AA12: =Forecasts!AI113 -> 21270.83251 | AB12: =Forecasts!AJ113 -> 20180.66062 | AC12: =Forecasts!AK113 -> 19032.24165 | AD12: =Forecasts!AL113 -> 17829.73627 | AE12: =Forecasts!AM113 -> 16565.80484 | AF12: =Forecasts!AN113 -> 15205.27391 | AG12: =Forecasts!AO113 -> 13889.98697 | AH12: =Forecasts!AP113 -> 12573.91435 | AI12: =Forecasts!AQ113 -> 11365.95535 | AJ12: =Forecasts!AR113 -> 10269.03604 | AK12: =Forecasts!AS113 -> 9262.426795 | AL12: =Forecasts!AT113 -> 8331.998924 | AM12: =Forecasts!AU113 -> 7471.280661 | AN12: =Forecasts!AV113 -> 6676.906747 | AO12: =Forecasts!AW113 -> 5945.340958 | AP12: =Forecasts!AX113 -> 5272.501461 | AQ12: =Forecasts!AY113 -> 4644.950865 | AR12: =Forecasts!AZ113 -> 4059.497447 | AS12: =Forecasts!BA113 -> 3515.500095 | AT12: =Forecasts!BB113 -> 3011.603519 | AU12: =Forecasts!BC113 -> 2544.861083 | AV12: =Forecasts!BD113 -> 2560.799667 | AW12: =Forecasts!BE113 -> 2575.501139 | AX12: =Forecasts!BF113 -> 2399.425901 | AY12: =Forecasts!BG113 -> 2072.595477 | AZ12: =Forecasts!BH113 -> 1679.838196 | BA12: =Forecasts!BI113 -> 1269.760625 | BB12: =Forecasts!BJ113 -> 837.901195 | BC12: =Forecasts!BK113 -> 224.8299098 | BD12: =Forecasts!BL113 -> 383.2122475 | BE12: =Forecasts!BM113 -> 379.8757506 | BF12: =Forecasts!BN113 -> 376.5671594 | BG12: =Forecasts!BO113 -> 373.279903 | BH12: =Forecasts!BP113 -> 370.0138491 | BI12: =Forecasts!BQ113 -> 366.7602108 | BJ12: =Forecasts!BR113 -> 363.5276 | BK12: =Forecasts!BS113 -> 360.3221795 | BL12: =Forecasts!BT113 -> 357.1374623 | BM12: =Forecasts!BU113 -> 353.9733196 | BN12: =Forecasts!BV113 -> 350.83403 | BO12: =Forecasts!BW113 -> 347.721242 | BP12: =Forecasts!BX113 -> 344.6285371 | BQ12: =Forecasts!BY113 -> 341.5557898 | BR12: =Forecasts!BZ113 -> 338.5090532 | BS12: =Forecasts!CA113 -> 335.472034 | BT12: =Forecasts!CB113 -> 332.4607835 | BU12: =Forecasts!CC113 -> 329.4689693 | BV12: =Forecasts!CD113 -> 326.5056259 | BW12: =Forecasts!CE113 -> 323.5522313 | BX12: =Forecasts!CF113 -> 320.6239865 | BY12: =Forecasts!CG113 -> 317.7146286 | BZ12: =Forecasts!CH113 -> 314.8240378 | CA12: =Forecasts!CI113 -> 311.9533459 | CB12: =Forecasts!CJ113 -> 309.0979481 | CC12: =Forecasts!CK113 -> 306.2620701 | CD12: =Forecasts!CL113 -> 303.447473
A13: Commercial | B13: =Forecasts!J224 -> 8376.130998 | C13: =Forecasts!K224 -> 7275.087187 | D13: =Forecasts!L224 -> 6269.56715 | E13: =Forecasts!M224 -> 6131.083828 | F13: =Forecasts!N224 -> 5680.291594 | G13: =Forecasts!O224 -> 5531.263968 | H13: =Forecasts!P224 -> 5175.49831 | I13: =Forecasts!Q224 -> 4668.472977 | J13: =Forecasts!R224 -> 4049.697921 | K13: =Forecasts!S224 -> 3530.807927 | L13: =Forecasts!T224 -> 3136.126276 | M13: =Forecasts!U224 -> 3080.211319 | N13: =Forecasts!V224 -> 2895.517229 | O13: =Forecasts!W224 -> 2647.632866 | P13: =Forecasts!X224 -> 3065.537285 | Q13: =Forecasts!Y224 -> 2832.101699 | R13: =Forecasts!Z224 -> 2632.383307 | S13: =Forecasts!AA224 -> 2422.467697 | T13: =Forecasts!AB224 -> 2208.605159 | U13: =Forecasts!AC224 -> 2034.992461 | V13: =Forecasts!AD224 -> 1908.964935 | W13: =Forecasts!AE224 -> 1773.615919 | X13: =Forecasts!AF224 -> 1614.12312 | Y13: =Forecasts!AG224 -> 1479.956803 | Z13: =Forecasts!AH224 -> 1374.789834 | AA13: =Forecasts!AI224 -> 1275.35616 | AB13: =Forecasts!AJ224 -> 1185.115887 | AC13: =Forecasts!AK224 -> 1105.581661 | AD13: =Forecasts!AL224 -> 1033.545009 | AE13: =Forecasts!AM224 -> 967.9507181 | AF13: =Forecasts!AN224 -> 903.2675439 | AG13: =Forecasts!AO224 -> 849.0959213 | AH13: =Forecasts!AP224 -> 791.8250031 | AI13: =Forecasts!AQ224 -> 745.8012197 | AJ13: =Forecasts!AR224 -> 703.2689515 | AK13: =Forecasts!AS224 -> 663.2288347 | AL13: =Forecasts!AT224 -> 626.38704 | AM13: =Forecasts!AU224 -> 592.4747816 | AN13: =Forecasts!AV224 -> 560.9841648 | AO13: =Forecasts!AW224 -> 531.412242 | AP13: =Forecasts!AX224 -> 504.2251261 | AQ13: =Forecasts!AY224 -> 478.4397841 | AR13: =Forecasts!AZ224 -> 454.7659149 | AS13: =Forecasts!BA224 -> 432.9455263 | AT13: =Forecasts!BB224 -> 412.9629329 | AU13: =Forecasts!BC224 -> 395.0420087 | AV13: =Forecasts!BD224 -> 377.9691245 | AW13: =Forecasts!BE224 -> 361.7372814 | AX13: =Forecasts!BF224 -> 346.1009405 | AY13: =Forecasts!BG224 -> 332.2465712 | AZ13: =Forecasts!BH224 -> 318.9690211 | BA13: =Forecasts!BI224 -> 307.6893502 | BB13: =Forecasts!BJ224 -> 296.7288454 | BC13: =Forecasts!BK224 -> 286.0849866 | BD13: =Forecasts!BL224 -> 276.4653338 | BE13: =Forecasts!BM224 -> 268.570121 | BF13: =Forecasts!BN224 -> 260.9677597 | BG13: =Forecasts!BO224 -> 253.8915852 | BH13: =Forecasts!BP224 -> 246.8662286 | BI13: =Forecasts!BQ224 -> 240.3616496 | BJ13: =Forecasts!BR224 -> 234.3733379 | BK13: =Forecasts!BS224 -> 228.8967995 | BL13: =Forecasts!BT224 -> 223.6934173 | BM13: =Forecasts!BU224 -> 219.4623143 | BN13: =Forecasts!BV224 -> 215.4942811 | BO13: =Forecasts!BW224 -> 211.7870332 | BP13: =Forecasts!BX224 -> 208.3382939 | BQ13: =Forecasts!BY224 -> 204.9132787 | BR13: =Forecasts!BZ224 -> 201.5118697 | BS13: =Forecasts!CA224 -> 198.8295289 | BT13: =Forecasts!CB224 -> 196.1651117 | BU13: =Forecasts!CC224 -> 193.7497259 | BV13: =Forecasts!CD224 -> 191.3502632 | BW13: =Forecasts!CE224 -> 189.1971767 | BX13: =Forecasts!CF224 -> 187.2882324 | BY13: =Forecasts!CG224 -> 185.3913354 | BZ13: =Forecasts!CH224 -> 183.5064195 | CA13: =Forecasts!CI224 -> 181.6334191 | CB13: =Forecasts!CJ224 -> 180.229984 | CC13: =Forecasts!CK224 -> 178.8346931 | CD13: =Forecasts!CL224 -> 177.4474968
A14: AGN | B14: =SUM(B12:B13) -> 42916.33587 | C14: 39520.43526 | D14: 36764.01569 | E14: 38581.61182 | F14: 38519.69942 | G14: 39128.19256 | H14: 38903.7399 | I14: 37832.11008 | J14: 35700.20887 | K14: 33888.94392 | L14: 32841.53762 | M14: 34365.55591 | N14: 34688.25204 | O14: 34140.50662 | P14: 33408.76249 | Q14: 32080.03529 | R14: 31291.53056 | S14: 30552.61635 | T14: 29584.62176 | U14: 28694.49783 | V14: 28133.29919 | W14: 27444.72378 | X14: 26170.96704 | Y14: 24813.06405 | Z14: 23670.34455 | AA14: 22546.18867 | AB14: 21365.7765 | AC14: 20137.82331 | AD14: 18863.28127 | AE14: 17533.75556 | AF14: 16108.54145 | AG14: 14739.0829 | AH14: =SUM(AH12:AH13) -> 13365.73936 | AI14: 12111.75657 | AJ14: 10972.30499 | AK14: 9925.65563 | AL14: 8958.385964 | AM14: 8063.755443 | AN14: 7237.890912 | AO14: 6476.7532 | AP14: 5776.726587 | AQ14: 5123.390649 | AR14: 4514.263362 | AS14: 3948.445621 | AT14: 3424.566452 | AU14: 2939.903091 | AV14: 2938.768792 | AW14: 2937.238421 | AX14: 2745.526841 | AY14: 2404.842048 | AZ14: 1998.807217 | BA14: 1577.449975 | BB14: 1134.63004 | BC14: 510.9148964 | BD14: 659.6775814 | BE14: 648.4458716 | BF14: 637.5349191 | BG14: 627.1714882 | BH14: 616.8800777 | BI14: 607.1218604 | BJ14: 597.9009379 | BK14: 589.2189789 | BL14: 580.8308796 | BM14: 573.4356338 | BN14: =SUM(BN12:BN13) -> 566.3283111 | BO14: 559.5082751 | BP14: 552.966831 | BQ14: 546.4690685 | BR14: 540.020923 | BS14: 534.3015629 | BT14: 528.6258952 | BU14: 523.2186952 | BV14: 517.8558891 | BW14: 512.749408 | BX14: 507.9122189 | BY14: 503.1059639 | BZ14: 498.3304573 | CA14: 493.586765 | CB14: 489.327932 | CC14: 485.0967632 | CD14: 480.8949698
A49: Residential | D49: 2022 | E49: =D49+1 -> 2023 | F49: =E49+1 -> 2024 | G49: =F49+1 -> 2025 | H49: =G49+1 -> 2026 | I49: =H49+1 -> 2027 | J49: =I49+1 -> 2028 | K49: =J49+1 -> 2029 | L49: =K49+1 -> 2030 | M49: =L49+1 -> 2031 | N49: =M49+1 -> 2032 | O49: =N49+1 -> 2033 | P49: =O49+1 -> 2034 | Q49: =P49+1 -> 2035 | R49: =Q49+1 -> 2036 | S49: =R49+1 -> 2037 | T49: =S49+1 -> 2038 | U49: =T49+1 -> 2039 | V49: =U49+1 -> 2040 | W49: =V49+1 -> 2041 | X49: =W49+1 -> 2042 | Y49: =X49+1 -> 2043 | Z49: =Y49+1 -> 2044 | AA49: =Z49+1 -> 2045 | AB49: =AA49+1 -> 2046 | AC49: =AB49+1 -> 2047 | AD49: =AC49+1 -> 2048 | AE49: =AD49+1 -> 2049 | AF49: =AE49+1 -> 2050 | AG49: =AF49+1 -> 2051 | AH49: =AG49+1 -> 2052 | AI49: =AH49+1 -> 2053 | AJ49: =AI49+1 -> 2054 | AK49: =AJ49+1 -> 2055 | AL49: =AK49+1 -> 2056 | AM49: =AL49+1 -> 2057 | AN49: =AM49+1 -> 2058 | AO49: =AN49+1 -> 2059 | AP49: =AO49+1 -> 2060 | AQ49: =AP49+1 -> 2061 | AR49: =AQ49+1 -> 2062 | AS49: =AR49+1 -> 2063 | AT49: =AS49+1 -> 2064 | AU49: =AT49+1 -> 2065 | AV49: =AU49+1 -> 2066 | AW49: =AV49+1 -> 2067 | AX49: =AW49+1 -> 2068 | AY49: =AX49+1 -> 2069 | AZ49: =AY49+1 -> 2070 | BA49: =AZ49+1 -> 2071 | BB49: =BA49+1 -> 2072 | BC49: =BB49+1 -> 2073 | BD49: =BC49+1 -> 2074 | BE49: =BD49+1 -> 2075 | BF49: =BE49+1 -> 2076 | BG49: =BF49+1 -> 2077 | BH49: =BG49+1 -> 2078 | BI49: =BH49+1 -> 2079 | BJ49: =BI49+1 -> 2080 | BK49: =BJ49+1 -> 2081 | BL49: =BK49+1 -> 2082 | BM49: =BL49+1 -> 2083 | BN49: =BM49+1 -> 2084 | BO49: =BN49+1 -> 2085 | BP49: =BO49+1 -> 2086 | BQ49: =BP49+1 -> 2087 | BR49: =BQ49+1 -> 2088 | BS49: =BR49+1 -> 2089 | BT49: =BS49+1 -> 2090 | BU49: =BT49+1 -> 2091 | BV49: =BU49+1 -> 2092 | BW49: =BV49+1 -> 2093 | BX49: =BW49+1 -> 2094 | BY49: =BX49+1 -> 2095 | BZ49: =BY49+1 -> 2096 | CA49: =BZ49+1 -> 2097 | CB49: =CA49+1 -> 2098 | CC49: =CB49+1 -> 2099 | CD49: =CC49+1 -> 2100
A50: Daily supply charge | D50: ='[9]ACIL Input-Out Interface'!D$87 -> 0.201899812 | E50: ='[9]ACIL Input-Out Interface'!E$87 -> 0.1507797195 | F50: ='[9]ACIL Input-Out Interface'!F$87 -> 0.1498782872 | G50: ='[9]ACIL Input-Out Interface'!G$87 -> 0.1586403291 | H50: ='[9]ACIL Input-Out Interface'!H$87 -> 0.1608809881 | I50: ='[9]ACIL Input-Out Interface'!I$87 -> 0.1645927753 | J50: ='[9]ACIL Input-Out Interface'!J$87 -> 0.1703501902 | K50: ='[9]ACIL Input-Out Interface'!K$87 -> 0.1745608659 | L50: ='[9]ACIL Input-Out Interface'!L$87 -> 0.1711209393 | M50: ='[9]ACIL Input-Out Interface'!M$87 -> 0.1659062756 | N50: ='[9]ACIL Input-Out Interface'!N$87 -> 0.1539653723 | O50: ='[9]ACIL Input-Out Interface'!O$87 -> 0.1551940024 | P50: ='[9]ACIL Input-Out Interface'!P$87 -> 0.1700939587 | Q50: ='[9]ACIL Input-Out Interface'!Q$87 -> 0.1753954771 | R50: ='[9]ACIL Input-Out Interface'!R$87 -> 0.1753701671 | S50: ='[9]ACIL Input-Out Interface'!S$87 -> 0.1733022401 | T50: ='[9]ACIL Input-Out Interface'!T$87 -> 0.1720431051 | U50: ='[9]ACIL Input-Out Interface'!U$87 -> 0.1719827607 | V50: ='[9]ACIL Input-Out Interface'!V$87 -> 0.1711174635 | W50: ='[9]ACIL Input-Out Interface'!W$87 -> 0.1691337778 | X50: ='[9]ACIL Input-Out Interface'!X$87 -> 0.1700205959 | Y50: ='[9]ACIL Input-Out Interface'!Y$87 -> 0.1737432983 | Z50: ='[9]ACIL Input-Out Interface'!Z$87 -> 0.1770664863 | AA50: ='[9]ACIL Input-Out Interface'!AA$87 -> 0.1789508188 | AB50: ='[9]ACIL Input-Out Interface'!AB$87 -> 0.1824447852 | AC50: ='[9]ACIL Input-Out Interface'!AC$87 -> 0.1871730404 | AD50: ='[9]ACIL Input-Out Interface'!AD$87 -> 0.1928387541 | AE50: ='[9]ACIL Input-Out Interface'!AE$87 -> 0.1996764666 | AF50: ='[9]ACIL Input-Out Interface'!AF$87 -> 0.2080020874 | AG50: ='[9]ACIL Input-Out Interface'!AG$87 -> 0.2186491319 | AH50: ='[9]ACIL Input-Out Interface'!AH$87 -> 0.2289081857 | AI50: ='[9]ACIL Input-Out Interface'!AI$87 -> 0.2409123488 | AJ50: ='[9]ACIL Input-Out Interface'!AJ$87 -> 0.2519981484 | AK50: ='[9]ACIL Input-Out Interface'!AK$87 -> 0.2634847991 | AL50: ='[9]ACIL Input-Out Interface'!AL$87 -> 0.2757812947 | AM50: ='[9]ACIL Input-Out Interface'!AM$87 -> 0.2887764112 | AN50: ='[9]ACIL Input-Out Interface'!AN$87 -> 0.3022851367 | AO50: ='[9]ACIL Input-Out Interface'!AO$87 -> 0.3161825454 | AP50: ='[9]ACIL Input-Out Interface'!AP$87 -> 0.3304407734 | AQ50: ='[9]ACIL Input-Out Interface'!AQ$87 -> 0.3464086526 | AR50: ='[9]ACIL Input-Out Interface'!AR$87 -> 0.3634564974 | AS50: ='[9]ACIL Input-Out Interface'!AS$87 -> 0.3810807519 | AT50: ='[9]ACIL Input-Out Interface'!AT$87 -> 0.3989831192 | AU50: ='[9]ACIL Input-Out Interface'!AU$87 -> 0.4170477206 | AV50: ='[9]ACIL Input-Out Interface'!AV$87 -> 0.3069746255 | AW50: ='[9]ACIL Input-Out Interface'!AW$87 -> 0.2753851642 | AX50: ='[9]ACIL Input-Out Interface'!AX$87 -> 0.2928042075 | AY50: ='[9]ACIL Input-Out Interface'!AY$87 -> 0.3313147525 | AZ50: ='[9]ACIL Input-Out Interface'!AZ$87 -> 0.3726018627 | BA50: ='[9]ACIL Input-Out Interface'!BA$87 -> 0.4082068183 | BB50: ='[9]ACIL Input-Out Interface'!BB$87 -> 0.4383301441 | BC50: ='[9]ACIL Input-Out Interface'!BC$87 -> 0.4750974541 | BD50: ='[9]ACIL Input-Out Interface'!BD$87 -> 0 | BE50: ='[9]ACIL Input-Out Interface'!BE$87 -> 0 | BF50: ='[9]ACIL Input-Out Interface'!BF$87 -> 0 | BG50: ='[9]ACIL Input-Out Interface'!BG$87 -> 0 | BH50: ='[9]ACIL Input-Out Interface'!BH$87 -> 0 | BI50: ='[9]ACIL Input-Out Interface'!BI$87 -> 0 | BJ50: ='[9]ACIL Input-Out Interface'!BJ$87 -> 0 | BK50: ='[9]ACIL Input-Out Interface'!BK$87 -> 0 | BL50: ='[9]ACIL Input-Out Interface'!BL$87 -> 0 | BM50: ='[9]ACIL Input-Out Interface'!BM$87 -> 0 | BN50: ='[9]ACIL Input-Out Interface'!BN$87 -> 0 | BO50: ='[9]ACIL Input-Out Interface'!BO$87 -> 0 | BP50: ='[9]ACIL Input-Out Interface'!BP$87 -> 0 | BQ50: ='[9]ACIL Input-Out Interface'!BQ$87 -> 0 | BR50: ='[9]ACIL Input-Out Interface'!BR$87 -> 0 | BS50: ='[9]ACIL Input-Out Interface'!BS$87 -> 0 | BT50: ='[9]ACIL Input-Out Interface'!BT$87 -> 0 | BU50: ='[9]ACIL Input-Out Interface'!BU$87 -> 0 | BV50: ='[9]ACIL Input-Out Interface'!BV$87 -> 0 | BW50: ='[9]ACIL Input-Out Interface'!BW$87 -> 0 | BX50: ='[9]ACIL Input-Out Interface'!BX$87 -> 0 | BY50: ='[9]ACIL Input-Out Interface'!BY$87 -> 0 | BZ50: ='[9]ACIL Input-Out Interface'!BZ$87 -> 0 | CA50: ='[9]ACIL Input-Out Interface'!CA$87 -> 0 | CB50: ='[9]ACIL Input-Out Interface'!CB$87 -> 0 | CC50: ='[9]ACIL Input-Out Interface'!CC$87 -> 0 | CD50: ='[9]ACIL Input-Out Interface'!CD$87 -> 0
A51: Average volumetric charge $/GJ | D51: ='[9]ACIL Input-Out Interface'!D$88 -> 6.00071623 | E51: ='[9]ACIL Input-Out Interface'!E$88 -> 4.601008657 | F51: ='[9]ACIL Input-Out Interface'!F$88 -> 4.331772128 | G51: ='[9]ACIL Input-Out Interface'!G$88 -> 4.550134797 | H51: ='[9]ACIL Input-Out Interface'!H$88 -> 4.532530533 | I51: ='[9]ACIL Input-Out Interface'!I$88 -> 4.639488381 | J51: ='[9]ACIL Input-Out Interface'!J$88 -> 4.90631387 | K51: ='[9]ACIL Input-Out Interface'!K$88 -> 5.303277677 | L51: ='[9]ACIL Input-Out Interface'!L$88 -> 5.45255256 | M51: ='[9]ACIL Input-Out Interface'!M$88 -> 5.428370355 | N51: ='[9]ACIL Input-Out Interface'!N$88 -> 4.772188928 | O51: ='[9]ACIL Input-Out Interface'!O$88 -> 4.711708492 | P51: ='[9]ACIL Input-Out Interface'!P$88 -> 5.188379435 | Q51: ='[9]ACIL Input-Out Interface'!Q$88 -> 5.533563415 | R51: ='[9]ACIL Input-Out Interface'!R$88 -> 5.718840348 | S51: ='[9]ACIL Input-Out Interface'!S$88 -> 5.738811191 | T51: ='[9]ACIL Input-Out Interface'!T$88 -> 5.770820533 | U51: ='[9]ACIL Input-Out Interface'!U$88 -> 5.88439849 | V51: ='[9]ACIL Input-Out Interface'!V$88 -> 5.948761928 | W51: ='[9]ACIL Input-Out Interface'!W$88 -> 5.895574388 | X51: ='[9]ACIL Input-Out Interface'!X$88 -> 5.96041936 | Y51: ='[9]ACIL Input-Out Interface'!Y$88 -> 6.249383485 | Z51: ='[9]ACIL Input-Out Interface'!Z$88 -> 6.559317027 | AA51: ='[9]ACIL Input-Out Interface'!AA$88 -> 6.76670342 | AB51: ='[9]ACIL Input-Out Interface'!AB$88 -> 7.027128133 | AC51: ='[9]ACIL Input-Out Interface'!AC$88 -> 7.355094152 | AD51: ='[9]ACIL Input-Out Interface'!AD$88 -> 7.736117445 | AE51: ='[9]ACIL Input-Out Interface'!AE$88 -> 8.183656108 | AF51: ='[9]ACIL Input-Out Interface'!AF$88 -> 8.727914262 | AG51: ='[9]ACIL Input-Out Interface'!AG$88 -> 9.457773545 | AH51: ='[9]ACIL Input-Out Interface'!AH$88 -> 10.22134543 | AI51: ='[9]ACIL Input-Out Interface'!AI$88 -> 11.19093896 | AJ51: ='[9]ACIL Input-Out Interface'!AJ$88 -> 12.17853976 | AK51: ='[9]ACIL Input-Out Interface'!AK$88 -> 13.24617672 | AL51: ='[9]ACIL Input-Out Interface'!AL$88 -> 14.44962768 | AM51: ='[9]ACIL Input-Out Interface'!AM$88 -> 15.8243455 | AN51: ='[9]ACIL Input-Out Interface'!AN$88 -> 17.39832295 | AO51: ='[9]ACIL Input-Out Interface'!AO$88 -> 19.20394187 | AP51: ='[9]ACIL Input-Out Interface'!AP$88 -> 21.28773717 | AQ51: ='[9]ACIL Input-Out Interface'!AQ$88 -> 23.80737922 | AR51: ='[9]ACIL Input-Out Interface'!AR$88 -> 26.89405028 | AS51: ='[9]ACIL Input-Out Interface'!AS$88 -> 30.70164294 | AT51: ='[9]ACIL Input-Out Interface'!AT$88 -> 35.45661158 | AU51: ='[9]ACIL Input-Out Interface'!AU$88 -> 41.52771954 | AV51: ='[9]ACIL Input-Out Interface'!AV$88 -> 34.9501713 | AW51: ='[9]ACIL Input-Out Interface'!AW$88 -> 29.11532352 | AX51: ='[9]ACIL Input-Out Interface'!AX$88 -> 28.7851037 | AY51: ='[9]ACIL Input-Out Interface'!AY$88 -> 32.89884368 | AZ51: ='[9]ACIL Input-Out Interface'!AZ$88 -> 41.14734716 | BA51: ='[9]ACIL Input-Out Interface'!BA$88 -> 55.16525862 | BB51: ='[9]ACIL Input-Out Interface'!BB$88 -> 82.10195132 | BC51: ='[9]ACIL Input-Out Interface'!BC$88 -> 172.4819402 | BD51: ='[9]ACIL Input-Out Interface'!BD$88 -> 0 | BE51: ='[9]ACIL Input-Out Interface'!BE$88 -> 0 | BF51: ='[9]ACIL Input-Out Interface'!BF$88 -> 0 | BG51: ='[9]ACIL Input-Out Interface'!BG$88 -> 0 | BH51: ='[9]ACIL Input-Out Interface'!BH$88 -> 0 | BI51: ='[9]ACIL Input-Out Interface'!BI$88 -> 0 | BJ51: ='[9]ACIL Input-Out Interface'!BJ$88 -> 0 | BK51: ='[9]ACIL Input-Out Interface'!BK$88 -> 0 | BL51: ='[9]ACIL Input-Out Interface'!BL$88 -> 0 | BM51: ='[9]ACIL Input-Out Interface'!BM$88 -> 0 | BN51: ='[9]ACIL Input-Out Interface'!BN$88 -> 0 | BO51: ='[9]ACIL Input-Out Interface'!BO$88 -> 0 | BP51: ='[9]ACIL Input-Out Interface'!BP$88 -> 0 | BQ51: ='[9]ACIL Input-Out Interface'!BQ$88 -> 0 | BR51: ='[9]ACIL Input-Out Interface'!BR$88 -> 0 | BS51: ='[9]ACIL Input-Out Interface'!BS$88 -> 0 | BT51: ='[9]ACIL Input-Out Interface'!BT$88 -> 0 | BU51: ='[9]ACIL Input-Out Interface'!BU$88 -> 0 | BV51: ='[9]ACIL Input-Out Interface'!BV$88 -> 0 | BW51: ='[9]ACIL Input-Out Interface'!BW$88 -> 0 | BX51: ='[9]ACIL Input-Out Interface'!BX$88 -> 0 | BY51: ='[9]ACIL Input-Out Interface'!BY$88 -> 0 | BZ51: ='[9]ACIL Input-Out Interface'!BZ$88 -> 0 | CA51: ='[9]ACIL Input-Out Interface'!CA$88 -> 0 | CB51: ='[9]ACIL Input-Out Interface'!CB$88 -> 0 | CC51: ='[9]ACIL Input-Out Interface'!CC$88 -> 0 | CD51: ='[9]ACIL Input-Out Interface'!CD$88 -> 0
A52: Commercial
A53: Daily supply charge | D53: ='[9]ACIL Input-Out Interface'!D$89 -> 0.2021616452 | E53: ='[9]ACIL Input-Out Interface'!E$89 -> 0.1561806639 | F53: ='[9]ACIL Input-Out Interface'!F$89 -> 0.1669239492 | G53: ='[9]ACIL Input-Out Interface'!G$89 -> 0.1898530655 | H53: ='[9]ACIL Input-Out Interface'!H$89 -> 0.2023361568 | I53: ='[9]ACIL Input-Out Interface'!I$89 -> 0.2199137264 | J53: ='[9]ACIL Input-Out Interface'!J$89 -> 0.2439680601 | K53: ='[9]ACIL Input-Out Interface'!K$89 -> 0.2678275549 | L53: ='[9]ACIL Input-Out Interface'!L$89 -> 0.281024752 | M53: ='[9]ACIL Input-Out Interface'!M$89 -> 0.2913745331 | N53: ='[9]ACIL Input-Out Interface'!N$89 -> 0.2862821262 | O53: ='[9]ACIL Input-Out Interface'!O$89 -> 0.3051467825 | P53: ='[9]ACIL Input-Out Interface'!P$89 -> 0 | Q53: ='[9]ACIL Input-Out Interface'!Q$89 -> 0 | R53: ='[9]ACIL Input-Out Interface'!R$89 -> 0 | S53: ='[9]ACIL Input-Out Interface'!S$89 -> 0 | T53: ='[9]ACIL Input-Out Interface'!T$89 -> 0 | U53: ='[9]ACIL Input-Out Interface'!U$89 -> 0 | V53: ='[9]ACIL Input-Out Interface'!V$89 -> 0 | W53: ='[9]ACIL Input-Out Interface'!W$89 -> 0 | X53: ='[9]ACIL Input-Out Interface'!X$89 -> 0 | Y53: ='[9]ACIL Input-Out Interface'!Y$89 -> 0 | Z53: ='[9]ACIL Input-Out Interface'!Z$89 -> 0 | AA53: ='[9]ACIL Input-Out Interface'!AA$89 -> 0 | AB53: ='[9]ACIL Input-Out Interface'!AB$89 -> 0 | AC53: ='[9]ACIL Input-Out Interface'!AC$89 -> 0 | AD53: ='[9]ACIL Input-Out Interface'!AD$89 -> 0 | AE53: ='[9]ACIL Input-Out Interface'!AE$89 -> 0 | AF53: ='[9]ACIL Input-Out Interface'!AF$89 -> 0 | AG53: ='[9]ACIL Input-Out Interface'!AG$89 -> 0 | AH53: ='[9]ACIL Input-Out Interface'!AH$89 -> 0 | AI53: ='[9]ACIL Input-Out Interface'!AI$89 -> 0 | AJ53: ='[9]ACIL Input-Out Interface'!AJ$89 -> 0 | AK53: ='[9]ACIL Input-Out Interface'!AK$89 -> 0 | AL53: ='[9]ACIL Input-Out Interface'!AL$89 -> 0 | AM53: ='[9]ACIL Input-Out Interface'!AM$89 -> 0 | AN53: ='[9]ACIL Input-Out Interface'!AN$89 -> 0 | AO53: ='[9]ACIL Input-Out Interface'!AO$89 -> 0 | AP53: ='[9]ACIL Input-Out Interface'!AP$89 -> 0 | AQ53: ='[9]ACIL Input-Out Interface'!AQ$89 -> 0 | AR53: ='[9]ACIL Input-Out Interface'!AR$89 -> 0 | AS53: ='[9]ACIL Input-Out Interface'!AS$89 -> 0 | AT53: ='[9]ACIL Input-Out Interface'!AT$89 -> 0 | AU53: ='[9]ACIL Input-Out Interface'!AU$89 -> 0 | AV53: ='[9]ACIL Input-Out Interface'!AV$89 -> 0 | AW53: ='[9]ACIL Input-Out Interface'!AW$89 -> 0 | AX53: ='[9]ACIL Input-Out Interface'!AX$89 -> 0 | AY53: ='[9]ACIL Input-Out Interface'!AY$89 -> 0 | AZ53: ='[9]ACIL Input-Out Interface'!AZ$89 -> 0 | BA53: ='[9]ACIL Input-Out Interface'!BA$89 -> 0 | BB53: ='[9]ACIL Input-Out Interface'!BB$89 -> 0 | BC53: ='[9]ACIL Input-Out Interface'!BC$89 -> 0 | BD53: ='[9]ACIL Input-Out Interface'!BD$89 -> 0 | BE53: ='[9]ACIL Input-Out Interface'!BE$89 -> 0 | BF53: ='[9]ACIL Input-Out Interface'!BF$89 -> 0 | BG53: ='[9]ACIL Input-Out Interface'!BG$89 -> 0 | BH53: ='[9]ACIL Input-Out Interface'!BH$89 -> 0 | BI53: ='[9]ACIL Input-Out Interface'!BI$89 -> 0 | BJ53: ='[9]ACIL Input-Out Interface'!BJ$89 -> 0 | BK53: ='[9]ACIL Input-Out Interface'!BK$89 -> 0 | BL53: ='[9]ACIL Input-Out Interface'!BL$89 -> 0 | BM53: ='[9]ACIL Input-Out Interface'!BM$89 -> 0 | BN53: ='[9]ACIL Input-Out Interface'!BN$89 -> 0 | BO53: ='[9]ACIL Input-Out Interface'!BO$89 -> 0 | BP53: ='[9]ACIL Input-Out Interface'!BP$89 -> 0 | BQ53: ='[9]ACIL Input-Out Interface'!BQ$89 -> 0 | BR53: ='[9]ACIL Input-Out Interface'!BR$89 -> 0 | BS53: ='[9]ACIL Input-Out Interface'!BS$89 -> 0 | BT53: ='[9]ACIL Input-Out Interface'!BT$89 -> 0 | BU53: ='[9]ACIL Input-Out Interface'!BU$89 -> 0 | BV53: ='[9]ACIL Input-Out Interface'!BV$89 -> 0 | BW53: ='[9]ACIL Input-Out Interface'!BW$89 -> 0 | BX53: ='[9]ACIL Input-Out Interface'!BX$89 -> 0 | BY53: ='[9]ACIL Input-Out Interface'!BY$89 -> 0 | BZ53: ='[9]ACIL Input-Out Interface'!BZ$89 -> 0 | CA53: ='[9]ACIL Input-Out Interface'!CA$89 -> 0 | CB53: ='[9]ACIL Input-Out Interface'!CB$89 -> 0 | CC53: ='[9]ACIL Input-Out Interface'!CC$89 -> 0 | CD53: ='[9]ACIL Input-Out Interface'!CD$89 -> 0
A54: Average volumetric charge $/GJ | D54: ='[9]ACIL Input-Out Interface'!D$90 -> 2.438758675 | E54: ='[9]ACIL Input-Out Interface'!E$90 -> 1.665905297 | F54: ='[9]ACIL Input-Out Interface'!F$90 -> 1.70139391 | G54: ='[9]ACIL Input-Out Interface'!G$90 -> 1.964204469 | H54: ='[9]ACIL Input-Out Interface'!H$90 -> 2.056118811 | I54: ='[9]ACIL Input-Out Interface'!I$90 -> 2.268790122 | J54: ='[9]ACIL Input-Out Interface'!J$90 -> 2.645772702 | K54: ='[9]ACIL Input-Out Interface'!K$90 -> 3.214238387 | L54: ='[9]ACIL Input-Out Interface'!L$90 -> 3.709122118 | M54: ='[9]ACIL Input-Out Interface'!M$90 -> 4.131478863 | N54: ='[9]ACIL Input-Out Interface'!N$90 -> 3.886030675 | O54: ='[9]ACIL Input-Out Interface'!O$90 -> 4.163593236 | P54: ='[9]ACIL Input-Out Interface'!P$90 -> 0 | Q54: ='[9]ACIL Input-Out Interface'!Q$90 -> 0 | R54: ='[9]ACIL Input-Out Interface'!R$90 -> 0 | S54: ='[9]ACIL Input-Out Interface'!S$90 -> 0 | T54: ='[9]ACIL Input-Out Interface'!T$90 -> 0 | U54: ='[9]ACIL Input-Out Interface'!U$90 -> 0 | V54: ='[9]ACIL Input-Out Interface'!V$90 -> 0 | W54: ='[9]ACIL Input-Out Interface'!W$90 -> 0 | X54: ='[9]ACIL Input-Out Interface'!X$90 -> 0 | Y54: ='[9]ACIL Input-Out Interface'!Y$90 -> 0 | Z54: ='[9]ACIL Input-Out Interface'!Z$90 -> 0 | AA54: ='[9]ACIL Input-Out Interface'!AA$90 -> 0 | AB54: ='[9]ACIL Input-Out Interface'!AB$90 -> 0 | AC54: ='[9]ACIL Input-Out Interface'!AC$90 -> 0 | AD54: ='[9]ACIL Input-Out Interface'!AD$90 -> 0 | AE54: ='[9]ACIL Input-Out Interface'!AE$90 -> 0 | AF54: ='[9]ACIL Input-Out Interface'!AF$90 -> 0 | AG54: ='[9]ACIL Input-Out Interface'!AG$90 -> 0 | AH54: ='[9]ACIL Input-Out Interface'!AH$90 -> 0 | AI54: ='[9]ACIL Input-Out Interface'!AI$90 -> 0 | AJ54: ='[9]ACIL Input-Out Interface'!AJ$90 -> 0 | AK54: ='[9]ACIL Input-Out Interface'!AK$90 -> 0 | AL54: ='[9]ACIL Input-Out Interface'!AL$90 -> 0 | AM54: ='[9]ACIL Input-Out Interface'!AM$90 -> 0 | AN54: ='[9]ACIL Input-Out Interface'!AN$90 -> 0 | AO54: ='[9]ACIL Input-Out Interface'!AO$90 -> 0 | AP54: ='[9]ACIL Input-Out Interface'!AP$90 -> 0 | AQ54: ='[9]ACIL Input-Out Interface'!AQ$90 -> 0 | AR54: ='[9]ACIL Input-Out Interface'!AR$90 -> 0 | AS54: ='[9]ACIL Input-Out Interface'!AS$90 -> 0 | AT54: ='[9]ACIL Input-Out Interface'!AT$90 -> 0 | AU54: ='[9]ACIL Input-Out Interface'!AU$90 -> 0 | AV54: ='[9]ACIL Input-Out Interface'!AV$90 -> 0 | AW54: ='[9]ACIL Input-Out Interface'!AW$90 -> 0 | AX54: ='[9]ACIL Input-Out Interface'!AX$90 -> 0 | AY54: ='[9]ACIL Input-Out Interface'!AY$90 -> 0 | AZ54: ='[9]ACIL Input-Out Interface'!AZ$90 -> 0 | BA54: ='[9]ACIL Input-Out Interface'!BA$90 -> 0 | BB54: ='[9]ACIL Input-Out Interface'!BB$90 -> 0 | BC54: ='[9]ACIL Input-Out Interface'!BC$90 -> 0 | BD54: ='[9]ACIL Input-Out Interface'!BD$90 -> 0 | BE54: ='[9]ACIL Input-Out Interface'!BE$90 -> 0 | BF54: ='[9]ACIL Input-Out Interface'!BF$90 -> 0 | BG54: ='[9]ACIL Input-Out Interface'!BG$90 -> 0 | BH54: ='[9]ACIL Input-Out Interface'!BH$90 -> 0 | BI54: ='[9]ACIL Input-Out Interface'!BI$90 -> 0 | BJ54: ='[9]ACIL Input-Out Interface'!BJ$90 -> 0 | BK54: ='[9]ACIL Input-Out Interface'!BK$90 -> 0 | BL54: ='[9]ACIL Input-Out Interface'!BL$90 -> 0 | BM54: ='[9]ACIL Input-Out Interface'!BM$90 -> 0 | BN54: ='[9]ACIL Input-Out Interface'!BN$90 -> 0 | BO54: ='[9]ACIL Input-Out Interface'!BO$90 -> 0 | BP54: ='[9]ACIL Input-Out Interface'!BP$90 -> 0 | BQ54: ='[9]ACIL Input-Out Interface'!BQ$90 -> 0 | BR54: ='[9]ACIL Input-Out Interface'!BR$90 -> 0 | BS54: ='[9]ACIL Input-Out Interface'!BS$90 -> 0 | BT54: ='[9]ACIL Input-Out Interface'!BT$90 -> 0 | BU54: ='[9]ACIL Input-Out Interface'!BU$90 -> 0 | BV54: ='[9]ACIL Input-Out Interface'!BV$90 -> 0 | BW54: ='[9]ACIL Input-Out Interface'!BW$90 -> 0 | BX54: ='[9]ACIL Input-Out Interface'!BX$90 -> 0 | BY54: ='[9]ACIL Input-Out Interface'!BY$90 -> 0 | BZ54: ='[9]ACIL Input-Out Interface'!BZ$90 -> 0 | CA54: ='[9]ACIL Input-Out Interface'!CA$90 -> 0 | CB54: ='[9]ACIL Input-Out Interface'!CB$90 -> 0 | CC54: ='[9]ACIL Input-Out Interface'!CC$90 -> 0 | CD54: ='[9]ACIL Input-Out Interface'!CD$90 -> 0

Sheet Scenarios
A1: Scenario | B1: ='[9]ACIL Input-Out Interface'!$C$31 -> 1 | F1: 5 is not a Scenario, it’s a baseline for model calibration
A3: Discount Factor | B3: 1 | C3: 2 | D3: 3 | E3: 4 | F3: 5 | G3: Selected Input
A4: High income | B4: 0.06646118392 | C4: 0.06646118392 | D4: 0.07646118392 | E4: 0.07146118392 | F4: 0.05 | G4: =IF($B$1=$B$3,B4,IF($B$1=$C$3,C4,IF($B$1=$D$3,D4,IF($B$1=E4,$E$3,F4)))) -> 0.06646118392
A5: Medium income | B5: 0.09704565749 | C5: 0.09704565749 | D5: 0.1070456575 | E5: 0.1020456575 | F5: 0.1 | G5: =IF($B$1=$B$3,B5,IF($B$1=$C$3,C5,IF($B$1=$D$3,D5,IF($B$1=E5,$E$3,F5)))) -> 0.09704565749
A6: Low income | B6: 0.1735068414 | C6: 0.1735068414 | D6: 0.1835068414 | E6: 0.1785068414 | F6: 0.15 | G6: 0.1735068414
A7: Commercial | B7: 0.0472 | C7: 0.0472 | D7: 0.0572 | E7: 0.0522 | F7: 0.03 | G7: 0.0472 | J7: -0.005
A9: Appliance efficiency | B9: 1 | C9: 2 | D9: 3 | E9: 4 | F9: 5 | G9: Selected Input | I9: Appliance costs
A10: Cooking | I10: Cooking | J10: real % change (p.a.)
A11: Electric cooktop (induction) | B11: 0.0064 | C11: 0.006 | D11: 0.0057 | E11: 0 | F11: 0 | G11: =IF($B$1=$B$9,B11,IF($B$1=$C$9,C11,IF($B$1=$D$9,D11,IF($B$1=$E$9,E11,F11)))) -> 0.0064 | I11: Electric cooktop (induction) | J11: =$J$7 -> -0.005 | K11: =IF($B$1=5,0,J11) -> -0.005
A12: Gas stove | B12: 0 | C12: 0 | D12: 0.0057 | E12: 0.0064 | F12: 0 | G12: =IF($B$1=$B$9,B12,IF($B$1=$C$9,C12,IF($B$1=$D$9,D12,IF($B$1=$E$9,E12,F12)))) -> 0 | I12: Gas stove | J12: 0 | K12: =IF($B$1=5,0,J12) -> 0
A14: Hot water | I14: Hot water
A15: Heat pump hot water | B15: 0.0064 | C15: 0.0064 | D15: 0 | E15: 0 | F15: 0 | G15: =IF($B$1=$B$9,B15,IF($B$1=$C$9,C15,IF($B$1=$D$9,D15,IF($B$1=$E$9,E15,F15)))) -> 0.0064 | I15: Heat pump hot water | J15: =$J$7 -> -0.005 | K15: -0.005
A16: Gas instant hot water | B16: 0 | C16: 0 | D16: 0 | E16: 0.0082 | F16: 0 | G16: 0 | I16: Gas instant hot water | J16: 0 | K16: 0
A18: Room heating | I18: Room heating
A19: RCAC split system | B19: 0 | C19: 0 | D19: 0 | E19: 0.002 | F19: 0 | G19: 0 | I19: RCAC split system | J19: =$J$7 -> -0.005 | K19: -0.005
A20: Gas wall furnace | B20: 0 | C20: 0 | D20: 0 | E20: 0 | F20: 0 | G20: 0 | I20: Gas wall furnace | J20: 0 | K20: 0
A22: Ducted heating | I22: Ducted heating
A23: Ducted RCAC | B23: 0.0029 | C23: 0.0029 | D23: 0.002 | E23: 0 | F23: 0 | G23: 0.0029 | I23: Ducted RCAC | J23: =$J$7 -> -0.005 | K23: -0.005
A24: Ducted gas heating | B24: 0 | C24: 0 | D24: 0.002 | E24: 0.002 | F24: 0 | G24: 0 | I24: Ducted gas heating | J24: 0 | K24: 0
M25: Commerical Scale Factor
M26: 4.038461538
A27: Maintenance costs | B27: 1 | C27: 2 | D27: 3 | E27: 4 | F27: 5 | G27: Selected Input | I27: Connection/Disconnection Sensitity | J27: Residential | L27: Commercial
A28: Cooking | I28: 1 (90% switch at 10% saving) | J28: 0.86 | K28: -0.0024 | L28: =J28 -> 0.86 | M28: =K28/M26 -> -0.0005942857143
A29: Electric cooktop (induction) | B29: -0.0064 | C29: -0.006 | D29: -0.0057 | E29: 0 | F29: 0 | G29: =IF($B$1=$B$27,B29,IF($B$1=$C$27,C29,IF($B$1=$D$27,D29,IF($B$1=$E$27,E29,F29)))) -> -0.0064 | I29: 2 (90% switch at 20% saving) | J29: =J28 -> 0.86 | K29: =K28 -> -0.0024 | L29: =L28 -> 0.86 | M29: -0.0005942857143
A30: Gas stove | B30: 0 | C30: 0 | D30: -0.0057 | E30: -0.0064 | F30: 0 | G30: =IF($B$1=$B$27,B30,IF($B$1=$C$27,C30,IF($B$1=$D$27,D30,IF($B$1=$E$27,E30,F30)))) -> 0 | I30: 3 (90% switch at 20% saving) | J30: Not used for GSR
I31: 4 (90% switch at 40% saving) | J31: Not used for GSR
A32: Hot water | I32: Selected Input | J32: =IF($B$1=1,J28,IF($B$1=2,J29,IF($B$1=3,J30,IF($B$1=4,J31,J30)))) -> 0.86 | K32: =IF($B$1=1,K28,IF($B$1=2,K29,IF($B$1=3,K30,IF($B$1=4,K31,K30)))) -> -0.0024 | L32: =IF($B$1=1,L28,IF($B$1=2,L29,IF($B$1=3,L30,IF($B$1=4,L31,L30)))) -> 0.86 | M32: =IF($B$1=1,M28,IF($B$1=2,M29,IF($B$1=3,M30,IF($B$1=4,M31,M30)))) -> -0.0005942857143
A33: Heat pump hot water | B33: -0.0064 | C33: -0.0064 | D33: 0 | E33: 0 | F33: 0 | G33: -0.0064
A34: Gas instant hot water | B34: 0 | C34: 0 | D34: 0 | E34: -0.0082 | F34: 0 | G34: 0
A36: Room heating
A37: RCAC split system | B37: 0 | C37: 0 | D37: 0 | E37: -0.002 | F37: 0 | G37: 0
A38: Gas wall furnace | B38: 0 | C38: 0 | D38: 0 | E38: 0 | F38: 0 | G38: 0
A40: Ducted heating
A41: Ducted RCAC | B41: -0.0029 | C41: -0.0029 | D41: -0.002 | E41: 0 | F41: 0 | G41: -0.0029
A42: Ducted gas heating | B42: 0 | C42: 0 | D42: -0.002 | E42: -0.002 | F42: 0 | G42: 0
A44: Elasticities | B44: 1 | C44: 2 | D44: 3 | E44: 4 | F44: 5 | G44: Selected Input
A45: Residential
A46: Weather | B46: 0.3555523 | C46: 0.3555523 | D46: 0.3555523 | E46: 0.3555523 | F46: 0.3555523 | G46: =IF($B$1=$B$44,B46,IF($B$1=$C$44,C46,IF($B$1=$D$44,D46,IF($B$1=$E$44,E46,F46)))) -> 0.3555523
A47: Gas price | B47: -0.8 | C47: -0.7 | D47: -0.6 | E47: -0.4 | F47: -0.1 | G47: =IF($B$1=$B$44,B47,IF($B$1=$C$44,C47,IF($B$1=$D$44,D47,IF($B$1=$E$44,E47,F47)))) -> -0.8
A48: Electricity price | B48: 0.008 | C48: 0.008 | D48: 0.008 | E48: 0.008 | F48: 0.08 | G48: 0.008 | I48: Gas Price | J48: 0
A49: Commercial
A50: Weather | B50: 0.1551871 | C50: 0.1551871 | D50: 0.1551871 | E50: 0.1551871 | F50: 0.1551871 | G50: 0.1551871
A51: Gas price | B51: -0.9 | C51: -0.8 | D51: -0.7 | E51: -0.5 | F51: -0.35 | G51: -0.9 | I51: Percent of status quo in prices | J51: 0
A52: Electricity price | B52: 0.008 | C52: 0.008 | D52: 0.008 | E52: 0.008 | F52: 0.3 | G52: 0.008 | I52: Upper NPV electrification threshold | J52: 1
I53: Electricity baseline variable charge growth | J53: 0
E54: =(1+J48) -> 1 | F54: =(1+$J$48)*E54 -> 1 | G54: =(1+$J$48)*F54 -> 1 | H54: 1 | I54: 1 | J54: 1 | K54: 1 | L54: 1 | M54: 1 | N54: 1 | O54: 1 | P54: 1 | Q54: 1 | R54: 1 | S54: 1 | T54: 1 | U54: 1 | V54: 1 | W54: 1 | X54: 1 | Y54: 1 | Z54: 1 | AA54: 1 | AB54: 1 | AC54: 1 | AD54: 1 | AE54: 1 | AF54: 1 | AG54: 1 | AH54: 1 | AI54: 1 | AJ54: 1 | AK54: 1 | AL54: 1 | AM54: 1 | AN54: 1 | AO54: 1 | AP54: 1 | AQ54: 1 | AR54: 1 | AS54: 1 | AT54: 1 | AU54: 1 | AV54: 1 | AW54: 1 | AX54: 1 | AY54: 1 | AZ54: 1 | BA54: 1 | BB54: 1 | BC54: 1 | BD54: 1 | BE54: 1 | BF54: 1 | BG54: 1 | BH54: 1 | BI54: 1 | BJ54: 1 | BK54: 1 | BL54: 1 | BM54: 1 | BN54: 1 | BO54: 1 | BP54: 1 | BQ54: 1 | BR54: 1 | BS54: =(1+$J$48)*BR54 -> 1 | BT54: 1 | BU54: 1 | BV54: 1 | BW54: 1 | BX54: 1 | BY54: 1 | BZ54: 1 | CA54: 1 | CB54: 1 | CC54: 1 | CD54: 1
A55: Gas (Energy only) Prices | B55: Selected Input | C55: 2021 | D55: =C55+1 -> 2022 | E55: 2023 | F55: 2024 | G55: 2025 | H55: 2026 | I55: 2027 | J55: 2028 | K55: 2029 | L55: 2030 | M55: 2031 | N55: 2032 | O55: 2033 | P55: 2034 | Q55: 2035 | R55: 2036 | S55: 2037 | T55: 2038 | U55: 2039 | V55: 2040 | W55: 2041 | X55: 2042 | Y55: 2043 | Z55: 2044 | AA55: 2045 | AB55: 2046 | AC55: 2047 | AD55: 2048 | AE55: 2049 | AF55: 2050 | AG55: 2051 | AH55: 2052 | AI55: 2053 | AJ55: 2054 | AK55: 2055 | AL55: 2056 | AM55: 2057 | AN55: 2058 | AO55: 2059 | AP55: 2060 | AQ55: 2061 | AR55: 2062 | AS55: 2063 | AT55: 2064 | AU55: 2065 | AV55: 2066 | AW55: 2067 | AX55: 2068 | AY55: 2069 | AZ55: 2070 | BA55: 2071 | BB55: 2072 | BC55: 2073 | BD55: 2074 | BE55: 2075 | BF55: 2076 | BG55: 2077 | BH55: 2078 | BI55: 2079 | BJ55: 2080 | BK55: 2081 | BL55: 2082 | BM55: 2083 | BN55: 2084 | BO55: 2085 | BP55: =BO55+1 -> 2086 | BQ55: 2087 | BR55: 2088 | BS55: 2089 | BT55: 2090 | BU55: 2091 | BV55: 2092 | BW55: 2093 | BX55: 2094 | BY55: 2095 | BZ55: 2096 | CA55: 2097 | CB55: 2098 | CC55: 2099 | CD55: 2100
B56: =B1 -> 1 | C56: =AVERAGE(C57:C60) -> 10.16197608 | D56: =AVERAGE(D57:D60) -> 11.62970001 | E56: =IF($B$56=$A57,E57,IF($B$56=$A58,E58,IF($B$56=$A59,E59,IF($B$56=$A60,E60,E61))))*E54 -> 11.38981972 | F56: =IF($B$56=$A57,F57,IF($B$56=$A58,F58,IF($B$56=$A59,F59,IF($B$56=$A60,F60,F61))))*F54 -> 11.37981776 | G56: 10.59030594 | H56: 10.48546923 | I56: 10.72866274 | J56: 11.45228294 | K56: 11.88190859 | L56: 11.99294215 | M56: 12.06319845 | N56: 12.0862355 | O56: 12.19320762 | P56: 12.46416773 | Q56: 12.88398648 | R56: 13.02757082 | S56: 13.2813354 | T56: 13.67979633 | U56: 13.90355677 | V56: 13.83861915 | W56: 13.94677157 | X56: 14.45428997 | Y56: 14.83732464 | Z56: 14.98226033 | AA56: 15.16731385 | AB56: 15.34080103 | AC56: 15.42752572 | AD56: 15.50171047 | AE56: 15.56567181 | AF56: 15.72149476 | AG56: 15.75702868 | AH56: 15.95011434 | AI56: 15.96011434 | AJ56: 15.97011434 | AK56: 15.98011434 | AL56: 15.99011434 | AM56: 16.00011434 | AN56: 16.01011434 | AO56: 16.02011434 | AP56: 16.03011434 | AQ56: 16.04011434 | AR56: 16.05011434 | AS56: 16.06011434 | AT56: 16.07011434 | AU56: 16.08011434 | AV56: 16.09011434 | AW56: 16.10011434 | AX56: 16.11011434 | AY56: 16.12011434 | AZ56: 16.13011434 | BA56: 16.14011434 | BB56: 16.15011434 | BC56: 16.16011434 | BD56: 16.17011434 | BE56: 16.18011434 | BF56: 16.19011434 | BG56: 16.20011434 | BH56: 16.21011434 | BI56: 16.22011434 | BJ56: 16.23011434 | BK56: 16.24011434 | BL56: 16.25011434 | BM56: 16.26011434 | BN56: 16.27011434 | BO56: 16.28011434 | BP56: 16.29011434 | BQ56: 16.30011434 | BR56: =IF($B$56=$A57,BR57,IF($B$56=$A58,BR58,IF($B$56=$A59,BR59,IF($B$56=$A60,BR60,BR61))))*BR54 -> 16.31011434 | BS56: 16.32011434 | BT56: 16.33011434 | BU56: 16.34011434 | BV56: 16.35011434 | BW56: 16.36011434 | BX56: 16.37011434 | BY56: 16.38011434 | BZ56: 16.39011434 | CA56: 16.40011434 | CB56: 16.41011434 | CC56: 16.42011434 | CD56: 16.43011434
A57: 1 | C57: 9.943105725 | D57: 11.21295063 | E57: 11.38981972 | F57: 11.37981776 | G57: 10.59030594 | H57: 10.48546923 | I57: 10.72866274 | J57: 11.45228294 | K57: 11.88190859 | L57: 11.99294215 | M57: 12.06319845 | N57: 12.0862355 | O57: 12.19320762 | P57: 12.46416773 | Q57: 12.88398648 | R57: 13.02757082 | S57: 13.2813354 | T57: 13.67979633 | U57: 13.90355677 | V57: 13.83861915 | W57: 13.94677157 | X57: 14.45428997 | Y57: 14.83732464 | Z57: 14.98226033 | AA57: 15.16731385 | AB57: 15.34080103 | AC57: 15.42752572 | AD57: 15.50171047 | AE57: 15.56567181 | AF57: 15.72149476 | AG57: 15.75702868 | AH57: 15.95011434 | AI57: 15.96011434 | AJ57: 15.97011434 | AK57: 15.98011434 | AL57: 15.99011434 | AM57: 16.00011434 | AN57: 16.01011434 | AO57: 16.02011434 | AP57: 16.03011434 | AQ57: 16.04011434 | AR57: 16.05011434 | AS57: 16.06011434 | AT57: 16.07011434 | AU57: 16.08011434 | AV57: 16.09011434 | AW57: 16.10011434 | AX57: 16.11011434 | AY57: 16.12011434 | AZ57: 16.13011434 | BA57: 16.14011434 | BB57: 16.15011434 | BC57: 16.16011434 | BD57: 16.17011434 | BE57: 16.18011434 | BF57: 16.19011434 | BG57: 16.20011434 | BH57: 16.21011434 | BI57: 16.22011434 | BJ57: 16.23011434 | BK57: 16.24011434 | BL57: 16.25011434 | BM57: 16.26011434 | BN57: 16.27011434 | BO57: 16.28011434 | BP57: 16.29011434 | BQ57: 16.30011434 | BR57: 16.31011434 | BS57: 16.32011434 | BT57: 16.33011434 | BU57: 16.34011434 | BV57: 16.35011434 | BW57: 16.36011434 | BX57: 16.37011434 | BY57: 16.38011434 | BZ57: 16.39011434 | CA57: 16.40011434 | CB57: 16.41011434 | CC57: 16.42011434 | CD57: 16.43011434
A58: 2 | C58: 10.21513934 | D58: 11.68361466 | E58: 12.01521931 | F58: 12.11807133 | G58: 11.42711455 | H58: 11.40831186 | I58: 11.68606806 | J58: 12.36299793 | K58: 12.73636981 | L58: 12.68998509 | M58: 12.70381279 | N58: 12.67994315 | O58: 12.73461507 | P58: 12.93987619 | Q58: 13.28151009 | R58: 13.37633301 | S58: 13.57151815 | T58: 13.89873 | U58: 14.07051142 | V58: 15.27707343 | W58: 15.03622708 | X58: 14.79319348 | Y58: 14.56434713 | Z58: 14.34150078 | AA58: 14.12246717 | AB58: 13.91162083 | AC58: 13.67484188 | AD58: 13.36287574 | AE58: 13.05090961 | AF58: 12.73894348 | AG58: 12.63176975 | AH58: 12.53289069 | AI58: 12.4416105 | AJ58: 12.35729896 | AK58: 12.27938431 | AL58: 12.20734702 | AM58: 12.14071435 | AN58: 12.07905552 | AO58: 12.02197746 | AP58: 11.96912109 | AQ58: 11.920158 | AR58: 11.87478748 | AS58: 11.83273393 | AT58: 11.79374447 | AU58: 11.75758693 | AV58: 11.7240479 | AW58: 11.69293108 | AX58: 11.66405581 | AY58: 11.63725565 | AZ58: 11.61237718 | BA58: 11.58927892 | BB58: 11.56783028 | BC58: 11.54791069 | BD58: 11.52940876 | BE58: 11.51222153 | BF58: 11.49625381 | BG58: 11.48141751 | BH58: 11.46763114 | BI58: 11.45481925 | BJ58: 11.44291197 | BK58: 11.43184455 | BL58: 11.42155702 | BM58: 11.41199377 | BN58: 11.40310326 | BO58: 11.39483767 | BP58: 11.38715267 | BQ58: 11.38000712 | BR58: 11.37336283 | BS58: 11.36718438 | BT58: 11.36143886 | BU58: 11.35609574 | BV58: 11.35112667 | BW58: 11.3465053 | BX58: 11.34220717 | BY58: 11.33820957 | BZ58: 11.33449138 | CA58: 11.33103299 | CB58: 11.32781616 | CC58: 11.32482398 | CD58: 11.32204068
A59: 3 | C59: 10.29402256 | D59: 11.97577401 | E59: 13.09689272 | F59: 13.54505837 | G59: 12.79843077 | H59: 12.44733938 | I59: 12.37809083 | J59: 12.82196799 | K59: 13.17472965 | L59: 13.31768384 | M59: 13.41009411 | N59: 13.52640455 | O59: 13.66117212 | P59: 13.69465442 | Q59: 13.72315322 | R59: 13.74118173 | S59: 13.83136187 | T59: 14.02614983 | U59: 14.23895289 | V59: 14.30723522 | W59: 14.2371059 | X59: 14.15485933 | Y59: 14.16155765 | Z59: 14.24274986 | AA59: 14.29946127 | AB59: 14.28291787 | AC59: 14.37135777 | AD59: 14.789627 | AE59: 15.34783957 | AF59: 15.64408599 | AG59: 15.57720365 | AH59: 15.7170457 | AI59: 15.71480827 | AJ59: 15.71342875 | AK59: 15.71283674 | AL59: 15.71296829 | AM59: 15.71376519 | AN59: 15.71517442 | AO59: 15.71714759 | AP59: 15.71964049 | AQ59: 15.72261268 | AR59: 15.72602715 | AS59: 15.72984998 | AT59: 15.73405002 | AU59: 15.73859869 | AV59: 15.74346973 | AW59: 15.74863896 | AX59: 15.75408415 | AY59: 15.75978481 | AZ59: 15.76572204 | BA59: 15.77187843 | BB59: 15.77823791 | BC59: 15.78478562 | BD59: 15.79150786 | BE59: 15.79839196 | BF59: 15.80542618 | BG59: 15.8125997 | BH59: 15.81990247 | BI59: 15.82732521 | BJ59: 15.83485931 | BK59: 15.84249681 | BL59: 15.85023032 | BM59: 15.858053 | BN59: 15.8659585 | BO59: 15.87394093 | BP59: 15.88199483 | BQ59: 15.89011515 | BR59: 15.89829718 | BS59: 15.90653655 | BT59: 15.91482923 | BU59: 15.92317144 | BV59: 15.9315597 | BW59: 15.93999077 | BX59: 15.94846163 | BY59: 15.95696949 | BZ59: 15.96551174 | CA59: 15.97408598 | CB59: 15.98268996 | CC59: 15.9913216 | CD59: 15.99997895
A60: 4 | C60: 10.19563669 | D60: 11.64646075 | E60: 11.96349589 | F60: 12.05280958 | G60: 11.35221642 | H60: 11.31918412 | I60: 11.58296069 | J60: 12.24944183 | K60: 12.60974419 | L60: 12.52673366 | M60: 12.53921247 | N60: 12.51519395 | O60: 12.57046699 | P60: 12.77707923 | Q60: 13.12066424 | R60: 13.21788828 | S60: 13.41577454 | T60: 13.74613751 | U60: 13.92152005 | V60: 13.82317089 | W60: 13.60889193 | X60: 13.39324592 | Y60: 13.19396696 | Z60: 13.00218799 | AA60: 12.81654198 | AB60: 12.63976302 | AC60: 12.41963198 | AD60: 12.10551697 | AE60: 11.79140195 | AF60: 11.47728694 | AG60: 11.38072762 | AH60: 11.29164148 | AI60: 11.20940162 | AJ60: 11.13344024 | AK60: 11.0632422 | AL60: 10.99833944 | AM60: 10.93830603 | AN60: 10.88275384 | AO60: 10.83132876 | AP60: 10.78370725 | AQ60: 10.73959343 | AR60: 10.69871638 | AS60: 10.66082778 | AT60: 10.62569982 | AU60: 10.59312329 | AV60: 10.56290594 | AW60: 10.53487092 | AX60: 10.50885543 | AY60: 10.48470954 | AZ60: 10.46229502 | BA60: 10.4414844 | BB60: 10.42216002 | BC60: 10.40421325 | BD60: 10.38754374 | BE60: 10.37205872 | BF60: 10.35767243 | BG60: 10.34430551 | BH60: 10.33188454 | BI60: 10.32034153 | BJ60: 10.30961353 | BK60: 10.29964222 | BL60: 10.29037356 | BM60: 10.28175745 | BN60: 10.27374745 | BO60: 10.26630048 | BP60: 10.2593766 | BQ60: 10.25293874 | BR60: 10.2469525 | BS60: 10.24138595 | BT60: 10.23620947 | BU60: 10.23139553 | BV60: 10.22691858 | BW60: 10.22275491 | BX60: 10.21888247 | BY60: 10.21528079 | BZ60: 10.21193085 | CA60: 10.20881497 | CB60: 10.20591674 | CC60: 10.2032209 | CD60: 10.20071326
A61: 5 | C61: =C56 -> 10.16197608 | D61: =D56 -> 11.62970001 | E61: =D61 -> 11.62970001 | F61: =E61 -> 11.62970001 | G61: 11.62970001 | H61: 11.62970001 | I61: 11.62970001 | J61: 11.62970001 | K61: 11.62970001 | L61: 11.62970001 | M61: 11.62970001 | N61: 11.62970001 | O61: 11.62970001 | P61: 11.62970001 | Q61: 11.62970001 | R61: 11.62970001 | S61: 11.62970001 | T61: 11.62970001 | U61: 11.62970001 | V61: 11.62970001 | W61: 11.62970001 | X61: 11.62970001 | Y61: 11.62970001 | Z61: 11.62970001 | AA61: 11.62970001 | AB61: 11.62970001 | AC61: 11.62970001 | AD61: 11.62970001 | AE61: 11.62970001 | AF61: 11.62970001 | AG61: 11.62970001 | AH61: 11.62970001 | AI61: 11.62970001 | AJ61: 11.62970001 | AK61: 11.62970001 | AL61: 11.62970001 | AM61: 11.62970001 | AN61: 11.62970001 | AO61: 11.62970001 | AP61: 11.62970001 | AQ61: 11.62970001 | AR61: 11.62970001 | AS61: 11.62970001 | AT61: 11.62970001 | AU61: 11.62970001 | AV61: 11.62970001 | AW61: 11.62970001 | AX61: 11.62970001 | AY61: 11.62970001 | AZ61: 11.62970001 | BA61: 11.62970001 | BB61: 11.62970001 | BC61: 11.62970001 | BD61: 11.62970001 | BE61: 11.62970001 | BF61: 11.62970001 | BG61: 11.62970001 | BH61: 11.62970001 | BI61: 11.62970001 | BJ61: 11.62970001 | BK61: 11.62970001 | BL61: 11.62970001 | BM61: 11.62970001 | BN61: 11.62970001 | BO61: 11.62970001 | BP61: 11.62970001 | BQ61: 11.62970001 | BR61: =BQ61 -> 11.62970001 | BS61: 11.62970001 | BT61: 11.62970001 | BU61: 11.62970001 | BV61: 11.62970001 | BW61: 11.62970001 | BX61: 11.62970001 | BY61: 11.62970001 | BZ61: 11.62970001 | CA61: 11.62970001 | CB61: 11.62970001 | CC61: 11.62970001 | CD61: 11.62970001
D62: =Prices!AB3/Prices!$AB$3 -> 1 | E62: =Prices!AC3/Prices!$AB$3*'[14]ACIL Input-Out Interface'!E$120 -> 0.9237598458 | F62: =Prices!AD3/Prices!$AB$3*'[14]ACIL Input-Out Interface'!F$120 -> 0.9128692917 | G62: =Prices!AE3/Prices!$AB$3*'[14]ACIL Input-Out Interface'!G$120 -> 0.8901838062 | H62: =Prices!AF3/Prices!$AB$3*'[14]ACIL Input-Out Interface'!H$120 -> 0.8891927375 | I62: =Prices!AG3/Prices!$AB$3*'[14]ACIL Input-Out Interface'!I$120 -> 0.9108502985 | J62: =Prices!AH3/Prices!$AB$3*'[14]ACIL Input-Out Interface'!J$120 -> 0.9664783531 | K62: =Prices!AI3/Prices!$AB$3*'[14]ACIL Input-Out Interface'!K$120 -> 1.01887465 | L62: =Prices!AJ3/Prices!$AB$3*'[14]ACIL Input-Out Interface'!L$120 -> 1.050485557 | M62: =Prices!AK3/Prices!$AB$3*'[14]ACIL Input-Out Interface'!M$120 -> 0.9712218113 | N62: =Prices!AL3/Prices!$AB$3*'[14]ACIL Input-Out Interface'!N$120 -> 0.9432449239 | O62: =Prices!AM3/Prices!$AB$3*'[14]ACIL Input-Out Interface'!O$120 -> 0.9461710461 | P62: =Prices!AN3/Prices!$AB$3*'[14]ACIL Input-Out Interface'!P$120 -> 0.9814175582 | Q62: =Prices!AO3/Prices!$AB$3*'[14]ACIL Input-Out Interface'!Q$120 -> 1.017159737 | R62: =Prices!AP3/Prices!$AB$3*'[14]ACIL Input-Out Interface'!R$120 -> 1.033440752 | S62: =Prices!AQ3/Prices!$AB$3*'[14]ACIL Input-Out Interface'!S$120 -> 1.046716781 | T62: =Prices!AR3/Prices!$AB$3*'[14]ACIL Input-Out Interface'!T$120 -> 1.068284542 | U62: =Prices!AS3/Prices!$AB$3*'[14]ACIL Input-Out Interface'!U$120 -> 1.084795304 | V62: =Prices!AT3/Prices!$AB$3*'[14]ACIL Input-Out Interface'!V$120 -> 1.084012293 | W62: =Prices!AU3/Prices!$AB$3*'[14]ACIL Input-Out Interface'!W$120 -> 1.08699662 | X62: =Prices!AV3/Prices!$AB$3*'[14]ACIL Input-Out Interface'!X$120 -> 1.114181833 | Y62: =Prices!AW3/Prices!$AB$3*'[14]ACIL Input-Out Interface'!Y$120 -> 1.146061396 | Z62: =Prices!AX3/Prices!$AB$3*'[14]ACIL Input-Out Interface'!Z$120 -> 1.167148973 | AA62: =Prices!AY3/Prices!$AB$3*'[14]ACIL Input-Out Interface'!AA$120 -> 1.185347061 | AB62: =Prices!AZ3/Prices!$AB$3*'[14]ACIL Input-Out Interface'!AB$120 -> 1.20545005 | AC62: =Prices!BA3/Prices!$AB$3*'[14]ACIL Input-Out Interface'!AC$120 -> 1.225913714 | AD62: =Prices!BB3/Prices!$AB$3*'[14]ACIL Input-Out Interface'!AD$120 -> 1.24672638 | AE62: =Prices!BC3/Prices!$AB$3*'[14]ACIL Input-Out Interface'!AE$120 -> 1.269774694 | AF62: =Prices!BD3/Prices!$AB$3*'[14]ACIL Input-Out Interface'!AF$120 -> 1.301318865 | AG62: =Prices!BE3/Prices!$AB$3*'[14]ACIL Input-Out Interface'!AG$120 -> 1.334861081 | AH62: =Prices!BF3/Prices!$AB$3*'[14]ACIL Input-Out Interface'!AH$120 -> 1.378953806 | AI62: =Prices!BG3/Prices!$AB$3*'[14]ACIL Input-Out Interface'!AI$120 -> 1.424103659 | AJ62: =Prices!BH3/Prices!$AB$3*'[14]ACIL Input-Out Interface'!AJ$120 -> 0 | AK62: =Prices!BI3/Prices!$AB$3*'[14]ACIL Input-Out Interface'!AK$120 -> 0 | AL62: =Prices!BJ3/Prices!$AB$3*'[14]ACIL Input-Out Interface'!AL$120 -> 0 | AM62: =Prices!BK3/Prices!$AB$3*'[14]ACIL Input-Out Interface'!AM$120 -> 0 | AN62: =Prices!BL3/Prices!$AB$3*'[14]ACIL Input-Out Interface'!AN$120 -> 0 | AO62: =Prices!BM3/Prices!$AB$3*'[14]ACIL Input-Out Interface'!AO$120 -> 0 | AP62: =Prices!BN3/Prices!$AB$3*'[14]ACIL Input-Out Interface'!AP$120 -> 0 | AQ62: =Prices!BO3/Prices!$AB$3*'[14]ACIL Input-Out Interface'!AQ$120 -> 0 | AR62: =Prices!BP3/Prices!$AB$3*'[14]ACIL Input-Out Interface'!AR$120 -> 0 | AS62: =Prices!BQ3/Prices!$AB$3*'[14]ACIL Input-Out Interface'!AS$120 -> 0 | AT62: =Prices!BR3/Prices!$AB$3*'[14]ACIL Input-Out Interface'!AT$120 -> 0 | AU62: =Prices!BS3/Prices!$AB$3*'[14]ACIL Input-Out Interface'!AU$120 -> 0 | AV62: =Prices!BT3/Prices!$AB$3*'[14]ACIL Input-Out Interface'!AV$120 -> 0 | AW62: =Prices!BU3/Prices!$AB$3*'[14]ACIL Input-Out Interface'!AW$120 -> 0 | AX62: =Prices!BV3/Prices!$AB$3*'[14]ACIL Input-Out Interface'!AX$120 -> 0 | AY62: =Prices!BW3/Prices!$AB$3*'[14]ACIL Input-Out Interface'!AY$120 -> 0 | AZ62: =Prices!BX3/Prices!$AB$3*'[14]ACIL Input-Out Interface'!AZ$120 -> 0 | BA62: =Prices!BY3/Prices!$AB$3*'[14]ACIL Input-Out Interface'!BA$120 -> 0 | BB62: =Prices!BZ3/Prices!$AB$3*'[14]ACIL Input-Out Interface'!BB$120 -> 0 | BC62: =Prices!CA3/Prices!$AB$3*'[14]ACIL Input-Out Interface'!BC$120 -> 0 | BD62: =Prices!CB3/Prices!$AB$3*'[14]ACIL Input-Out Interface'!BD$120 -> 0 | BE62: =Prices!CC3/Prices!$AB$3*'[14]ACIL Input-Out Interface'!BE$120 -> 0 | BF62: =Prices!CD3/Prices!$AB$3*'[14]ACIL Input-Out Interface'!BF$120 -> 0 | BG62: =Prices!CE3/Prices!$AB$3*'[14]ACIL Input-Out Interface'!BG$120 -> 0 | BH62: =Prices!CF3/Prices!$AB$3*'[14]ACIL Input-Out Interface'!BH$120 -> 0 | BI62: =Prices!CG3/Prices!$AB$3*'[14]ACIL Input-Out Interface'!BI$120 -> 0 | BJ62: =Prices!CH3/Prices!$AB$3*'[14]ACIL Input-Out Interface'!BJ$120 -> 0 | BK62: =Prices!CI3/Prices!$AB$3*'[14]ACIL Input-Out Interface'!BK$120 -> 0 | BL62: =Prices!CJ3/Prices!$AB$3*'[14]ACIL Input-Out Interface'!BL$120 -> 0 | BM62: =Prices!CK3/Prices!$AB$3*'[14]ACIL Input-Out Interface'!BM$120 -> 0 | BN62: =Prices!CL3/Prices!$AB$3*'[14]ACIL Input-Out Interface'!BN$120 -> 0 | BO62: =Prices!CM3/Prices!$AB$3*'[14]ACIL Input-Out Interface'!BO$120 -> 0 | BP62: =Prices!CN3/Prices!$AB$3*'[14]ACIL Input-Out Interface'!BP$120 -> 0 | BQ62: =Prices!CO3/Prices!$AB$3*'[14]ACIL Input-Out Interface'!BQ$120 -> 0 | BR62: =Prices!CP3/Prices!$AB$3*'[14]ACIL Input-Out Interface'!BR$120 -> 0 | BS62: =Prices!CQ3/Prices!$AB$3*'[14]ACIL Input-Out Interface'!BS$120 -> 0 | BT62: =Prices!CR3/Prices!$AB$3*'[14]ACIL Input-Out Interface'!BT$120 -> 0 | BU62: =Prices!CS3/Prices!$AB$3*'[14]ACIL Input-Out Interface'!BU$120 -> 0 | BV62: =Prices!CT3/Prices!$AB$3*'[14]ACIL Input-Out Interface'!BV$120 -> 0 | BW62: =Prices!CU3/Prices!$AB$3*'[14]ACIL Input-Out Interface'!BW$120 -> 0 | BX62: =Prices!CV3/Prices!$AB$3*'[14]ACIL Input-Out Interface'!BX$120 -> 0 | BY62: =Prices!CW3/Prices!$AB$3*'[14]ACIL Input-Out Interface'!BY$120 -> 0 | BZ62: =Prices!CX3/Prices!$AB$3*'[14]ACIL Input-Out Interface'!BZ$120 -> 0 | CA62: =Prices!CY3/Prices!$AB$3*'[14]ACIL Input-Out Interface'!CA$120 -> 0 | CB62: =Prices!CZ3/Prices!$AB$3*'[14]ACIL Input-Out Interface'!CB$120 -> 0 | CC62: =Prices!DA3/Prices!$AB$3*'[14]ACIL Input-Out Interface'!CC$120 -> 0 | CD62: =Prices!DB3/Prices!$AB$3*'[14]ACIL Input-Out Interface'!CD$120 -> 0
A63: Electricity Prices | B63: Selected Input | C63: 2021 | D63: 2022 | E63: 2023 | F63: 2024 | G63: 2025 | H63: 2026 | I63: 2027 | J63: 2028 | K63: 2029 | L63: 2030 | M63: 2031 | N63: 2032 | O63: 2033 | P63: 2034 | Q63: 2035 | R63: 2036 | S63: 2037 | T63: 2038 | U63: 2039 | V63: 2040 | W63: 2041 | X63: 2042 | Y63: 2043 | Z63: 2044 | AA63: 2045 | AB63: 2046 | AC63: 2047 | AD63: 2048 | AE63: 2049 | AF63: 2050 | AG63: 2051 | AH63: 2052 | AI63: 2053 | AJ63: 2054 | AK63: 2055 | AL63: 2056 | AM63: 2057 | AN63: 2058 | AO63: 2059 | AP63: 2060 | AQ63: 2061 | AR63: 2062 | AS63: 2063 | AT63: 2064 | AU63: 2065 | AV63: 2066 | AW63: 2067 | AX63: 2068 | AY63: 2069 | AZ63: 2070 | BA63: 2071 | BB63: 2072 | BC63: 2073 | BD63: 2074 | BE63: 2075 | BF63: 2076 | BG63: 2077 | BH63: 2078 | BI63: 2079 | BJ63: 2080 | BK63: 2081 | BL63: 2082 | BM63: 2083 | BN63: 2084 | BO63: 2085 | BP63: 2086 | BQ63: 2087 | BR63: 2088 | BS63: 2089 | BT63: 2090 | BU63: 2091 | BV63: 2092 | BW63: 2093 | BX63: 2094 | BY63: 2095 | BZ63: 2096 | CA63: 2097 | CB63: 2098 | CC63: 2099 | CD63: 2100
A65: Residential - Fixed component | B65: =$B$1 -> 1 | D65: =IF($B$1=$B72,D72,IF($B$1=$B79,D79,IF($B$1=$B86,D86,IF($B$1=$B93,D93,D101)))) -> 3.460818744 | E65: =IF($B$1=$B72,E72,IF($B$1=$B79,E79,IF($B$1=$B86,E86,IF($B$1=$B93,E93,E100)))) -> 3.420921294 | F65: 3.320179563 | G65: 3.329404467 | H65: 3.310581659 | I65: 3.245230128 | J65: 3.396430745 | K65: 3.390676493 | L65: 3.596422311 | M65: 4.467623867 | N65: 5.617359764 | O65: 6.574291212 | P65: 7.677224038 | Q65: 8.773332229 | R65: 10.00676653 | S65: 11.28175684 | T65: 12.60062137 | U65: 13.96239931 | V65: 15.36563551 | W65: 15.18164794 | X65: 14.99231666 | Y65: 14.79614745 | Z65: 14.5941628 | AA65: 14.38733399 | AB65: 14.33733569 | AC65: 14.28973792 | AD65: 14.2446862 | AE65: 14.20061279 | AF65: 14.15924753 | AG65: =AF65 -> 14.15924753 | AH65: =AG65 -> 14.15924753 | AI65: 14.15924753 | AJ65: 14.15924753 | AK65: 14.15924753 | AL65: 14.15924753 | AM65: 14.15924753 | AN65: 14.15924753 | AO65: 14.15924753 | AP65: 14.15924753 | AQ65: 14.15924753 | AR65: 14.15924753 | AS65: 14.15924753 | AT65: 14.15924753 | AU65: 14.15924753 | AV65: 14.15924753 | AW65: 14.15924753 | AX65: 14.15924753 | AY65: 14.15924753 | AZ65: 14.15924753 | BA65: 14.15924753 | BB65: 14.15924753 | BC65: 14.15924753 | BD65: 14.15924753 | BE65: 14.15924753 | BF65: 14.15924753 | BG65: 14.15924753 | BH65: 14.15924753 | BI65: 14.15924753 | BJ65: 14.15924753 | BK65: 14.15924753 | BL65: 14.15924753 | BM65: 14.15924753 | BN65: 14.15924753 | BO65: 14.15924753 | BP65: 14.15924753 | BQ65: 14.15924753 | BR65: 14.15924753 | BS65: 14.15924753 | BT65: 14.15924753 | BU65: 14.15924753 | BV65: 14.15924753 | BW65: 14.15924753 | BX65: 14.15924753 | BY65: 14.15924753 | BZ65: 14.15924753 | CA65: 14.15924753 | CB65: 14.15924753 | CC65: 14.15924753 | CD65: 14.15924753
A66: Residential - Variable Component | B66: =$B$1 -> 1 | C66: =(AVERAGE(C73,C80,C87,C94)-F70)/100 -> 0.214 | D66: =(AVERAGE(D73,D80,D87,D94)-F70)/100 -> 0.2403047919 | E66: =(IF($B$1=$B73,E73,IF($B$1=$B80,E80,IF($B$1=$B87,E87,IF($B$1=$B94,E94,E101))))*(1-$J$51)+E101*$J$51)/100-$F$70/100 -> 0.2397945361 | F66: =(IF($B$1=$B73,F73,IF($B$1=$B80,F80,IF($B$1=$B87,F87,IF($B$1=$B94,F94,F101))))*(1-$J$51)+F101*$J$51)/100-$F$70/100 -> 0.2319089655 | G66: 0.2326310459 | H66: 0.2311576884 | I66: 0.2260422898 | J66: 0.2378775356 | K66: 0.2374271208 | L66: 0.2535318986 | M66: 0.2465661941 | N66: 0.2450689999 | O66: 0.2361517785 | P66: 0.2320149464 | Q66: 0.2261403887 | R66: 0.2226834316 | S66: 0.2185131269 | T66: 0.2137486982 | U66: 0.2084098718 | V66: 0.2025060578 | W66: 0.1997462442 | X66: 0.1969062751 | Y66: 0.1939637368 | Z66: 0.1909339671 | AA66: 0.1878315349 | AB66: 0.1870815605 | AC66: 0.186367594 | AD66: 0.1856918181 | AE66: 0.185030717 | AF66: 0.184410238 | AG66: =AF66 -> 0.184410238 | AH66: 0.184410238 | AI66: 0.184410238 | AJ66: 0.184410238 | AK66: 0.184410238 | AL66: 0.184410238 | AM66: 0.184410238 | AN66: 0.184410238 | AO66: 0.184410238 | AP66: 0.184410238 | AQ66: 0.184410238 | AR66: 0.184410238 | AS66: 0.184410238 | AT66: 0.184410238 | AU66: 0.184410238 | AV66: 0.184410238 | AW66: 0.184410238 | AX66: 0.184410238 | AY66: 0.184410238 | AZ66: 0.184410238 | BA66: 0.184410238 | BB66: 0.184410238 | BC66: 0.184410238 | BD66: 0.184410238 | BE66: 0.184410238 | BF66: 0.184410238 | BG66: 0.184410238 | BH66: 0.184410238 | BI66: 0.184410238 | BJ66: 0.184410238 | BK66: 0.184410238 | BL66: 0.184410238 | BM66: 0.184410238 | BN66: 0.184410238 | BO66: 0.184410238 | BP66: 0.184410238 | BQ66: 0.184410238 | BR66: 0.184410238 | BS66: 0.184410238 | BT66: 0.184410238 | BU66: 0.184410238 | BV66: 0.184410238 | BW66: 0.184410238 | BX66: 0.184410238 | BY66: 0.184410238 | BZ66: 0.184410238 | CA66: 0.184410238 | CB66: 0.184410238 | CC66: 0.184410238 | CD66: 0.184410238
A67: Commercial - Fixed component | B67: 1 | D67: =IF($B$1=$B75,D75,IF($B$1=$B82,D82,IF($B$1=$B89,D89,IF($B$1=$B96,D96,D103)))) -> 2.023837999 | E67: 1.989151268 | F67: 1.915937808 | G67: 1.923150032 | H67: 1.899803859 | I67: 1.855928158 | J67: 1.960158803 | K67: 1.952104117 | L67: 2.089566973 | M67: 2.60034337 | N67: 3.276637184 | O67: 3.847776698 | P67: 4.523050951 | Q67: 5.161536693 | R67: 5.907575432 | S67: 6.68071776 | T67: 7.482966584 | U67: 8.313057826 | V67: 9.169995819 | W67: 9.035124766 | X67: 8.896638197 | Y67: 8.753409373 | Z67: 8.606112953 | AA67: 8.455484768 | AB67: 8.412124746 | AC67: 8.371252619 | AD67: 8.332950817 | AE67: 8.296043252 | AF67: 8.26178114 | AG67: 8.26178114 | AH67: 8.26178114 | AI67: 8.26178114 | AJ67: 8.26178114 | AK67: 8.26178114 | AL67: 8.26178114 | AM67: 8.26178114 | AN67: 8.26178114 | AO67: 8.26178114 | AP67: 8.26178114 | AQ67: 8.26178114 | AR67: 8.26178114 | AS67: 8.26178114 | AT67: 8.26178114 | AU67: 8.26178114 | AV67: 8.26178114 | AW67: 8.26178114 | AX67: 8.26178114 | AY67: 8.26178114 | AZ67: 8.26178114 | BA67: 8.26178114 | BB67: 8.26178114 | BC67: 8.26178114 | BD67: 8.26178114 | BE67: 8.26178114 | BF67: 8.26178114 | BG67: 8.26178114 | BH67: 8.26178114 | BI67: 8.26178114 | BJ67: 8.26178114 | BK67: 8.26178114 | BL67: 8.26178114 | BM67: 8.26178114 | BN67: 8.26178114 | BO67: 8.26178114 | BP67: 8.26178114 | BQ67: 8.26178114 | BR67: 8.26178114 | BS67: 8.26178114 | BT67: 8.26178114 | BU67: 8.26178114 | BV67: 8.26178114 | BW67: 8.26178114 | BX67: 8.26178114 | BY67: 8.26178114 | BZ67: 8.26178114 | CA67: 8.26178114 | CB67: 8.26178114 | CC67: 8.26178114 | CD67: 8.26178114
A68: Commericial - Variable Component | B68: 1 | C68: =AVERAGE(C76,C83,C90,C97)/100 -> 0.1491544402 | D68: =AVERAGE(D76,D83,D90,D97)/100 -> 0.1566081308 | E68: =(IF($B$1=$B76,E76,IF($B$1=$B83,E83,IF($B$1=$B90,E90,IF($B$1=$B97,E97,E104))))*(1-$J$51)+E104*$J$51)/100 -> 0.1557010462 | F68: =(IF($B$1=$B76,F76,IF($B$1=$B83,F83,IF($B$1=$B90,F90,IF($B$1=$B97,F97,F104))))*(1-$J$51)+F104*$J$51)/100 -> 0.1499702541 | G68: =(IF($B$1=$B76,G76,IF($B$1=$B83,G83,IF($B$1=$B90,G90,IF($B$1=$B97,G97,G104))))*(1-$J$51)+G104*$J$51)/100 -> 0.1505347917 | H68: =(IF($B$1=$B76,H76,IF($B$1=$B83,H83,IF($B$1=$B90,H90,IF($B$1=$B97,H97,H104))))*(1-$J$51)+H104*$J$51)/100 -> 0.1487073674 | I68: =(IF($B$1=$B76,I76,IF($B$1=$B83,I83,IF($B$1=$B90,I90,IF($B$1=$B97,I97,I104))))*(1-$J$51)+I104*$J$51)/100 -> 0.1452729918 | J68: 0.1534316576 | K68: 0.1528011761 | L68: 0.1635610971 | M68: 0.1597964446 | N68: 0.1592701102 | O68: 0.1545891719 | P68: 0.1531756121 | Q68: 0.1495034959 | R68: 0.1479802808 | S68: 0.1459649277 | T68: 0.1435513619 | U68: 0.1407430021 | V68: 0.1375499373 | W68: 0.1355268715 | X68: 0.133449573 | Y68: 0.1313011406 | Z68: 0.1290916943 | AA68: 0.1268322715 | AB68: 0.1261818712 | AC68: 0.1255687893 | AD68: 0.1249942623 | AE68: 0.1244406488 | AF68: 0.1239267171 | AG68: 0.1239267171 | AH68: 0.1239267171 | AI68: 0.1239267171 | AJ68: 0.1239267171 | AK68: 0.1239267171 | AL68: 0.1239267171 | AM68: 0.1239267171 | AN68: 0.1239267171 | AO68: 0.1239267171 | AP68: 0.1239267171 | AQ68: 0.1239267171 | AR68: 0.1239267171 | AS68: 0.1239267171 | AT68: 0.1239267171 | AU68: 0.1239267171 | AV68: 0.1239267171 | AW68: 0.1239267171 | AX68: 0.1239267171 | AY68: 0.1239267171 | AZ68: 0.1239267171 | BA68: 0.1239267171 | BB68: 0.1239267171 | BC68: 0.1239267171 | BD68: 0.1239267171 | BE68: 0.1239267171 | BF68: 0.1239267171 | BG68: 0.1239267171 | BH68: 0.1239267171 | BI68: 0.1239267171 | BJ68: 0.1239267171 | BK68: 0.1239267171 | BL68: 0.1239267171 | BM68: 0.1239267171 | BN68: 0.1239267171 | BO68: 0.1239267171 | BP68: 0.1239267171 | BQ68: 0.1239267171 | BR68: 0.1239267171 | BS68: 0.1239267171 | BT68: 0.1239267171 | BU68: 0.1239267171 | BV68: 0.1239267171 | BW68: 0.1239267171 | BX68: 0.1239267171 | BY68: 0.1239267171 | BZ68: 0.1239267171 | CA68: 0.1239267171 | CB68: 0.1239267171 | CC68: 0.1239267171 | CD68: 0.1239267171
D69: =D66/$D$66 -> 1 | E69: =E66/$D$66 -> 0.9978766307 | F69: 0.9650617603 | G69: 0.9680666124 | H69: 0.9619354094 | I69: 0.9406482824 | J69: 0.9898992596 | K69: 0.9880249117 | L69: 1.055043042 | M69: 1.026056086 | N69: 1.019825688 | O69: 0.9827177254 | P69: 0.9655027871 | Q69: 0.9410565095 | R69: 0.9266707911 | S69: 0.9093165607 | T69: 0.8894899535 | U69: 0.8672730584 | V69: 0.8427050337 | W69: 0.8312203956 | X69: 0.8194021996 | Y69: 0.8071571744 | Z69: 0.7945491455 | AA69: 0.7816387407 | AB69: 0.7785178107 | AC69: 0.7755467233 | AD69: 0.7727345619 | AE69: 0.7699834676 | AF69: 0.7674014179 | AG69: 0.7674014179 | AH69: 0.7674014179 | AI69: 0.7674014179 | AJ69: 0.7674014179 | AK69: 0.7674014179 | AL69: 0.7674014179 | AM69: 0.7674014179 | AN69: 0.7674014179 | AO69: 0.7674014179 | AP69: 0.7674014179 | AQ69: 0.7674014179 | AR69: 0.7674014179 | AS69: 0.7674014179 | AT69: 0.7674014179 | AU69: 0.7674014179 | AV69: 0.7674014179 | AW69: 0.7674014179 | AX69: 0.7674014179 | AY69: 0.7674014179 | AZ69: 0.7674014179 | BA69: 0.7674014179 | BB69: 0.7674014179 | BC69: 0.7674014179 | BD69: 0.7674014179 | BE69: 0.7674014179 | BF69: 0.7674014179 | BG69: 0.7674014179 | BH69: 0.7674014179 | BI69: 0.7674014179 | BJ69: 0.7674014179 | BK69: 0.7674014179 | BL69: 0.7674014179 | BM69: 0.7674014179 | BN69: 0.7674014179 | BO69: 0.7674014179 | BP69: 0.7674014179 | BQ69: =BQ66/$D$66 -> 0.7674014179 | BR69: 0.7674014179 | BS69: 0.7674014179 | BT69: 0.7674014179 | BU69: 0.7674014179 | BV69: 0.7674014179 | BW69: 0.7674014179 | BX69: 0.7674014179 | BY69: 0.7674014179 | BZ69: 0.7674014179 | CA69: 0.7674014179 | CB69: 0.7674014179 | CC69: 0.7674014179 | CD69: 0.7674014179
A70: Electric Dreams | B70: OLD | C70: 24.19784749 | D70: Updated | E70: 21.4 | F70: =C70-E70 -> 2.797847486
A71: Residential (cents/kWh real 2021)
A72: Fixed component | B72: 1 | C72: 3.091384431 | D72: 3.460818744 | E72: 3.420921294 | F72: 3.320179563 | G72: 3.329404467 | H72: 3.310581659 | I72: 3.245230128 | J72: 3.396430745 | K72: 3.390676493 | L72: 3.596422311 | M72: 4.467623867 | N72: 5.617359764 | O72: 6.574291212 | P72: 7.677224038 | Q72: 8.773332229 | R72: 10.00676653 | S72: 11.28175684 | T72: 12.60062137 | U72: 13.96239931 | V72: 15.36563551 | W72: 15.18164794 | X72: 14.99231666 | Y72: 14.79614745 | Z72: 14.5941628 | AA72: 14.38733399 | AB72: 14.33733569 | AC72: 14.28973792 | AD72: 14.2446862 | AE72: 14.20061279 | AF72: 14.15924753
A73: Variable Component | B73: 1 | C73: 24.19784749 | D73: 27.08959886 | E73: 26.7773011 | F73: 25.98874403 | G73: 26.06095207 | H73: 25.91361632 | I73: 25.40207646 | J73: 26.58560104 | K73: 26.54055957 | L73: 28.15103735 | M73: 27.4544669 | N73: 27.30474747 | O73: 26.41302534 | P73: 25.99934212 | Q73: 25.41188636 | R73: 25.06619065 | S73: 24.64916018 | T73: 24.1727173 | U73: 23.63883467 | V73: 23.04845326 | W73: 22.77247191 | X73: 22.48847499 | Y73: 22.19422117 | Z73: 21.89124419 | AA73: 21.58100098 | AB73: 21.50600353 | AC73: 21.43460688 | AD73: 21.3670293 | AE73: 21.30091918 | AF73: 21.23887129
A74: Commercial (cents/kWh real 2021)
A75: Fixed component | B75: 1 | C75: 1.905515416 | D75: 2.023837999 | E75: 1.989151268 | F75: 1.915937808 | G75: 1.923150032 | H75: 1.899803859 | I75: 1.855928158 | J75: 1.960158803 | K75: 1.952104117 | L75: 2.089566973 | M75: 2.60034337 | N75: 3.276637184 | O75: 3.847776698 | P75: 4.523050951 | Q75: 5.161536693 | R75: 5.907575432 | S75: 6.68071776 | T75: 7.482966584 | U75: 8.313057826 | V75: 9.169995819 | W75: 9.035124766 | X75: 8.896638197 | Y75: 8.753409373 | Z75: 8.606112953 | AA75: 8.455484768 | AB75: 8.412124746 | AC75: 8.371252619 | AD75: 8.332950817 | AE75: 8.296043252 | AF75: 8.26178114
A76: Variable Component | B76: 1 | C76: 14.91544402 | D76: 15.84161541 | E76: 15.57010462 | F76: 14.99702541 | G76: 15.05347917 | H76: 14.87073674 | I76: 14.52729918 | J76: 15.34316576 | K76: 15.28011761 | L76: 16.35610971 | M76: 15.97964446 | N76: 15.92701102 | O76: 15.45891719 | P76: 15.31756121 | Q76: 14.95034959 | R76: 14.79802808 | S76: 14.59649277 | T76: 14.35513619 | U76: 14.07430021 | V76: 13.75499373 | W76: 13.55268715 | X76: 13.3449573 | Y76: 13.13011406 | Z76: 12.90916943 | AA76: 12.68322715 | AB76: 12.61818712 | AC76: 12.55687893 | AD76: 12.49942623 | AE76: 12.44406488 | AF76: 12.39267171
A77: Dual Fuel
A78: Residential (cents/kWh real 2021)
A79: Fixed component | B79: =B72+1 -> 2 | C79: 3.091384431 | D79: 3.404881395 | E79: 3.30769195 | F79: 3.150230098 | G79: 3.104117461 | H79: 3.02994897 | I79: 2.931532071 | J79: 3.021662534 | K79: 2.951221934 | L79: 3.11142152 | M79: 3.872000262 | N79: 4.870484516 | O79: 5.66598634 | P79: 6.62638268 | Q79: 7.57125265 | R79: 8.745216589 | S79: 9.979670206 | T79: 11.27625984 | U79: 12.63441505 | V79: 14.05317975 | W79: 13.9823987 | X79: 13.90580995 | Y79: 13.82209864 | Z79: 13.73177353 | AA79: 13.63533208 | AB79: 13.70936373 | AC79: 13.78234351 | AD79: 13.85444731 | AE79: 13.92445247 | AF79: 13.99379719
A80: Variable Component | B80: =B73+1 -> 2 | C80: 24.19784749 | D80: 26.6517486 | E80: 25.89099709 | F80: 24.65846262 | G80: 24.29751543 | H80: 23.7169607 | I80: 22.94660128 | J80: 23.65209852 | K80: 23.10072391 | L80: 24.35468803 | M80: 23.79423743 | N80: 23.67435154 | O80: 22.76379855 | P80: 22.44060998 | Q80: 21.93007251 | R80: 21.90610381 | S80: 21.80427152 | T80: 21.63209521 | U80: 21.39051046 | V80: 21.07976962 | W80: 20.97359805 | X80: 20.85871493 | Y80: 20.73314796 | Z80: 20.5976603 | AA80: 20.45299812 | AB80: 20.56404559 | AC80: 20.67351527 | AD80: 20.78167097 | AE80: 20.88667871 | AF80: 20.99069579
A81: Commercial (cents/kWh real 2021)
A82: Fixed component | B82: =B75+1 -> 2 | C82: 1.905515416 | D82: 1.984977424 | E82: 1.9103017 | F82: 1.797399217 | G82: 1.765854493 | H82: 1.703680378 | I82: 1.635453935 | J82: 1.695431047 | K82: 1.640438595 | L82: 1.745405113 | M82: 2.177301192 | N82: 2.745596619 | O82: 3.200100582 | P82: 3.77292688 | Q82: 4.30237284 | R82: 5.006255453 | S82: 5.750989209 | T82: 6.538003902 | U82: 7.366508827 | V82: 8.235859835 | W82: 8.1823134 | X82: 8.124924781 | Y82: 8.062696903 | Z82: 7.995936121 | AA82: 7.925013874 | AB82: 7.971741644 | AC82: 8.018511309 | AD82: 8.065420138 | AE82: 8.111538691 | AF82: 8.157896846
A83: Variable Component | B83: =B76+1 -> 2 | C83: 14.91544402 | D83: 15.53743381 | E83: 14.95290871 | F83: 14.06916321 | G83: 13.82224652 | H83: 13.33557792 | I83: 12.80153464 | J83: 13.27100618 | K83: 12.84055212 | L83: 13.66217876 | M83: 13.37996333 | N83: 13.3457399 | O83: 12.85679856 | P83: 12.77722472 | Q83: 12.46178838 | R83: 12.54028994 | S83: 12.56515773 | T83: 12.54234338 | U83: 12.47175936 | V83: 12.35378975 | W83: 12.2734701 | X83: 12.18738717 | Y83: 12.09404535 | Z83: 11.99390418 | AA83: 11.88752081 | AB83: 11.95761247 | AC83: 12.02776696 | AD83: 12.09813021 | AE83: 12.16730804 | AF83: 12.23684527
A84: Muddling Through
A85: Residential (cents/kWh real 2021)
A86: Fixed component | B86: =B79+1 -> 3 | C86: 3.091384431 | D86: 3.451835764 | E86: 3.39985988 | F86: 3.283678167 | G86: 3.280913156 | H86: 3.24717265 | I86: 3.180284281 | J86: 3.322982223 | K86: 3.291841781 | L86: 3.510352789 | M86: 4.372433555 | N86: 5.503755248 | O86: 6.414240382 | P86: 7.504053809 | Q86: 8.570444533 | R86: 9.855637338 | S86: 11.19929192 | T86: 12.60339054 | U86: 14.06716759 | V86: 15.58941744 | W86: 15.45851079 | X86: 15.32202844 | Y86: 15.17856583 | Z86: 15.02888861 | AA86: 14.87373114 | AB86: 14.90527548 | AC86: 14.93749415 | AD86: 14.97054786 | AE86: 15.0030414 | AF86: 15.03655879
A87: Variable Component | B87: =B80+1 -> 3 | C87: 24.19784749 | D87: 27.01928447 | E87: 26.61244264 | F87: 25.70302893 | G87: 25.68138577 | H87: 25.41728157 | I87: 24.89371209 | J87: 26.01068188 | K87: 25.76692971 | L87: 27.47732716 | M87: 26.86950287 | N87: 26.75254096 | O87: 25.7700014 | P87: 25.4128916 | Q87: 24.82422377 | R87: 24.6876235 | S87: 24.46898513 | T87: 24.17802961 | U87: 23.81621107 | V87: 23.38412616 | W87: 23.18776619 | X87: 22.98304265 | Y87: 22.76784875 | Z87: 22.54333291 | AA87: 22.3105967 | AB87: 22.35791322 | AC87: 22.40624123 | AD87: 22.45582179 | AE87: 22.5045621 | AF87: 22.55483819
A88: Commercial (cents/kWh real 2021)
A89: Fixed component | B89: =B82+1 -> 3 | C89: 1.905515416 | D89: 2.018682248 | E89: 1.976457467 | F89: 1.893113552 | G89: 1.892735566 | H89: 1.859565473 | I89: 1.814789139 | J89: 1.913458244 | K89: 1.887165335 | L89: 2.035099763 | M89: 2.541164762 | N89: 3.206474364 | O89: 3.745061129 | P89: 4.412831046 | Q89: 5.03130839 | R89: 5.817540703 | S89: 6.643343396 | T89: 7.51043282 | U89: 8.417781582 | V89: 9.364569776 | W89: 9.267712733 | X89: 9.167126839 | Y89: 9.061750188 | Z89: 8.952073288 | AA89: 8.838649772 | AB89: 8.855015669 | AC89: 8.87264646 | AD89: 8.891631995 | AE89: 8.910919511 | AF89: 8.931649555
A90: Variable Component | B90: =B83+1 -> 3 | C90: 14.91544402 | D90: 15.8012587 | E90: 15.47074375 | F90: 14.81836828 | G90: 14.81540959 | H90: 14.5557703 | I90: 14.20528303 | J90: 14.97761659 | K90: 14.77180855 | L90: 15.929767 | M90: 15.61597975 | N90: 15.58596502 | O90: 15.04624473 | P90: 14.94429543 | Q90: 14.57314435 | R90: 14.57249792 | S90: 14.51483468 | T90: 14.40782673 | U90: 14.25160122 | V90: 14.04685466 | W90: 13.9015691 | X90: 13.75069026 | Y90: 13.59262528 | Z90: 13.42810993 | AA90: 13.25797466 | AB90: 13.2825235 | AC90: 13.30896969 | AD90: 13.33744799 | AE90: 13.36637927 | AF90: 13.39747433
A91: Hydrogen Hero
A92: Residential (cents/kWh real 2021)
A93: Fixed component | B93: =B86+1 -> 4 | C93: 3.091384431 | D93: 3.392224265 | E93: 3.283989777 | F93: 3.117914541 | G93: 3.061349334 | H93: 2.954780308 | I93: 2.825267262 | J93: 2.876165008 | K93: 2.777017961 | L93: 2.889276664 | M93: 3.561550165 | N93: 4.439635194 | O93: 5.116519368 | P93: 5.928706051 | Q93: 6.718812198 | R93: 7.766571989 | S93: 8.869687985 | T93: 10.02947738 | U93: 11.24548373 | V93: 12.51694206 | W93: 12.45935045 | X93: 12.39689794 | Y93: 12.32854228 | Z93: 12.25469976 | AA93: 12.17577736 | AB93: 12.25289716 | AC93: 12.32878736 | AD93: 12.40360467 | AE93: 12.47638648 | AF93: 12.54829827
A94: Variable Component | B94: =B87+1 -> 4 | C94: 24.19784749 | D94: 26.55267477 | E94: 25.70546806 | F94: 24.40551222 | G94: 23.96274741 | H94: 23.12857712 | I94: 22.11481226 | J94: 22.51321496 | K94: 21.73714029 | L94: 22.61584659 | M94: 21.88645777 | N94: 21.58008796 | O94: 20.55624726 | P94: 20.07788964 | Q94: 19.46098558 | R94: 19.45467336 | S94: 19.37910583 | T94: 19.24029889 | U94: 19.03900073 | V94: 18.77541308 | W94: 18.68902567 | X94: 18.59534692 | Y94: 18.49281341 | Z94: 18.38204964 | AA94: 18.26366605 | AB94: 18.37934574 | AC94: 18.49318103 | AD94: 18.60540701 | AE94: 18.71457971 | AF94: 18.82244741
A95: Commercial (cents/kWh real 2021)
A96: Fixed component | B96: =B89+1 -> 4 | C96: 1.905515416 | D96: 1.975461067 | E96: 1.892481045 | F96: 1.773102524 | G96: 1.733698956 | H96: 1.648235063 | I96: 1.557403786 | J96: 1.588667372 | K96: 1.512835537 | L96: 1.582481765 | M96: 1.949834619 | N96: 2.430200226 | O96: 2.798256435 | P96: 3.262758682 | Q96: 3.679310582 | R96: 4.290114937 | S96: 4.937856009 | T96: 5.62367776 | U96: 6.346947527 | V96: 7.107149894 | W96: 7.062910372 | X96: 7.015540669 | Y96: 6.964245631 | Z96: 6.909272787 | AA96: 6.850921666 | AB96: 6.899373745 | AC96: 6.947757307 | AD96: 6.996154383 | AE96: 7.043825494 | AF96: 7.09159847
A97: Variable Component | B97: =B90+1 -> 4 | C97: 14.91544402 | D97: 15.46294441 | E97: 14.81341732 | F97: 13.87898057 | G97: 13.57054869 | H97: 12.90157907 | I97: 12.1905962 | J97: 12.43531228 | K97: 11.84173771 | L97: 12.38689437 | M97: 11.98213449 | N97: 11.81266756 | O97: 11.24234016 | P97: 11.04951201 | Q97: 10.65709356 | R97: 10.7464123 | S97: 10.78856825 | T97: 10.78832295 | U97: 10.7456061 | V97: 10.66072484 | W97: 10.59436556 | X97: 10.523311 | Y97: 10.44636845 | Z97: 10.36390918 | AA97: 10.2763825 | AB97: 10.34906062 | AC97: 10.42163596 | AD97: 10.49423157 | AE97: 10.56573824 | AF97: 10.6373977
A98: Baseline | D98: 1 | E98: =D98*(1+$J$53) -> 1 | F98: =E98*(1+$J$53) -> 1 | G98: =F98*(1+$J$53) -> 1 | H98: 1 | I98: 1 | J98: 1 | K98: 1 | L98: 1 | M98: 1 | N98: 1 | O98: 1 | P98: 1 | Q98: 1 | R98: 1 | S98: 1 | T98: 1 | U98: 1 | V98: 1 | W98: 1 | X98: 1 | Y98: 1 | Z98: 1 | AA98: 1 | AB98: 1 | AC98: 1 | AD98: 1 | AE98: 1 | AF98: 1 | AG98: 1 | AH98: 1 | AI98: 1 | AJ98: 1 | AK98: 1 | AL98: 1 | AM98: 1 | AN98: 1 | AO98: 1 | AP98: 1 | AQ98: 1 | AR98: 1 | AS98: 1 | AT98: 1 | AU98: 1 | AV98: 1 | AW98: 1 | AX98: 1 | AY98: 1 | AZ98: 1 | BA98: 1 | BB98: 1 | BC98: 1 | BD98: 1 | BE98: 1 | BF98: 1 | BG98: 1 | BH98: 1 | BI98: 1 | BJ98: 1 | BK98: 1 | BL98: 1 | BM98: 1 | BN98: 1 | BO98: 1 | BP98: 1 | BQ98: 1 | BR98: 1 | BS98: =BR98*(1+$J$53) -> 1 | BT98: 1 | BU98: 1 | BV98: 1 | BW98: 1 | BX98: 1 | BY98: 1 | BZ98: 1 | CA98: 1 | CB98: 1 | CC98: 1 | CD98: 1 | CE98: 1 | CF98: 1 | CG98: 1 | CH98: 1 | CI98: 1 | CJ98: 1 | CK98: 1 | CL98: 1 | CM98: 1 | CN98: 1 | CO98: 1 | CP98: 1 | CQ98: 1 | CR98: 1 | CS98: 1 | CT98: 1 | CU98: 1 | CV98: 1 | CW98: 1 | CX98: 1
A99: Residential (cents/kWh real 2021)
A100: Fixed component | B100: 5
A101: Variable Component | B101: 5 | C101: =AVERAGE(C73,C80,C87,C94) -> 24.19784749 | D101: =AVERAGE($D$73,$D$80,$D$87,$D$94)*D98 -> 26.82832668 | E101: 26.82832668 | F101: 26.82832668 | G101: 26.82832668 | H101: 26.82832668 | I101: 26.82832668 | J101: 26.82832668 | K101: =AVERAGE($D$73,$D$80,$D$87,$D$94)*K98 -> 26.82832668 | L101: 26.82832668 | M101: 26.82832668 | N101: 26.82832668 | O101: 26.82832668 | P101: 26.82832668 | Q101: 26.82832668 | R101: 26.82832668 | S101: 26.82832668 | T101: 26.82832668 | U101: 26.82832668 | V101: 26.82832668 | W101: 26.82832668 | X101: 26.82832668 | Y101: 26.82832668 | Z101: 26.82832668 | AA101: 26.82832668 | AB101: 26.82832668 | AC101: 26.82832668 | AD101: 26.82832668 | AE101: 26.82832668 | AF101: 26.82832668 | AG101: 26.82832668 | AH101: 26.82832668 | AI101: 26.82832668 | AJ101: 26.82832668 | AK101: 26.82832668 | AL101: 26.82832668 | AM101: 26.82832668 | AN101: 26.82832668 | AO101: 26.82832668 | AP101: 26.82832668 | AQ101: 26.82832668 | AR101: 26.82832668 | AS101: 26.82832668 | AT101: 26.82832668 | AU101: 26.82832668 | AV101: 26.82832668 | AW101: 26.82832668 | AX101: 26.82832668 | AY101: 26.82832668 | AZ101: 26.82832668 | BA101: 26.82832668 | BB101: 26.82832668 | BC101: 26.82832668 | BD101: 26.82832668 | BE101: 26.82832668 | BF101: 26.82832668 | BG101: 26.82832668 | BH101: 26.82832668 | BI101: 26.82832668 | BJ101: 26.82832668 | BK101: 26.82832668 | BL101: 26.82832668 | BM101: 26.82832668 | BN101: 26.82832668 | BO101: 26.82832668 | BP101: 26.82832668 | BQ101: 26.82832668 | BR101: 26.82832668 | BS101: 26.82832668 | BT101: 26.82832668 | BU101: 26.82832668 | BV101: 26.82832668 | BW101: =AVERAGE($D$73,$D$80,$D$87,$D$94)*BW98 -> 26.82832668 | BX101: 26.82832668 | BY101: 26.82832668 | BZ101: 26.82832668 | CA101: 26.82832668 | CB101: 26.82832668 | CC101: 26.82832668 | CD101: 26.82832668 | CE101: 26.82832668 | CF101: 26.82832668 | CG101: 26.82832668 | CH101: 26.82832668 | CI101: 26.82832668 | CJ101: 26.82832668 | CK101: 26.82832668 | CL101: 26.82832668 | CM101: 26.82832668 | CN101: 26.82832668 | CO101: 26.82832668 | CP101: 26.82832668 | CQ101: 26.82832668 | CR101: 26.82832668 | CS101: 26.82832668 | CT101: 26.82832668 | CU101: 26.82832668 | CV101: 26.82832668 | CW101: 26.82832668 | CX101: 26.82832668
A102: Commercial (cents/kWh real 2021)
A103: Fixed component | B103: 5
A104: Variable Component | B104: 5 | C104: =AVERAGE(C76,C83,C90,C97) -> 14.91544402 | D104: =AVERAGE($D$76,$D$83,$D$90,$D$97)*D98 -> 15.66081308 | E104: 15.66081308 | F104: 15.66081308 | G104: 15.66081308 | H104: 15.66081308 | I104: 15.66081308 | J104: 15.66081308 | K104: =AVERAGE($D$76,$D$83,$D$90,$D$97)*K98 -> 15.66081308 | L104: 15.66081308 | M104: 15.66081308 | N104: 15.66081308 | O104: 15.66081308 | P104: 15.66081308 | Q104: 15.66081308 | R104: 15.66081308 | S104: 15.66081308 | T104: 15.66081308 | U104: 15.66081308 | V104: 15.66081308 | W104: 15.66081308 | X104: 15.66081308 | Y104: 15.66081308 | Z104: 15.66081308 | AA104: 15.66081308 | AB104: 15.66081308 | AC104: 15.66081308 | AD104: 15.66081308 | AE104: 15.66081308 | AF104: 15.66081308 | AG104: 15.66081308 | AH104: 15.66081308 | AI104: 15.66081308 | AJ104: 15.66081308 | AK104: 15.66081308 | AL104: 15.66081308 | AM104: 15.66081308 | AN104: 15.66081308 | AO104: 15.66081308 | AP104: 15.66081308 | AQ104: 15.66081308 | AR104: 15.66081308 | AS104: 15.66081308 | AT104: 15.66081308 | AU104: 15.66081308 | AV104: 15.66081308 | AW104: 15.66081308 | AX104: 15.66081308 | AY104: 15.66081308 | AZ104: 15.66081308 | BA104: 15.66081308 | BB104: 15.66081308 | BC104: 15.66081308 | BD104: 15.66081308 | BE104: 15.66081308 | BF104: 15.66081308 | BG104: 15.66081308 | BH104: 15.66081308 | BI104: 15.66081308 | BJ104: 15.66081308 | BK104: 15.66081308 | BL104: 15.66081308 | BM104: 15.66081308 | BN104: 15.66081308 | BO104: 15.66081308 | BP104: 15.66081308 | BQ104: 15.66081308 | BR104: 15.66081308 | BS104: 15.66081308 | BT104: 15.66081308 | BU104: 15.66081308 | BV104: 15.66081308 | BW104: =AVERAGE($D$76,$D$83,$D$90,$D$97)*BW98 -> 15.66081308 | BX104: 15.66081308 | BY104: 15.66081308 | BZ104: 15.66081308 | CA104: 15.66081308 | CB104: 15.66081308 | CC104: 15.66081308 | CD104: 15.66081308 | CE104: 15.66081308 | CF104: 15.66081308 | CG104: 15.66081308 | CH104: 15.66081308 | CI104: 15.66081308 | CJ104: 15.66081308 | CK104: 15.66081308 | CL104: 15.66081308 | CM104: 15.66081308 | CN104: 15.66081308 | CO104: 15.66081308 | CP104: 15.66081308 | CQ104: 15.66081308 | CR104: 15.66081308 | CS104: 15.66081308 | CT104: 15.66081308 | CU104: 15.66081308 | CV104: 15.66081308 | CW104: 15.66081308 | CX104: 15.66081308
A106: Residential Network ON/OFF | U106: 0.9 | V106: =U106-0.1 -> 0.8 | W106: =V106-0.1 -> 0.7 | X106: 0.6 | Y106: 0.5 | Z106: 0.4 | AA106: 0.3 | AB106: 0.2 | AC106: 0.1 | AD106: 0
A107: LGA | B107: 2021 | C107: =B107+1 -> 2022 | D107: =C107+1 -> 2023 | E107: 2024 | F107: 2025 | G107: 2026 | H107: 2027 | I107: 2028 | J107: 2029 | K107: 2030 | L107: 2031 | M107: 2032 | N107: 2033 | O107: 2034 | P107: 2035 | Q107: 2036 | R107: 2037 | S107: 2038 | T107: 2039 | U107: 2040 | V107: 2041 | W107: 2042 | X107: 2043 | Y107: 2044 | Z107: 2045 | AA107: 2046 | AB107: 2047 | AC107: 2048 | AD107: 2049 | AE107: 2050 | AF107: 2051 | AG107: 2052 | AH107: 2053 | AI107: 2054 | AJ107: 2055 | AK107: 2056 | AL107: 2057 | AM107: 2058 | AN107: 2059 | AO107: 2060 | AP107: 2061 | AQ107: 2062 | AR107: 2063 | AS107: 2064 | AT107: 2065 | AU107: 2066 | AV107: 2067 | AW107: 2068 | AX107: 2069 | AY107: 2070 | AZ107: 2071 | BA107: 2072 | BB107: 2073 | BC107: 2074 | BD107: 2075 | BE107: 2076 | BF107: 2077 | BG107: 2078 | BH107: 2079 | BI107: 2080 | BJ107: 2081 | BK107: 2082 | BL107: 2083 | BM107: 2084 | BN107: 2085 | BO107: 2086 | BP107: =BO107+1 -> 2087 | BQ107: 2088 | BR107: 2089 | BS107: 2090 | BT107: 2091 | BU107: 2092 | BV107: 2093 | BW107: 2094 | BX107: 2095 | BY107: 2096 | BZ107: 2097 | CA107: 2098 | CB107: 2099 | CC107: 2100
A108: Albury (C) | B108: 1 | C108: 1 | D108: 1 | E108: 1 | F108: 1 | G108: 1 | H108: 1 | I108: 1 | J108: 1 | K108: 1 | L108: 1 | M108: 1 | N108: 1 | O108: 1 | P108: 1 | Q108: 1 | R108: 1 | S108: 1 | T108: 1 | U108: =IF($B$1=2,IF($D259=0,U$106,1),1) -> 1 | V108: =IF($B$1=2,IF($D259=0,V$106,1),1) -> 1 | W108: 1 | X108: 1 | Y108: 1 | Z108: 1 | AA108: 1 | AB108: 1 | AC108: 1 | AD108: 1 | AE108: 1 | AF108: 1 | AG108: 1 | AH108: 1 | AI108: 1 | AJ108: 1 | AK108: 1 | AL108: 1 | AM108: 1 | AN108: 1 | AO108: 1 | AP108: 1 | AQ108: 1 | AR108: 1 | AS108: 1 | AT108: 1 | AU108: 1 | AV108: 1 | AW108: 1 | AX108: 1 | AY108: 1 | AZ108: 1 | BA108: 1 | BB108: 1 | BC108: 1 | BD108: 1 | BE108: 1 | BF108: 1 | BG108: 1 | BH108: 1 | BI108: 1 | BJ108: 1 | BK108: 1 | BL108: 1 | BM108: 1 | BN108: 1 | BO108: 1 | BP108: 1 | BQ108: 1 | BR108: 1 | BS108: 1 | BT108: 1 | BU108: 1 | BV108: 1 | BW108: 1 | BX108: 1 | BY108: 1 | BZ108: 1 | CA108: 1 | CB108: 1 | CC108: 1
A109: Banyule (C) | B109: 1 | C109: 1 | D109: 1 | E109: 1 | F109: 1 | G109: 1 | H109: 1 | I109: 1 | J109: 1 | K109: 1 | L109: 1 | M109: 1 | N109: 1 | O109: 1 | P109: 1 | Q109: 1 | R109: 1 | S109: 1 | T109: 1 | U109: =IF($B$1=2,IF($D260=0,U$106,1),1) -> 1 | V109: 1 | W109: 1 | X109: 1 | Y109: 1 | Z109: 1 | AA109: 1 | AB109: 1 | AC109: 1 | AD109: 1 | AE109: 1 | AF109: 1 | AG109: 1 | AH109: 1 | AI109: 1 | AJ109: 1 | AK109: 1 | AL109: 1 | AM109: 1 | AN109: 1 | AO109: 1 | AP109: 1 | AQ109: 1 | AR109: 1 | AS109: 1 | AT109: 1 | AU109: 1 | AV109: 1 | AW109: 1 | AX109: 1 | AY109: 1 | AZ109: 1 | BA109: 1 | BB109: 1 | BC109: 1 | BD109: 1 | BE109: 1 | BF109: 1 | BG109: 1 | BH109: 1 | BI109: 1 | BJ109: 1 | BK109: 1 | BL109: 1 | BM109: 1 | BN109: 1 | BO109: 1 | BP109: 1 | BQ109: 1 | BR109: 1 | BS109: 1 | BT109: 1 | BU109: 1 | BV109: 1 | BW109: 1 | BX109: 1 | BY109: 1 | BZ109: 1 | CA109: 1 | CB109: 1 | CC109: 1
A110: Baw Baw (S) | B110: 1 | C110: 1 | D110: 1 | E110: 1 | F110: 1 | G110: 1 | H110: 1 | I110: 1 | J110: 1 | K110: 1 | L110: 1 | M110: 1 | N110: 1 | O110: 1 | P110: 1 | Q110: 1 | R110: 1 | S110: 1 | T110: 1 | U110: 1 | V110: 1 | W110: 1 | X110: 1 | Y110: 1 | Z110: 1 | AA110: 1 | AB110: 1 | AC110: 1 | AD110: 1 | AE110: 1 | AF110: 1 | AG110: 1 | AH110: 1 | AI110: 1 | AJ110: 1 | AK110: 1 | AL110: 1 | AM110: 1 | AN110: 1 | AO110: 1 | AP110: 1 | AQ110: 1 | AR110: 1 | AS110: 1 | AT110: 1 | AU110: 1 | AV110: 1 | AW110: 1 | AX110: 1 | AY110: 1 | AZ110: 1 | BA110: 1 | BB110: 1 | BC110: 1 | BD110: 1 | BE110: 1 | BF110: 1 | BG110: 1 | BH110: 1 | BI110: 1 | BJ110: 1 | BK110: 1 | BL110: 1 | BM110: 1 | BN110: 1 | BO110: 1 | BP110: 1 | BQ110: 1 | BR110: 1 | BS110: 1 | BT110: 1 | BU110: 1 | BV110: 1 | BW110: 1 | BX110: 1 | BY110: 1 | BZ110: 1 | CA110: 1 | CB110: 1 | CC110: 1
A111: Benalla (RC) | B111: 1 | C111: 1 | D111: 1 | E111: 1 | F111: 1 | G111: 1 | H111: 1 | I111: 1 | J111: 1 | K111: 1 | L111: 1 | M111: 1 | N111: 1 | O111: 1 | P111: 1 | Q111: 1 | R111: 1 | S111: 1 | T111: 1 | U111: 1 | V111: 1 | W111: 1 | X111: 1 | Y111: 1 | Z111: 1 | AA111: 1 | AB111: 1 | AC111: 1 | AD111: 1 | AE111: 1 | AF111: 1 | AG111: 1 | AH111: 1 | AI111: 1 | AJ111: 1 | AK111: 1 | AL111: 1 | AM111: 1 | AN111: 1 | AO111: 1 | AP111: 1 | AQ111: 1 | AR111: 1 | AS111: 1 | AT111: 1 | AU111: 1 | AV111: 1 | AW111: 1 | AX111: 1 | AY111: 1 | AZ111: 1 | BA111: 1 | BB111: 1 | BC111: 1 | BD111: 1 | BE111: 1 | BF111: 1 | BG111: 1 | BH111: 1 | BI111: 1 | BJ111: 1 | BK111: 1 | BL111: 1 | BM111: 1 | BN111: 1 | BO111: 1 | BP111: 1 | BQ111: 1 | BR111: 1 | BS111: 1 | BT111: 1 | BU111: 1 | BV111: 1 | BW111: 1 | BX111: 1 | BY111: 1 | BZ111: 1 | CA111: 1 | CB111: 1 | CC111: 1
A112: Berrigan (A) | B112: 1 | C112: 1 | D112: 1 | E112: 1 | F112: 1 | G112: 1 | H112: 1 | I112: 1 | J112: 1 | K112: 1 | L112: 1 | M112: 1 | N112: 1 | O112: 1 | P112: 1 | Q112: 1 | R112: 1 | S112: 1 | T112: 1 | U112: 1 | V112: 1 | W112: 1 | X112: 1 | Y112: 1 | Z112: 1 | AA112: 1 | AB112: 1 | AC112: 1 | AD112: 1 | AE112: 1 | AF112: 1 | AG112: 1 | AH112: 1 | AI112: 1 | AJ112: 1 | AK112: 1 | AL112: 1 | AM112: 1 | AN112: 1 | AO112: 1 | AP112: 1 | AQ112: 1 | AR112: 1 | AS112: 1 | AT112: 1 | AU112: 1 | AV112: 1 | AW112: 1 | AX112: 1 | AY112: 1 | AZ112: =IF($B$1=2,IF($D263=0,AZ$106,1),1) -> 1 | BA112: 1 | BB112: 1 | BC112: 1 | BD112: 1 | BE112: 1 | BF112: 1 | BG112: 1 | BH112: 1 | BI112: 1 | BJ112: 1 | BK112: 1 | BL112: 1 | BM112: 1 | BN112: 1 | BO112: 1 | BP112: 1 | BQ112: 1 | BR112: 1 | BS112: 1 | BT112: 1 | BU112: 1 | BV112: 1 | BW112: 1 | BX112: 1 | BY112: 1 | BZ112: 1 | CA112: 1 | CB112: 1 | CC112: 1
A113: Campaspe (S) | B113: 1 | C113: 1 | D113: 1 | E113: 1 | F113: 1 | G113: 1 | H113: 1 | I113: 1 | J113: 1 | K113: 1 | L113: 1 | M113: 1 | N113: 1 | O113: 1 | P113: 1 | Q113: 1 | R113: 1 | S113: 1 | T113: 1 | U113: 1 | V113: 1 | W113: 1 | X113: 1 | Y113: 1 | Z113: 1 | AA113: 1 | AB113: 1 | AC113: 1 | AD113: 1 | AE113: 1 | AF113: 1 | AG113: 1 | AH113: 1 | AI113: 1 | AJ113: 1 | AK113: 1 | AL113: 1 | AM113: 1 | AN113: 1 | AO113: 1 | AP113: 1 | AQ113: 1 | AR113: 1 | AS113: 1 | AT113: 1 | AU113: 1 | AV113: 1 | AW113: 1 | AX113: 1 | AY113: 1 | AZ113: 1 | BA113: 1 | BB113: 1 | BC113: 1 | BD113: 1 | BE113: 1 | BF113: 1 | BG113: 1 | BH113: 1 | BI113: 1 | BJ113: 1 | BK113: 1 | BL113: 1 | BM113: 1 | BN113: 1 | BO113: 1 | BP113: 1 | BQ113: 1 | BR113: 1 | BS113: 1 | BT113: 1 | BU113: 1 | BV113: 1 | BW113: 1 | BX113: 1 | BY113: 1 | BZ113: 1 | CA113: 1 | CB113: 1 | CC113: 1
A114: Cardinia (S) | B114: 1 | C114: 1 | D114: 1 | E114: 1 | F114: 1 | G114: 1 | H114: 1 | I114: 1 | J114: 1 | K114: 1 | L114: 1 | M114: 1 | N114: 1 | O114: 1 | P114: 1 | Q114: 1 | R114: 1 | S114: 1 | T114: 1 | U114: 1 | V114: 1 | W114: 1 | X114: 1 | Y114: 1 | Z114: 1 | AA114: 1 | AB114: 1 | AC114: 1 | AD114: 1 | AE114: 1 | AF114: 1 | AG114: 1 | AH114: 1 | AI114: 1 | AJ114: 1 | AK114: 1 | AL114: 1 | AM114: 1 | AN114: 1 | AO114: 1 | AP114: 1 | AQ114: 1 | AR114: 1 | AS114: 1 | AT114: 1 | AU114: 1 | AV114: 1 | AW114: 1 | AX114: 1 | AY114: 1 | AZ114: 1 | BA114: 1 | BB114: 1 | BC114: 1 | BD114: 1 | BE114: 1 | BF114: 1 | BG114: 1 | BH114: 1 | BI114: 1 | BJ114: 1 | BK114: 1 | BL114: 1 | BM114: 1 | BN114: 1 | BO114: 1 | BP114: 1 | BQ114: 1 | BR114: 1 | BS114: 1 | BT114: 1 | BU114: 1 | BV114: 1 | BW114: 1 | BX114: 1 | BY114: 1 | BZ114: 1 | CA114: 1 | CB114: 1 | CC114: 1
A115: Casey (C) | B115: 1 | C115: 1 | D115: 1 | E115: 1 | F115: 1 | G115: 1 | H115: 1 | I115: 1 | J115: 1 | K115: 1 | L115: 1 | M115: 1 | N115: 1 | O115: 1 | P115: 1 | Q115: 1 | R115: 1 | S115: 1 | T115: 1 | U115: 1 | V115: 1 | W115: 1 | X115: 1 | Y115: 1 | Z115: 1 | AA115: 1 | AB115: 1 | AC115: 1 | AD115: 1 | AE115: 1 | AF115: 1 | AG115: 1 | AH115: 1 | AI115: 1 | AJ115: 1 | AK115: 1 | AL115: 1 | AM115: 1 | AN115: 1 | AO115: 1 | AP115: 1 | AQ115: 1 | AR115: 1 | AS115: 1 | AT115: 1 | AU115: 1 | AV115: 1 | AW115: 1 | AX115: 1 | AY115: 1 | AZ115: 1 | BA115: 1 | BB115: 1 | BC115: 1 | BD115: 1 | BE115: 1 | BF115: 1 | BG115: 1 | BH115: 1 | BI115: 1 | BJ115: 1 | BK115: 1 | BL115: 1 | BM115: 1 | BN115: 1 | BO115: 1 | BP115: 1 | BQ115: 1 | BR115: 1 | BS115: 1 | BT115: 1 | BU115: 1 | BV115: 1 | BW115: 1 | BX115: 1 | BY115: 1 | BZ115: 1 | CA115: 1 | CB115: 1 | CC115: 1
A116: Corowa Shire (A) | B116: 1 | C116: 1 | D116: 1 | E116: 1 | F116: 1 | G116: 1 | H116: 1 | I116: 1 | J116: 1 | K116: 1 | L116: 1 | M116: 1 | N116: 1 | O116: 1 | P116: 1 | Q116: 1 | R116: 1 | S116: 1 | T116: 1 | U116: 1 | V116: 1 | W116: 1 | X116: 1 | Y116: 1 | Z116: 1 | AA116: 1 | AB116: 1 | AC116: 1 | AD116: 1 | AE116: 1 | AF116: 1 | AG116: 1 | AH116: 1 | AI116: 1 | AJ116: 1 | AK116: 1 | AL116: 1 | AM116: 1 | AN116: 1 | AO116: 1 | AP116: 1 | AQ116: 1 | AR116: 1 | AS116: 1 | AT116: 1 | AU116: 1 | AV116: 1 | AW116: 1 | AX116: 1 | AY116: 1 | AZ116: 1 | BA116: 1 | BB116: 1 | BC116: 1 | BD116: 1 | BE116: 1 | BF116: 1 | BG116: 1 | BH116: 1 | BI116: 1 | BJ116: 1 | BK116: 1 | BL116: 1 | BM116: 1 | BN116: 1 | BO116: =IF($B$1=2,IF($D267=0,BO$106,1),1) -> 1 | BP116: 1 | BQ116: 1 | BR116: 1 | BS116: 1 | BT116: 1 | BU116: 1 | BV116: 1 | BW116: 1 | BX116: 1 | BY116: 1 | BZ116: 1 | CA116: 1 | CB116: 1 | CC116: 1
A117: Darebin (C) | B117: 1 | C117: 1 | D117: 1 | E117: 1 | F117: 1 | G117: 1 | H117: 1 | I117: 1 | J117: 1 | K117: 1 | L117: 1 | M117: 1 | N117: 1 | O117: 1 | P117: 1 | Q117: 1 | R117: 1 | S117: 1 | T117: 1 | U117: 1 | V117: 1 | W117: 1 | X117: 1 | Y117: 1 | Z117: 1 | AA117: 1 | AB117: 1 | AC117: 1 | AD117: 1 | AE117: 1 | AF117: 1 | AG117: 1 | AH117: 1 | AI117: 1 | AJ117: 1 | AK117: 1 | AL117: 1 | AM117: 1 | AN117: 1 | AO117: 1 | AP117: 1 | AQ117: 1 | AR117: 1 | AS117: 1 | AT117: 1 | AU117: 1 | AV117: 1 | AW117: 1 | AX117: 1 | AY117: 1 | AZ117: 1 | BA117: 1 | BB117: 1 | BC117: 1 | BD117: 1 | BE117: 1 | BF117: 1 | BG117: 1 | BH117: 1 | BI117: 1 | BJ117: 1 | BK117: 1 | BL117: 1 | BM117: 1 | BN117: 1 | BO117: 1 | BP117: 1 | BQ117: 1 | BR117: 1 | BS117: 1 | BT117: 1 | BU117: 1 | BV117: 1 | BW117: 1 | BX117: 1 | BY117: 1 | BZ117: 1 | CA117: 1 | CB117: 1 | CC117: 1
A118: East Gippsland (S) | B118: 1 | C118: 1 | D118: 1 | E118: 1 | F118: 1 | G118: 1 | H118: 1 | I118: 1 | J118: 1 | K118: 1 | L118: 1 | M118: 1 | N118: 1 | O118: 1 | P118: 1 | Q118: 1 | R118: 1 | S118: 1 | T118: 1 | U118: 1 | V118: 1 | W118: 1 | X118: 1 | Y118: 1 | Z118: 1 | AA118: 1 | AB118: 1 | AC118: 1 | AD118: 1 | AE118: 1 | AF118: 1 | AG118: 1 | AH118: 1 | AI118: 1 | AJ118: 1 | AK118: 1 | AL118: 1 | AM118: 1 | AN118: 1 | AO118: 1 | AP118: 1 | AQ118: 1 | AR118: 1 | AS118: 1 | AT118: 1 | AU118: 1 | AV118: 1 | AW118: 1 | AX118: 1 | AY118: 1 | AZ118: 1 | BA118: 1 | BB118: 1 | BC118: 1 | BD118: 1 | BE118: 1 | BF118: 1 | BG118: 1 | BH118: 1 | BI118: 1 | BJ118: 1 | BK118: 1 | BL118: 1 | BM118: 1 | BN118: 1 | BO118: 1 | BP118: 1 | BQ118: 1 | BR118: 1 | BS118: 1 | BT118: 1 | BU118: 1 | BV118: 1 | BW118: 1 | BX118: 1 | BY118: 1 | BZ118: 1 | CA118: 1 | CB118: 1 | CC118: 1
A119: Frankston (C) | B119: 1 | C119: 1 | D119: 1 | E119: 1 | F119: 1 | G119: 1 | H119: 1 | I119: 1 | J119: 1 | K119: 1 | L119: 1 | M119: 1 | N119: 1 | O119: 1 | P119: 1 | Q119: 1 | R119: 1 | S119: 1 | T119: 1 | U119: 1 | V119: 1 | W119: 1 | X119: 1 | Y119: 1 | Z119: 1 | AA119: 1 | AB119: 1 | AC119: 1 | AD119: 1 | AE119: 1 | AF119: 1 | AG119: 1 | AH119: 1 | AI119: 1 | AJ119: 1 | AK119: 1 | AL119: 1 | AM119: 1 | AN119: 1 | AO119: 1 | AP119: 1 | AQ119: 1 | AR119: 1 | AS119: 1 | AT119: 1 | AU119: 1 | AV119: 1 | AW119: 1 | AX119: 1 | AY119: 1 | AZ119: 1 | BA119: 1 | BB119: 1 | BC119: 1 | BD119: 1 | BE119: 1 | BF119: 1 | BG119: 1 | BH119: 1 | BI119: 1 | BJ119: 1 | BK119: 1 | BL119: 1 | BM119: 1 | BN119: 1 | BO119: 1 | BP119: 1 | BQ119: 1 | BR119: 1 | BS119: 1 | BT119: 1 | BU119: 1 | BV119: 1 | BW119: 1 | BX119: 1 | BY119: 1 | BZ119: 1 | CA119: 1 | CB119: 1 | CC119: 1
A120: Greater Dandenong (C) | B120: 1 | C120: 1 | D120: 1 | E120: 1 | F120: 1 | G120: 1 | H120: 1 | I120: 1 | J120: 1 | K120: 1 | L120: 1 | M120: 1 | N120: 1 | O120: 1 | P120: 1 | Q120: 1 | R120: 1 | S120: 1 | T120: 1 | U120: 1 | V120: 1 | W120: 1 | X120: 1 | Y120: 1 | Z120: 1 | AA120: 1 | AB120: 1 | AC120: 1 | AD120: 1 | AE120: 1 | AF120: 1 | AG120: 1 | AH120: 1 | AI120: 1 | AJ120: 1 | AK120: 1 | AL120: 1 | AM120: 1 | AN120: 1 | AO120: 1 | AP120: 1 | AQ120: 1 | AR120: 1 | AS120: 1 | AT120: 1 | AU120: 1 | AV120: 1 | AW120: 1 | AX120: 1 | AY120: 1 | AZ120: 1 | BA120: 1 | BB120: 1 | BC120: 1 | BD120: 1 | BE120: 1 | BF120: 1 | BG120: 1 | BH120: 1 | BI120: 1 | BJ120: 1 | BK120: 1 | BL120: 1 | BM120: 1 | BN120: 1 | BO120: 1 | BP120: 1 | BQ120: 1 | BR120: 1 | BS120: 1 | BT120: 1 | BU120: 1 | BV120: 1 | BW120: 1 | BX120: 1 | BY120: 1 | BZ120: 1 | CA120: 1 | CB120: 1 | CC120: 1
A121: Greater Hume Shire (A) | B121: 1 | C121: 1 | D121: 1 | E121: 1 | F121: 1 | G121: 1 | H121: 1 | I121: 1 | J121: 1 | K121: 1 | L121: 1 | M121: 1 | N121: 1 | O121: 1 | P121: 1 | Q121: 1 | R121: 1 | S121: 1 | T121: 1 | U121: 1 | V121: =IF($B$1=2,IF($D272=0,V$106,1),1) -> 1 | W121: 1 | X121: 1 | Y121: 1 | Z121: 1 | AA121: 1 | AB121: 1 | AC121: 1 | AD121: 1 | AE121: 1 | AF121: 1 | AG121: 1 | AH121: 1 | AI121: 1 | AJ121: 1 | AK121: 1 | AL121: 1 | AM121: 1 | AN121: 1 | AO121: 1 | AP121: 1 | AQ121: 1 | AR121: 1 | AS121: 1 | AT121: 1 | AU121: 1 | AV121: 1 | AW121: 1 | AX121: 1 | AY121: 1 | AZ121: 1 | BA121: 1 | BB121: 1 | BC121: 1 | BD121: 1 | BE121: 1 | BF121: 1 | BG121: 1 | BH121: 1 | BI121: 1 | BJ121: 1 | BK121: 1 | BL121: 1 | BM121: 1 | BN121: 1 | BO121: 1 | BP121: 1 | BQ121: 1 | BR121: 1 | BS121: 1 | BT121: 1 | BU121: 1 | BV121: 1 | BW121: 1 | BX121: 1 | BY121: 1 | BZ121: 1 | CA121: 1 | CB121: 1 | CC121: 1
A122: Greater Shepparton (C) | B122: 1 | C122: 1 | D122: 1 | E122: 1 | F122: 1 | G122: 1 | H122: 1 | I122: 1 | J122: 1 | K122: 1 | L122: 1 | M122: 1 | N122: 1 | O122: 1 | P122: 1 | Q122: 1 | R122: 1 | S122: 1 | T122: 1 | U122: 1 | V122: 1 | W122: 1 | X122: 1 | Y122: 1 | Z122: 1 | AA122: 1 | AB122: 1 | AC122: 1 | AD122: 1 | AE122: 1 | AF122: 1 | AG122: 1 | AH122: 1 | AI122: 1 | AJ122: 1 | AK122: 1 | AL122: 1 | AM122: 1 | AN122: 1 | AO122: 1 | AP122: 1 | AQ122: 1 | AR122: 1 | AS122: 1 | AT122: 1 | AU122: 1 | AV122: 1 | AW122: 1 | AX122: 1 | AY122: 1 | AZ122: 1 | BA122: 1 | BB122: 1 | BC122: 1 | BD122: 1 | BE122: 1 | BF122: 1 | BG122: 1 | BH122: 1 | BI122: 1 | BJ122: 1 | BK122: 1 | BL122: 1 | BM122: 1 | BN122: 1 | BO122: 1 | BP122: 1 | BQ122: 1 | BR122: 1 | BS122: 1 | BT122: 1 | BU122: 1 | BV122: 1 | BW122: 1 | BX122: 1 | BY122: 1 | BZ122: 1 | CA122: 1 | CB122: 1 | CC122: 1
A123: Hume (C) | B123: 1 | C123: 1 | D123: 1 | E123: 1 | F123: 1 | G123: 1 | H123: 1 | I123: 1 | J123: 1 | K123: 1 | L123: 1 | M123: 1 | N123: 1 | O123: 1 | P123: 1 | Q123: 1 | R123: 1 | S123: 1 | T123: 1 | U123: 1 | V123: 1 | W123: 1 | X123: 1 | Y123: 1 | Z123: 1 | AA123: 1 | AB123: 1 | AC123: 1 | AD123: 1 | AE123: 1 | AF123: 1 | AG123: 1 | AH123: 1 | AI123: 1 | AJ123: 1 | AK123: 1 | AL123: 1 | AM123: 1 | AN123: 1 | AO123: 1 | AP123: 1 | AQ123: 1 | AR123: 1 | AS123: 1 | AT123: 1 | AU123: 1 | AV123: 1 | AW123: 1 | AX123: 1 | AY123: 1 | AZ123: 1 | BA123: 1 | BB123: 1 | BC123: 1 | BD123: 1 | BE123: 1 | BF123: 1 | BG123: 1 | BH123: 1 | BI123: 1 | BJ123: 1 | BK123: 1 | BL123: 1 | BM123: 1 | BN123: 1 | BO123: 1 | BP123: 1 | BQ123: 1 | BR123: 1 | BS123: 1 | BT123: 1 | BU123: 1 | BV123: 1 | BW123: 1 | BX123: 1 | BY123: 1 | BZ123: 1 | CA123: 1 | CB123: 1 | CC123: 1
A124: Indigo (S) | B124: 1 | C124: 1 | D124: 1 | E124: 1 | F124: 1 | G124: 1 | H124: 1 | I124: 1 | J124: 1 | K124: 1 | L124: 1 | M124: 1 | N124: 1 | O124: 1 | P124: 1 | Q124: 1 | R124: 1 | S124: 1 | T124: 1 | U124: 1 | V124: 1 | W124: 1 | X124: 1 | Y124: 1 | Z124: 1 | AA124: 1 | AB124: 1 | AC124: 1 | AD124: 1 | AE124: 1 | AF124: 1 | AG124: 1 | AH124: 1 | AI124: 1 | AJ124: 1 | AK124: 1 | AL124: 1 | AM124: 1 | AN124: 1 | AO124: 1 | AP124: 1 | AQ124: 1 | AR124: 1 | AS124: 1 | AT124: 1 | AU124: 1 | AV124: 1 | AW124: 1 | AX124: 1 | AY124: 1 | AZ124: 1 | BA124: 1 | BB124: 1 | BC124: 1 | BD124: 1 | BE124: 1 | BF124: 1 | BG124: 1 | BH124: 1 | BI124: 1 | BJ124: 1 | BK124: 1 | BL124: 1 | BM124: 1 | BN124: 1 | BO124: 1 | BP124: 1 | BQ124: 1 | BR124: 1 | BS124: 1 | BT124: 1 | BU124: 1 | BV124: 1 | BW124: 1 | BX124: 1 | BY124: 1 | BZ124: 1 | CA124: 1 | CB124: 1 | CC124: 1
A125: Latrobe (C) | B125: 1 | C125: 1 | D125: 1 | E125: 1 | F125: 1 | G125: 1 | H125: 1 | I125: 1 | J125: 1 | K125: 1 | L125: 1 | M125: 1 | N125: 1 | O125: 1 | P125: 1 | Q125: 1 | R125: 1 | S125: 1 | T125: 1 | U125: 1 | V125: 1 | W125: 1 | X125: 1 | Y125: 1 | Z125: 1 | AA125: 1 | AB125: 1 | AC125: 1 | AD125: 1 | AE125: 1 | AF125: 1 | AG125: 1 | AH125: 1 | AI125: 1 | AJ125: 1 | AK125: =IF($B$1=2,IF($D276=0,AK$106,1),1) -> 1 | AL125: 1 | AM125: 1 | AN125: 1 | AO125: 1 | AP125: 1 | AQ125: 1 | AR125: 1 | AS125: 1 | AT125: 1 | AU125: 1 | AV125: 1 | AW125: 1 | AX125: 1 | AY125: 1 | AZ125: 1 | BA125: 1 | BB125: 1 | BC125: 1 | BD125: 1 | BE125: 1 | BF125: 1 | BG125: 1 | BH125: 1 | BI125: 1 | BJ125: 1 | BK125: 1 | BL125: 1 | BM125: 1 | BN125: 1 | BO125: 1 | BP125: 1 | BQ125: 1 | BR125: 1 | BS125: 1 | BT125: 1 | BU125: 1 | BV125: 1 | BW125: 1 | BX125: 1 | BY125: 1 | BZ125: 1 | CA125: 1 | CB125: 1 | CC125: 1
A126: Manningham (C) | B126: 1 | C126: 1 | D126: 1 | E126: 1 | F126: 1 | G126: 1 | H126: 1 | I126: 1 | J126: 1 | K126: 1 | L126: 1 | M126: 1 | N126: 1 | O126: 1 | P126: 1 | Q126: 1 | R126: 1 | S126: 1 | T126: 1 | U126: 1 | V126: 1 | W126: 1 | X126: 1 | Y126: 1 | Z126: 1 | AA126: 1 | AB126: 1 | AC126: 1 | AD126: 1 | AE126: 1 | AF126: 1 | AG126: 1 | AH126: 1 | AI126: 1 | AJ126: 1 | AK126: 1 | AL126: 1 | AM126: 1 | AN126: 1 | AO126: 1 | AP126: 1 | AQ126: 1 | AR126: 1 | AS126: 1 | AT126: 1 | AU126: 1 | AV126: 1 | AW126: 1 | AX126: 1 | AY126: 1 | AZ126: 1 | BA126: 1 | BB126: 1 | BC126: 1 | BD126: 1 | BE126: 1 | BF126: 1 | BG126: 1 | BH126: 1 | BI126: 1 | BJ126: 1 | BK126: 1 | BL126: 1 | BM126: 1 | BN126: 1 | BO126: 1 | BP126: 1 | BQ126: 1 | BR126: 1 | BS126: 1 | BT126: 1 | BU126: 1 | BV126: 1 | BW126: 1 | BX126: 1 | BY126: 1 | BZ126: 1 | CA126: 1 | CB126: 1 | CC126: 1
A127: Melbourne (C) | B127: 1 | C127: 1 | D127: 1 | E127: 1 | F127: 1 | G127: 1 | H127: 1 | I127: 1 | J127: 1 | K127: 1 | L127: 1 | M127: 1 | N127: 1 | O127: 1 | P127: 1 | Q127: 1 | R127: 1 | S127: 1 | T127: 1 | U127: 1 | V127: 1 | W127: 1 | X127: 1 | Y127: 1 | Z127: 1 | AA127: 1 | AB127: 1 | AC127: 1 | AD127: 1 | AE127: 1 | AF127: 1 | AG127: 1 | AH127: 1 | AI127: 1 | AJ127: 1 | AK127: 1 | AL127: 1 | AM127: 1 | AN127: 1 | AO127: 1 | AP127: 1 | AQ127: 1 | AR127: 1 | AS127: 1 | AT127: 1 | AU127: 1 | AV127: 1 | AW127: 1 | AX127: 1 | AY127: 1 | AZ127: 1 | BA127: 1 | BB127: 1 | BC127: 1 | BD127: 1 | BE127: 1 | BF127: 1 | BG127: 1 | BH127: 1 | BI127: 1 | BJ127: 1 | BK127: 1 | BL127: 1 | BM127: 1 | BN127: 1 | BO127: 1 | BP127: 1 | BQ127: 1 | BR127: 1 | BS127: 1 | BT127: 1 | BU127: 1 | BV127: 1 | BW127: 1 | BX127: 1 | BY127: 1 | BZ127: 1 | CA127: 1 | CB127: 1 | CC127: 1
A128: Mildura (RC) | B128: 1 | C128: 1 | D128: 1 | E128: 1 | F128: 1 | G128: 1 | H128: 1 | I128: 1 | J128: 1 | K128: 1 | L128: 1 | M128: 1 | N128: 1 | O128: 1 | P128: 1 | Q128: 1 | R128: 1 | S128: 1 | T128: 1 | U128: 1 | V128: 1 | W128: 1 | X128: 1 | Y128: 1 | Z128: 1 | AA128: 1 | AB128: 1 | AC128: 1 | AD128: 1 | AE128: 1 | AF128: 1 | AG128: 1 | AH128: 1 | AI128: 1 | AJ128: 1 | AK128: 1 | AL128: 1 | AM128: 1 | AN128: 1 | AO128: 1 | AP128: 1 | AQ128: 1 | AR128: 1 | AS128: 1 | AT128: 1 | AU128: 1 | AV128: 1 | AW128: 1 | AX128: 1 | AY128: 1 | AZ128: 1 | BA128: 1 | BB128: 1 | BC128: 1 | BD128: 1 | BE128: 1 | BF128: 1 | BG128: 1 | BH128: 1 | BI128: 1 | BJ128: 1 | BK128: 1 | BL128: 1 | BM128: 1 | BN128: 1 | BO128: 1 | BP128: 1 | BQ128: 1 | BR128: 1 | BS128: 1 | BT128: 1 | BU128: 1 | BV128: 1 | BW128: 1 | BX128: 1 | BY128: 1 | BZ128: 1 | CA128: 1 | CB128: 1 | CC128: 1
A129: Mitchell (S) | B129: 1 | C129: 1 | D129: 1 | E129: 1 | F129: 1 | G129: 1 | H129: 1 | I129: 1 | J129: 1 | K129: 1 | L129: 1 | M129: 1 | N129: 1 | O129: 1 | P129: 1 | Q129: 1 | R129: 1 | S129: 1 | T129: 1 | U129: 1 | V129: 1 | W129: 1 | X129: 1 | Y129: 1 | Z129: 1 | AA129: 1 | AB129: 1 | AC129: 1 | AD129: 1 | AE129: 1 | AF129: 1 | AG129: 1 | AH129: 1 | AI129: 1 | AJ129: 1 | AK129: 1 | AL129: 1 | AM129: 1 | AN129: 1 | AO129: 1 | AP129: 1 | AQ129: 1 | AR129: 1 | AS129: 1 | AT129: 1 | AU129: 1 | AV129: 1 | AW129: 1 | AX129: 1 | AY129: 1 | AZ129: =IF($B$1=2,IF($D280=0,AZ$106,1),1) -> 1 | BA129: 1 | BB129: 1 | BC129: 1 | BD129: 1 | BE129: 1 | BF129: 1 | BG129: 1 | BH129: 1 | BI129: 1 | BJ129: 1 | BK129: 1 | BL129: 1 | BM129: 1 | BN129: 1 | BO129: 1 | BP129: 1 | BQ129: 1 | BR129: 1 | BS129: 1 | BT129: 1 | BU129: 1 | BV129: 1 | BW129: 1 | BX129: 1 | BY129: 1 | BZ129: 1 | CA129: 1 | CB129: 1 | CC129: 1
A130: Moira (S) | B130: 1 | C130: 1 | D130: 1 | E130: 1 | F130: 1 | G130: 1 | H130: 1 | I130: 1 | J130: 1 | K130: 1 | L130: 1 | M130: 1 | N130: 1 | O130: 1 | P130: 1 | Q130: 1 | R130: 1 | S130: 1 | T130: 1 | U130: 1 | V130: 1 | W130: 1 | X130: 1 | Y130: 1 | Z130: 1 | AA130: 1 | AB130: 1 | AC130: 1 | AD130: 1 | AE130: 1 | AF130: 1 | AG130: 1 | AH130: 1 | AI130: 1 | AJ130: 1 | AK130: 1 | AL130: 1 | AM130: 1 | AN130: 1 | AO130: 1 | AP130: 1 | AQ130: 1 | AR130: 1 | AS130: 1 | AT130: 1 | AU130: 1 | AV130: 1 | AW130: 1 | AX130: 1 | AY130: 1 | AZ130: 1 | BA130: 1 | BB130: 1 | BC130: 1 | BD130: 1 | BE130: 1 | BF130: 1 | BG130: 1 | BH130: 1 | BI130: 1 | BJ130: 1 | BK130: 1 | BL130: 1 | BM130: 1 | BN130: 1 | BO130: 1 | BP130: 1 | BQ130: 1 | BR130: 1 | BS130: 1 | BT130: 1 | BU130: 1 | BV130: 1 | BW130: 1 | BX130: 1 | BY130: 1 | BZ130: 1 | CA130: 1 | CB130: 1 | CC130: 1
A131: Moreland (C) | B131: 1 | C131: 1 | D131: 1 | E131: 1 | F131: 1 | G131: 1 | H131: 1 | I131: 1 | J131: 1 | K131: 1 | L131: 1 | M131: 1 | N131: 1 | O131: 1 | P131: 1 | Q131: 1 | R131: 1 | S131: 1 | T131: 1 | U131: 1 | V131: 1 | W131: 1 | X131: 1 | Y131: 1 | Z131: 1 | AA131: 1 | AB131: 1 | AC131: 1 | AD131: 1 | AE131: 1 | AF131: 1 | AG131: 1 | AH131: 1 | AI131: 1 | AJ131: 1 | AK131: 1 | AL131: 1 | AM131: 1 | AN131: 1 | AO131: 1 | AP131: 1 | AQ131: 1 | AR131: 1 | AS131: 1 | AT131: 1 | AU131: 1 | AV131: 1 | AW131: 1 | AX131: 1 | AY131: 1 | AZ131: 1 | BA131: 1 | BB131: 1 | BC131: 1 | BD131: 1 | BE131: 1 | BF131: 1 | BG131: 1 | BH131: 1 | BI131: 1 | BJ131: 1 | BK131: 1 | BL131: 1 | BM131: 1 | BN131: 1 | BO131: 1 | BP131: 1 | BQ131: 1 | BR131: 1 | BS131: 1 | BT131: 1 | BU131: 1 | BV131: 1 | BW131: 1 | BX131: 1 | BY131: 1 | BZ131: 1 | CA131: 1 | CB131: 1 | CC131: 1
A132: Mornington Peninsula (S) | B132: 1 | C132: 1 | D132: 1 | E132: 1 | F132: 1 | G132: 1 | H132: 1 | I132: 1 | J132: 1 | K132: 1 | L132: 1 | M132: 1 | N132: 1 | O132: 1 | P132: 1 | Q132: 1 | R132: 1 | S132: 1 | T132: 1 | U132: 1 | V132: 1 | W132: 1 | X132: 1 | Y132: 1 | Z132: 1 | AA132: 1 | AB132: 1 | AC132: 1 | AD132: 1 | AE132: 1 | AF132: 1 | AG132: 1 | AH132: 1 | AI132: 1 | AJ132: 1 | AK132: 1 | AL132: 1 | AM132: 1 | AN132: 1 | AO132: 1 | AP132: 1 | AQ132: 1 | AR132: 1 | AS132: 1 | AT132: 1 | AU132: 1 | AV132: 1 | AW132: 1 | AX132: 1 | AY132: 1 | AZ132: 1 | BA132: 1 | BB132: 1 | BC132: 1 | BD132: 1 | BE132: 1 | BF132: 1 | BG132: 1 | BH132: 1 | BI132: 1 | BJ132: 1 | BK132: 1 | BL132: 1 | BM132: 1 | BN132: 1 | BO132: 1 | BP132: 1 | BQ132: 1 | BR132: 1 | BS132: 1 | BT132: 1 | BU132: 1 | BV132: 1 | BW132: 1 | BX132: 1 | BY132: 1 | BZ132: 1 | CA132: 1 | CB132: 1 | CC132: 1
A133: Murray (A) | B133: 1 | C133: 1 | D133: 1 | E133: 1 | F133: 1 | G133: 1 | H133: 1 | I133: 1 | J133: 1 | K133: 1 | L133: 1 | M133: 1 | N133: 1 | O133: 1 | P133: 1 | Q133: 1 | R133: 1 | S133: 1 | T133: 1 | U133: 1 | V133: 1 | W133: 1 | X133: 1 | Y133: 1 | Z133: 1 | AA133: 1 | AB133: 1 | AC133: 1 | AD133: 1 | AE133: 1 | AF133: 1 | AG133: 1 | AH133: 1 | AI133: 1 | AJ133: 1 | AK133: 1 | AL133: 1 | AM133: 1 | AN133: 1 | AO133: 1 | AP133: 1 | AQ133: 1 | AR133: 1 | AS133: 1 | AT133: 1 | AU133: 1 | AV133: 1 | AW133: 1 | AX133: 1 | AY133: 1 | AZ133: 1 | BA133: 1 | BB133: 1 | BC133: 1 | BD133: 1 | BE133: 1 | BF133: 1 | BG133: 1 | BH133: 1 | BI133: 1 | BJ133: 1 | BK133: 1 | BL133: 1 | BM133: 1 | BN133: 1 | BO133: =IF($B$1=2,IF($D284=0,BO$106,1),1) -> 1 | BP133: 1 | BQ133: 1 | BR133: 1 | BS133: 1 | BT133: 1 | BU133: 1 | BV133: 1 | BW133: 1 | BX133: 1 | BY133: 1 | BZ133: 1 | CA133: 1 | CB133: 1 | CC133: 1
A134: Nillumbik (S) | B134: 1 | C134: 1 | D134: 1 | E134: 1 | F134: 1 | G134: 1 | H134: 1 | I134: 1 | J134: 1 | K134: 1 | L134: 1 | M134: 1 | N134: 1 | O134: 1 | P134: 1 | Q134: 1 | R134: 1 | S134: 1 | T134: 1 | U134: 1 | V134: 1 | W134: 1 | X134: 1 | Y134: 1 | Z134: 1 | AA134: 1 | AB134: 1 | AC134: 1 | AD134: 1 | AE134: 1 | AF134: 1 | AG134: 1 | AH134: 1 | AI134: 1 | AJ134: 1 | AK134: 1 | AL134: 1 | AM134: 1 | AN134: 1 | AO134: 1 | AP134: 1 | AQ134: 1 | AR134: 1 | AS134: 1 | AT134: 1 | AU134: 1 | AV134: 1 | AW134: 1 | AX134: 1 | AY134: 1 | AZ134: 1 | BA134: 1 | BB134: 1 | BC134: 1 | BD134: 1 | BE134: 1 | BF134: 1 | BG134: 1 | BH134: 1 | BI134: 1 | BJ134: 1 | BK134: 1 | BL134: 1 | BM134: 1 | BN134: 1 | BO134: 1 | BP134: 1 | BQ134: 1 | BR134: 1 | BS134: 1 | BT134: 1 | BU134: 1 | BV134: 1 | BW134: 1 | BX134: 1 | BY134: 1 | BZ134: 1 | CA134: 1 | CB134: 1 | CC134: 1
A135: Strathbogie (S) | B135: 1 | C135: 1 | D135: 1 | E135: 1 | F135: 1 | G135: 1 | H135: 1 | I135: 1 | J135: 1 | K135: 1 | L135: 1 | M135: 1 | N135: 1 | O135: 1 | P135: 1 | Q135: 1 | R135: 1 | S135: 1 | T135: 1 | U135: 1 | V135: 1 | W135: 1 | X135: 1 | Y135: 1 | Z135: 1 | AA135: 1 | AB135: 1 | AC135: 1 | AD135: 1 | AE135: 1 | AF135: 1 | AG135: 1 | AH135: 1 | AI135: 1 | AJ135: 1 | AK135: 1 | AL135: 1 | AM135: 1 | AN135: 1 | AO135: 1 | AP135: 1 | AQ135: 1 | AR135: 1 | AS135: 1 | AT135: 1 | AU135: 1 | AV135: 1 | AW135: 1 | AX135: 1 | AY135: 1 | AZ135: 1 | BA135: 1 | BB135: 1 | BC135: 1 | BD135: 1 | BE135: 1 | BF135: 1 | BG135: 1 | BH135: 1 | BI135: 1 | BJ135: 1 | BK135: 1 | BL135: 1 | BM135: 1 | BN135: 1 | BO135: 1 | BP135: 1 | BQ135: 1 | BR135: 1 | BS135: 1 | BT135: 1 | BU135: 1 | BV135: 1 | BW135: 1 | BX135: 1 | BY135: 1 | BZ135: 1 | CA135: 1 | CB135: 1 | CC135: 1
A136: Wangaratta (RC) | B136: 1 | C136: 1 | D136: 1 | E136: 1 | F136: 1 | G136: 1 | H136: 1 | I136: 1 | J136: 1 | K136: 1 | L136: 1 | M136: 1 | N136: 1 | O136: 1 | P136: 1 | Q136: 1 | R136: 1 | S136: 1 | T136: 1 | U136: 1 | V136: 1 | W136: 1 | X136: 1 | Y136: 1 | Z136: 1 | AA136: 1 | AB136: 1 | AC136: 1 | AD136: 1 | AE136: 1 | AF136: 1 | AG136: 1 | AH136: 1 | AI136: 1 | AJ136: 1 | AK136: 1 | AL136: 1 | AM136: 1 | AN136: 1 | AO136: 1 | AP136: 1 | AQ136: 1 | AR136: 1 | AS136: 1 | AT136: 1 | AU136: 1 | AV136: 1 | AW136: 1 | AX136: 1 | AY136: 1 | AZ136: 1 | BA136: 1 | BB136: 1 | BC136: 1 | BD136: 1 | BE136: 1 | BF136: 1 | BG136: 1 | BH136: 1 | BI136: 1 | BJ136: 1 | BK136: 1 | BL136: 1 | BM136: 1 | BN136: 1 | BO136: 1 | BP136: 1 | BQ136: 1 | BR136: 1 | BS136: 1 | BT136: 1 | BU136: 1 | BV136: 1 | BW136: 1 | BX136: 1 | BY136: 1 | BZ136: 1 | CA136: 1 | CB136: 1 | CC136: 1
A137: Wellington (S) | B137: 1 | C137: 1 | D137: 1 | E137: 1 | F137: 1 | G137: 1 | H137: 1 | I137: 1 | J137: 1 | K137: 1 | L137: 1 | M137: 1 | N137: 1 | O137: 1 | P137: 1 | Q137: 1 | R137: 1 | S137: 1 | T137: 1 | U137: 1 | V137: 1 | W137: 1 | X137: 1 | Y137: 1 | Z137: 1 | AA137: 1 | AB137: 1 | AC137: 1 | AD137: 1 | AE137: 1 | AF137: 1 | AG137: 1 | AH137: 1 | AI137: 1 | AJ137: 1 | AK137: 1 | AL137: 1 | AM137: 1 | AN137: 1 | AO137: 1 | AP137: 1 | AQ137: 1 | AR137: 1 | AS137: 1 | AT137: 1 | AU137: 1 | AV137: 1 | AW137: 1 | AX137: 1 | AY137: 1 | AZ137: 1 | BA137: 1 | BB137: 1 | BC137: 1 | BD137: 1 | BE137: 1 | BF137: 1 | BG137: 1 | BH137: 1 | BI137: 1 | BJ137: 1 | BK137: 1 | BL137: 1 | BM137: 1 | BN137: 1 | BO137: 1 | BP137: 1 | BQ137: 1 | BR137: 1 | BS137: 1 | BT137: 1 | BU137: 1 | BV137: 1 | BW137: 1 | BX137: 1 | BY137: 1 | BZ137: 1 | CA137: 1 | CB137: 1 | CC137: 1
A138: Whittlesea (C) | B138: 1 | C138: 1 | D138: 1 | E138: 1 | F138: 1 | G138: 1 | H138: 1 | I138: 1 | J138: 1 | K138: 1 | L138: 1 | M138: 1 | N138: 1 | O138: 1 | P138: 1 | Q138: 1 | R138: 1 | S138: 1 | T138: 1 | U138: 1 | V138: =IF($B$1=2,IF($D289=0,V$106,1),1) -> 1 | W138: 1 | X138: 1 | Y138: 1 | Z138: 1 | AA138: 1 | AB138: 1 | AC138: 1 | AD138: 1 | AE138: 1 | AF138: 1 | AG138: 1 | AH138: 1 | AI138: 1 | AJ138: 1 | AK138: 1 | AL138: 1 | AM138: 1 | AN138: 1 | AO138: 1 | AP138: 1 | AQ138: 1 | AR138: 1 | AS138: 1 | AT138: 1 | AU138: 1 | AV138: 1 | AW138: 1 | AX138: 1 | AY138: 1 | AZ138: 1 | BA138: 1 | BB138: 1 | BC138: 1 | BD138: 1 | BE138: 1 | BF138: 1 | BG138: 1 | BH138: 1 | BI138: 1 | BJ138: 1 | BK138: 1 | BL138: 1 | BM138: 1 | BN138: 1 | BO138: 1 | BP138: 1 | BQ138: 1 | BR138: 1 | BS138: 1 | BT138: 1 | BU138: 1 | BV138: 1 | BW138: 1 | BX138: 1 | BY138: 1 | BZ138: 1 | CA138: 1 | CB138: 1 | CC138: 1
A139: Wodonga (RC) | B139: 1 | C139: 1 | D139: 1 | E139: 1 | F139: 1 | G139: 1 | H139: 1 | I139: 1 | J139: 1 | K139: 1 | L139: 1 | M139: 1 | N139: 1 | O139: 1 | P139: 1 | Q139: 1 | R139: 1 | S139: 1 | T139: 1 | U139: 1 | V139: 1 | W139: 1 | X139: 1 | Y139: 1 | Z139: 1 | AA139: 1 | AB139: 1 | AC139: 1 | AD139: 1 | AE139: 1 | AF139: 1 | AG139: 1 | AH139: 1 | AI139: 1 | AJ139: 1 | AK139: 1 | AL139: 1 | AM139: 1 | AN139: 1 | AO139: 1 | AP139: 1 | AQ139: 1 | AR139: 1 | AS139: 1 | AT139: 1 | AU139: 1 | AV139: 1 | AW139: 1 | AX139: 1 | AY139: 1 | AZ139: 1 | BA139: 1 | BB139: 1 | BC139: 1 | BD139: 1 | BE139: 1 | BF139: 1 | BG139: 1 | BH139: 1 | BI139: 1 | BJ139: 1 | BK139: 1 | BL139: 1 | BM139: 1 | BN139: 1 | BO139: 1 | BP139: 1 | BQ139: 1 | BR139: 1 | BS139: 1 | BT139: 1 | BU139: 1 | BV139: 1 | BW139: 1 | BX139: 1 | BY139: 1 | BZ139: 1 | CA139: 1 | CB139: 1 | CC139: 1
A140: Yarra (C) | B140: 1 | C140: 1 | D140: 1 | E140: 1 | F140: 1 | G140: 1 | H140: 1 | I140: 1 | J140: 1 | K140: 1 | L140: 1 | M140: 1 | N140: 1 | O140: 1 | P140: 1 | Q140: 1 | R140: 1 | S140: 1 | T140: 1 | U140: 1 | V140: 1 | W140: 1 | X140: 1 | Y140: 1 | Z140: 1 | AA140: 1 | AB140: 1 | AC140: 1 | AD140: 1 | AE140: 1 | AF140: 1 | AG140: 1 | AH140: 1 | AI140: 1 | AJ140: 1 | AK140: 1 | AL140: 1 | AM140: 1 | AN140: 1 | AO140: 1 | AP140: 1 | AQ140: 1 | AR140: 1 | AS140: 1 | AT140: 1 | AU140: 1 | AV140: 1 | AW140: 1 | AX140: 1 | AY140: 1 | AZ140: 1 | BA140: 1 | BB140: 1 | BC140: 1 | BD140: 1 | BE140: 1 | BF140: 1 | BG140: 1 | BH140: 1 | BI140: 1 | BJ140: 1 | BK140: 1 | BL140: 1 | BM140: 1 | BN140: 1 | BO140: 1 | BP140: 1 | BQ140: 1 | BR140: 1 | BS140: 1 | BT140: 1 | BU140: 1 | BV140: 1 | BW140: 1 | BX140: 1 | BY140: 1 | BZ140: 1 | CA140: 1 | CB140: 1 | CC140: 1
A141: Yarra Ranges (S) | B141: 1 | C141: 1 | D141: 1 | E141: 1 | F141: 1 | G141: 1 | H141: 1 | I141: 1 | J141: 1 | K141: 1 | L141: 1 | M141: 1 | N141: 1 | O141: 1 | P141: 1 | Q141: 1 | R141: 1 | S141: 1 | T141: 1 | U141: 1 | V141: 1 | W141: 1 | X141: 1 | Y141: 1 | Z141: 1 | AA141: 1 | AB141: 1 | AC141: 1 | AD141: 1 | AE141: 1 | AF141: 1 | AG141: 1 | AH141: 1 | AI141: 1 | AJ141: 1 | AK141: 1 | AL141: 1 | AM141: 1 | AN141: 1 | AO141: 1 | AP141: 1 | AQ141: 1 | AR141: 1 | AS141: 1 | AT141: 1 | AU141: 1 | AV141: 1 | AW141: 1 | AX141: 1 | AY141: 1 | AZ141: 1 | BA141: 1 | BB141: 1 | BC141: 1 | BD141: 1 | BE141: 1 | BF141: 1 | BG141: 1 | BH141: 1 | BI141: 1 | BJ141: 1 | BK141: 1 | BL141: 1 | BM141: 1 | BN141: 1 | BO141: 1 | BP141: 1 | BQ141: 1 | BR141: 1 | BS141: 1 | BT141: 1 | BU141: 1 | BV141: 1 | BW141: 1 | BX141: 1 | BY141: 1 | BZ141: 1 | CA141: 1 | CB141: 1 | CC141: 1
A143: Commercial Network ON/OFF
A144: LGA | B144: 2021 | C144: =B144+1 -> 2022 | D144: =C144+1 -> 2023 | E144: 2024 | F144: 2025 | G144: 2026 | H144: 2027 | I144: 2028 | J144: 2029 | K144: 2030 | L144: 2031 | M144: 2032 | N144: 2033 | O144: 2034 | P144: 2035 | Q144: 2036 | R144: 2037 | S144: 2038 | T144: 2039 | U144: 2040 | V144: 2041 | W144: 2042 | X144: 2043 | Y144: 2044 | Z144: 2045 | AA144: 2046 | AB144: 2047 | AC144: 2048 | AD144: 2049 | AE144: 2050 | AF144: 2051 | AG144: 2052 | AH144: 2053 | AI144: 2054 | AJ144: 2055 | AK144: 2056 | AL144: 2057 | AM144: 2058 | AN144: 2059 | AO144: 2060 | AP144: 2061 | AQ144: 2062 | AR144: 2063 | AS144: 2064 | AT144: 2065 | AU144: 2066 | AV144: 2067 | AW144: 2068 | AX144: 2069 | AY144: 2070 | AZ144: 2071 | BA144: 2072 | BB144: 2073 | BC144: 2074 | BD144: 2075 | BE144: 2076 | BF144: 2077 | BG144: 2078 | BH144: 2079 | BI144: 2080 | BJ144: 2081 | BK144: 2082 | BL144: 2083 | BM144: 2084 | BN144: 2085 | BO144: 2086 | BP144: =BO144+1 -> 2087 | BQ144: 2088 | BR144: 2089 | BS144: 2090 | BT144: 2091 | BU144: 2092 | BV144: 2093 | BW144: 2094 | BX144: 2095 | BY144: 2096 | BZ144: 2097 | CA144: 2098 | CB144: 2099 | CC144: 2100
A145: Albury (C) | B145: 1 | C145: 1 | D145: 1 | E145: 1 | F145: 1 | G145: 1 | H145: 1 | I145: 1 | J145: 1 | K145: 1 | L145: 1 | M145: 1 | N145: 1 | O145: 1 | P145: 1 | Q145: 1 | R145: 1 | S145: 1 | T145: 1 | U145: =IF($B$1=2,IF($D259=0,U$106,1),1) -> 1 | V145: =IF($B$1=2,IF($D259=0,V$106,1),1) -> 1 | W145: 1 | X145: 1 | Y145: =IF($B$1=2,IF($D259=0,Y$106,1),1) -> 1 | Z145: 1 | AA145: 1 | AB145: 1 | AC145: 1 | AD145: 1 | AE145: 1 | AF145: 1 | AG145: 1 | AH145: 1 | AI145: 1 | AJ145: 1 | AK145: 1 | AL145: 1 | AM145: 1 | AN145: 1 | AO145: 1 | AP145: 1 | AQ145: 1 | AR145: 1 | AS145: 1 | AT145: 1 | AU145: =IF($B$1=2,IF($D259=0,AU$106,1),1) -> 1 | AV145: 1 | AW145: 1 | AX145: 1 | AY145: 1 | AZ145: 1 | BA145: 1 | BB145: 1 | BC145: 1 | BD145: 1 | BE145: 1 | BF145: 1 | BG145: 1 | BH145: 1 | BI145: 1 | BJ145: 1 | BK145: 1 | BL145: 1 | BM145: 1 | BN145: 1 | BO145: 1 | BP145: 1 | BQ145: 1 | BR145: 1 | BS145: 1 | BT145: 1 | BU145: 1 | BV145: 1 | BW145: 1 | BX145: 1 | BY145: 1 | BZ145: 1 | CA145: 1 | CB145: 1 | CC145: 1
A146: Banyule (C) | B146: 1 | C146: 1 | D146: 1 | E146: 1 | F146: 1 | G146: 1 | H146: 1 | I146: 1 | J146: 1 | K146: 1 | L146: 1 | M146: 1 | N146: 1 | O146: 1 | P146: 1 | Q146: 1 | R146: 1 | S146: 1 | T146: 1 | U146: =IF($B$1=2,IF($D260=0,U$106,1),1) -> 1 | V146: 1 | W146: 1 | X146: =IF($B$1=2,IF($D260=0,X$106,1),1) -> 1 | Y146: 1 | Z146: 1 | AA146: 1 | AB146: 1 | AC146: 1 | AD146: 1 | AE146: 1 | AF146: 1 | AG146: 1 | AH146: 1 | AI146: 1 | AJ146: 1 | AK146: 1 | AL146: 1 | AM146: 1 | AN146: 1 | AO146: 1 | AP146: 1 | AQ146: 1 | AR146: 1 | AS146: 1 | AT146: =IF($B$1=2,IF($D260=0,AT$106,1),1) -> 1 | AU146: 1 | AV146: 1 | AW146: 1 | AX146: 1 | AY146: 1 | AZ146: 1 | BA146: 1 | BB146: 1 | BC146: 1 | BD146: 1 | BE146: 1 | BF146: 1 | BG146: 1 | BH146: 1 | BI146: 1 | BJ146: 1 | BK146: 1 | BL146: 1 | BM146: 1 | BN146: 1 | BO146: 1 | BP146: 1 | BQ146: 1 | BR146: 1 | BS146: 1 | BT146: 1 | BU146: 1 | BV146: 1 | BW146: 1 | BX146: 1 | BY146: 1 | BZ146: 1 | CA146: 1 | CB146: 1 | CC146: 1
A147: Baw Baw (S) | B147: 1 | C147: 1 | D147: 1 | E147: 1 | F147: 1 | G147: 1 | H147: 1 | I147: 1 | J147: 1 | K147: 1 | L147: 1 | M147: 1 | N147: 1 | O147: 1 | P147: 1 | Q147: 1 | R147: 1 | S147: 1 | T147: 1 | U147: 1 | V147: 1 | W147: 1 | X147: =IF($B$1=2,IF($D261=0,X$106,1),1) -> 1 | Y147: 1 | Z147: 1 | AA147: 1 | AB147: 1 | AC147: 1 | AD147: 1 | AE147: 1 | AF147: 1 | AG147: 1 | AH147: 1 | AI147: 1 | AJ147: 1 | AK147: 1 | AL147: 1 | AM147: 1 | AN147: 1 | AO147: 1 | AP147: 1 | AQ147: 1 | AR147: 1 | AS147: 1 | AT147: =IF($B$1=2,IF($D261=0,AT$106,1),1) -> 1 | AU147: 1 | AV147: 1 | AW147: 1 | AX147: 1 | AY147: 1 | AZ147: 1 | BA147: 1 | BB147: 1 | BC147: 1 | BD147: 1 | BE147: 1 | BF147: 1 | BG147: 1 | BH147: 1 | BI147: 1 | BJ147: 1 | BK147: 1 | BL147: 1 | BM147: 1 | BN147: 1 | BO147: 1 | BP147: 1 | BQ147: 1 | BR147: 1 | BS147: 1 | BT147: 1 | BU147: 1 | BV147: 1 | BW147: 1 | BX147: 1 | BY147: 1 | BZ147: 1 | CA147: 1 | CB147: 1 | CC147: 1
A148: Benalla (RC) | B148: 1 | C148: 1 | D148: 1 | E148: 1 | F148: 1 | G148: 1 | H148: 1 | I148: 1 | J148: 1 | K148: 1 | L148: 1 | M148: 1 | N148: 1 | O148: 1 | P148: 1 | Q148: 1 | R148: 1 | S148: 1 | T148: 1 | U148: 1 | V148: 1 | W148: 1 | X148: =IF($B$1=2,IF($D262=0,X$106,1),1) -> 1 | Y148: 1 | Z148: 1 | AA148: 1 | AB148: 1 | AC148: 1 | AD148: 1 | AE148: 1 | AF148: 1 | AG148: 1 | AH148: 1 | AI148: 1 | AJ148: 1 | AK148: 1 | AL148: 1 | AM148: 1 | AN148: 1 | AO148: 1 | AP148: 1 | AQ148: 1 | AR148: 1 | AS148: 1 | AT148: =IF($B$1=2,IF($D262=0,AT$106,1),1) -> 1 | AU148: 1 | AV148: 1 | AW148: 1 | AX148: 1 | AY148: 1 | AZ148: 1 | BA148: 1 | BB148: 1 | BC148: 1 | BD148: 1 | BE148: 1 | BF148: 1 | BG148: 1 | BH148: 1 | BI148: 1 | BJ148: 1 | BK148: 1 | BL148: 1 | BM148: 1 | BN148: 1 | BO148: 1 | BP148: 1 | BQ148: 1 | BR148: 1 | BS148: 1 | BT148: 1 | BU148: 1 | BV148: 1 | BW148: 1 | BX148: 1 | BY148: 1 | BZ148: 1 | CA148: 1 | CB148: 1 | CC148: 1
A149: Berrigan (A) | B149: 1 | C149: 1 | D149: 1 | E149: 1 | F149: 1 | G149: 1 | H149: 1 | I149: 1 | J149: 1 | K149: 1 | L149: 1 | M149: 1 | N149: 1 | O149: 1 | P149: 1 | Q149: 1 | R149: 1 | S149: 1 | T149: 1 | U149: 1 | V149: 1 | W149: 1 | X149: =IF($B$1=2,IF($D263=0,X$106,1),1) -> 1 | Y149: 1 | Z149: 1 | AA149: 1 | AB149: 1 | AC149: 1 | AD149: 1 | AE149: 1 | AF149: 1 | AG149: 1 | AH149: 1 | AI149: 1 | AJ149: 1 | AK149: 1 | AL149: 1 | AM149: 1 | AN149: 1 | AO149: 1 | AP149: 1 | AQ149: 1 | AR149: 1 | AS149: 1 | AT149: =IF($B$1=2,IF($D263=0,AT$106,1),1) -> 1 | AU149: 1 | AV149: 1 | AW149: 1 | AX149: 1 | AY149: 1 | AZ149: 1 | BA149: 1 | BB149: 1 | BC149: 1 | BD149: 1 | BE149: 1 | BF149: 1 | BG149: 1 | BH149: 1 | BI149: 1 | BJ149: 1 | BK149: 1 | BL149: 1 | BM149: 1 | BN149: 1 | BO149: 1 | BP149: 1 | BQ149: 1 | BR149: 1 | BS149: 1 | BT149: 1 | BU149: 1 | BV149: 1 | BW149: 1 | BX149: 1 | BY149: 1 | BZ149: 1 | CA149: 1 | CB149: 1 | CC149: 1
A150: Campaspe (S) | B150: 1 | C150: 1 | D150: 1 | E150: 1 | F150: 1 | G150: 1 | H150: 1 | I150: 1 | J150: 1 | K150: 1 | L150: 1 | M150: 1 | N150: 1 | O150: 1 | P150: 1 | Q150: 1 | R150: 1 | S150: 1 | T150: 1 | U150: 1 | V150: 1 | W150: 1 | X150: =IF($B$1=2,IF($D264=0,X$106,1),1) -> 1 | Y150: 1 | Z150: 1 | AA150: 1 | AB150: 1 | AC150: 1 | AD150: 1 | AE150: 1 | AF150: 1 | AG150: 1 | AH150: 1 | AI150: 1 | AJ150: 1 | AK150: 1 | AL150: 1 | AM150: 1 | AN150: 1 | AO150: 1 | AP150: 1 | AQ150: 1 | AR150: 1 | AS150: 1 | AT150: =IF($B$1=2,IF($D264=0,AT$106,1),1) -> 1 | AU150: 1 | AV150: 1 | AW150: 1 | AX150: 1 | AY150: 1 | AZ150: 1 | BA150: 1 | BB150: 1 | BC150: 1 | BD150: 1 | BE150: 1 | BF150: 1 | BG150: 1 | BH150: 1 | BI150: 1 | BJ150: 1 | BK150: 1 | BL150: 1 | BM150: 1 | BN150: 1 | BO150: 1 | BP150: 1 | BQ150: 1 | BR150: 1 | BS150: 1 | BT150: 1 | BU150: 1 | BV150: 1 | BW150: 1 | BX150: 1 | BY150: 1 | BZ150: 1 | CA150: 1 | CB150: 1 | CC150: 1
A151: Cardinia (S) | B151: 1 | C151: 1 | D151: 1 | E151: 1 | F151: 1 | G151: 1 | H151: 1 | I151: 1 | J151: 1 | K151: 1 | L151: 1 | M151: 1 | N151: 1 | O151: 1 | P151: 1 | Q151: 1 | R151: 1 | S151: 1 | T151: 1 | U151: 1 | V151: 1 | W151: 1 | X151: =IF($B$1=2,IF($D265=0,X$106,1),1) -> 1 | Y151: 1 | Z151: 1 | AA151: 1 | AB151: 1 | AC151: 1 | AD151: 1 | AE151: 1 | AF151: 1 | AG151: 1 | AH151: 1 | AI151: 1 | AJ151: 1 | AK151: 1 | AL151: 1 | AM151: 1 | AN151: 1 | AO151: 1 | AP151: 1 | AQ151: 1 | AR151: 1 | AS151: 1 | AT151: =IF($B$1=2,IF($D265=0,AT$106,1),1) -> 1 | AU151: 1 | AV151: 1 | AW151: 1 | AX151: 1 | AY151: 1 | AZ151: 1 | BA151: 1 | BB151: 1 | BC151: 1 | BD151: 1 | BE151: 1 | BF151: 1 | BG151: 1 | BH151: 1 | BI151: 1 | BJ151: 1 | BK151: 1 | BL151: 1 | BM151: 1 | BN151: 1 | BO151: 1 | BP151: 1 | BQ151: 1 | BR151: 1 | BS151: 1 | BT151: 1 | BU151: 1 | BV151: 1 | BW151: 1 | BX151: 1 | BY151: 1 | BZ151: 1 | CA151: 1 | CB151: 1 | CC151: 1
A152: Casey (C) | B152: 1 | C152: 1 | D152: 1 | E152: 1 | F152: 1 | G152: 1 | H152: 1 | I152: 1 | J152: 1 | K152: 1 | L152: 1 | M152: 1 | N152: 1 | O152: 1 | P152: 1 | Q152: 1 | R152: 1 | S152: 1 | T152: 1 | U152: 1 | V152: 1 | W152: 1 | X152: =IF($B$1=2,IF($D266=0,X$106,1),1) -> 1 | Y152: 1 | Z152: 1 | AA152: 1 | AB152: 1 | AC152: 1 | AD152: 1 | AE152: 1 | AF152: 1 | AG152: 1 | AH152: 1 | AI152: 1 | AJ152: 1 | AK152: 1 | AL152: 1 | AM152: 1 | AN152: 1 | AO152: 1 | AP152: 1 | AQ152: 1 | AR152: 1 | AS152: 1 | AT152: =IF($B$1=2,IF($D266=0,AT$106,1),1) -> 1 | AU152: 1 | AV152: 1 | AW152: 1 | AX152: 1 | AY152: 1 | AZ152: 1 | BA152: 1 | BB152: 1 | BC152: 1 | BD152: 1 | BE152: 1 | BF152: 1 | BG152: 1 | BH152: 1 | BI152: 1 | BJ152: 1 | BK152: 1 | BL152: 1 | BM152: 1 | BN152: 1 | BO152: 1 | BP152: 1 | BQ152: 1 | BR152: 1 | BS152: 1 | BT152: 1 | BU152: 1 | BV152: 1 | BW152: 1 | BX152: 1 | BY152: 1 | BZ152: 1 | CA152: 1 | CB152: 1 | CC152: 1
A153: Corowa Shire (A) | B153: 1 | C153: 1 | D153: 1 | E153: 1 | F153: 1 | G153: 1 | H153: 1 | I153: 1 | J153: 1 | K153: 1 | L153: 1 | M153: 1 | N153: 1 | O153: 1 | P153: 1 | Q153: 1 | R153: 1 | S153: 1 | T153: 1 | U153: 1 | V153: 1 | W153: 1 | X153: =IF($B$1=2,IF($D267=0,X$106,1),1) -> 1 | Y153: 1 | Z153: 1 | AA153: 1 | AB153: 1 | AC153: 1 | AD153: 1 | AE153: 1 | AF153: 1 | AG153: 1 | AH153: 1 | AI153: 1 | AJ153: 1 | AK153: 1 | AL153: 1 | AM153: 1 | AN153: 1 | AO153: 1 | AP153: 1 | AQ153: 1 | AR153: 1 | AS153: 1 | AT153: =IF($B$1=2,IF($D267=0,AT$106,1),1) -> 1 | AU153: 1 | AV153: 1 | AW153: 1 | AX153: 1 | AY153: 1 | AZ153: 1 | BA153: 1 | BB153: 1 | BC153: 1 | BD153: 1 | BE153: 1 | BF153: 1 | BG153: 1 | BH153: 1 | BI153: 1 | BJ153: 1 | BK153: 1 | BL153: 1 | BM153: 1 | BN153: 1 | BO153: 1 | BP153: 1 | BQ153: 1 | BR153: 1 | BS153: 1 | BT153: 1 | BU153: 1 | BV153: 1 | BW153: 1 | BX153: 1 | BY153: 1 | BZ153: 1 | CA153: 1 | CB153: 1 | CC153: 1
A154: Darebin (C) | B154: 1 | C154: 1 | D154: 1 | E154: 1 | F154: 1 | G154: 1 | H154: 1 | I154: 1 | J154: 1 | K154: 1 | L154: 1 | M154: 1 | N154: 1 | O154: 1 | P154: 1 | Q154: 1 | R154: 1 | S154: 1 | T154: 1 | U154: 1 | V154: 1 | W154: 1 | X154: =IF($B$1=2,IF($D268=0,X$106,1),1) -> 1 | Y154: 1 | Z154: 1 | AA154: 1 | AB154: 1 | AC154: 1 | AD154: 1 | AE154: 1 | AF154: 1 | AG154: 1 | AH154: 1 | AI154: 1 | AJ154: 1 | AK154: 1 | AL154: 1 | AM154: 1 | AN154: 1 | AO154: 1 | AP154: 1 | AQ154: 1 | AR154: 1 | AS154: 1 | AT154: =IF($B$1=2,IF($D268=0,AT$106,1),1) -> 1 | AU154: 1 | AV154: 1 | AW154: 1 | AX154: 1 | AY154: 1 | AZ154: 1 | BA154: 1 | BB154: 1 | BC154: 1 | BD154: 1 | BE154: 1 | BF154: 1 | BG154: 1 | BH154: 1 | BI154: 1 | BJ154: 1 | BK154: 1 | BL154: 1 | BM154: 1 | BN154: 1 | BO154: 1 | BP154: 1 | BQ154: 1 | BR154: 1 | BS154: 1 | BT154: 1 | BU154: 1 | BV154: 1 | BW154: 1 | BX154: 1 | BY154: 1 | BZ154: 1 | CA154: 1 | CB154: 1 | CC154: 1
A155: East Gippsland (S) | B155: 1 | C155: 1 | D155: 1 | E155: 1 | F155: 1 | G155: 1 | H155: 1 | I155: 1 | J155: 1 | K155: 1 | L155: 1 | M155: 1 | N155: 1 | O155: 1 | P155: 1 | Q155: 1 | R155: 1 | S155: 1 | T155: 1 | U155: 1 | V155: 1 | W155: 1 | X155: =IF($B$1=2,IF($D269=0,X$106,1),1) -> 1 | Y155: 1 | Z155: 1 | AA155: 1 | AB155: 1 | AC155: 1 | AD155: 1 | AE155: 1 | AF155: 1 | AG155: 1 | AH155: 1 | AI155: 1 | AJ155: 1 | AK155: 1 | AL155: 1 | AM155: 1 | AN155: 1 | AO155: 1 | AP155: 1 | AQ155: 1 | AR155: 1 | AS155: 1 | AT155: =IF($B$1=2,IF($D269=0,AT$106,1),1) -> 1 | AU155: 1 | AV155: 1 | AW155: 1 | AX155: 1 | AY155: 1 | AZ155: 1 | BA155: 1 | BB155: 1 | BC155: 1 | BD155: 1 | BE155: 1 | BF155: 1 | BG155: 1 | BH155: 1 | BI155: 1 | BJ155: 1 | BK155: 1 | BL155: 1 | BM155: 1 | BN155: 1 | BO155: 1 | BP155: 1 | BQ155: 1 | BR155: 1 | BS155: 1 | BT155: 1 | BU155: 1 | BV155: 1 | BW155: 1 | BX155: 1 | BY155: 1 | BZ155: 1 | CA155: 1 | CB155: 1 | CC155: 1
A156: Frankston (C) | B156: 1 | C156: 1 | D156: 1 | E156: 1 | F156: 1 | G156: 1 | H156: 1 | I156: 1 | J156: 1 | K156: 1 | L156: 1 | M156: 1 | N156: 1 | O156: 1 | P156: 1 | Q156: 1 | R156: 1 | S156: 1 | T156: 1 | U156: 1 | V156: 1 | W156: 1 | X156: =IF($B$1=2,IF($D270=0,X$106,1),1) -> 1 | Y156: 1 | Z156: 1 | AA156: 1 | AB156: 1 | AC156: 1 | AD156: 1 | AE156: 1 | AF156: 1 | AG156: 1 | AH156: 1 | AI156: 1 | AJ156: 1 | AK156: 1 | AL156: 1 | AM156: 1 | AN156: 1 | AO156: 1 | AP156: 1 | AQ156: 1 | AR156: 1 | AS156: 1 | AT156: =IF($B$1=2,IF($D270=0,AT$106,1),1) -> 1 | AU156: 1 | AV156: 1 | AW156: 1 | AX156: 1 | AY156: 1 | AZ156: 1 | BA156: 1 | BB156: 1 | BC156: 1 | BD156: 1 | BE156: 1 | BF156: 1 | BG156: 1 | BH156: 1 | BI156: 1 | BJ156: 1 | BK156: 1 | BL156: 1 | BM156: 1 | BN156: 1 | BO156: 1 | BP156: 1 | BQ156: 1 | BR156: 1 | BS156: 1 | BT156: 1 | BU156: 1 | BV156: 1 | BW156: 1 | BX156: 1 | BY156: 1 | BZ156: 1 | CA156: 1 | CB156: 1 | CC156: 1
A157: Greater Dandenong (C) | B157: 1 | C157: 1 | D157: 1 | E157: 1 | F157: 1 | G157: 1 | H157: 1 | I157: 1 | J157: 1 | K157: 1 | L157: 1 | M157: 1 | N157: 1 | O157: 1 | P157: 1 | Q157: 1 | R157: 1 | S157: 1 | T157: 1 | U157: 1 | V157: 1 | W157: 1 | X157: =IF($B$1=2,IF($D271=0,X$106,1),1) -> 1 | Y157: 1 | Z157: 1 | AA157: 1 | AB157: 1 | AC157: 1 | AD157: 1 | AE157: 1 | AF157: 1 | AG157: 1 | AH157: 1 | AI157: 1 | AJ157: 1 | AK157: 1 | AL157: 1 | AM157: 1 | AN157: 1 | AO157: 1 | AP157: 1 | AQ157: 1 | AR157: 1 | AS157: 1 | AT157: =IF($B$1=2,IF($D271=0,AT$106,1),1) -> 1 | AU157: 1 | AV157: 1 | AW157: 1 | AX157: 1 | AY157: 1 | AZ157: 1 | BA157: 1 | BB157: 1 | BC157: 1 | BD157: 1 | BE157: 1 | BF157: 1 | BG157: 1 | BH157: 1 | BI157: 1 | BJ157: 1 | BK157: 1 | BL157: 1 | BM157: 1 | BN157: 1 | BO157: 1 | BP157: 1 | BQ157: 1 | BR157: 1 | BS157: 1 | BT157: 1 | BU157: 1 | BV157: 1 | BW157: 1 | BX157: 1 | BY157: 1 | BZ157: 1 | CA157: 1 | CB157: 1 | CC157: 1
A158: Greater Hume Shire (A) | B158: 1 | C158: 1 | D158: 1 | E158: 1 | F158: 1 | G158: 1 | H158: 1 | I158: 1 | J158: 1 | K158: 1 | L158: 1 | M158: 1 | N158: 1 | O158: 1 | P158: 1 | Q158: 1 | R158: 1 | S158: 1 | T158: 1 | U158: 1 | V158: 1 | W158: 1 | X158: =IF($B$1=2,IF($D272=0,X$106,1),1) -> 1 | Y158: 1 | Z158: 1 | AA158: 1 | AB158: 1 | AC158: 1 | AD158: 1 | AE158: 1 | AF158: 1 | AG158: 1 | AH158: 1 | AI158: 1 | AJ158: 1 | AK158: 1 | AL158: 1 | AM158: 1 | AN158: 1 | AO158: 1 | AP158: 1 | AQ158: 1 | AR158: 1 | AS158: 1 | AT158: =IF($B$1=2,IF($D272=0,AT$106,1),1) -> 1 | AU158: 1 | AV158: 1 | AW158: 1 | AX158: 1 | AY158: 1 | AZ158: 1 | BA158: 1 | BB158: 1 | BC158: 1 | BD158: 1 | BE158: 1 | BF158: 1 | BG158: 1 | BH158: 1 | BI158: 1 | BJ158: 1 | BK158: 1 | BL158: 1 | BM158: 1 | BN158: 1 | BO158: 1 | BP158: 1 | BQ158: 1 | BR158: 1 | BS158: 1 | BT158: 1 | BU158: 1 | BV158: 1 | BW158: 1 | BX158: 1 | BY158: 1 | BZ158: 1 | CA158: 1 | CB158: 1 | CC158: 1
A159: Greater Shepparton (C) | B159: 1 | C159: 1 | D159: 1 | E159: 1 | F159: 1 | G159: 1 | H159: 1 | I159: 1 | J159: 1 | K159: 1 | L159: 1 | M159: 1 | N159: 1 | O159: 1 | P159: 1 | Q159: 1 | R159: 1 | S159: 1 | T159: 1 | U159: 1 | V159: 1 | W159: 1 | X159: =IF($B$1=2,IF($D273=0,X$106,1),1) -> 1 | Y159: 1 | Z159: 1 | AA159: 1 | AB159: 1 | AC159: 1 | AD159: 1 | AE159: 1 | AF159: 1 | AG159: 1 | AH159: 1 | AI159: 1 | AJ159: 1 | AK159: 1 | AL159: 1 | AM159: 1 | AN159: 1 | AO159: 1 | AP159: 1 | AQ159: 1 | AR159: 1 | AS159: 1 | AT159: =IF($B$1=2,IF($D273=0,AT$106,1),1) -> 1 | AU159: 1 | AV159: 1 | AW159: 1 | AX159: 1 | AY159: 1 | AZ159: 1 | BA159: 1 | BB159: 1 | BC159: 1 | BD159: 1 | BE159: 1 | BF159: 1 | BG159: 1 | BH159: 1 | BI159: 1 | BJ159: 1 | BK159: 1 | BL159: 1 | BM159: 1 | BN159: 1 | BO159: 1 | BP159: 1 | BQ159: 1 | BR159: 1 | BS159: 1 | BT159: 1 | BU159: 1 | BV159: 1 | BW159: 1 | BX159: 1 | BY159: 1 | BZ159: 1 | CA159: 1 | CB159: 1 | CC159: 1
A160: Hume (C) | B160: 1 | C160: 1 | D160: 1 | E160: 1 | F160: 1 | G160: 1 | H160: 1 | I160: 1 | J160: 1 | K160: 1 | L160: 1 | M160: 1 | N160: 1 | O160: 1 | P160: 1 | Q160: 1 | R160: 1 | S160: 1 | T160: 1 | U160: 1 | V160: 1 | W160: 1 | X160: =IF($B$1=2,IF($D274=0,X$106,1),1) -> 1 | Y160: 1 | Z160: 1 | AA160: 1 | AB160: 1 | AC160: 1 | AD160: 1 | AE160: 1 | AF160: 1 | AG160: 1 | AH160: 1 | AI160: 1 | AJ160: 1 | AK160: 1 | AL160: 1 | AM160: 1 | AN160: 1 | AO160: 1 | AP160: 1 | AQ160: 1 | AR160: 1 | AS160: 1 | AT160: =IF($B$1=2,IF($D274=0,AT$106,1),1) -> 1 | AU160: 1 | AV160: 1 | AW160: 1 | AX160: 1 | AY160: 1 | AZ160: 1 | BA160: 1 | BB160: 1 | BC160: 1 | BD160: 1 | BE160: 1 | BF160: 1 | BG160: 1 | BH160: 1 | BI160: 1 | BJ160: 1 | BK160: 1 | BL160: 1 | BM160: 1 | BN160: 1 | BO160: 1 | BP160: 1 | BQ160: 1 | BR160: 1 | BS160: 1 | BT160: 1 | BU160: 1 | BV160: 1 | BW160: 1 | BX160: 1 | BY160: 1 | BZ160: 1 | CA160: 1 | CB160: 1 | CC160: 1
A161: Indigo (S) | B161: 1 | C161: 1 | D161: 1 | E161: 1 | F161: 1 | G161: 1 | H161: 1 | I161: 1 | J161: 1 | K161: 1 | L161: 1 | M161: 1 | N161: 1 | O161: 1 | P161: 1 | Q161: 1 | R161: 1 | S161: 1 | T161: 1 | U161: 1 | V161: 1 | W161: 1 | X161: =IF($B$1=2,IF($D275=0,X$106,1),1) -> 1 | Y161: 1 | Z161: 1 | AA161: 1 | AB161: 1 | AC161: 1 | AD161: 1 | AE161: 1 | AF161: 1 | AG161: 1 | AH161: 1 | AI161: 1 | AJ161: 1 | AK161: 1 | AL161: 1 | AM161: 1 | AN161: 1 | AO161: 1 | AP161: 1 | AQ161: 1 | AR161: 1 | AS161: 1 | AT161: =IF($B$1=2,IF($D275=0,AT$106,1),1) -> 1 | AU161: 1 | AV161: 1 | AW161: 1 | AX161: 1 | AY161: 1 | AZ161: 1 | BA161: 1 | BB161: 1 | BC161: 1 | BD161: 1 | BE161: 1 | BF161: 1 | BG161: 1 | BH161: 1 | BI161: 1 | BJ161: 1 | BK161: 1 | BL161: 1 | BM161: 1 | BN161: 1 | BO161: 1 | BP161: 1 | BQ161: 1 | BR161: 1 | BS161: 1 | BT161: 1 | BU161: 1 | BV161: 1 | BW161: 1 | BX161: 1 | BY161: 1 | BZ161: 1 | CA161: 1 | CB161: 1 | CC161: 1
A162: Latrobe (C) | B162: 1 | C162: 1 | D162: 1 | E162: 1 | F162: 1 | G162: 1 | H162: 1 | I162: 1 | J162: 1 | K162: 1 | L162: 1 | M162: 1 | N162: 1 | O162: 1 | P162: 1 | Q162: 1 | R162: 1 | S162: 1 | T162: 1 | U162: 1 | V162: 1 | W162: 1 | X162: =IF($B$1=2,IF($D276=0,X$106,1),1) -> 1 | Y162: 1 | Z162: 1 | AA162: 1 | AB162: 1 | AC162: 1 | AD162: 1 | AE162: 1 | AF162: 1 | AG162: 1 | AH162: 1 | AI162: 1 | AJ162: 1 | AK162: 1 | AL162: 1 | AM162: 1 | AN162: 1 | AO162: 1 | AP162: 1 | AQ162: 1 | AR162: 1 | AS162: 1 | AT162: =IF($B$1=2,IF($D276=0,AT$106,1),1) -> 1 | AU162: 1 | AV162: 1 | AW162: 1 | AX162: 1 | AY162: 1 | AZ162: 1 | BA162: 1 | BB162: 1 | BC162: 1 | BD162: 1 | BE162: 1 | BF162: 1 | BG162: 1 | BH162: 1 | BI162: 1 | BJ162: 1 | BK162: 1 | BL162: 1 | BM162: 1 | BN162: 1 | BO162: 1 | BP162: 1 | BQ162: 1 | BR162: 1 | BS162: 1 | BT162: 1 | BU162: 1 | BV162: 1 | BW162: 1 | BX162: 1 | BY162: 1 | BZ162: 1 | CA162: 1 | CB162: 1 | CC162: 1
A163: Melbourne (C) | B163: 1 | C163: 1 | D163: 1 | E163: 1 | F163: 1 | G163: 1 | H163: 1 | I163: 1 | J163: 1 | K163: 1 | L163: 1 | M163: 1 | N163: 1 | O163: 1 | P163: 1 | Q163: 1 | R163: 1 | S163: 1 | T163: 1 | U163: 1 | V163: 1 | W163: 1 | X163: =IF($B$1=2,IF($D277=0,X$106,1),1) -> 1 | Y163: 1 | Z163: 1 | AA163: 1 | AB163: 1 | AC163: 1 | AD163: 1 | AE163: 1 | AF163: 1 | AG163: 1 | AH163: 1 | AI163: 1 | AJ163: 1 | AK163: 1 | AL163: 1 | AM163: 1 | AN163: 1 | AO163: 1 | AP163: 1 | AQ163: 1 | AR163: 1 | AS163: 1 | AT163: =IF($B$1=2,IF($D277=0,AT$106,1),1) -> 1 | AU163: 1 | AV163: 1 | AW163: 1 | AX163: 1 | AY163: 1 | AZ163: 1 | BA163: 1 | BB163: 1 | BC163: 1 | BD163: 1 | BE163: 1 | BF163: 1 | BG163: 1 | BH163: 1 | BI163: 1 | BJ163: 1 | BK163: 1 | BL163: 1 | BM163: 1 | BN163: 1 | BO163: 1 | BP163: 1 | BQ163: 1 | BR163: 1 | BS163: 1 | BT163: 1 | BU163: 1 | BV163: 1 | BW163: 1 | BX163: 1 | BY163: 1 | BZ163: 1 | CA163: 1 | CB163: 1 | CC163: 1
A164: Mildura (RC) | B164: 1 | C164: 1 | D164: 1 | E164: 1 | F164: 1 | G164: 1 | H164: 1 | I164: 1 | J164: 1 | K164: 1 | L164: 1 | M164: 1 | N164: 1 | O164: 1 | P164: 1 | Q164: 1 | R164: 1 | S164: 1 | T164: 1 | U164: 1 | V164: 1 | W164: 1 | X164: =IF($B$1=2,IF($D278=0,X$106,1),1) -> 1 | Y164: 1 | Z164: 1 | AA164: 1 | AB164: 1 | AC164: 1 | AD164: 1 | AE164: 1 | AF164: 1 | AG164: 1 | AH164: 1 | AI164: 1 | AJ164: 1 | AK164: 1 | AL164: 1 | AM164: 1 | AN164: 1 | AO164: 1 | AP164: 1 | AQ164: 1 | AR164: 1 | AS164: 1 | AT164: =IF($B$1=2,IF($D278=0,AT$106,1),1) -> 1 | AU164: 1 | AV164: 1 | AW164: 1 | AX164: 1 | AY164: 1 | AZ164: 1 | BA164: 1 | BB164: 1 | BC164: 1 | BD164: 1 | BE164: 1 | BF164: 1 | BG164: 1 | BH164: 1 | BI164: 1 | BJ164: 1 | BK164: 1 | BL164: 1 | BM164: 1 | BN164: 1 | BO164: 1 | BP164: 1 | BQ164: 1 | BR164: 1 | BS164: 1 | BT164: 1 | BU164: 1 | BV164: 1 | BW164: 1 | BX164: 1 | BY164: 1 | BZ164: 1 | CA164: 1 | CB164: 1 | CC164: 1
A165: Mitchell (S) | B165: 1 | C165: 1 | D165: 1 | E165: 1 | F165: 1 | G165: 1 | H165: 1 | I165: 1 | J165: 1 | K165: 1 | L165: 1 | M165: 1 | N165: 1 | O165: 1 | P165: 1 | Q165: 1 | R165: 1 | S165: 1 | T165: 1 | U165: 1 | V165: 1 | W165: 1 | X165: =IF($B$1=2,IF($D279=0,X$106,1),1) -> 1 | Y165: 1 | Z165: 1 | AA165: 1 | AB165: 1 | AC165: 1 | AD165: 1 | AE165: 1 | AF165: 1 | AG165: 1 | AH165: 1 | AI165: 1 | AJ165: 1 | AK165: 1 | AL165: 1 | AM165: 1 | AN165: 1 | AO165: 1 | AP165: 1 | AQ165: 1 | AR165: 1 | AS165: 1 | AT165: =IF($B$1=2,IF($D279=0,AT$106,1),1) -> 1 | AU165: 1 | AV165: 1 | AW165: 1 | AX165: 1 | AY165: 1 | AZ165: 1 | BA165: 1 | BB165: 1 | BC165: 1 | BD165: 1 | BE165: 1 | BF165: 1 | BG165: 1 | BH165: 1 | BI165: 1 | BJ165: 1 | BK165: 1 | BL165: 1 | BM165: 1 | BN165: 1 | BO165: 1 | BP165: 1 | BQ165: 1 | BR165: 1 | BS165: 1 | BT165: 1 | BU165: 1 | BV165: 1 | BW165: 1 | BX165: 1 | BY165: 1 | BZ165: 1 | CA165: 1 | CB165: 1 | CC165: 1
A166: Moira (S) | B166: 1 | C166: 1 | D166: 1 | E166: 1 | F166: 1 | G166: 1 | H166: 1 | I166: 1 | J166: 1 | K166: 1 | L166: 1 | M166: 1 | N166: 1 | O166: 1 | P166: 1 | Q166: 1 | R166: 1 | S166: 1 | T166: 1 | U166: 1 | V166: 1 | W166: 1 | X166: =IF($B$1=2,IF($D280=0,X$106,1),1) -> 1 | Y166: 1 | Z166: 1 | AA166: 1 | AB166: 1 | AC166: 1 | AD166: 1 | AE166: 1 | AF166: 1 | AG166: 1 | AH166: 1 | AI166: 1 | AJ166: 1 | AK166: 1 | AL166: 1 | AM166: 1 | AN166: 1 | AO166: 1 | AP166: 1 | AQ166: 1 | AR166: 1 | AS166: 1 | AT166: =IF($B$1=2,IF($D280=0,AT$106,1),1) -> 1 | AU166: 1 | AV166: 1 | AW166: 1 | AX166: 1 | AY166: 1 | AZ166: 1 | BA166: 1 | BB166: 1 | BC166: 1 | BD166: 1 | BE166: 1 | BF166: 1 | BG166: 1 | BH166: 1 | BI166: 1 | BJ166: 1 | BK166: 1 | BL166: 1 | BM166: 1 | BN166: 1 | BO166: 1 | BP166: 1 | BQ166: 1 | BR166: 1 | BS166: 1 | BT166: 1 | BU166: 1 | BV166: 1 | BW166: 1 | BX166: 1 | BY166: 1 | BZ166: 1 | CA166: 1 | CB166: 1 | CC166: 1
A167: Moreland (C) | B167: 1 | C167: 1 | D167: 1 | E167: 1 | F167: 1 | G167: 1 | H167: 1 | I167: 1 | J167: 1 | K167: 1 | L167: 1 | M167: 1 | N167: 1 | O167: 1 | P167: 1 | Q167: 1 | R167: 1 | S167: 1 | T167: 1 | U167: 1 | V167: 1 | W167: 1 | X167: =IF($B$1=2,IF($D281=0,X$106,1),1) -> 1 | Y167: 1 | Z167: 1 | AA167: 1 | AB167: 1 | AC167: 1 | AD167: 1 | AE167: 1 | AF167: 1 | AG167: 1 | AH167: 1 | AI167: 1 | AJ167: 1 | AK167: 1 | AL167: 1 | AM167: 1 | AN167: 1 | AO167: 1 | AP167: 1 | AQ167: 1 | AR167: 1 | AS167: 1 | AT167: =IF($B$1=2,IF($D281=0,AT$106,1),1) -> 1 | AU167: 1 | AV167: 1 | AW167: 1 | AX167: 1 | AY167: 1 | AZ167: 1 | BA167: 1 | BB167: 1 | BC167: 1 | BD167: 1 | BE167: 1 | BF167: 1 | BG167: 1 | BH167: 1 | BI167: 1 | BJ167: 1 | BK167: 1 | BL167: 1 | BM167: 1 | BN167: 1 | BO167: 1 | BP167: 1 | BQ167: 1 | BR167: 1 | BS167: 1 | BT167: 1 | BU167: 1 | BV167: 1 | BW167: 1 | BX167: 1 | BY167: 1 | BZ167: 1 | CA167: 1 | CB167: 1 | CC167: 1
A168: Mornington Peninsula (S) | B168: 1 | C168: 1 | D168: 1 | E168: 1 | F168: 1 | G168: 1 | H168: 1 | I168: 1 | J168: 1 | K168: 1 | L168: 1 | M168: 1 | N168: 1 | O168: 1 | P168: 1 | Q168: 1 | R168: 1 | S168: 1 | T168: 1 | U168: 1 | V168: 1 | W168: 1 | X168: =IF($B$1=2,IF($D282=0,X$106,1),1) -> 1 | Y168: 1 | Z168: 1 | AA168: 1 | AB168: 1 | AC168: 1 | AD168: 1 | AE168: 1 | AF168: 1 | AG168: 1 | AH168: 1 | AI168: 1 | AJ168: 1 | AK168: 1 | AL168: 1 | AM168: 1 | AN168: 1 | AO168: 1 | AP168: 1 | AQ168: 1 | AR168: 1 | AS168: 1 | AT168: =IF($B$1=2,IF($D282=0,AT$106,1),1) -> 1 | AU168: 1 | AV168: 1 | AW168: 1 | AX168: 1 | AY168: 1 | AZ168: 1 | BA168: 1 | BB168: 1 | BC168: 1 | BD168: 1 | BE168: 1 | BF168: 1 | BG168: 1 | BH168: 1 | BI168: 1 | BJ168: 1 | BK168: 1 | BL168: 1 | BM168: 1 | BN168: 1 | BO168: 1 | BP168: 1 | BQ168: 1 | BR168: 1 | BS168: 1 | BT168: 1 | BU168: 1 | BV168: 1 | BW168: 1 | BX168: 1 | BY168: 1 | BZ168: 1 | CA168: 1 | CB168: 1 | CC168: 1
A169: Murray (A) | B169: 1 | C169: 1 | D169: 1 | E169: 1 | F169: 1 | G169: 1 | H169: 1 | I169: 1 | J169: 1 | K169: 1 | L169: 1 | M169: 1 | N169: 1 | O169: 1 | P169: 1 | Q169: 1 | R169: 1 | S169: 1 | T169: 1 | U169: 1 | V169: 1 | W169: 1 | X169: =IF($B$1=2,IF($D283=0,X$106,1),1) -> 1 | Y169: 1 | Z169: 1 | AA169: 1 | AB169: 1 | AC169: 1 | AD169: 1 | AE169: 1 | AF169: 1 | AG169: 1 | AH169: 1 | AI169: 1 | AJ169: 1 | AK169: 1 | AL169: 1 | AM169: 1 | AN169: 1 | AO169: 1 | AP169: 1 | AQ169: 1 | AR169: 1 | AS169: 1 | AT169: =IF($B$1=2,IF($D283=0,AT$106,1),1) -> 1 | AU169: 1 | AV169: 1 | AW169: 1 | AX169: 1 | AY169: 1 | AZ169: 1 | BA169: 1 | BB169: 1 | BC169: 1 | BD169: 1 | BE169: 1 | BF169: 1 | BG169: 1 | BH169: 1 | BI169: 1 | BJ169: 1 | BK169: 1 | BL169: 1 | BM169: 1 | BN169: 1 | BO169: 1 | BP169: 1 | BQ169: 1 | BR169: 1 | BS169: 1 | BT169: 1 | BU169: 1 | BV169: 1 | BW169: 1 | BX169: 1 | BY169: 1 | BZ169: 1 | CA169: 1 | CB169: 1 | CC169: 1
A170: Nillumbik (S) | B170: 1 | C170: 1 | D170: 1 | E170: 1 | F170: 1 | G170: 1 | H170: 1 | I170: 1 | J170: 1 | K170: 1 | L170: 1 | M170: 1 | N170: 1 | O170: 1 | P170: 1 | Q170: 1 | R170: 1 | S170: 1 | T170: 1 | U170: 1 | V170: 1 | W170: 1 | X170: =IF($B$1=2,IF($D284=0,X$106,1),1) -> 1 | Y170: 1 | Z170: 1 | AA170: 1 | AB170: 1 | AC170: 1 | AD170: 1 | AE170: 1 | AF170: 1 | AG170: 1 | AH170: 1 | AI170: 1 | AJ170: 1 | AK170: 1 | AL170: 1 | AM170: 1 | AN170: 1 | AO170: 1 | AP170: 1 | AQ170: 1 | AR170: 1 | AS170: 1 | AT170: =IF($B$1=2,IF($D284=0,AT$106,1),1) -> 1 | AU170: 1 | AV170: 1 | AW170: 1 | AX170: 1 | AY170: 1 | AZ170: 1 | BA170: 1 | BB170: 1 | BC170: 1 | BD170: 1 | BE170: 1 | BF170: 1 | BG170: 1 | BH170: 1 | BI170: 1 | BJ170: 1 | BK170: 1 | BL170: 1 | BM170: 1 | BN170: 1 | BO170: 1 | BP170: 1 | BQ170: 1 | BR170: 1 | BS170: 1 | BT170: 1 | BU170: 1 | BV170: 1 | BW170: 1 | BX170: 1 | BY170: 1 | BZ170: 1 | CA170: 1 | CB170: 1 | CC170: 1
A171: Strathbogie (S) | B171: 1 | C171: 1 | D171: 1 | E171: 1 | F171: 1 | G171: 1 | H171: 1 | I171: 1 | J171: 1 | K171: 1 | L171: 1 | M171: 1 | N171: 1 | O171: 1 | P171: 1 | Q171: 1 | R171: 1 | S171: 1 | T171: 1 | U171: 1 | V171: 1 | W171: 1 | X171: =IF($B$1=2,IF($D285=0,X$106,1),1) -> 1 | Y171: 1 | Z171: 1 | AA171: 1 | AB171: 1 | AC171: 1 | AD171: 1 | AE171: 1 | AF171: 1 | AG171: 1 | AH171: 1 | AI171: 1 | AJ171: 1 | AK171: 1 | AL171: 1 | AM171: 1 | AN171: 1 | AO171: 1 | AP171: 1 | AQ171: 1 | AR171: 1 | AS171: 1 | AT171: =IF($B$1=2,IF($D285=0,AT$106,1),1) -> 1 | AU171: 1 | AV171: 1 | AW171: 1 | AX171: 1 | AY171: 1 | AZ171: 1 | BA171: 1 | BB171: 1 | BC171: 1 | BD171: 1 | BE171: 1 | BF171: 1 | BG171: 1 | BH171: 1 | BI171: 1 | BJ171: 1 | BK171: 1 | BL171: 1 | BM171: 1 | BN171: 1 | BO171: 1 | BP171: 1 | BQ171: 1 | BR171: 1 | BS171: 1 | BT171: 1 | BU171: 1 | BV171: 1 | BW171: 1 | BX171: 1 | BY171: 1 | BZ171: 1 | CA171: 1 | CB171: 1 | CC171: 1
A172: Wangaratta (RC) | B172: 1 | C172: 1 | D172: 1 | E172: 1 | F172: 1 | G172: 1 | H172: 1 | I172: 1 | J172: 1 | K172: 1 | L172: 1 | M172: 1 | N172: 1 | O172: 1 | P172: 1 | Q172: 1 | R172: 1 | S172: 1 | T172: 1 | U172: 1 | V172: 1 | W172: 1 | X172: =IF($B$1=2,IF($D286=0,X$106,1),1) -> 1 | Y172: 1 | Z172: 1 | AA172: 1 | AB172: 1 | AC172: 1 | AD172: 1 | AE172: 1 | AF172: 1 | AG172: 1 | AH172: 1 | AI172: 1 | AJ172: 1 | AK172: 1 | AL172: 1 | AM172: 1 | AN172: 1 | AO172: 1 | AP172: 1 | AQ172: 1 | AR172: 1 | AS172: 1 | AT172: =IF($B$1=2,IF($D286=0,AT$106,1),1) -> 1 | AU172: 1 | AV172: 1 | AW172: 1 | AX172: 1 | AY172: 1 | AZ172: 1 | BA172: 1 | BB172: 1 | BC172: 1 | BD172: 1 | BE172: 1 | BF172: 1 | BG172: 1 | BH172: 1 | BI172: 1 | BJ172: 1 | BK172: 1 | BL172: 1 | BM172: 1 | BN172: 1 | BO172: 1 | BP172: 1 | BQ172: 1 | BR172: 1 | BS172: 1 | BT172: 1 | BU172: 1 | BV172: 1 | BW172: 1 | BX172: 1 | BY172: 1 | BZ172: 1 | CA172: 1 | CB172: 1 | CC172: 1
A173: Wellington (S) | B173: 1 | C173: 1 | D173: 1 | E173: 1 | F173: 1 | G173: 1 | H173: 1 | I173: 1 | J173: 1 | K173: 1 | L173: 1 | M173: 1 | N173: 1 | O173: 1 | P173: 1 | Q173: 1 | R173: 1 | S173: 1 | T173: 1 | U173: 1 | V173: 1 | W173: 1 | X173: =IF($B$1=2,IF($D287=0,X$106,1),1) -> 1 | Y173: 1 | Z173: 1 | AA173: 1 | AB173: 1 | AC173: 1 | AD173: 1 | AE173: 1 | AF173: 1 | AG173: 1 | AH173: 1 | AI173: 1 | AJ173: 1 | AK173: 1 | AL173: 1 | AM173: 1 | AN173: 1 | AO173: 1 | AP173: 1 | AQ173: 1 | AR173: 1 | AS173: 1 | AT173: =IF($B$1=2,IF($D287=0,AT$106,1),1) -> 1 | AU173: 1 | AV173: 1 | AW173: 1 | AX173: 1 | AY173: 1 | AZ173: 1 | BA173: 1 | BB173: 1 | BC173: 1 | BD173: 1 | BE173: 1 | BF173: 1 | BG173: 1 | BH173: 1 | BI173: 1 | BJ173: 1 | BK173: 1 | BL173: 1 | BM173: 1 | BN173: 1 | BO173: 1 | BP173: 1 | BQ173: 1 | BR173: 1 | BS173: 1 | BT173: 1 | BU173: 1 | BV173: 1 | BW173: 1 | BX173: 1 | BY173: 1 | BZ173: 1 | CA173: 1 | CB173: 1 | CC173: 1
A174: Whittlesea (C) | B174: 1 | C174: 1 | D174: 1 | E174: 1 | F174: 1 | G174: 1 | H174: 1 | I174: 1 | J174: 1 | K174: 1 | L174: 1 | M174: 1 | N174: 1 | O174: 1 | P174: 1 | Q174: 1 | R174: 1 | S174: 1 | T174: 1 | U174: 1 | V174: 1 | W174: 1 | X174: =IF($B$1=2,IF($D288=0,X$106,1),1) -> 1 | Y174: 1 | Z174: 1 | AA174: 1 | AB174: 1 | AC174: 1 | AD174: 1 | AE174: 1 | AF174: 1 | AG174: 1 | AH174: 1 | AI174: 1 | AJ174: 1 | AK174: 1 | AL174: 1 | AM174: 1 | AN174: 1 | AO174: 1 | AP174: 1 | AQ174: 1 | AR174: 1 | AS174: 1 | AT174: =IF($B$1=2,IF($D288=0,AT$106,1),1) -> 1 | AU174: 1 | AV174: 1 | AW174: 1 | AX174: 1 | AY174: 1 | AZ174: 1 | BA174: 1 | BB174: 1 | BC174: 1 | BD174: 1 | BE174: 1 | BF174: 1 | BG174: 1 | BH174: 1 | BI174: 1 | BJ174: 1 | BK174: 1 | BL174: 1 | BM174: 1 | BN174: 1 | BO174: 1 | BP174: 1 | BQ174: 1 | BR174: 1 | BS174: 1 | BT174: 1 | BU174: 1 | BV174: 1 | BW174: 1 | BX174: 1 | BY174: 1 | BZ174: 1 | CA174: 1 | CB174: 1 | CC174: 1
A175: Wodonga (RC) | B175: 1 | C175: 1 | D175: 1 | E175: 1 | F175: 1 | G175: 1 | H175: 1 | I175: 1 | J175: 1 | K175: 1 | L175: 1 | M175: 1 | N175: 1 | O175: 1 | P175: 1 | Q175: 1 | R175: 1 | S175: 1 | T175: 1 | U175: 1 | V175: 1 | W175: 1 | X175: =IF($B$1=2,IF($D289=0,X$106,1),1) -> 1 | Y175: 1 | Z175: 1 | AA175: 1 | AB175: 1 | AC175: 1 | AD175: 1 | AE175: 1 | AF175: 1 | AG175: 1 | AH175: 1 | AI175: 1 | AJ175: 1 | AK175: 1 | AL175: 1 | AM175: 1 | AN175: 1 | AO175: 1 | AP175: 1 | AQ175: 1 | AR175: 1 | AS175: 1 | AT175: =IF($B$1=2,IF($D289=0,AT$106,1),1) -> 1 | AU175: 1 | AV175: 1 | AW175: 1 | AX175: 1 | AY175: 1 | AZ175: 1 | BA175: 1 | BB175: 1 | BC175: 1 | BD175: 1 | BE175: 1 | BF175: 1 | BG175: 1 | BH175: 1 | BI175: 1 | BJ175: 1 | BK175: 1 | BL175: 1 | BM175: 1 | BN175: 1 | BO175: 1 | BP175: 1 | BQ175: 1 | BR175: 1 | BS175: 1 | BT175: 1 | BU175: 1 | BV175: 1 | BW175: 1 | BX175: 1 | BY175: 1 | BZ175: 1 | CA175: 1 | CB175: 1 | CC175: 1
A176: Yarra (C) | B176: 1 | C176: 1 | D176: 1 | E176: 1 | F176: 1 | G176: 1 | H176: 1 | I176: 1 | J176: 1 | K176: 1 | L176: 1 | M176: 1 | N176: 1 | O176: 1 | P176: 1 | Q176: 1 | R176: 1 | S176: 1 | T176: 1 | U176: 1 | V176: 1 | W176: 1 | X176: =IF($B$1=2,IF($D290=0,X$106,1),1) -> 1 | Y176: 1 | Z176: 1 | AA176: 1 | AB176: 1 | AC176: 1 | AD176: 1 | AE176: 1 | AF176: 1 | AG176: 1 | AH176: 1 | AI176: 1 | AJ176: 1 | AK176: 1 | AL176: 1 | AM176: 1 | AN176: 1 | AO176: 1 | AP176: 1 | AQ176: 1 | AR176: 1 | AS176: 1 | AT176: =IF($B$1=2,IF($D290=0,AT$106,1),1) -> 1 | AU176: 1 | AV176: 1 | AW176: 1 | AX176: 1 | AY176: 1 | AZ176: 1 | BA176: 1 | BB176: 1 | BC176: 1 | BD176: 1 | BE176: 1 | BF176: 1 | BG176: 1 | BH176: 1 | BI176: 1 | BJ176: 1 | BK176: 1 | BL176: 1 | BM176: 1 | BN176: 1 | BO176: 1 | BP176: 1 | BQ176: 1 | BR176: 1 | BS176: 1 | BT176: 1 | BU176: 1 | BV176: 1 | BW176: 1 | BX176: 1 | BY176: 1 | BZ176: 1 | CA176: 1 | CB176: 1 | CC176: 1
A177: Yarra Ranges (S) | B177: 1 | C177: 1 | D177: 1 | E177: 1 | F177: 1 | G177: 1 | H177: 1 | I177: 1 | J177: 1 | K177: 1 | L177: 1 | M177: 1 | N177: 1 | O177: 1 | P177: 1 | Q177: 1 | R177: 1 | S177: 1 | T177: 1 | U177: 1 | V177: 1 | W177: 1 | X177: =IF($B$1=2,IF($D291=0,X$106,1),1) -> 1 | Y177: 1 | Z177: 1 | AA177: 1 | AB177: 1 | AC177: 1 | AD177: 1 | AE177: 1 | AF177: 1 | AG177: 1 | AH177: 1 | AI177: 1 | AJ177: 1 | AK177: 1 | AL177: 1 | AM177: 1 | AN177: 1 | AO177: 1 | AP177: 1 | AQ177: 1 | AR177: 1 | AS177: 1 | AT177: =IF($B$1=2,IF($D291=0,AT$106,1),1) -> 1 | AU177: 1 | AV177: 1 | AW177: 1 | AX177: 1 | AY177: 1 | AZ177: 1 | BA177: 1 | BB177: 1 | BC177: 1 | BD177: 1 | BE177: 1 | BF177: 1 | BG177: 1 | BH177: 1 | BI177: 1 | BJ177: 1 | BK177: 1 | BL177: 1 | BM177: 1 | BN177: 1 | BO177: 1 | BP177: 1 | BQ177: 1 | BR177: 1 | BS177: 1 | BT177: 1 | BU177: 1 | BV177: 1 | BW177: 1 | BX177: 1 | BY177: 1 | BZ177: 1 | CA177: 1 | CB177: 1 | CC177: 1
A179: Scenario 1 | L179: =IF($B$1=1,1,0) -> 1 | M179: =IF($B$1=1,1,0) -> 1 | N179: =IF($B$1=1,1,0) -> 1 | O179: 1 | P179: 1 | Q179: 1 | R179: 1 | S179: 1 | T179: 1 | U179: 1 | V179: 1 | W179: 1 | X179: 1 | Y179: 1 | Z179: 1 | AA179: 1 | AB179: 1 | AC179: 1 | AD179: 1 | AE179: 1 | AF179: 1 | AG179: 1 | AH179: 1 | AI179: 1 | AJ179: 1 | AK179: 1 | AL179: 1 | AM179: 1 | AN179: 1 | AO179: 1 | AP179: 1 | AQ179: 1 | AR179: 1 | AS179: 1 | AT179: 1 | AU179: 1 | AV179: 1 | AW179: 1 | AX179: 1 | AY179: 1 | AZ179: 1 | BA179: 1 | BB179: 1 | BC179: 1 | BD179: 1 | BE179: 1 | BF179: 1 | BG179: 1 | BH179: 1 | BI179: 1 | BJ179: 1 | BK179: 1 | BL179: 1 | BM179: 1 | BN179: 1 | BO179: 1 | BP179: 1 | BQ179: 1 | BR179: 1 | BS179: 1 | BT179: 1 | BU179: 1 | BV179: 1 | BW179: 1 | BX179: 1 | BY179: 1 | BZ179: =IF($B$1=1,1,0) -> 1 | CA179: 1 | CB179: 1 | CC179: 1
A180: Scenario 2
A181: Scenario 3
A182: Scenario 4
A183: Baseline 5 | L183: 0 | M183: 0 | N183: 0 | O183: 0 | P183: 0 | Q183: 0 | R183: 0 | S183: 0 | T183: 0 | U183: 0 | V183: 0 | W183: 0 | X183: 0 | Y183: 0 | Z183: 0 | AA183: 0 | AB183: 0 | AC183: 0 | AD183: 0 | AE183: 0 | AF183: 0 | AG183: 0 | AH183: 0 | AI183: 0 | AJ183: 0 | AK183: 0 | AL183: 0 | AM183: 0 | AN183: 0 | AO183: 0 | AP183: 0 | AQ183: 0 | AR183: 0 | AS183: 0 | AT183: 0 | AU183: 0 | AV183: 0 | AW183: 0 | AX183: 0 | AY183: 0 | AZ183: 0 | BA183: 0 | BB183: 0 | BC183: 0 | BD183: 0 | BE183: 0 | BF183: 0 | BG183: 0 | BH183: 0 | BI183: 0 | BJ183: 0 | BK183: 0 | BL183: 0 | BM183: 0 | BN183: 0 | BO183: 0 | BP183: 0 | BQ183: 0 | BR183: 0 | BS183: 0 | BT183: 0 | BU183: 0 | BV183: 0 | BW183: 0 | BX183: 0 | BY183: 0 | BZ183: 0 | CA183: 0 | CB183: 0 | CC183: 0
A185: Residential Network No new connections | U185: 0.1 | V185: =U185+0.1 -> 0.2 | W185: =V185+0.1 -> 0.3 | X185: 0.4 | Y185: 0.5 | Z185: 0.6 | AA185: 0.7 | AB185: 0.8 | AC185: 0.9 | AD185: 1 | AE185: =AD185 -> 1 | AF185: =AE185 -> 1 | AG185: 1 | AH185: 1 | AI185: 1 | AJ185: 1 | AK185: 1 | AL185: 1 | AM185: 1 | AN185: 1 | AO185: 1 | AP185: 1 | AQ185: 1 | AR185: 1 | AS185: 1 | AT185: 1 | AU185: 1 | AV185: 1 | AW185: 1 | AX185: 1 | AY185: 1 | AZ185: 1 | BA185: 1 | BB185: 1 | BC185: 1 | BD185: 1 | BE185: 1 | BF185: 1 | BG185: 1 | BH185: 1 | BI185: 1 | BJ185: 1 | BK185: 1 | BL185: 1 | BM185: 1 | BN185: 1 | BO185: 1 | BP185: 1 | BQ185: 1 | BR185: 1 | BS185: 1 | BT185: 1 | BU185: 1 | BV185: 1 | BW185: 1 | BX185: 1 | BY185: 1 | BZ185: 1 | CA185: 1 | CB185: 1 | CC185: 1
A186: LGA | B186: 2021 | C186: =B186+1 -> 2022 | D186: =C186+1 -> 2023 | E186: 2024 | F186: 2025 | G186: 2026 | H186: 2027 | I186: 2028 | J186: 2029 | K186: 2030 | L186: 2031 | M186: 2032 | N186: 2033 | O186: 2034 | P186: 2035 | Q186: 2036 | R186: 2037 | S186: 2038 | T186: 2039 | U186: 2040 | V186: 2041 | W186: 2042 | X186: 2043 | Y186: 2044 | Z186: 2045 | AA186: 2046 | AB186: 2047 | AC186: 2048 | AD186: 2049 | AE186: 2050 | AF186: 2051 | AG186: 2052 | AH186: 2053 | AI186: 2054 | AJ186: 2055 | AK186: 2056 | AL186: 2057 | AM186: 2058 | AN186: 2059 | AO186: 2060 | AP186: 2061 | AQ186: 2062 | AR186: 2063 | AS186: 2064 | AT186: 2065 | AU186: 2066 | AV186: 2067 | AW186: 2068 | AX186: 2069 | AY186: 2070 | AZ186: 2071 | BA186: 2072 | BB186: 2073 | BC186: 2074 | BD186: 2075 | BE186: 2076 | BF186: 2077 | BG186: 2078 | BH186: 2079 | BI186: 2080 | BJ186: 2081 | BK186: 2082 | BL186: 2083 | BM186: 2084 | BN186: 2085 | BO186: 2086 | BP186: =BO186+1 -> 2087 | BQ186: 2088 | BR186: 2089 | BS186: 2090 | BT186: 2091 | BU186: 2092 | BV186: 2093 | BW186: 2094 | BX186: 2095 | BY186: 2096 | BZ186: 2097 | CA186: 2098 | CB186: 2099 | CC186: 2100
A187: Albury (C) | B187: 0 | C187: 0 | D187: 0 | E187: 0 | F187: 0 | G187: 0 | H187: 0 | I187: 0 | J187: 0 | K187: 0 | L187: =L$179 -> 1 | M187: =M$179 -> 1 | N187: 1 | O187: 1 | P187: 1 | Q187: 1 | R187: 1 | S187: 1 | T187: 1 | U187: =IF($B$1=2,$C259*U$185,U$179) -> 1 | V187: =IF($B$1=2,$C259*V$185,V$179) -> 1 | W187: 1 | X187: 1 | Y187: 1 | Z187: =IF($B$1=2,$C259*Z$185,Z$179) -> 1 | AA187: 1 | AB187: 1 | AC187: 1 | AD187: 1 | AE187: 1 | AF187: 1 | AG187: 1 | AH187: 1 | AI187: 1 | AJ187: 1 | AK187: 1 | AL187: 1 | AM187: 1 | AN187: 1 | AO187: 1 | AP187: 1 | AQ187: 1 | AR187: 1 | AS187: 1 | AT187: 1 | AU187: 1 | AV187: 1 | AW187: 1 | AX187: 1 | AY187: 1 | AZ187: 1 | BA187: 1 | BB187: 1 | BC187: 1 | BD187: 1 | BE187: 1 | BF187: 1 | BG187: 1 | BH187: 1 | BI187: 1 | BJ187: 1 | BK187: 1 | BL187: 1 | BM187: 1 | BN187: 1 | BO187: 1 | BP187: 1 | BQ187: 1 | BR187: 1 | BS187: 1 | BT187: 1 | BU187: 1 | BV187: 1 | BW187: 1 | BX187: 1 | BY187: 1 | BZ187: 1 | CA187: 1 | CB187: 1 | CC187: 1
A188: Banyule (C) | B188: 0 | C188: 0 | D188: 0 | E188: 0 | F188: 0 | G188: 0 | H188: 0 | I188: 0 | J188: 0 | K188: 0 | L188: =L$179 -> 1 | M188: 1 | N188: 1 | O188: 1 | P188: 1 | Q188: 1 | R188: 1 | S188: 1 | T188: 1 | U188: =IF($B$1=2,$C260*U$185,U$179) -> 1 | V188: 1 | W188: 1 | X188: 1 | Y188: =IF($B$1=2,$C260*Y$185,Y$179) -> 1 | Z188: 1 | AA188: 1 | AB188: 1 | AC188: 1 | AD188: 1 | AE188: 1 | AF188: 1 | AG188: 1 | AH188: 1 | AI188: 1 | AJ188: 1 | AK188: 1 | AL188: 1 | AM188: 1 | AN188: 1 | AO188: 1 | AP188: 1 | AQ188: 1 | AR188: 1 | AS188: 1 | AT188: 1 | AU188: 1 | AV188: 1 | AW188: 1 | AX188: 1 | AY188: 1 | AZ188: 1 | BA188: 1 | BB188: 1 | BC188: 1 | BD188: 1 | BE188: 1 | BF188: 1 | BG188: 1 | BH188: 1 | BI188: 1 | BJ188: 1 | BK188: 1 | BL188: 1 | BM188: 1 | BN188: 1 | BO188: 1 | BP188: 1 | BQ188: 1 | BR188: 1 | BS188: 1 | BT188: 1 | BU188: 1 | BV188: 1 | BW188: 1 | BX188: 1 | BY188: 1 | BZ188: 1 | CA188: 1 | CB188: 1 | CC188: 1
A189: Baw Baw (S) | B189: 0 | C189: 0 | D189: 0 | E189: 0 | F189: 0 | G189: 0 | H189: 0 | I189: 0 | J189: 0 | K189: 0 | L189: 1 | M189: =M$179 -> 1 | N189: 1 | O189: 1 | P189: 1 | Q189: 1 | R189: 1 | S189: 1 | T189: 1 | U189: 1 | V189: 1 | W189: 1 | X189: 1 | Y189: =IF($B$1=2,$C261*Y$185,Y$179) -> 1 | Z189: 1 | AA189: 1 | AB189: 1 | AC189: 1 | AD189: 1 | AE189: 1 | AF189: 1 | AG189: 1 | AH189: 1 | AI189: 1 | AJ189: 1 | AK189: 1 | AL189: 1 | AM189: 1 | AN189: 1 | AO189: 1 | AP189: 1 | AQ189: 1 | AR189: 1 | AS189: 1 | AT189: 1 | AU189: 1 | AV189: 1 | AW189: 1 | AX189: 1 | AY189: 1 | AZ189: 1 | BA189: 1 | BB189: 1 | BC189: 1 | BD189: 1 | BE189: 1 | BF189: 1 | BG189: 1 | BH189: 1 | BI189: 1 | BJ189: 1 | BK189: 1 | BL189: 1 | BM189: 1 | BN189: 1 | BO189: 1 | BP189: 1 | BQ189: 1 | BR189: 1 | BS189: 1 | BT189: 1 | BU189: 1 | BV189: 1 | BW189: 1 | BX189: 1 | BY189: 1 | BZ189: 1 | CA189: 1 | CB189: 1 | CC189: 1
A190: Benalla (RC) | B190: 0 | C190: 0 | D190: 0 | E190: 0 | F190: 0 | G190: 0 | H190: 0 | I190: 0 | J190: 0 | K190: 0 | L190: 1 | M190: 1 | N190: 1 | O190: 1 | P190: 1 | Q190: 1 | R190: 1 | S190: 1 | T190: 1 | U190: 1 | V190: 1 | W190: 1 | X190: 1 | Y190: =IF($B$1=2,$C262*Y$185,Y$179) -> 1 | Z190: 1 | AA190: 1 | AB190: 1 | AC190: 1 | AD190: 1 | AE190: 1 | AF190: 1 | AG190: 1 | AH190: 1 | AI190: 1 | AJ190: 1 | AK190: 1 | AL190: 1 | AM190: 1 | AN190: 1 | AO190: 1 | AP190: 1 | AQ190: 1 | AR190: 1 | AS190: 1 | AT190: 1 | AU190: 1 | AV190: 1 | AW190: 1 | AX190: 1 | AY190: 1 | AZ190: 1 | BA190: 1 | BB190: 1 | BC190: 1 | BD190: 1 | BE190: 1 | BF190: 1 | BG190: 1 | BH190: 1 | BI190: 1 | BJ190: 1 | BK190: 1 | BL190: 1 | BM190: 1 | BN190: 1 | BO190: 1 | BP190: 1 | BQ190: 1 | BR190: 1 | BS190: 1 | BT190: 1 | BU190: 1 | BV190: 1 | BW190: 1 | BX190: 1 | BY190: 1 | BZ190: 1 | CA190: 1 | CB190: 1 | CC190: 1
A191: Berrigan (A) | B191: 0 | C191: 0 | D191: 0 | E191: 0 | F191: 0 | G191: 0 | H191: 0 | I191: 0 | J191: 0 | K191: 0 | L191: 1 | M191: 1 | N191: 1 | O191: 1 | P191: 1 | Q191: 1 | R191: 1 | S191: 1 | T191: 1 | U191: 1 | V191: 1 | W191: 1 | X191: 1 | Y191: =IF($B$1=2,$C263*Y$185,Y$179) -> 1 | Z191: 1 | AA191: 1 | AB191: 1 | AC191: 1 | AD191: 1 | AE191: 1 | AF191: 1 | AG191: 1 | AH191: 1 | AI191: 1 | AJ191: 1 | AK191: 1 | AL191: 1 | AM191: 1 | AN191: 1 | AO191: 1 | AP191: 1 | AQ191: 1 | AR191: 1 | AS191: 1 | AT191: 1 | AU191: 1 | AV191: 1 | AW191: 1 | AX191: 1 | AY191: 1 | AZ191: 1 | BA191: 1 | BB191: 1 | BC191: 1 | BD191: 1 | BE191: 1 | BF191: 1 | BG191: 1 | BH191: 1 | BI191: 1 | BJ191: 1 | BK191: 1 | BL191: 1 | BM191: 1 | BN191: 1 | BO191: 1 | BP191: 1 | BQ191: 1 | BR191: 1 | BS191: 1 | BT191: 1 | BU191: 1 | BV191: 1 | BW191: 1 | BX191: 1 | BY191: 1 | BZ191: 1 | CA191: 1 | CB191: 1 | CC191: 1
A192: Campaspe (S) | B192: 0 | C192: 0 | D192: 0 | E192: 0 | F192: 0 | G192: 0 | H192: 0 | I192: 0 | J192: 0 | K192: 0 | L192: 1 | M192: 1 | N192: 1 | O192: 1 | P192: 1 | Q192: 1 | R192: 1 | S192: 1 | T192: 1 | U192: 1 | V192: 1 | W192: 1 | X192: 1 | Y192: =IF($B$1=2,$C264*Y$185,Y$179) -> 1 | Z192: 1 | AA192: 1 | AB192: 1 | AC192: 1 | AD192: 1 | AE192: 1 | AF192: 1 | AG192: 1 | AH192: 1 | AI192: 1 | AJ192: 1 | AK192: 1 | AL192: 1 | AM192: 1 | AN192: 1 | AO192: 1 | AP192: 1 | AQ192: 1 | AR192: 1 | AS192: 1 | AT192: 1 | AU192: 1 | AV192: 1 | AW192: 1 | AX192: 1 | AY192: 1 | AZ192: 1 | BA192: 1 | BB192: 1 | BC192: 1 | BD192: 1 | BE192: 1 | BF192: 1 | BG192: 1 | BH192: 1 | BI192: 1 | BJ192: 1 | BK192: 1 | BL192: 1 | BM192: 1 | BN192: 1 | BO192: 1 | BP192: 1 | BQ192: 1 | BR192: 1 | BS192: 1 | BT192: 1 | BU192: 1 | BV192: 1 | BW192: 1 | BX192: 1 | BY192: 1 | BZ192: 1 | CA192: 1 | CB192: 1 | CC192: 1
A193: Cardinia (S) | B193: 0 | C193: 0 | D193: 0 | E193: 0 | F193: 0 | G193: 0 | H193: 0 | I193: 0 | J193: 0 | K193: 0 | L193: 1 | M193: =M$179 -> 1 | N193: 1 | O193: 1 | P193: 1 | Q193: 1 | R193: 1 | S193: 1 | T193: 1 | U193: 1 | V193: 1 | W193: 1 | X193: 1 | Y193: =IF($B$1=2,$C265*Y$185,Y$179) -> 1 | Z193: 1 | AA193: 1 | AB193: 1 | AC193: 1 | AD193: 1 | AE193: 1 | AF193: 1 | AG193: 1 | AH193: 1 | AI193: 1 | AJ193: 1 | AK193: 1 | AL193: 1 | AM193: 1 | AN193: 1 | AO193: 1 | AP193: 1 | AQ193: 1 | AR193: 1 | AS193: 1 | AT193: 1 | AU193: 1 | AV193: 1 | AW193: 1 | AX193: 1 | AY193: 1 | AZ193: 1 | BA193: 1 | BB193: 1 | BC193: 1 | BD193: 1 | BE193: 1 | BF193: 1 | BG193: 1 | BH193: 1 | BI193: 1 | BJ193: 1 | BK193: 1 | BL193: 1 | BM193: 1 | BN193: 1 | BO193: 1 | BP193: 1 | BQ193: 1 | BR193: 1 | BS193: 1 | BT193: 1 | BU193: 1 | BV193: 1 | BW193: 1 | BX193: 1 | BY193: 1 | BZ193: 1 | CA193: 1 | CB193: 1 | CC193: 1
A194: Casey (C) | B194: 0 | C194: 0 | D194: 0 | E194: 0 | F194: 0 | G194: 0 | H194: 0 | I194: 0 | J194: 0 | K194: 0 | L194: 1 | M194: 1 | N194: 1 | O194: 1 | P194: 1 | Q194: 1 | R194: 1 | S194: 1 | T194: 1 | U194: 1 | V194: 1 | W194: 1 | X194: 1 | Y194: =IF($B$1=2,$C266*Y$185,Y$179) -> 1 | Z194: 1 | AA194: 1 | AB194: 1 | AC194: 1 | AD194: 1 | AE194: 1 | AF194: 1 | AG194: 1 | AH194: 1 | AI194: 1 | AJ194: 1 | AK194: 1 | AL194: 1 | AM194: 1 | AN194: 1 | AO194: 1 | AP194: 1 | AQ194: 1 | AR194: 1 | AS194: 1 | AT194: 1 | AU194: 1 | AV194: 1 | AW194: 1 | AX194: 1 | AY194: 1 | AZ194: 1 | BA194: 1 | BB194: 1 | BC194: 1 | BD194: 1 | BE194: 1 | BF194: 1 | BG194: 1 | BH194: 1 | BI194: 1 | BJ194: 1 | BK194: 1 | BL194: 1 | BM194: 1 | BN194: 1 | BO194: 1 | BP194: 1 | BQ194: 1 | BR194: 1 | BS194: 1 | BT194: 1 | BU194: 1 | BV194: 1 | BW194: 1 | BX194: 1 | BY194: 1 | BZ194: 1 | CA194: 1 | CB194: 1 | CC194: 1
A195: Corowa Shire (A) | B195: 0 | C195: 0 | D195: 0 | E195: 0 | F195: 0 | G195: 0 | H195: 0 | I195: 0 | J195: 0 | K195: 0 | L195: 1 | M195: 1 | N195: 1 | O195: 1 | P195: 1 | Q195: 1 | R195: 1 | S195: 1 | T195: 1 | U195: 1 | V195: 1 | W195: 1 | X195: 1 | Y195: =IF($B$1=2,$C267*Y$185,Y$179) -> 1 | Z195: 1 | AA195: 1 | AB195: 1 | AC195: 1 | AD195: 1 | AE195: 1 | AF195: 1 | AG195: 1 | AH195: 1 | AI195: 1 | AJ195: 1 | AK195: 1 | AL195: 1 | AM195: 1 | AN195: 1 | AO195: 1 | AP195: 1 | AQ195: 1 | AR195: 1 | AS195: 1 | AT195: 1 | AU195: 1 | AV195: 1 | AW195: 1 | AX195: 1 | AY195: 1 | AZ195: 1 | BA195: 1 | BB195: 1 | BC195: 1 | BD195: 1 | BE195: 1 | BF195: 1 | BG195: 1 | BH195: 1 | BI195: 1 | BJ195: 1 | BK195: 1 | BL195: 1 | BM195: 1 | BN195: 1 | BO195: 1 | BP195: 1 | BQ195: 1 | BR195: 1 | BS195: 1 | BT195: 1 | BU195: 1 | BV195: 1 | BW195: 1 | BX195: 1 | BY195: 1 | BZ195: 1 | CA195: 1 | CB195: 1 | CC195: 1
A196: Darebin (C) | B196: 0 | C196: 0 | D196: 0 | E196: 0 | F196: 0 | G196: 0 | H196: 0 | I196: 0 | J196: 0 | K196: 0 | L196: 1 | M196: 1 | N196: 1 | O196: 1 | P196: 1 | Q196: 1 | R196: 1 | S196: 1 | T196: 1 | U196: 1 | V196: 1 | W196: 1 | X196: 1 | Y196: =IF($B$1=2,$C268*Y$185,Y$179) -> 1 | Z196: 1 | AA196: 1 | AB196: 1 | AC196: 1 | AD196: 1 | AE196: 1 | AF196: 1 | AG196: 1 | AH196: 1 | AI196: 1 | AJ196: 1 | AK196: 1 | AL196: 1 | AM196: 1 | AN196: 1 | AO196: 1 | AP196: 1 | AQ196: 1 | AR196: 1 | AS196: 1 | AT196: 1 | AU196: 1 | AV196: 1 | AW196: 1 | AX196: 1 | AY196: 1 | AZ196: 1 | BA196: 1 | BB196: 1 | BC196: 1 | BD196: 1 | BE196: 1 | BF196: 1 | BG196: 1 | BH196: 1 | BI196: 1 | BJ196: 1 | BK196: 1 | BL196: 1 | BM196: 1 | BN196: 1 | BO196: 1 | BP196: 1 | BQ196: 1 | BR196: 1 | BS196: 1 | BT196: 1 | BU196: 1 | BV196: 1 | BW196: 1 | BX196: 1 | BY196: 1 | BZ196: 1 | CA196: 1 | CB196: 1 | CC196: 1
A197: East Gippsland (S) | B197: 0 | C197: 0 | D197: 0 | E197: 0 | F197: 0 | G197: 0 | H197: 0 | I197: 0 | J197: 0 | K197: 0 | L197: 1 | M197: =M$179 -> 1 | N197: 1 | O197: 1 | P197: 1 | Q197: 1 | R197: 1 | S197: 1 | T197: 1 | U197: 1 | V197: 1 | W197: 1 | X197: 1 | Y197: =IF($B$1=2,$C269*Y$185,Y$179) -> 1 | Z197: 1 | AA197: 1 | AB197: 1 | AC197: 1 | AD197: 1 | AE197: 1 | AF197: 1 | AG197: 1 | AH197: 1 | AI197: 1 | AJ197: 1 | AK197: 1 | AL197: 1 | AM197: 1 | AN197: 1 | AO197: 1 | AP197: 1 | AQ197: 1 | AR197: 1 | AS197: 1 | AT197: 1 | AU197: 1 | AV197: 1 | AW197: 1 | AX197: 1 | AY197: 1 | AZ197: 1 | BA197: 1 | BB197: 1 | BC197: 1 | BD197: 1 | BE197: 1 | BF197: 1 | BG197: 1 | BH197: 1 | BI197: 1 | BJ197: 1 | BK197: 1 | BL197: 1 | BM197: 1 | BN197: 1 | BO197: 1 | BP197: 1 | BQ197: 1 | BR197: 1 | BS197: 1 | BT197: 1 | BU197: 1 | BV197: 1 | BW197: 1 | BX197: 1 | BY197: 1 | BZ197: 1 | CA197: 1 | CB197: 1 | CC197: 1
A198: Frankston (C) | B198: 0 | C198: 0 | D198: 0 | E198: 0 | F198: 0 | G198: 0 | H198: 0 | I198: 0 | J198: 0 | K198: 0 | L198: 1 | M198: 1 | N198: 1 | O198: 1 | P198: 1 | Q198: 1 | R198: 1 | S198: 1 | T198: 1 | U198: 1 | V198: 1 | W198: 1 | X198: 1 | Y198: =IF($B$1=2,$C270*Y$185,Y$179) -> 1 | Z198: 1 | AA198: 1 | AB198: 1 | AC198: 1 | AD198: 1 | AE198: 1 | AF198: 1 | AG198: 1 | AH198: 1 | AI198: 1 | AJ198: 1 | AK198: 1 | AL198: 1 | AM198: 1 | AN198: 1 | AO198: 1 | AP198: 1 | AQ198: 1 | AR198: 1 | AS198: 1 | AT198: 1 | AU198: 1 | AV198: 1 | AW198: 1 | AX198: 1 | AY198: 1 | AZ198: 1 | BA198: 1 | BB198: 1 | BC198: 1 | BD198: 1 | BE198: 1 | BF198: 1 | BG198: 1 | BH198: 1 | BI198: 1 | BJ198: 1 | BK198: 1 | BL198: 1 | BM198: 1 | BN198: 1 | BO198: 1 | BP198: 1 | BQ198: 1 | BR198: 1 | BS198: 1 | BT198: 1 | BU198: 1 | BV198: 1 | BW198: 1 | BX198: 1 | BY198: 1 | BZ198: 1 | CA198: 1 | CB198: 1 | CC198: 1
A199: Greater Dandenong (C) | B199: 0 | C199: 0 | D199: 0 | E199: 0 | F199: 0 | G199: 0 | H199: 0 | I199: 0 | J199: 0 | K199: 0 | L199: 1 | M199: 1 | N199: 1 | O199: 1 | P199: 1 | Q199: 1 | R199: 1 | S199: 1 | T199: 1 | U199: 1 | V199: 1 | W199: 1 | X199: 1 | Y199: =IF($B$1=2,$C271*Y$185,Y$179) -> 1 | Z199: 1 | AA199: 1 | AB199: 1 | AC199: 1 | AD199: 1 | AE199: 1 | AF199: 1 | AG199: 1 | AH199: 1 | AI199: 1 | AJ199: 1 | AK199: 1 | AL199: 1 | AM199: 1 | AN199: 1 | AO199: 1 | AP199: 1 | AQ199: 1 | AR199: 1 | AS199: 1 | AT199: 1 | AU199: 1 | AV199: 1 | AW199: 1 | AX199: 1 | AY199: 1 | AZ199: 1 | BA199: 1 | BB199: 1 | BC199: 1 | BD199: 1 | BE199: 1 | BF199: 1 | BG199: 1 | BH199: 1 | BI199: 1 | BJ199: 1 | BK199: 1 | BL199: 1 | BM199: 1 | BN199: 1 | BO199: 1 | BP199: 1 | BQ199: 1 | BR199: 1 | BS199: 1 | BT199: 1 | BU199: 1 | BV199: 1 | BW199: 1 | BX199: 1 | BY199: 1 | BZ199: 1 | CA199: 1 | CB199: 1 | CC199: 1
A200: Greater Hume Shire (A) | B200: 0 | C200: 0 | D200: 0 | E200: 0 | F200: 0 | G200: 0 | H200: 0 | I200: 0 | J200: 0 | K200: 0 | L200: 1 | M200: 1 | N200: 1 | O200: 1 | P200: 1 | Q200: 1 | R200: 1 | S200: 1 | T200: 1 | U200: 1 | V200: 1 | W200: 1 | X200: 1 | Y200: =IF($B$1=2,$C272*Y$185,Y$179) -> 1 | Z200: 1 | AA200: 1 | AB200: 1 | AC200: 1 | AD200: 1 | AE200: 1 | AF200: 1 | AG200: 1 | AH200: 1 | AI200: 1 | AJ200: 1 | AK200: 1 | AL200: 1 | AM200: 1 | AN200: 1 | AO200: 1 | AP200: 1 | AQ200: 1 | AR200: 1 | AS200: 1 | AT200: 1 | AU200: 1 | AV200: 1 | AW200: 1 | AX200: 1 | AY200: 1 | AZ200: 1 | BA200: 1 | BB200: 1 | BC200: 1 | BD200: 1 | BE200: 1 | BF200: 1 | BG200: 1 | BH200: 1 | BI200: 1 | BJ200: 1 | BK200: 1 | BL200: 1 | BM200: 1 | BN200: 1 | BO200: 1 | BP200: 1 | BQ200: 1 | BR200: 1 | BS200: 1 | BT200: 1 | BU200: 1 | BV200: 1 | BW200: 1 | BX200: 1 | BY200: 1 | BZ200: 1 | CA200: 1 | CB200: 1 | CC200: 1
A201: Greater Shepparton (C) | B201: 0 | C201: 0 | D201: 0 | E201: 0 | F201: 0 | G201: 0 | H201: 0 | I201: 0 | J201: 0 | K201: 0 | L201: 1 | M201: =M$179 -> 1 | N201: 1 | O201: 1 | P201: 1 | Q201: 1 | R201: 1 | S201: 1 | T201: 1 | U201: 1 | V201: 1 | W201: 1 | X201: 1 | Y201: =IF($B$1=2,$C273*Y$185,Y$179) -> 1 | Z201: 1 | AA201: 1 | AB201: 1 | AC201: 1 | AD201: 1 | AE201: 1 | AF201: 1 | AG201: 1 | AH201: 1 | AI201: 1 | AJ201: 1 | AK201: 1 | AL201: 1 | AM201: 1 | AN201: 1 | AO201: 1 | AP201: 1 | AQ201: 1 | AR201: 1 | AS201: 1 | AT201: 1 | AU201: 1 | AV201: 1 | AW201: 1 | AX201: 1 | AY201: 1 | AZ201: 1 | BA201: 1 | BB201: 1 | BC201: 1 | BD201: 1 | BE201: 1 | BF201: 1 | BG201: 1 | BH201: 1 | BI201: 1 | BJ201: 1 | BK201: 1 | BL201: 1 | BM201: 1 | BN201: 1 | BO201: 1 | BP201: 1 | BQ201: 1 | BR201: 1 | BS201: 1 | BT201: 1 | BU201: 1 | BV201: 1 | BW201: 1 | BX201: 1 | BY201: 1 | BZ201: 1 | CA201: 1 | CB201: 1 | CC201: 1
A202: Hume (C) | B202: 0 | C202: 0 | D202: 0 | E202: 0 | F202: 0 | G202: 0 | H202: 0 | I202: 0 | J202: 0 | K202: 0 | L202: 1 | M202: 1 | N202: 1 | O202: 1 | P202: 1 | Q202: 1 | R202: 1 | S202: 1 | T202: 1 | U202: 1 | V202: 1 | W202: 1 | X202: 1 | Y202: =IF($B$1=2,$C274*Y$185,Y$179) -> 1 | Z202: 1 | AA202: 1 | AB202: 1 | AC202: 1 | AD202: 1 | AE202: 1 | AF202: 1 | AG202: 1 | AH202: 1 | AI202: 1 | AJ202: 1 | AK202: 1 | AL202: 1 | AM202: 1 | AN202: 1 | AO202: 1 | AP202: 1 | AQ202: 1 | AR202: 1 | AS202: 1 | AT202: 1 | AU202: 1 | AV202: 1 | AW202: 1 | AX202: 1 | AY202: 1 | AZ202: 1 | BA202: 1 | BB202: 1 | BC202: 1 | BD202: 1 | BE202: 1 | BF202: 1 | BG202: 1 | BH202: 1 | BI202: 1 | BJ202: 1 | BK202: 1 | BL202: 1 | BM202: 1 | BN202: 1 | BO202: 1 | BP202: 1 | BQ202: 1 | BR202: 1 | BS202: 1 | BT202: 1 | BU202: 1 | BV202: 1 | BW202: 1 | BX202: 1 | BY202: 1 | BZ202: 1 | CA202: 1 | CB202: 1 | CC202: 1
A203: Indigo (S) | B203: 0 | C203: 0 | D203: 0 | E203: 0 | F203: 0 | G203: 0 | H203: 0 | I203: 0 | J203: 0 | K203: 0 | L203: 1 | M203: 1 | N203: 1 | O203: 1 | P203: 1 | Q203: 1 | R203: 1 | S203: 1 | T203: 1 | U203: 1 | V203: 1 | W203: 1 | X203: 1 | Y203: =IF($B$1=2,$C275*Y$185,Y$179) -> 1 | Z203: 1 | AA203: 1 | AB203: 1 | AC203: 1 | AD203: 1 | AE203: 1 | AF203: 1 | AG203: 1 | AH203: 1 | AI203: 1 | AJ203: 1 | AK203: 1 | AL203: 1 | AM203: 1 | AN203: 1 | AO203: 1 | AP203: 1 | AQ203: 1 | AR203: 1 | AS203: 1 | AT203: 1 | AU203: 1 | AV203: 1 | AW203: 1 | AX203: 1 | AY203: 1 | AZ203: 1 | BA203: 1 | BB203: 1 | BC203: 1 | BD203: 1 | BE203: 1 | BF203: 1 | BG203: 1 | BH203: 1 | BI203: 1 | BJ203: 1 | BK203: 1 | BL203: 1 | BM203: 1 | BN203: 1 | BO203: 1 | BP203: 1 | BQ203: 1 | BR203: 1 | BS203: 1 | BT203: 1 | BU203: 1 | BV203: 1 | BW203: 1 | BX203: 1 | BY203: 1 | BZ203: 1 | CA203: 1 | CB203: 1 | CC203: 1
A204: Latrobe (C) | B204: 0 | C204: 0 | D204: 0 | E204: 0 | F204: 0 | G204: 0 | H204: 0 | I204: 0 | J204: 0 | K204: 0 | L204: 1 | M204: 1 | N204: 1 | O204: 1 | P204: 1 | Q204: 1 | R204: 1 | S204: 1 | T204: 1 | U204: 1 | V204: 1 | W204: 1 | X204: 1 | Y204: =IF($B$1=2,$C276*Y$185,Y$179) -> 1 | Z204: 1 | AA204: 1 | AB204: 1 | AC204: 1 | AD204: 1 | AE204: 1 | AF204: 1 | AG204: 1 | AH204: 1 | AI204: 1 | AJ204: 1 | AK204: 1 | AL204: 1 | AM204: 1 | AN204: 1 | AO204: 1 | AP204: 1 | AQ204: 1 | AR204: 1 | AS204: 1 | AT204: 1 | AU204: 1 | AV204: 1 | AW204: 1 | AX204: 1 | AY204: 1 | AZ204: 1 | BA204: 1 | BB204: 1 | BC204: 1 | BD204: 1 | BE204: 1 | BF204: 1 | BG204: 1 | BH204: 1 | BI204: 1 | BJ204: 1 | BK204: 1 | BL204: 1 | BM204: 1 | BN204: 1 | BO204: 1 | BP204: 1 | BQ204: 1 | BR204: 1 | BS204: 1 | BT204: 1 | BU204: 1 | BV204: 1 | BW204: 1 | BX204: 1 | BY204: 1 | BZ204: 1 | CA204: 1 | CB204: 1 | CC204: 1
A205: Manningham (C) | B205: 0 | C205: 0 | D205: 0 | E205: 0 | F205: 0 | G205: 0 | H205: 0 | I205: 0 | J205: 0 | K205: 0 | L205: 1 | M205: =M$179 -> 1 | N205: 1 | O205: 1 | P205: 1 | Q205: 1 | R205: 1 | S205: 1 | T205: 1 | U205: 1 | V205: 1 | W205: 1 | X205: 1 | Y205: =IF($B$1=2,$C277*Y$185,Y$179) -> 1 | Z205: 1 | AA205: 1 | AB205: 1 | AC205: 1 | AD205: 1 | AE205: 1 | AF205: 1 | AG205: 1 | AH205: 1 | AI205: 1 | AJ205: 1 | AK205: 1 | AL205: 1 | AM205: 1 | AN205: 1 | AO205: 1 | AP205: 1 | AQ205: 1 | AR205: 1 | AS205: 1 | AT205: 1 | AU205: 1 | AV205: 1 | AW205: 1 | AX205: 1 | AY205: 1 | AZ205: 1 | BA205: 1 | BB205: 1 | BC205: 1 | BD205: 1 | BE205: 1 | BF205: 1 | BG205: 1 | BH205: 1 | BI205: 1 | BJ205: 1 | BK205: 1 | BL205: 1 | BM205: 1 | BN205: 1 | BO205: 1 | BP205: 1 | BQ205: 1 | BR205: 1 | BS205: 1 | BT205: 1 | BU205: 1 | BV205: 1 | BW205: 1 | BX205: 1 | BY205: 1 | BZ205: 1 | CA205: 1 | CB205: 1 | CC205: 1
A206: Melbourne (C) | B206: 0 | C206: 0 | D206: 0 | E206: 0 | F206: 0 | G206: 0 | H206: 0 | I206: 0 | J206: 0 | K206: 0 | L206: 1 | M206: 1 | N206: 1 | O206: 1 | P206: 1 | Q206: 1 | R206: 1 | S206: 1 | T206: 1 | U206: 1 | V206: 1 | W206: 1 | X206: 1 | Y206: =IF($B$1=2,$C278*Y$185,Y$179) -> 1 | Z206: 1 | AA206: 1 | AB206: 1 | AC206: 1 | AD206: 1 | AE206: 1 | AF206: 1 | AG206: 1 | AH206: 1 | AI206: 1 | AJ206: 1 | AK206: 1 | AL206: 1 | AM206: 1 | AN206: 1 | AO206: 1 | AP206: 1 | AQ206: 1 | AR206: 1 | AS206: 1 | AT206: 1 | AU206: 1 | AV206: 1 | AW206: 1 | AX206: 1 | AY206: 1 | AZ206: 1 | BA206: 1 | BB206: 1 | BC206: 1 | BD206: 1 | BE206: 1 | BF206: 1 | BG206: 1 | BH206: 1 | BI206: 1 | BJ206: 1 | BK206: 1 | BL206: 1 | BM206: 1 | BN206: 1 | BO206: 1 | BP206: 1 | BQ206: 1 | BR206: 1 | BS206: 1 | BT206: 1 | BU206: 1 | BV206: 1 | BW206: 1 | BX206: 1 | BY206: 1 | BZ206: 1 | CA206: 1 | CB206: 1 | CC206: 1
A207: Mildura (RC) | B207: 0 | C207: 0 | D207: 0 | E207: 0 | F207: 0 | G207: 0 | H207: 0 | I207: 0 | J207: 0 | K207: 0 | L207: 1 | M207: 1 | N207: 1 | O207: 1 | P207: 1 | Q207: 1 | R207: 1 | S207: 1 | T207: 1 | U207: 1 | V207: 1 | W207: 1 | X207: 1 | Y207: =IF($B$1=2,$C279*Y$185,Y$179) -> 1 | Z207: 1 | AA207: 1 | AB207: 1 | AC207: 1 | AD207: 1 | AE207: 1 | AF207: 1 | AG207: 1 | AH207: 1 | AI207: 1 | AJ207: 1 | AK207: 1 | AL207: 1 | AM207: 1 | AN207: 1 | AO207: 1 | AP207: 1 | AQ207: 1 | AR207: 1 | AS207: 1 | AT207: 1 | AU207: 1 | AV207: 1 | AW207: 1 | AX207: 1 | AY207: 1 | AZ207: 1 | BA207: 1 | BB207: 1 | BC207: 1 | BD207: 1 | BE207: 1 | BF207: 1 | BG207: 1 | BH207: 1 | BI207: 1 | BJ207: 1 | BK207: 1 | BL207: 1 | BM207: 1 | BN207: 1 | BO207: 1 | BP207: 1 | BQ207: 1 | BR207: 1 | BS207: 1 | BT207: 1 | BU207: 1 | BV207: 1 | BW207: 1 | BX207: 1 | BY207: 1 | BZ207: 1 | CA207: 1 | CB207: 1 | CC207: 1
A208: Mitchell (S) | B208: 0 | C208: 0 | D208: 0 | E208: 0 | F208: 0 | G208: 0 | H208: 0 | I208: 0 | J208: 0 | K208: 0 | L208: 1 | M208: 1 | N208: 1 | O208: 1 | P208: 1 | Q208: 1 | R208: 1 | S208: 1 | T208: 1 | U208: 1 | V208: 1 | W208: 1 | X208: 1 | Y208: =IF($B$1=2,$C280*Y$185,Y$179) -> 1 | Z208: 1 | AA208: 1 | AB208: 1 | AC208: 1 | AD208: 1 | AE208: 1 | AF208: 1 | AG208: 1 | AH208: 1 | AI208: 1 | AJ208: 1 | AK208: 1 | AL208: 1 | AM208: 1 | AN208: 1 | AO208: 1 | AP208: 1 | AQ208: 1 | AR208: 1 | AS208: 1 | AT208: 1 | AU208: 1 | AV208: 1 | AW208: 1 | AX208: 1 | AY208: 1 | AZ208: 1 | BA208: 1 | BB208: 1 | BC208: 1 | BD208: 1 | BE208: 1 | BF208: 1 | BG208: 1 | BH208: 1 | BI208: 1 | BJ208: 1 | BK208: 1 | BL208: 1 | BM208: 1 | BN208: 1 | BO208: 1 | BP208: 1 | BQ208: 1 | BR208: 1 | BS208: 1 | BT208: 1 | BU208: 1 | BV208: 1 | BW208: 1 | BX208: 1 | BY208: 1 | BZ208: 1 | CA208: 1 | CB208: 1 | CC208: 1
A209: Moira (S) | B209: 0 | C209: 0 | D209: 0 | E209: 0 | F209: 0 | G209: 0 | H209: 0 | I209: 0 | J209: 0 | K209: 0 | L209: 1 | M209: =M$179 -> 1 | N209: 1 | O209: 1 | P209: 1 | Q209: 1 | R209: 1 | S209: 1 | T209: 1 | U209: 1 | V209: 1 | W209: 1 | X209: 1 | Y209: =IF($B$1=2,$C281*Y$185,Y$179) -> 1 | Z209: 1 | AA209: 1 | AB209: 1 | AC209: 1 | AD209: 1 | AE209: 1 | AF209: 1 | AG209: 1 | AH209: 1 | AI209: 1 | AJ209: 1 | AK209: 1 | AL209: 1 | AM209: 1 | AN209: 1 | AO209: 1 | AP209: 1 | AQ209: 1 | AR209: 1 | AS209: 1 | AT209: 1 | AU209: 1 | AV209: 1 | AW209: 1 | AX209: 1 | AY209: 1 | AZ209: 1 | BA209: 1 | BB209: 1 | BC209: 1 | BD209: 1 | BE209: 1 | BF209: 1 | BG209: 1 | BH209: 1 | BI209: 1 | BJ209: 1 | BK209: 1 | BL209: 1 | BM209: 1 | BN209: 1 | BO209: 1 | BP209: 1 | BQ209: 1 | BR209: 1 | BS209: 1 | BT209: 1 | BU209: 1 | BV209: 1 | BW209: 1 | BX209: 1 | BY209: 1 | BZ209: 1 | CA209: 1 | CB209: 1 | CC209: 1
A210: Moreland (C) | B210: 0 | C210: 0 | D210: 0 | E210: 0 | F210: 0 | G210: 0 | H210: 0 | I210: 0 | J210: 0 | K210: 0 | L210: 1 | M210: 1 | N210: 1 | O210: 1 | P210: 1 | Q210: 1 | R210: 1 | S210: 1 | T210: 1 | U210: 1 | V210: 1 | W210: 1 | X210: 1 | Y210: =IF($B$1=2,$C282*Y$185,Y$179) -> 1 | Z210: 1 | AA210: 1 | AB210: 1 | AC210: 1 | AD210: 1 | AE210: 1 | AF210: 1 | AG210: 1 | AH210: 1 | AI210: 1 | AJ210: 1 | AK210: 1 | AL210: 1 | AM210: 1 | AN210: 1 | AO210: 1 | AP210: 1 | AQ210: 1 | AR210: 1 | AS210: 1 | AT210: 1 | AU210: 1 | AV210: 1 | AW210: 1 | AX210: 1 | AY210: 1 | AZ210: 1 | BA210: 1 | BB210: 1 | BC210: 1 | BD210: 1 | BE210: 1 | BF210: 1 | BG210: 1 | BH210: 1 | BI210: 1 | BJ210: 1 | BK210: 1 | BL210: 1 | BM210: 1 | BN210: 1 | BO210: 1 | BP210: 1 | BQ210: 1 | BR210: 1 | BS210: 1 | BT210: 1 | BU210: 1 | BV210: 1 | BW210: 1 | BX210: 1 | BY210: 1 | BZ210: 1 | CA210: 1 | CB210: 1 | CC210: 1
A211: Mornington Peninsula (S) | B211: 0 | C211: 0 | D211: 0 | E211: 0 | F211: 0 | G211: 0 | H211: 0 | I211: 0 | J211: 0 | K211: 0 | L211: 1 | M211: 1 | N211: 1 | O211: 1 | P211: 1 | Q211: 1 | R211: 1 | S211: 1 | T211: 1 | U211: 1 | V211: 1 | W211: 1 | X211: 1 | Y211: =IF($B$1=2,$C283*Y$185,Y$179) -> 1 | Z211: 1 | AA211: 1 | AB211: 1 | AC211: 1 | AD211: 1 | AE211: 1 | AF211: 1 | AG211: 1 | AH211: 1 | AI211: 1 | AJ211: 1 | AK211: 1 | AL211: 1 | AM211: 1 | AN211: 1 | AO211: 1 | AP211: 1 | AQ211: 1 | AR211: 1 | AS211: 1 | AT211: 1 | AU211: 1 | AV211: 1 | AW211: 1 | AX211: 1 | AY211: 1 | AZ211: 1 | BA211: 1 | BB211: 1 | BC211: 1 | BD211: 1 | BE211: 1 | BF211: 1 | BG211: 1 | BH211: 1 | BI211: 1 | BJ211: 1 | BK211: 1 | BL211: 1 | BM211: 1 | BN211: 1 | BO211: 1 | BP211: 1 | BQ211: 1 | BR211: 1 | BS211: 1 | BT211: 1 | BU211: 1 | BV211: 1 | BW211: 1 | BX211: 1 | BY211: 1 | BZ211: 1 | CA211: 1 | CB211: 1 | CC211: 1
A212: Murray (A) | B212: 0 | C212: 0 | D212: 0 | E212: 0 | F212: 0 | G212: 0 | H212: 0 | I212: 0 | J212: 0 | K212: 0 | L212: 1 | M212: 1 | N212: 1 | O212: 1 | P212: 1 | Q212: 1 | R212: 1 | S212: 1 | T212: 1 | U212: 1 | V212: 1 | W212: 1 | X212: 1 | Y212: =IF($B$1=2,$C284*Y$185,Y$179) -> 1 | Z212: 1 | AA212: 1 | AB212: 1 | AC212: 1 | AD212: 1 | AE212: 1 | AF212: 1 | AG212: 1 | AH212: 1 | AI212: 1 | AJ212: 1 | AK212: 1 | AL212: 1 | AM212: 1 | AN212: 1 | AO212: 1 | AP212: 1 | AQ212: 1 | AR212: 1 | AS212: 1 | AT212: 1 | AU212: 1 | AV212: 1 | AW212: 1 | AX212: 1 | AY212: 1 | AZ212: 1 | BA212: 1 | BB212: 1 | BC212: 1 | BD212: 1 | BE212: 1 | BF212: 1 | BG212: 1 | BH212: 1 | BI212: 1 | BJ212: 1 | BK212: 1 | BL212: 1 | BM212: 1 | BN212: 1 | BO212: 1 | BP212: 1 | BQ212: 1 | BR212: 1 | BS212: 1 | BT212: 1 | BU212: 1 | BV212: 1 | BW212: 1 | BX212: 1 | BY212: 1 | BZ212: 1 | CA212: 1 | CB212: 1 | CC212: 1
A213: Nillumbik (S) | B213: 0 | C213: 0 | D213: 0 | E213: 0 | F213: 0 | G213: 0 | H213: 0 | I213: 0 | J213: 0 | K213: 0 | L213: 1 | M213: =M$179 -> 1 | N213: 1 | O213: 1 | P213: 1 | Q213: 1 | R213: 1 | S213: 1 | T213: 1 | U213: 1 | V213: 1 | W213: 1 | X213: 1 | Y213: =IF($B$1=2,$C285*Y$185,Y$179) -> 1 | Z213: 1 | AA213: 1 | AB213: 1 | AC213: 1 | AD213: 1 | AE213: 1 | AF213: 1 | AG213: 1 | AH213: 1 | AI213: 1 | AJ213: 1 | AK213: 1 | AL213: 1 | AM213: 1 | AN213: 1 | AO213: 1 | AP213: 1 | AQ213: 1 | AR213: 1 | AS213: 1 | AT213: 1 | AU213: 1 | AV213: 1 | AW213: 1 | AX213: 1 | AY213: 1 | AZ213: 1 | BA213: 1 | BB213: 1 | BC213: 1 | BD213: 1 | BE213: 1 | BF213: 1 | BG213: 1 | BH213: 1 | BI213: 1 | BJ213: 1 | BK213: 1 | BL213: 1 | BM213: 1 | BN213: 1 | BO213: 1 | BP213: 1 | BQ213: 1 | BR213: 1 | BS213: 1 | BT213: 1 | BU213: 1 | BV213: 1 | BW213: 1 | BX213: 1 | BY213: 1 | BZ213: 1 | CA213: 1 | CB213: 1 | CC213: 1
... 77 more rows

Sheet Volumes
A1: Residential volume GJ | B1: 2012Q1 | C1: 2012Q2 | D1: 2012Q3 | E1: 2012Q4 | F1: 2013Q1 | G1: 2013Q2 | H1: 2013Q3 | I1: 2013Q4 | J1: 2014Q1 | K1: 2014Q2 | L1: 2014Q3 | M1: 2014Q4 | N1: 2015Q1 | O1: 2015Q2 | P1: 2015Q3 | Q1: 2015Q4 | R1: 2016Q1 | S1: 2016Q2 | T1: 2016Q3 | U1: 2016Q4 | V1: 2017Q1 | W1: 2017Q2 | X1: 2017Q3 | Y1: 2017Q4 | Z1: 2018Q1 | AA1: 2018Q2 | AB1: 2018Q3 | AC1: 2018Q4 | AD1: 2019Q1 | AE1: 2019Q2 | AF1: 2019Q3 | AG1: 2019Q4 | AH1: 2020Q1 | AI1: 2020Q2 | AJ1: 2020Q3 | AK1: 2020Q4
A2: Albury (C) | J2: 58311.894 | K2: 159394.135 | L2: 440299.818 | M2: 169675.373 | N2: 57204.225 | O2: 197239.703 | P2: 499423.248 | Q2: 163182.029 | R2: 52826.314 | S2: 164663.309 | T2: 457043.514 | U2: 232085.911 | V2: 60785.414 | W2: 209461.956 | X2: 518757.521 | Y2: 213637.522 | Z2: 58830.455 | AA2: 178866.55 | AB2: 515697.423 | AC2: 209703.55 | AD2: 57235.614 | AE2: 196875.532 | AF2: 520626.512 | AG2: 223970.073 | AH2: 61117.255 | AI2: 246977.257 | AJ2: 518748.577 | AK2: 206410.763
A3: Banyule (C) | J3: 234951.115 | K3: 444632.029 | L3: 1214240.186 | M3: 483440.331 | N3: 203088.613 | O3: 579540.34 | P3: 1398020.684 | Q3: 463543.178 | R3: 187836.843 | S3: 446606.409 | T3: 1268101.711 | U3: 611205.827 | V3: 221526.927 | W3: 561761.549 | X3: 1357196.526 | Y3: 537652.954 | Z3: 200338.853 | AA3: 463217.087 | AB3: 1308208.743 | AC3: 525280.425 | AD3: 194494.6373 | AE3: 447753.3477 | AF3: 1264262.566 | AG3: 571111.5673 | AH3: 232630.804 | AI3: 624499.44 | AJ3: 1331951.653 | AK3: 508685.764
A4: Baw Baw (S) | J4: 56975.984 | K4: 109953.503 | L4: 298245.696 | M4: 133152.908 | N4: 52206.922 | O4: 148897.91 | P4: 351693.827 | Q4: 127963.89 | R4: 48920.13 | S4: 119477.611 | T4: 333638.524 | U4: 166926.374 | V4: 57339.544 | W4: 138816.638 | X4: 371192.595 | Y4: 159306.678 | Z4: 50065.008 | AA4: 124058.501 | AB4: 364820.601 | AC4: 168887.704 | AD4: 51174.8035 | AE4: 127001.426 | AF4: 376569.328 | AG4: 194958.4883 | AH4: 70358.256 | AI4: 191778.274 | AJ4: 402516.399 | AK4: 160310.151
A5: Benalla (RC) | J5: 13484.735 | K5: 32139.622 | L5: 94340.127 | M5: 31945.28 | N5: 12326.833 | O5: 35900.49 | P5: 103519.775 | Q5: 28300.804 | R5: 11762.779 | S5: 28343.92 | T5: 95914.729 | U5: 41611.437 | V5: 14028.097 | W5: 35612.464 | X5: 106156.436 | Y5: 33743.178 | Z5: 11774.417 | AA5: 28564.764 | AB5: 99813.619 | AC5: 33617.146 | AD5: 12122.38004 | AE5: 31193.44994 | AF5: 100613.889 | AG5: 36274.69616 | AH5: 13004.57 | AI5: 38990.068 | AJ5: 105898.5517 | AK5: 30650.79038
A6: Berrigan (A) | J6: 2479.72 | K6: 4045.403 | L6: 20136.408 | M6: 3202.605 | N6: 2508.518 | O6: 4838.041 | P6: 23541.163 | Q6: 2670.52 | R6: 2477.814 | S6: 3083.735 | T6: 23230.642 | U6: 5732.886 | V6: 2708.078 | W6: 4555.385 | X6: 24716.528 | Y6: 3460.363 | Z6: 2479.161 | AA6: 3593.766 | AB6: 23947.139 | AC6: 3345.852 | AD6: 2734.396 | AE6: 4020.539 | AF6: 24647.404 | AG6: 4229.655 | AH6: 2885.555 | AI6: 6182.363 | AJ6: 26465.938 | AK6: 4379.237
A7: Campaspe (S) | J7: 23220.087 | K7: 70410.122 | L7: 195223.832 | M7: 75090.232 | N7: 20399.219 | O7: 89543.944 | P7: 213091.859 | Q7: 74796.881 | R7: 19739.941 | S7: 67928.639 | T7: 214003.774 | U7: 100720.031 | V7: 23453.015 | W7: 81816.778 | X7: 227204.37 | Y7: 87087.562 | Z7: 21678.043 | AA7: 69986.707 | AB7: 213568.521 | AC7: 88734.478 | AD7: 20320.16859 | AE7: 70480.55981 | AF7: 216689.734 | AG7: 95003.69535 | AH7: 23512.969 | AI7: 100567.853 | AJ7: 233261.54 | AK7: 82875.929
A8: Cardinia (S) | J8: 99767.134 | K8: 124747.992 | L8: 514092.016 | M8: 127148.696 | N8: 94894.964 | O8: 177388.057 | P8: 630930.83 | Q8: 119154.027 | R8: 92913.958 | S8: 121870.196 | T8: 613407.029 | U8: 188533.559 | V8: 107409.274 | W8: 171158.646 | X8: 695857.381 | Y8: 164615.54 | Z8: 96585.364 | AA8: 151043.799 | AB8: 726381.556 | AC8: 170607.822 | AD8: 110636.9276 | AE8: 156382.523 | AF8: 752565.6219 | AG8: 203697.3749 | AH8: 142515.547 | AI8: 230313.039 | AJ8: 788981.459 | AK8: 195848.83
A9: Casey (C) | J9: 347437.911 | K9: 828448.928 | L9: 1964018.725 | M9: 909216.1 | N9: 327842.347 | O9: 1155878.975 | P9: 2261521.127 | Q9: 909497.615 | R9: 304554.673 | S9: 964730.957 | T9: 2172844.117 | U9: 1131842.754 | V9: 359517.296 | W9: 1097178.435 | X9: 2441840.667 | Y9: 1079376.329 | Z9: 340065.958 | AA9: 1012605.695 | AB9: 2406099.668 | AC9: 1126737.767 | AD9: 346923.1034 | AE9: 1012821.499 | AF9: 2483122.171 | AG9: 1304735.715 | AH9: 441634.521 | AI9: 1412671.031 | AJ9: 2638381.079 | AK9: 1091046.596
A10: Corowa Shire (A) | J10: 5048.016 | K10: 18173.455 | L10: 55379.232 | M10: 23346.6 | N10: 4491.66 | O10: 23498.966 | P10: 61358.337 | Q10: 23575.66 | R10: 4142.213 | S10: 17296.993 | T10: 57166.585 | U10: 31097.96 | V10: 5237.37 | W10: 21596.223 | X10: 62656.835 | Y10: 28025.701 | Z10: 5066.141 | AA10: 17832.752 | AB10: 63205.245 | AC10: 27450.728 | AD10: 4340.438 | AE10: 21480.588 | AF10: 63082.425 | AG10: 30485.929 | AH10: 5405.147 | AI10: 30612.108 | AJ10: 67784.306 | AK10: 26065.312
A11: Darebin (C) | J11: 240759.292 | K11: 438148.392 | L11: 1064124.945 | M11: 491909.41 | N11: 217260.359 | O11: 559302.093 | P11: 1215519.675 | Q11: 482797.425 | R11: 196449.668 | S11: 451838.272 | T11: 1108749.348 | U11: 615004.626 | V11: 229177.539 | W11: 530330.987 | X11: 1158503.433 | Y11: 548290.165 | Z11: 208162.823 | AA11: 450985.767 | AB11: 1122567.985 | AC11: 529265.831 | AD11: 201057.1518 | AE11: 436651.5179 | AF11: 1090029.948 | AG11: 570341.3246 | AH11: 235525.751 | AI11: 606458.859 | AJ11: 1120162.971 | AK11: 518738.216
A12: East Gippsland (S) | J12: 7025.31 | K12: 17040.289 | L12: 46570.541 | M12: 20790.808 | N12: 7545.578 | O12: 23371.11 | P12: 56508.949 | Q12: 21801.449 | R12: 7728.694 | S12: 19871.516 | T12: 53881.177 | U12: 26950.276 | V12: 9340.202 | W12: 25258.646 | X12: 58128.067 | Y12: 25886.048 | Z12: 8752.727 | AA12: 20740.14 | AB12: 57365.265 | AC12: 26778.736 | AD12: 9260.866635 | AE12: 21117.97384 | AF12: 61152.72428 | AG12: 27827.94088 | AH12: 10803.527 | AI12: 30255.899 | AJ12: 64800.574 | AK12: 28541.11
A13: Frankston (C) | J13: 237903.63 | K13: 389241.609 | L13: 1070206.932 | M13: 469932.303 | N13: 217904.831 | O13: 502640.013 | P13: 1203903.571 | Q13: 464847.998 | R13: 199707.16 | S13: 408358.334 | T13: 1087807.325 | U13: 569841.304 | V13: 223815.385 | W13: 456705.115 | X13: 1126298.75 | Y13: 532981.193 | Z13: 201460.647 | AA13: 404389.784 | AB13: 1105803.663 | AC13: 504380.753 | AD13: 200126.3818 | AE13: 395945.8315 | AF13: 1083624.022 | AG13: 558217.0367 | AH13: 238822.759 | AI13: 538151.519 | AJ13: 1089634.58 | AK13: 501818.854
A14: Greater Dandenong (C) | J14: 143.089 | K14: 96.659 | L14: 324.561 | M14: 110.089 | N14: 117.149 | O14: 113.182 | P14: 433.98 | Q14: 91.741 | R14: 103.177 | S14: 56.947 | T14: 223.838 | U14: 84.198 | V14: 68.607 | W14: 88.503 | X14: 193.336 | Y14: 97.1 | Z14: 118.01 | AA14: 222.176 | AB14: 568.399 | AC14: 156.139 | AD14: 100.789 | AE14: 119.451 | AF14: 355.302 | AG14: 135.087 | AH14: 106.525 | AI14: 124.85 | AJ14: 327.254 | AK14: 95.564
A15: Greater Hume Shire (A) | J15: 4408.064 | K15: 7308.131 | L15: 10133.467 | M15: 9052.97 | N15: 4315.915 | O15: 8943.859 | P15: 11137.234 | Q15: 9348.128 | R15: 4361.454 | S15: 7961.396 | T15: 10614.488 | U15: 9519.514 | V15: 4446.144 | W15: 9397.179 | X15: 11938.194 | Y15: 12117.548 | Z15: 4570.13 | AA15: 8462.51 | AB15: 12462.016 | AC15: 11628.252 | AD15: 4576.178 | AE15: 9301.301 | AF15: 12381.389 | AG15: 11314.433 | AH15: 4668.948 | AI15: 10991.554 | AJ15: 12650.687 | AK15: 10851.758
A16: Greater Shepparton (C) | J16: 63827.108 | K16: 150757.117 | L16: 449712.497 | M16: 145170.752 | N16: 59275.469 | O16: 181185.3 | P16: 500717.557 | Q16: 140235.76 | R16: 56962.925 | S16: 153593.237 | T16: 468587.485 | U16: 215815.786 | V16: 63703.063 | W16: 182253.648 | X16: 513314.583 | Y16: 173425.047 | Z16: 59290.321 | AA16: 157440.511 | AB16: 501036.228 | AC16: 161994.321 | AD16: 60105.42874 | AE16: 162579.8259 | AF16: 501863.5372 | AG16: 174336.2948 | AH16: 65762.393 | AI16: 210638.63 | AJ16: 515732.999 | AK16: 167204.719
A17: Hume (C) | J17: 0 | K17: 0 | L17: 0 | M17: 0 | N17: 0 | O17: 0 | P17: 0 | Q17: 1.535 | R17: 10.519 | S17: 1494.009 | T17: 8440.216 | U17: 2430.284 | V17: 1479.543 | W17: 5926.008 | X17: 26695.143 | Y17: 4794.025 | Z17: 3892.272 | AA17: 11319.596 | AB17: 56449.151 | AC17: 9081.221 | AD17: 7655.472975 | AE17: 24104.29783 | AF17: 100394.933 | AG17: 21498.9676 | AH17: 16898.808 | AI17: 49406.493 | AJ17: 142588.713 | AK17: 31729.27
A18: Indigo (S) | J18: 4103.625 | K18: 4380.072 | L18: 34033.947 | M18: 7454.27 | N18: 3546.273 | O18: 4930.534 | P18: 40360.481 | Q18: 6843.829 | R18: 3443.812 | S18: 3271.21 | T18: 36119.851 | U18: 11611.262 | V18: 4323.042 | W18: 5043.862 | X18: 40091.906 | Y18: 10222.997 | Z18: 3908.765 | AA18: 3146.446 | AB18: 39992.843 | AC18: 8869.921 | AD18: 3866.413936 | AE18: 3946.047595 | AF18: 40942.02586 | AG18: 10014.95586 | AH18: 4459.636 | AI18: 6128.136 | AJ18: 44027.762 | AK18: 8858.943
A19: Latrobe (C) | J19: 121591.751 | K19: 240311.159 | L19: 559729.1 | M19: 266158.181 | N19: 115046.041 | O19: 297853.153 | P19: 632558.972 | Q19: 258168.925 | R19: 106623.861 | S19: 246482.846 | T19: 575037.595 | U19: 313309.637 | V19: 116795.193 | W19: 268375.148 | X19: 613109.898 | Y19: 295361.068 | Z19: 101380.044 | AA19: 243144.386 | AB19: 598226.318 | AC19: 292029.625 | AD19: 103075.647 | AE19: 241230.2392 | AF19: 592453.9731 | AG19: 328559.2158 | AH19: 132921.431 | AI19: 329426.218 | AJ19: 606681.598 | AK19: 283597.925
A20: Manningham (C) | J20: 28.07 | K20: 122.779 | L20: 338.235 | M20: 66.688 | N20: 42.161 | O20: 180.866 | P20: 444.629 | Q20: 52.485 | R20: 32.658 | S20: 160.61 | T20: 402.731 | U20: 123.966 | V20: 43.002 | W20: 196.701 | X20: 466.724 | Y20: 76.482 | Z20: 41.32 | AA20: 160.615 | AB20: 500.073 | AC20: 96.115 | AD20: 40.706 | AE20: 182.703 | AF20: 441.817 | AG20: 79.019 | AH20: 47.662 | AI20: 168.12 | AJ20: 303.874 | AK20: 72.454
A21: Melbourne (C) | J21: 41815.024 | K21: 77886.341 | L21: 126439.855 | M21: 84237.638 | N21: 42574.751 | O21: 91498.445 | P21: 140788.626 | Q21: 87671.385 | R21: 45152.15 | S21: 87754.809 | T21: 136483.653 | U21: 105024.704 | V21: 49023.796 | W21: 93216.973 | X21: 142567.804 | Y21: 102529.79 | Z21: 49675.068 | AA21: 89449.366 | AB21: 138983.606 | AC21: 100280.627 | AD21: 49991.84206 | AE21: 83143.36032 | AF21: 138462.1148 | AG21: 104802.2945 | AH21: 52375.452 | AI21: 97255.394 | AJ21: 133108.212 | AK21: 90827.256
A22: Mildura (RC) | J22: 12434.936 | K22: 29257.022 | L22: 80665.251 | M22: 24642.585 | N22: 12777.721 | O22: 40456.853 | P22: 87321.767 | Q22: 29036.975 | R22: 12694.339 | S22: 29766.049 | T22: 86940.537 | U22: 38888.754 | V22: 14410.931 | W22: 39312.729 | X22: 90896.682 | Y22: 31598.114 | Z22: 14064.318 | AA22: 32878.85 | AB22: 91535.88 | AC22: 36274.71 | AD22: 15591.507 | AE22: 37342.032 | AF22: 88493.049 | AG22: 37004.164 | AH22: 16188.423 | AI22: 47448.829 | AJ22: 102631.885 | AK22: 40162.722
A23: Mitchell (S) | J23: 59796.555 | K23: 97309.643 | L23: 323290.306 | M23: 105696.595 | N23: 50007.019 | O23: 117010.779 | P23: 376053.459 | Q23: 103523.477 | R23: 48283.966 | S23: 95862.376 | T23: 365842.539 | U23: 158208.444 | V23: 59914.289 | W23: 118634.947 | X23: 393058.829 | Y23: 135267.833 | Z23: 51866.138 | AA23: 96519.722 | AB23: 406103.35 | AC23: 132185.27 | AD23: 55629.11633 | AE23: 108672.1453 | AF23: 419745.8961 | AG23: 148164.7723 | AH23: 70163.27 | AI23: 170539.833 | AJ23: 431320.889 | AK23: 151003.171
A24: Moira (S) | J24: 10520.496 | K24: 45922.226 | L24: 105544.453 | M24: 43371.735 | N24: 10229.423 | O24: 58023.824 | P24: 117718.899 | Q24: 44068.8 | R24: 9356.159 | S24: 46479.854 | T24: 113545.466 | U24: 61302.362 | V24: 11177.109 | W24: 58314.11 | X24: 124932.041 | Y24: 53642.866 | Z24: 10895.471 | AA24: 49707.32 | AB24: 120074.85 | AC24: 53551.941 | AD24: 10385.48526 | AE24: 54920.94285 | AF24: 117816.9569 | AG24: 58660.82739 | AH24: 11446.365 | AI24: 70648.309 | AJ24: 134100.129 | AK24: 50736.865
A25: Moreland (C) | J25: 68182.095 | K25: 118528.036 | L25: 266267.128 | M25: 134573.029 | N25: 63558.059 | O25: 149906.219 | P25: 300698.554 | Q25: 132564.386 | R25: 58557.925 | S25: 122406.091 | T25: 270405.588 | U25: 168779.1 | V25: 65439.668 | W25: 140212.339 | X25: 281189.819 | Y25: 152304.457 | Z25: 60054.558 | AA25: 124239.005 | AB25: 274282.839 | AC25: 144816.517 | AD25: 59094.7989 | AE25: 117016.1612 | AF25: 267957.9976 | AG25: 155833.628 | AH25: 67417.212 | AI25: 159878.059 | AJ25: 278841.814 | AK25: 142606.126
A26: Mornington Peninsula (S) | J26: 331738.295 | K26: 513206.677 | L26: 1340135.352 | M26: 607566.858 | N26: 301414.45 | O26: 682364.222 | P26: 1498437.232 | Q26: 606174.048 | R26: 277433.757 | S26: 539140.825 | T26: 1406510.088 | U26: 754841.266 | V26: 317250.917 | W26: 601981.12 | X26: 1456051.166 | Y26: 702815.325 | Z26: 277556.661 | AA26: 553303.964 | AB26: 1432967.589 | AC26: 680240.807 | AD26: 275590.0147 | AE26: 557718.6637 | AF26: 1405912.218 | AG26: 768224.1732 | AH26: 343458.904 | AI26: 775396.293 | AJ26: 1523791.659 | AK26: 700358.957
A27: Murray (A) | J27: 3467.781 | K27: 22757.359 | L27: 31110.654 | M27: 18510.127 | N27: 3666.416 | O27: 28437.498 | P27: 32686.773 | Q27: 19656.005 | R27: 3798.272 | S27: 25035.183 | T27: 31192.928 | U27: 29114.143 | V27: 3842.778 | W27: 30078.7 | X27: 34182.087 | Y27: 27378.332 | Z27: 3570.919 | AA27: 28941.348 | AB27: 35763.365 | AC27: 26027.478 | AD27: 3621.296 | AE27: 30065.161 | AF27: 38251.141 | AG27: 28263.341 | AH27: 4085.134 | AI27: 39135.38 | AJ27: 40680.379 | AK27: 26654.586
A28: Nillumbik (S) | J28: 78155.096 | K28: 196799.753 | L28: 450881.778 | M28: 219375.48 | N28: 67318.272 | O28: 256045.796 | P28: 509872.331 | Q28: 215222.068 | R28: 62672.17 | S28: 203832.513 | T28: 474210.943 | U28: 265455.059 | V28: 73968.801 | W28: 256906.887 | X28: 521245.932 | Y28: 243615.884 | Z28: 67571.916 | AA28: 211367.373 | AB28: 488969.958 | AC28: 252443.621 | AD28: 64997.12359 | AE28: 208006.116 | AF28: 470364.7595 | AG28: 267814.9431 | AH28: 78254.542 | AI28: 283759.78 | AJ28: 517016.07 | AK28: 226573.596
A29: Strathbogie (S) | J29: 3507.148 | K29: 10481.759 | L29: 25533.261 | M29: 9239.681 | N29: 3232.08 | O29: 12155.656 | P29: 26682.864 | Q29: 8671.271 | R29: 2627.376 | S29: 11044.017 | T29: 25576.858 | U29: 13345.546 | V29: 3467.695 | W29: 11934.666 | X29: 27619.741 | Y29: 11126.596 | Z29: 3196.733 | AA29: 10361.121 | AB29: 26863.18 | AC29: 9662.78 | AD29: 3221.809409 | AE29: 10936.46731 | AF29: 26280.46931 | AG29: 11367.23873 | AH29: 3601.007 | AI29: 13568.06 | AJ29: 27508.703 | AK29: 10393.233
A30: Wangaratta (RC) | J30: 23751.492 | K30: 66755.641 | L30: 184333.218 | M30: 70917.635 | N30: 21036.107 | O30: 77430.979 | P30: 208065.366 | Q30: 68301.099 | R30: 20474.931 | S30: 63628.556 | T30: 190747.37 | U30: 95506.425 | V30: 22355.837 | W30: 79204.347 | X30: 216484.912 | Y30: 80879.383 | Z30: 21042.651 | AA30: 66541.548 | AB30: 207044.705 | AC30: 78173.606 | AD30: 20482.92827 | AE30: 72225.38936 | AF30: 208564.0038 | AG30: 85273.10157 | AH30: 22662.502 | AI30: 94941.51 | AJ30: 210806.672 | AK30: 73950.014
A31: Wellington (S) | J31: 34594.065 | K31: 77347.896 | L31: 161418.683 | M31: 87888.274 | N31: 33619.245 | O31: 93123.62 | P31: 183196.602 | Q31: 84074.862 | R31: 32234.201 | S31: 76686.797 | T31: 161431.195 | U31: 91964.594 | V31: 33154.906 | W31: 84408.614 | X31: 170686.65 | Y31: 89334.279 | Z31: 30386.781 | AA31: 74055.72 | AB31: 166861.017 | AC31: 88924.002 | AD31: 29200.38621 | AE31: 74692.5571 | AF31: 165381.6185 | AG31: 93586.92723 | AH31: 35429.396 | AI31: 97301.118 | AJ31: 170712.276 | AK31: 85495.346
A32: Whittlesea (C) | J32: 319219.701 | K32: 735041.109 | L32: 1804591.936 | M32: 786465.766 | N32: 285680.957 | O32: 1007455.047 | P32: 2133099.577 | Q32: 806922.661 | R32: 267774.791 | S32: 845825.708 | T32: 1997347.589 | U32: 1090327.209 | V32: 318656.713 | W32: 1039504.572 | X32: 2154011.212 | Y32: 1002605.316 | Z32: 297184.666 | AA32: 902969 | AB32: 2142123.621 | AC32: 991612.62 | AD32: 296468.5416 | AE32: 880506.9519 | AF32: 2164266.624 | AG32: 1104352.233 | AH32: 364418.681 | AI32: 1262171.913 | AJ32: 2215346.387 | AK32: 993239.756
A33: Wodonga (RC) | J33: 44637.609 | K33: 126227.135 | L33: 338365.165 | M33: 129827.939 | N33: 43348.778 | O33: 160159.097 | P33: 388286.152 | Q33: 127803.468 | R33: 41485.674 | S33: 130154.086 | T33: 353458.667 | U33: 183791.593 | V33: 47110.992 | W33: 163683.491 | X33: 406222.556 | Y33: 169641.255 | Z33: 44707.343 | AA33: 140146.991 | AB33: 403539.385 | AC33: 161022.984 | AD33: 43403.02374 | AE33: 150718.3721 | AF33: 409494.1058 | AG33: 177712.4046 | AH33: 47357.826 | AI33: 190137.256 | AJ33: 417693.748 | AK33: 156371.131
A34: Yarra (C) | J34: 115248.38 | K34: 168913.318 | L34: 412494.3 | M34: 184430.432 | N34: 103564.354 | O34: 208454.868 | P34: 463374.86 | Q34: 179029.973 | R34: 94156.999 | S34: 170496.253 | T34: 429449.846 | U34: 225417.656 | V34: 106770.207 | W34: 192662.096 | X34: 445593.461 | Y34: 197868.945 | Z34: 97594.086 | AA34: 169001.598 | AB34: 432249.882 | AC34: 196130.016 | AD34: 96013.21211 | AE34: 163412.0329 | AF34: 419496.6574 | AG34: 209529.1114 | AH34: 111277.176 | AI34: 219591.46 | AJ34: 435218.291 | AK34: 185277.733
A35: Yarra Ranges (S) | J35: 8420.4 | K35: 39514.016 | L35: 54651.612 | M35: 51693.764 | N35: 7645.931 | O35: 51412.826 | P35: 59794.323 | Q35: 50704.365 | R35: 7043.756 | S35: 41221.13 | T35: 58901.625 | U35: 55232.449 | V35: 8140.184 | W35: 50044.817 | X35: 66985.905 | Y35: 50293.027 | Z35: 7646.485 | AA35: 42467.304 | AB35: 58621.785 | AC35: 55638.176 | AD35: 7051.554 | AE35: 42714.2546 | AF35: 56176.87525 | AG35: 59646.84241 | AH35: 9289.493 | AI35: 54071.238 | AJ35: 66671.481 | AK35: 43552.127
A36: AGN | J36: 2676955.608 | K36: 5365299.327 | L36: 13736873.22 | M36: 5925301.134 | N36: 2449690.64 | O36: 7025182.265 | P36: 15730763.28 | Q36: 5860298.722 | R36: 2284345.059 | S36: 5716424.393 | T36: 14687259.57 | U36: 7611646.896 | V36: 2639881.558 | W36: 6765634.279 | X36: 15886047.69 | Y36: 6961058.902 | Z36: 2415474.253 | AA36: 5941731.782 | AB36: 15642699.47 | AC36: 6905631.541 | AD36: 2420590.143 | AE36: 5955279.261 | AF36: 15682483.81 | AG36: 7677027.472 | AH36: 2940507.447 | AI36: 8240186.143 | AJ36: 16416349.11 | AK36: 6834984.804
A38: Commercial volume GJ | B38: 2012Q1 | C38: 2012Q2 | D38: 2012Q3 | E38: 2012Q4 | F38: 2013Q1 | G38: 2013Q2 | H38: 2013Q3 | I38: 2013Q4 | J38: 2014Q1 | K38: 2014Q2 | L38: 2014Q3 | M38: 2014Q4 | N38: 2015Q1 | O38: 2015Q2 | P38: 2015Q3 | Q38: 2015Q4 | R38: 2016Q1 | S38: 2016Q2 | T38: 2016Q3 | U38: 2016Q4 | V38: 2017Q1 | W38: 2017Q2 | X38: 2017Q3 | Y38: 2017Q4 | Z38: 2018Q1 | AA38: 2018Q2 | AB38: 2018Q3 | AC38: 2018Q4 | AD38: 2019Q1 | AE38: 2019Q2 | AF38: 2019Q3 | AG38: 2019Q4 | AH38: 2020Q1 | AI38: 2020Q2 | AJ38: 2020Q3 | AK38: 2020Q4
A39: Albury (C) | J39: 39553.608 | K39: 46638.167 | L39: 104405.942 | M39: 45745.039 | N39: 41769.978 | O39: 49405.803 | P39: 106739.934 | Q39: 41867.803 | R39: 38998.748 | S39: 46325.754 | T39: 96112.143 | U39: 47902.341 | V39: 37615.41 | W39: 52160.213 | X39: 105881.489 | Y39: 45425.624 | Z39: 40326.228 | AA39: 49404.053 | AB39: 105767.613 | AC39: 49225.15 | AD39: 37676.39 | AE39: 46169.424 | AF39: 107481.789 | AG39: 46232.469 | AH39: 40655.935 | AI39: 38798.27 | AJ39: 90369.867 | AK39: 39382.693
A40: Banyule (C) | J40: 48458.111 | K40: 64914.885 | L40: 111119.825 | M40: 64450.566 | N40: 42950.354 | O40: 77485.066 | P40: 123609.236 | Q40: 65276.168 | R40: 46610.359 | S40: 74060.076 | T40: 118750.138 | U40: 75062.548 | V40: 53210.983 | W40: 80899.973 | X40: 125003.839 | Y40: 78647.043 | Z40: 53436.038 | AA40: 74672.189 | AB40: 126090.141 | AC40: 79152.45 | AD40: 50887.14657 | AE40: 77955.46518 | AF40: 124189.9537 | AG40: 80276.86803 | AH40: 56485.847 | AI40: 72123.437 | AJ40: 109861.913 | AK40: 65365.005
A41: Baw Baw (S) | J41: 17501.45 | K41: 20530.449 | L41: 31182.041 | M41: 19020.961 | N41: 14483.421 | O41: 19594.963 | P41: 30097.389 | Q41: 17306.969 | R41: 12827.947 | S41: 16942.308 | T41: 32524.46 | U41: 23726.278 | V41: 19607.529 | W41: 22174.684 | X41: 41282.779 | Y41: 22548.826 | Z41: 24295.531 | AA41: 24718.249 | AB41: 42131.238 | AC41: 28904.011 | AD41: 24419.85027 | AE41: 26311.02836 | AF41: 43810.96919 | AG41: 27739.7781 | AH41: 27605.751 | AI41: 19862.943 | AJ41: 31118.677 | AK41: 22589.01
A42: Benalla (RC) | J42: 7576.035 | K42: 12775.385 | L42: 17451.47 | M42: 11930.64 | N42: 7962.485 | O42: 13682.661 | P42: 18002.452 | Q42: 11805.544 | R42: 7062.094 | S42: 13879.228 | T42: 17904.569 | U42: 9238.028 | V42: 4267.112 | W42: 9749.937 | X42: 14605.657 | Y42: 8752.843 | Z42: 4750.715 | AA42: 9732.052 | AB42: 13638.124 | AC42: 9867.195 | AD42: 4823.743803 | AE42: 9649.826968 | AF42: 14162.55232 | AG42: 10587.2855 | AH42: 5003.194 | AI42: 8956.139 | AJ42: 13202.04 | AK42: 7632.652
A43: Berrigan (A) | J43: 2359.56 | K43: 2032.542 | L43: 4981.428 | M43: 1704.825 | N43: 2468.724 | O43: 2260.901 | P43: 5360.936 | Q43: 1493.704 | R43: 2525.296 | S43: 2077.523 | T43: 5591.016 | U43: 2155.407 | V43: 2556.283 | W43: 2441.296 | X43: 5353.091 | Y43: 1932.496 | Z43: 2495.074 | AA43: 1937.398 | AB43: 4941.869 | AC43: 1670.547 | AD43: 2534.949 | AE43: 1930.087 | AF43: 4876.004 | AG43: 1674.331 | AH43: 2497.347 | AI43: 1712.116 | AJ43: 4317.443 | AK43: 1641.6
A44: Campaspe (S) | J44: 26654.948 | K44: 28613.404 | L44: 42753.422 | M44: 28500.13 | N44: 26030.954 | O44: 32184.968 | P44: 48247.94 | Q44: 28687.455 | R44: 26587.811 | S44: 28739.889 | T44: 43477.696 | U44: 26156.642 | V44: 25337.114 | W44: 29992.44 | X44: 49492.582 | Y44: 31932.177 | Z44: 28551.237 | AA44: 25958.294 | AB44: 48069.099 | AC44: 31754.649 | AD44: 32501.62516 | AE44: 33503.25162 | AF44: 50214.09467 | AG44: 28406.5382 | AH44: 25613.215 | AI44: 27943.26 | AJ44: 45269.471 | AK44: 26844.592
A45: Cardinia (S) | J45: 25676.106 | K45: 28421.27 | L45: 57447.404 | M45: 27748.002 | N45: 28307.285 | O45: 30557.613 | P45: 65470.118 | Q45: 26023.122 | R45: 27141.752 | S45: 26755.309 | T45: 63573.851 | U45: 31703.111 | V45: 27577.93 | W45: 29214.534 | X45: 64262.12 | Y45: 28190.6 | Z45: 26816.311 | AA45: 27302.666 | AB45: 67088.566 | AC45: 29944.421 | AD45: 30992.00472 | AE45: 29014.22727 | AF45: 70502.57803 | AG45: 32943.11173 | AH45: 33189.051 | AI45: 29708.831 | AJ45: 63140.038 | AK45: 27973.911
A46: Casey (C) | J46: 61872.985 | K46: 88606.779 | L46: 156637.989 | M46: 100077.099 | N46: 63688.589 | O46: 108900.632 | P46: 173063.464 | Q46: 98003.261 | R46: 59195.443 | S46: 104666.887 | T46: 176160.043 | U46: 109883.322 | V46: 68061.895 | W46: 115368.172 | X46: 186856.345 | Y46: 116185.91 | Z46: 66362.232 | AA46: 108278.995 | AB46: 180417.458 | AC46: 119925.152 | AD46: 66481.9363 | AE46: 105143.2232 | AF46: 178190.0095 | AG46: 125778.6803 | AH46: 75466.002 | AI46: 117266.451 | AJ46: 170467.335 | AK46: 92517.947
A47: Corowa Shire (A) | J47: 8940.037 | K47: 8610.498 | L47: 13906.716 | M47: 10290.697 | N47: 4724.539 | O47: 9663.409 | P47: 15117.429 | Q47: 9990.615 | R47: 4811.802 | S47: 9032.991 | T47: 13899.133 | U47: 11584.915 | V47: 4929.172 | W47: 8776.164 | X47: 15280.813 | Y47: 10533.697 | Z47: 5114.797 | AA47: 9067.829 | AB47: 14471.83 | AC47: 11004.552 | AD47: 4937.496 | AE47: 10276.949 | AF47: 14865.512 | AG47: 10697.224 | AH47: 4898.726 | AI47: 7059.913 | AJ47: 12131.172 | AK47: 9386.026
A48: Darebin (C) | J48: 69536.532 | K48: 98018.206 | L48: 144765.315 | M48: 105294.285 | N48: 68552.128 | O48: 120041.369 | P48: 155093.441 | Q48: 106097.988 | R48: 65350.531 | S48: 112730.297 | T48: 152917.279 | U48: 116669.904 | V48: 78799.429 | W48: 118264.808 | X48: 161175.21 | Y48: 120294.404 | Z48: 75405.018 | AA48: 110456.642 | AB48: 155413.303 | AC48: 119615.357 | AD48: 74116.59726 | AE48: 119024.7267 | AF48: 154291.2266 | AG48: 123270.4624 | AH48: 78845.236 | AI48: 107810.295 | AJ48: 133056.488 | AK48: 104949.912
A49: East Gippsland (S) | J49: 13023.854 | K49: 20656.687 | L49: 22974.387 | M49: 21900.747 | N49: 13818.333 | O49: 22310.934 | P49: 23106.764 | Q49: 20958.662 | R49: 13365.816 | S49: 20644.803 | T49: 21076.315 | U49: 18755.114 | V49: 13518.178 | W49: 20883.065 | X49: 17811.78 | Y49: 16562.613 | Z49: 11248.32 | AA49: 16017.025 | AB49: 16276.836 | AC49: 16670.036 | AD49: 10336.18105 | AE49: 18881.38463 | AF49: 17677.88567 | AG49: 17974.56081 | AH49: 13268.724 | AI49: 16522.841 | AJ49: 18213.319 | AK49: 16031.111
A50: Frankston (C) | J50: 56316.791 | K50: 75716.726 | L50: 122606.916 | M50: 81919.886 | N50: 56680.348 | O50: 87579.732 | P50: 134670.997 | Q50: 82116.671 | R50: 57611.204 | S50: 82492.421 | T50: 126395.395 | U50: 90180.931 | V50: 58619.911 | W50: 85363.438 | X50: 123056.989 | Y50: 90208.082 | Z50: 54296.104 | AA50: 83692.49 | AB50: 124883.007 | AC50: 92755.597 | AD50: 57353.0453 | AE50: 86750.15173 | AF50: 123976.9381 | AG50: 95234.56823 | AH50: 62322.508 | AI50: 83190.05 | AJ50: 103518.345 | AK50: 78655.641
A51: Greater Dandenong (C) | J51: 11003.008 | K51: 7868.513 | L51: 13750.989 | M51: 6933.052 | N51: 10865.565 | O51: 7649.757 | P51: 14949.719 | Q51: 8098.947 | R51: 12488.833 | S51: 7425.873 | T51: 15847.694 | U51: 8568.457 | V51: 11540.649 | W51: 6891.612 | X51: 11437.043 | Y51: 6688.359 | Z51: 9087.823 | AA51: 6412.256 | AB51: 12173.465 | AC51: 7006.088 | AD51: 8861.964 | AE51: 7232.935 | AF51: 13625.438 | AG51: 7276.422 | AH51: 9383.77 | AI51: 7299.074 | AJ51: 13881.896 | AK51: 7008.993
A52: Greater Hume Shire (A) | J52: 171.234 | K52: 605.899 | L52: 786.423 | M52: 902.081 | N52: 181.763 | O52: 827.664 | P52: 857.165 | Q52: 961.57 | R52: 226.712 | S52: 938.589 | T52: 967.686 | U52: 1230.518 | V52: 215.606 | W52: 934.741 | X52: 1003.909 | Y52: 1271.584 | Z52: 202.168 | AA52: 876.513 | AB52: 1030.915 | AC52: 1274.455 | AD52: 192.375 | AE52: 979.442 | AF52: 944.054 | AG52: 1062.173 | AH52: 183.532 | AI52: 841.888 | AJ52: 743.306 | AK52: 989.608
A53: Greater Shepparton (C) | J53: 35456.2 | K53: 44496.817 | L53: 71864.092 | M53: 40546.261 | N53: 36540.421 | O53: 50251.01 | P53: 77171.732 | Q53: 41119.678 | R53: 35756.741 | S53: 47126.786 | T53: 73176.468 | U53: 43025.382 | V53: 34952.79 | W53: 48303.533 | X53: 79415.354 | Y53: 45781.622 | Z53: 36651.357 | AA53: 45637.983 | AB53: 77822.811 | AC53: 46159.984 | AD53: 37018.36228 | AE53: 48500.93289 | AF53: 78876.05701 | AG53: 43192.49589 | AH53: 40083.018 | AI53: 42036.187 | AJ53: 66686.822 | AK53: 31518.242
A54: Hume (C) | J54: 0 | K54: 0 | L54: 0 | M54: 0 | N54: 0 | O54: 0 | P54: 0 | Q54: 0 | R54: 2.757 | S54: 5968.027 | T54: 2185.565 | U54: 104.234 | V54: 80.618 | W54: 91.345 | X54: 410.042 | Y54: 100.428 | Z54: 95.191 | AA54: 83.277 | AB54: 516.991 | AC54: 146.448 | AD54: 2130.4665 | AE54: 3339.125601 | AF54: 3350.30528 | AG54: 162.4599728 | AH54: 195.72 | AI54: 221.598 | AJ54: 775.992 | AK54: 288.163
A55: Indigo (S) | J55: 1688.977 | K55: 1209.159 | L55: 5854.526 | M55: 1735.834 | N55: 1681.143 | O55: 1422.609 | P55: 6129.782 | Q55: 1666.023 | R55: 1804.536 | S55: 1110.902 | T55: 5946.646 | U55: 2354.043 | V55: 1890.344 | W55: 1501.314 | X55: 6525.398 | Y55: 2057.195 | Z55: 1933.613 | AA55: 1226.943 | AB55: 6377.585 | AC55: 2191.124 | AD55: 2332.187676 | AE55: 1636.895678 | AF55: 7197.314882 | AG55: 2528.451337 | AH55: 2510.095 | AI55: 891.179 | AJ55: 5557.22 | AK55: 2173.174
A56: Latrobe (C) | J56: 37115.306 | K56: 51264.181 | L56: 70498.682 | M56: 51417.582 | N56: 33475.854 | O56: 47531.506 | P56: 75458.889 | Q56: 52058.209 | R56: 30547.938 | S56: 46232.698 | T56: 70457.931 | U56: 54306.44 | V56: 36711.361 | W56: 51048.096 | X56: 76312.573 | Y56: 57815.353 | Z56: 35888.024 | AA56: 43131.931 | AB56: 69838.092 | AC56: 49034.645 | AD56: 33576.64739 | AE56: 39886.04388 | AF56: 69390.25383 | AG56: 51094.76155 | AH56: 31646.485 | AI56: 44761.361 | AJ56: 58586.895 | AK56: 44318.921
A57: Melbourne (C) | J57: 355429.058 | K57: 547801.078 | L57: 793648.596 | M57: 576496.491 | N57: 359512.651 | O57: 618802.291 | P57: 897117.25 | Q57: 593125.885 | R57: 371325.829 | S57: 623971.481 | T57: 837282.957 | U57: 634590.466 | V57: 391748.627 | W57: 657566.144 | X57: 863667.493 | Y57: 640247.587 | Z57: 388880.834 | AA57: 585228.525 | AB57: 908296.104 | AC57: 659775.995 | AD57: 412766.6698 | AE57: 614735.3579 | AF57: 933607.9559 | AG57: 679052.3599 | AH57: 429375.209 | AI57: 579325.613 | AJ57: 725610.701 | AK57: 466434.664
A58: Mildura (RC) | J58: 53395.377 | K58: 64888.283 | L58: 82113.399 | M58: 69470.286 | N58: 65665.374 | O58: 66912.859 | P58: 79548.755 | Q58: 60786.231 | R58: 53205.693 | S58: 65475.06 | T58: 74130.069 | U58: 50926.219 | V58: 50123.997 | W58: 61031.692 | X58: 66416.418 | Y58: 42882.797 | Z58: 41550.066 | AA58: 43803.851 | AB58: 56604.75 | AC58: 45835.838 | AD58: 43681.366 | AE58: 45957.068 | AF58: 48877.014 | AG58: 39069.215 | AH58: 39907.875 | AI58: 35468.703 | AJ58: 61835.26 | AK58: 35873.981
A59: Mitchell (S) | J59: 16931.063 | K59: 21133.264 | L59: 47504.912 | M59: 21210.548 | N59: 16670.485 | O59: 23898.992 | P59: 53639.659 | Q59: 21552.615 | R59: 15757.174 | S59: 21632.651 | T59: 52757.723 | U59: 27218.503 | V59: 18162.511 | W59: 23547.528 | X59: 56543.308 | Y59: 25162.78 | Z59: 17122.394 | AA59: 21090.545 | AB59: 54152.7 | AC59: 24494.333 | AD59: 16570.068 | AE59: 23302.54093 | AF59: 57014.12648 | AG59: 24028.70225 | AH59: 19616.577 | AI59: 23459.04 | AJ59: 48533.8 | AK59: 22794.354
A60: Moira (S) | J60: 9905.851 | K60: 23678.62 | L60: 58002.61 | M60: 14659.252 | N60: 9906.491 | O60: 17667.878 | P60: 30346.532 | Q60: 16699.538 | R60: 9946.245 | S60: 16627.884 | T60: 24040.308 | U60: 18839.67 | V60: 11690.42 | W60: 17825.595 | X60: 27919.597 | Y60: 16622.943 | Z60: 10700.026 | AA60: 15702.665 | AB60: 25102.09 | AC60: 17485.416 | AD60: 10382.07 | AE60: 16414.057 | AF60: 23933.969 | AG60: 17481.38749 | AH60: 10938.458 | AI60: 15375.153 | AJ60: 21715.415 | AK60: 14947.09
A61: Moreland (C) | J61: 31242.669 | K61: 45293.27 | L61: 62573.403 | M61: 51543.009 | N61: 31183.578 | O61: 49647.165 | P61: 66861.11 | Q61: 51556.471 | R61: 31380.302 | S61: 47752.715 | T61: 65772.902 | U61: 56253.447 | V61: 33166.744 | W61: 51048.282 | X61: 68065.86 | Y61: 57496.713 | Z61: 31427.623 | AA61: 48246.413 | AB61: 64854.513 | AC61: 56641.452 | AD61: 32907.92065 | AE61: 50802.42084 | AF61: 67676.79714 | AG61: 58648.51173 | AH61: 36811.646 | AI61: 48957.717 | AJ61: 61100.803 | AK61: 47810.681
A62: Mornington Peninsula (S) | J62: 74938.829 | K62: 76302.396 | L62: 139083.33 | M62: 80608.04 | N62: 69636.59 | O62: 94369.101 | P62: 150920.805 | Q62: 80058.148 | R62: 67446.742 | S62: 86131.118 | T62: 143398.182 | U62: 92681.767 | V62: 77194.216 | W62: 85397.923 | X62: 142232.884 | Y62: 85960.209 | Z62: 68587.083 | AA62: 81669.158 | AB62: 141566.734 | AC62: 86847.528 | AD62: 66239.13807 | AE62: 89999.61688 | AF62: 148687.937 | AG62: 94272.31027 | AH62: 80774.217 | AI62: 76876.412 | AJ62: 121423.7 | AK62: 69410.434
A63: Murray (A) | J63: 6409.43 | K63: 12955.662 | L63: 9949.764 | M63: 12409.211 | N63: 6440.905 | O63: 14430.322 | P63: 9941.528 | Q63: 13689.294 | R63: 6145.064 | S63: 13834.469 | T63: 9594.409 | U63: 14084.736 | V63: 6566.474 | W63: 13787.126 | X63: 10138.987 | Y63: 14104.335 | Z63: 6257.312 | AA63: 13721.913 | AB63: 10195.059 | AC63: 13932.152 | AD63: 6795.159 | AE63: 14495.618 | AF63: 10128.369 | AG63: 13528.659 | AH63: 6775.415 | AI63: 13322.673 | AJ63: 10567.168 | AK63: 12320.081
A64: Nillumbik (S) | J64: 11448.965 | K64: 15480.574 | L64: 27601.818 | M64: 17278.526 | N64: 10793.103 | O64: 17560.003 | P64: 28851.916 | Q64: 16303.571 | R64: 11513.179 | S64: 16345.445 | T64: 27969.15 | U64: 20137.715 | V64: 11153.995 | W64: 18093.203 | X64: 28325.801 | Y64: 19665.743 | Z64: 12682.524 | AA64: 17955.082 | AB64: 28585.504 | AC64: 19228.323 | AD64: 11815.386 | AE64: 16249.02659 | AF64: 26850.29476 | AG64: 19201.71035 | AH64: 12684.213 | AI64: 14538.9 | AJ64: 22785.956 | AK64: 15141.241
A65: Strathbogie (S) | J65: 2143.997 | K65: 1854.933 | L65: 5407.664 | M65: 2277.875 | N65: 1644.184 | O65: 1768.659 | P65: 6190.305 | Q65: 2234.872 | R65: 1420.319 | S65: 1816.075 | T65: 5353.331 | U65: 3052.89 | V65: 1722.822 | W65: 2090.185 | X65: 4328.23 | Y65: 2416.97 | Z65: 1588.503 | AA65: 1488.436 | AB65: 4094.685 | AC65: 2307.279 | AD65: 1474.687 | AE65: 2089.284 | AF65: 4370.7 | AG65: 3192.639 | AH65: 1643.5 | AI65: 2171.75 | AJ65: 4096.4 | AK65: 2445.907
A66: Wangaratta (RC) | J66: 19725.463 | K66: 18445.454 | L66: 32943.457 | M66: 22162.505 | N66: 17701.85 | O66: 21021.887 | P66: 37415.346 | Q66: 22642.329 | R66: 16410.216 | S66: 17894.867 | T66: 33760.95 | U66: 26900.879 | V66: 17556.254 | W66: 21493.159 | X66: 35958.767 | Y66: 25545.736 | Z66: 17450.956 | AA66: 19986.756 | AB66: 35268.195 | AC66: 25516.318 | AD66: 16240.392 | AE66: 20111.93313 | AF66: 33829.94819 | AG66: 23774.77495 | AH66: 18633.003 | AI66: 17054.211 | AJ66: 28806.691 | AK66: 21771.301
A67: Wellington (S) | J67: 13356.79 | K67: 17479.605 | L67: 31735.671 | M67: 18770.921 | N67: 12897.383 | O67: 20955.981 | P67: 37026.618 | Q67: 18235.029 | R67: 13075.149 | S67: 20061.579 | T67: 34129.402 | U67: 17610.113 | V67: 13109.782 | W67: 21233.23 | X67: 34219.777 | Y67: 17695.431 | Z67: 11386.9 | AA67: 13145.612 | AB67: 24954.562 | AC67: 14616.946 | AD67: 10470.026 | AE67: 12137.938 | AF67: 24054.778 | AG67: 14648.771 | AH67: 11474.856 | AI67: 11696.941 | AJ67: 21833.041 | AK67: 11611.67
A68: Whittlesea (C) | J68: 105025.197 | K68: 150155.243 | L68: 179991.003 | M68: 144827.695 | N68: 93956.634 | O68: 170526.006 | P68: 201660.406 | Q68: 150396.758 | R68: 95587.193 | S68: 166300.349 | T68: 198220.583 | U68: 163088.496 | V68: 114784.853 | W68: 184100.28 | X68: 193621.916 | Y68: 167328.729 | Z68: 98543.972 | AA68: 153151.194 | AB68: 197474.278 | AC68: 168543.42 | AD68: 105603.9761 | AE68: 166647.4489 | AF68: 198486.1641 | AG68: 171671.7677 | AH68: 112542.459 | AI68: 166899.616 | AJ68: 175878.096 | AK68: 145610.163
A69: Wodonga (RC) | J69: 17125.62 | K69: 33077.296 | L69: 66390.921 | M69: 27492.725 | N69: 16130.728 | O69: 33900.594 | P69: 65690.816 | Q69: 25025.409 | R69: 14637.857 | S69: 31364.65 | T69: 59233.779 | U69: 31220.462 | V69: 15413.167 | W69: 34214.035 | X69: 65403.355 | Y69: 30622.688 | Z69: 16060.636 | AA69: 30225.234 | AB69: 68674.004 | AC69: 32146.354 | AD69: 17400.45039 | AE69: 34125.55503 | AF69: 74629.77726 | AG69: 34067.1644 | AH69: 16752.012 | AI69: 34594.457 | AJ69: 57033.732 | AK69: 27291.844
A70: Yarra (C) | J70: 116931.598 | K70: 149683.893 | L70: 242011.043 | M70: 159283.089 | N70: 126823.861 | O70: 172495.571 | P70: 261429.205 | Q70: 161940.711 | R70: 122354.037 | S70: 167778.749 | T70: 249661.436 | U70: 175202.341 | V70: 134462.519 | W70: 174749.743 | X70: 263948.739 | Y70: 177014.104 | Z70: 128611.694 | AA70: 160883.683 | AB70: 258642.497 | AC70: 174220.514 | AD70: 126815.7804 | AE70: 164079.7827 | AF70: 261206.1342 | AG70: 174961.8505 | AH70: 140605.777 | AI70: 153879.413 | AJ70: 211996.945 | AK70: 137001.584
A71: Yarra Ranges (S) | J71: 5182.811 | K71: 12455.555 | L71: 11074.21 | M71: 12710.58 | N71: 4921.776 | O71: 13638.922 | P71: 12759.071 | Q71: 10922.664 | R71: 4742.564 | S71: 11759.925 | T71: 13455.432 | U71: 11617.634 | V71: 4869.155 | W71: 13898.804 | X71: 14441.84 | Y71: 11570.022 | Z71: 5057.06 | AA71: 11753.016 | AB71: 14306.584 | AC71: 13274.029 | AD71: 5395.249 | AE71: 13093.57504 | AF71: 13412.55889 | AG71: 13129.68591 | AH71: 5638.129 | AI71: 10225.454 | AJ71: 10515.678 | AK71: 7454.881
A72: AGN | J72: 1302097.46 | K72: 1791664.693 | L72: 2783019.368 | M72: 1851318.44 | N72: 1298067.477 | O72: 2018946.828 | P72: 3012546.709 | Q72: 1858701.914 | R72: 1277863.883 | S72: 1955897.378 | T72: 2865724.641 | U72: 2016032.953 | V72: 1381217.85 | W72: 2064136.294 | X72: 2960399.985 | Y72: 2019265.643 | Z72: 1332863.364 | AA72: 1856658.868 | AB72: 2959721.202 | AC72: 2051167.758 | AD72: 1365731.307 | AE72: 1950426.344 | AF72: 3004389.46 | AG72: 2086862.15 | AH72: 1454027.502 | AI72: 1830851.886 | AJ72: 2524631.625 | AK72: 1617187.077
A74: Residential volume GJ (FY) | B74: 2012 | C74: =B74+1 -> 2013 | D74: =C74+1 -> 2014 | E74: 2015 | F74: 2016 | G74: 2017 | H74: 2018 | I74: 2019 | J74: 2020 | K74: 2021
A75: Albury (C) | D75: 217706.029 | E75: 864419.119 | F75: 880094.9 | G75: 959376.795 | H75: 970092.048 | I75: 979512.119 | J75: 1052691.097 | K75: 725159.34
A76: Banyule (C) | D76: 679583.144 | E76: 2480309.47 | F76: 2496007.114 | G76: 2662596.014 | H76: 2558405.42 | I76: 2475737.153 | J76: 2692504.377 | K76: 1840637.417
A77: Baw Baw (S) | D77: 166929.487 | E77: 632503.436 | F77: 648055.458 | G77: 696721.08 | H77: 704622.782 | I77: 711884.5345 | J77: 833664.3464 | K77: 562826.55
A78: Benalla (RC) | D78: 45624.357 | E78: 174512.73 | F78: 171927.278 | G78: 187166.727 | H78: 180238.795 | I78: 176746.595 | J78: 188883.2232 | K78: 136549.3421
A79: Berrigan (A) | D79: 6525.123 | E79: 30685.572 | F79: 31773.232 | G79: 36226.991 | H79: 34249.818 | I79: 34047.926 | J79: 37944.977 | K79: 30845.175
A80: Campaspe (S) | D80: 93630.209 | E80: 380257.227 | F80: 375557.32 | G80: 419993.598 | H80: 405956.682 | I80: 393103.7274 | J80: 435774.2513 | K80: 316137.469
A81: Cardinia (S) | D81: 224515.126 | E81: 913523.733 | F81: 964869.011 | G81: 1080508.508 | H81: 1108102.084 | I81: 1164008.829 | J81: 1329091.583 | K81: 984830.289
A82: Casey (C) | D82: 1175886.839 | E82: 4356956.147 | F82: 4440304.372 | G82: 4761382.602 | H82: 4873888.649 | I82: 4892582.038 | J82: 5642163.438 | K82: 3729427.675
A83: Corowa Shire (A) | D83: 23221.471 | E83: 106716.458 | F83: 106373.203 | G83: 115098.138 | H83: 113581.429 | I83: 116476.999 | J83: 129585.609 | K83: 93849.618
A84: Darebin (C) | D84: 678907.684 | E84: 2332596.807 | F84: 2346605.04 | G84: 2483262.5 | H84: 2365942.188 | I84: 2289542.486 | J84: 2502355.883 | K84: 1638901.187
A85: East Gippsland (S) | D85: 24065.599 | E85: 98278.037 | F85: 105910.608 | G85: 115430.301 | H85: 113506.982 | I85: 114522.8415 | J85: 130040.0912 | K85: 93341.684
A86: Frankston (C) | D86: 627145.239 | E86: 2260684.079 | F86: 2276817.063 | G86: 2338169.129 | H86: 2265130.374 | I86: 2206256.629 | J86: 2418815.337 | K86: 1591453.434
A87: Greater Dandenong (C) | D87: 239.748 | E87: 664.981 | F87: 685.845 | G87: 465.146 | H87: 630.622 | I87: 944.778 | J87: 721.764 | K87: 422.818
A88: Greater Hume Shire (A) | D88: 11716.195 | E88: 32446.211 | F88: 32808.212 | G88: 33977.325 | H88: 37088.382 | I88: 37967.747 | J88: 39356.324 | K88: 23502.445
A89: Greater Shepparton (C) | D89: 214584.225 | E89: 835344.018 | F89: 851509.479 | G89: 930359.982 | H89: 903470.462 | I89: 885715.8037 | J89: 952600.855 | K89: 682937.718
A90: Hume (C) | D90: 0 | E90: 0 | F90: 1506.063 | G90: 18276.051 | H90: 46701.036 | I90: 97290.1428 | J90: 188199.2016 | K90: 174317.983
A91: Indigo (S) | D91: 8483.697 | E91: 49965.024 | F91: 53919.332 | G91: 57098.017 | H91: 57370.114 | I91: 56675.22553 | J91: 61544.75372 | K91: 52886.705
A92: Latrobe (C) | D92: 361902.91 | E92: 1238786.475 | F92: 1243834.604 | G92: 1273517.573 | H92: 1252995.396 | I92: 1234561.829 | J92: 1383360.838 | K92: 890279.523
A93: Manningham (C) | D93: 150.849 | E93: 627.95 | F93: 690.382 | G93: 766.4 | H93: 745.141 | I93: 819.597 | J93: 736.618 | K93: 376.328
A94: Melbourne (C) | D94: 119701.365 | E94: 344750.689 | F94: 361366.97 | G94: 383749.126 | H94: 384222.028 | I94: 372399.4354 | J94: 392895.2553 | K94: 223935.468
A95: Mildura (RC) | D95: 41691.958 | E95: 158542.41 | F95: 158819.13 | G95: 179552.951 | H95: 169437.964 | I95: 180744.129 | J95: 189134.465 | K95: 142794.607
A96: Mitchell (S) | D96: 157106.198 | E96: 596004.699 | F96: 623723.278 | G96: 702600.219 | H96: 676712.522 | I96: 702589.8817 | J96: 808613.7714 | K96: 582324.06
A97: Moira (S) | D97: 56442.722 | E97: 217169.435 | F97: 217623.712 | G97: 244339.047 | H97: 239177.698 | I97: 238933.2191 | J97: 258572.4583 | K97: 184836.994
A98: Moreland (C) | D98: 186710.131 | E98: 614304.435 | F98: 614226.956 | G98: 644836.695 | H98: 617787.839 | I98: 595210.3161 | J98: 651086.8966 | K98: 421447.94
A99: Mornington Peninsula (S) | D99: 844944.972 | E99: 2931480.882 | F99: 2921185.862 | G99: 3080583.391 | H99: 2989727.116 | I99: 2946517.074 | J99: 3292991.588 | K99: 2224150.616
A100: Murray (A) | D100: 26225.14 | E100: 81724.695 | F100: 81176.233 | G100: 94228.549 | H100: 94072.686 | I100: 95477.3 | J100: 109734.996 | K100: 67334.965
A101: Nillumbik (S) | D101: 274954.849 | E101: 993621.326 | F101: 991599.082 | G101: 1070541.69 | H101: 1043801.105 | I101: 1014416.819 | J101: 1100194.025 | K101: 743589.666
A102: Strathbogie (S) | D102: 13988.907 | E102: 50160.678 | F102: 49025.528 | G102: 54324.765 | H102: 52304.191 | I102: 50684.23672 | J102: 54816.77504 | K102: 37901.936
A103: Wangaratta (RC) | D103: 90507.133 | E103: 353717.939 | F103: 360469.952 | G103: 387813.979 | H103: 384948.494 | I103: 377926.6286 | J103: 411441.1174 | K103: 284756.686
A104: Wellington (S) | D104: 111941.961 | E104: 376049.822 | F104: 376192.462 | G104: 370959.309 | H104: 364463.43 | I104: 359677.9623 | J104: 391699.0597 | K104: 256207.622
A105: Whittlesea (C) | D105: 1054260.81 | E105: 3884193.706 | F105: 4053622.737 | G105: 4445836.083 | H105: 4356770.194 | I105: 4310711.734 | J105: 4895209.451 | K105: 3208586.143
A106: Wodonga (RC) | D106: 170864.744 | E106: 671700.979 | F106: 687729.38 | G106: 748044.743 | H106: 760718.145 | I106: 758683.7648 | J106: 824701.5924 | K106: 574064.879
A107: Yarra (C) | D107: 284161.698 | E107: 908943.954 | F107: 907058.085 | G107: 954299.805 | H107: 910058.09 | I107: 887805.143 | J107: 959894.4048 | K107: 620496.024
A108: Yarra Ranges (S) | D108: 47934.416 | E108: 165404.133 | F108: 158763.574 | G108: 172319.075 | H108: 167392.721 | I108: 164025.7696 | J108: 179184.4487 | K108: 110223.608
A109: AGN | D109: 8042254.935 | E109: 29137047.26 | F109: 29591831.46 | G109: 31704422.3 | H109: 31204312.63 | I109: 30924200.41 | J109: 34540204.87 | K109: 23251333.91
A111: Commercial volume GJ | B111: 2012 | C111: =B111+1 -> 2013 | D111: =C111+1 -> 2014 | E111: 2015 | F111: 2016 | G111: 2017 | H111: 2018 | I111: 2019 | J111: 2020 | K111: 2021
A112: Albury (C) | D112: 86191.775 | E112: 241326.762 | F112: 233932.239 | G112: 233790.107 | H112: 241037.394 | I112: 238838.577 | J112: 233168.463 | K112: 129752.56
A113: Banyule (C) | D113: 113372.996 | E113: 296005.811 | F113: 309555.839 | G113: 327923.642 | H113: 331759.109 | I113: 334085.2027 | J113: 333076.1057 | K113: 175226.918
A114: Baw Baw (S) | D114: 38031.899 | E114: 84281.386 | F114: 77174.613 | G114: 98032.951 | H114: 112845.385 | I114: 121766.1276 | J114: 119019.4413 | K114: 53707.687
A115: Benalla (RC) | D115: 20351.42 | E115: 51027.256 | F115: 50749.318 | G115: 41159.646 | H115: 37841.267 | I115: 37978.88977 | J115: 38709.17082 | K115: 20834.692
A116: Berrigan (A) | D116: 4392.102 | E116: 11415.878 | F116: 11457.459 | G116: 12744.002 | H116: 11718.059 | I116: 11077.452 | J116: 10759.798 | K116: 5959.043
A117: Campaspe (S) | D117: 55268.352 | E117: 129469.474 | F117: 132263.095 | G117: 124963.892 | H117: 135934.29 | I117: 145828.6248 | J117: 132177.1079 | K117: 72114.063
A118: Cardinia (S) | D118: 54097.376 | E118: 144060.304 | F118: 145390.301 | G118: 152069.426 | H118: 146571.697 | I118: 157039.219 | J118: 166343.5718 | K118: 91113.949
A119: Casey (C) | D119: 150479.764 | E119: 429304.309 | F119: 434929.055 | G119: 469473.432 | H119: 477683.482 | I119: 471967.7695 | J119: 496701.1427 | K119: 262985.282
A120: Corowa Shire (A) | D120: 17550.535 | E120: 38585.361 | F120: 38952.837 | G120: 39189.384 | H120: 39997.136 | I120: 40690.827 | J120: 37521.375 | K120: 21517.198
A121: Darebin (C) | D121: 167554.738 | E121: 438653.097 | F121: 439272.257 | G121: 466651.42 | H121: 467331.274 | I121: 468169.984 | J121: 464217.22 | K121: 238006.4
A122: East Gippsland (S) | D122: 33680.541 | E122: 81004.401 | F122: 78076.045 | G122: 74232.672 | H122: 61639.738 | I122: 62164.43768 | J122: 65444.01148 | K122: 34244.43
A123: Frankston (C) | D123: 132033.517 | E123: 348786.882 | F123: 356891.293 | G123: 360559.675 | H123: 351253.665 | I123: 361741.801 | J123: 364724.0643 | K123: 182173.986
A124: Greater Dandenong (C) | D124: 18871.521 | E124: 39199.363 | F124: 42963.372 | G124: 42848.412 | H124: 33625.481 | I124: 35274.452 | J124: 37584.704 | K124: 20890.889
A125: Greater Hume Shire (A) | D125: 777.133 | E125: 2697.931 | F125: 2984.036 | G125: 3348.551 | H125: 3354.174 | I125: 3477.187 | J125: 3031.647 | K125: 1732.914
A126: Greater Shepparton (C) | D126: 79953.017 | E126: 199201.784 | F126: 201174.937 | G126: 199458.173 | H126: 207486.316 | I126: 209502.0902 | J126: 204187.7579 | K126: 98205.064
A127: Hume (C) | D127: 0 | E127: 0 | F127: 5970.784 | G127: 2461.762 | H127: 688.938 | I127: 6133.031101 | J127: 3930.083253 | K127: 1064.155
A128: Indigo (S) | D128: 2898.136 | E128: 10694.112 | F128: 10711.243 | G128: 11692.347 | H128: 11743.149 | I128: 12537.79235 | J128: 13127.04022 | K128: 7730.394
A129: Latrobe (C) | D129: 88379.487 | E129: 202923.624 | F129: 204297.734 | G129: 212523.828 | H129: 213147.881 | I129: 192335.4283 | J129: 196892.8614 | K129: 102905.816
A130: Melbourne (C) | D130: 903230.136 | E130: 2348460.029 | F130: 2485540.445 | G130: 2521188.194 | H130: 2478024.439 | I130: 2595574.127 | J130: 2621361.138 | K130: 1192045.365
A131: Mildura (RC) | D131: 118283.66 | E131: 284161.918 | F131: 259015.739 | G131: 236211.977 | H131: 194653.132 | I131: 192079.022 | J131: 163322.807 | K131: 97709.241
A132: Mitchell (S) | D132: 38064.327 | E132: 109284.937 | F132: 112582.099 | G132: 121686.265 | H132: 119919.027 | I132: 118519.6419 | J132: 124118.4457 | K132: 71328.154
A133: Moira (S) | D133: 33584.471 | E133: 100236.231 | F133: 73620.199 | G133: 72395.993 | H133: 70945.231 | I133: 69383.633 | J133: 67728.96749 | K133: 36662.505
A134: Moreland (C) | D134: 76535.939 | E134: 194947.155 | F134: 197550.598 | G134: 206241.375 | H134: 205236.609 | I134: 205206.3065 | J134: 212094.6719 | K134: 108911.484
A135: Mornington Peninsula (S) | D135: 151241.225 | E135: 383697.061 | F135: 384556.813 | G135: 398672.088 | H135: 378449.334 | I135: 384653.0169 | J135: 400610.8762 | K135: 190834.134
A136: Murray (A) | D136: 19365.092 | E136: 43230.202 | F136: 43610.355 | G136: 44032.745 | H136: 44222.547 | I136: 45417.988 | J136: 43755.116 | K136: 22887.249
A137: Nillumbik (S) | D137: 26929.539 | E137: 73233.45 | F137: 73014.111 | G137: 77354.063 | H137: 78629.15 | I137: 75878.23959 | J137: 73275.11811 | K137: 37927.197
A138: Strathbogie (S) | D138: 3998.93 | E138: 11098.382 | F138: 11661.571 | G138: 12219.228 | H138: 9822.139 | I138: 9965.935 | J138: 11378.589 | K138: 6542.307
A139: Wangaratta (RC) | D139: 38170.917 | E139: 93829.699 | F139: 94362.758 | G139: 99711.242 | H139: 98942.215 | I139: 97136.83813 | J139: 93291.93714 | K139: 50577.992
A140: Wellington (S) | D140: 30836.395 | E140: 84359.956 | F140: 88398.375 | G140: 86082.527 | H140: 76447.72 | I140: 62179.472 | J140: 61875.346 | K140: 33444.711
A141: Whittlesea (C) | D141: 255180.44 | E141: 589301.338 | F141: 613944.706 | G141: 660194.212 | H141: 612645.811 | I141: 638269.123 | J141: 649600.0068 | K141: 321488.259
A142: Wodonga (RC) | D142: 50202.916 | E142: 143914.968 | F142: 136718.732 | G142: 140081.443 | H142: 142311.913 | I142: 152346.3634 | J142: 160043.4107 | K142: 84325.576
A143: Yarra (C) | D143: 266615.491 | E143: 700613.564 | F143: 713502.702 | G143: 734076.039 | H143: 730458.22 | I143: 723758.5741 | J143: 730653.1747 | K143: 348998.529
A144: Yarra Ranges (S) | D144: 17638.366 | E144: 42345.488 | F144: 40184.224 | G144: 43841.025 | H144: 42821.938 | I144: 46069.43704 | J144: 42405.8278 | K144: 17970.559
A145: AGN | D145: 3093762.153 | E145: 7951352.113 | F145: 8105009.884 | G145: 8327111.738 | H145: 8169187.86 | I145: 8327046.61 | J145: 8376130.998 | K145: 4141818.702

Sheet Customers
A1: Residential Customers | B1: 2012 | C1: 2012 | D1: 2012 | E1: 2012 | F1: =B1+1 -> 2013 | G1: =C1+1 -> 2013 | H1: 2013 | I1: 2013 | J1: =F1+1 -> 2014 | K1: =G1+1 -> 2014 | L1: =H1+1 -> 2014 | M1: =I1+1 -> 2014 | N1: =J1+1 -> 2015 | O1: =K1+1 -> 2015 | P1: =L1+1 -> 2015 | Q1: =M1+1 -> 2015 | R1: =N1+1 -> 2016 | S1: =O1+1 -> 2016 | T1: =P1+1 -> 2016 | U1: =Q1+1 -> 2016 | V1: =R1+1 -> 2017 | W1: =S1+1 -> 2017 | X1: =T1+1 -> 2017 | Y1: =U1+1 -> 2017 | Z1: =V1+1 -> 2018 | AA1: =W1+1 -> 2018 | AB1: =X1+1 -> 2018 | AC1: =Y1+1 -> 2018 | AD1: =Z1+1 -> 2019 | AE1: =AA1+1 -> 2019 | AF1: =AB1+1 -> 2019 | AG1: =AC1+1 -> 2019 | AH1: =AD1+1 -> 2020 | AI1: =AE1+1 -> 2020 | AJ1: =AF1+1 -> 2020 | AK1: =AG1+1 -> 2020
A2: LGA | B2: 2012Q1 | C2: 2012Q2 | D2: 2012Q3 | E2: 2012Q4 | F2: 2013Q1 | G2: 2013Q2 | H2: 2013Q3 | I2: 2013Q4 | J2: 2014Q1 | K2: 2014Q2 | L2: 2014Q3 | M2: 2014Q4 | N2: 2015Q1 | O2: 2015Q2 | P2: 2015Q3 | Q2: 2015Q4 | R2: 2016Q1 | S2: 2016Q2 | T2: 2016Q3 | U2: 2016Q4 | V2: 2017Q1 | W2: 2017Q2 | X2: 2017Q3 | Y2: 2017Q4 | Z2: 2018Q1 | AA2: 2018Q2 | AB2: 2018Q3 | AC2: 2018Q4 | AD2: 2019Q1 | AE2: 2019Q2 | AF2: 2019Q3 | AG2: 2019Q4 | AH2: 2020Q1 | AI2: 2020Q2 | AJ2: 2020Q3 | AK2: 2020Q4
A3: Albury (C) | J3: 17648 | K3: 18608 | L3: 18880 | M3: 18904 | N3: 17829 | O3: 19077 | P3: 19297 | Q3: 19273 | R3: 18208 | S3: 19431 | T3: 19682 | U3: 19789 | V3: 19038 | W3: 19912 | X3: 20093 | Y3: 20126 | Z3: 19268 | AA3: 20140 | AB3: 20384 | AC3: 20413 | AD3: 19728 | AE3: 20457 | AF3: 20649 | AG3: 20678 | AH3: 20229 | AI3: 20900 | AJ3: 21055 | AK3: 21093
A4: Banyule (C) | J4: 44464 | K4: 44648 | L4: 44790 | M4: 44800 | N4: 44621 | O4: 44978 | P4: 45102 | Q4: 45083 | R4: 44847 | S4: 45135 | T4: 45324 | U4: 45356 | V4: 45277 | W4: 45487 | X4: 45687 | Y4: 45654 | Z4: 45514 | AA4: 45724 | AB4: 45800 | AC4: 45733 | AD4: 45573 | AE4: 45848 | AF4: 45935 | AG4: 46014 | AH4: 45917 | AI4: 46066 | AJ4: 46184 | AK4: 46181
A5: Baw Baw (S) | J5: 12293 | K5: 12459 | L5: 12607 | M5: 12717 | N5: 12731 | O5: 12945 | P5: 13085 | Q5: 13191 | R5: 13211 | S5: 13387 | T5: 13549 | U5: 13675 | V5: 13726 | W5: 13890 | X5: 14006 | Y5: 14124 | Z5: 14150 | AA5: 14394 | AB5: 14574 | AC5: 14707 | AD5: 14752 | AE5: 14995 | AF5: 15247 | AG5: 15401 | AH5: 15483 | AI5: 15731 | AJ5: 15994 | AK5: 16078
A6: Benalla (RC) | J6: 4058 | K6: 4160 | L6: 4186 | M6: 4165 | N6: 4040 | O6: 4182 | P6: 4207 | Q6: 4177 | R6: 4055 | S6: 4181 | T6: 4212 | U6: 4221 | V6: 4147 | W6: 4225 | X6: 4237 | Y6: 4230 | Z6: 4110 | AA6: 4255 | AB6: 4277 | AC6: 4274 | AD6: 4200 | AE6: 4285 | AF6: 4298 | AG6: 4300 | AH6: 4249 | AI6: 4325 | AJ6: 4353 | AK6: 4328
A7: Berrigan (A) | J7: 956 | K7: 1024 | L7: 1060 | M7: 1050 | N7: 934 | O7: 1064 | P7: 1089 | Q7: 1061 | R7: 979 | S7: 1084 | T7: 1126 | U7: 1104 | V7: 1059 | W7: 1117 | X7: 1157 | Y7: 1129 | Z7: 1068 | AA7: 1135 | AB7: 1168 | AC7: 1149 | AD7: 1112 | AE7: 1161 | AF7: 1190 | AG7: 1171 | AH7: 1128 | AI7: 1172 | AJ7: 1208 | AK7: 1181
A8: Campaspe (S) | J8: 8607 | K8: 9098 | L8: 9187 | M8: 9145 | N8: 8506 | O8: 9192 | P8: 9281 | Q8: 9237 | R8: 8653 | S8: 9319 | T8: 9436 | U8: 9437 | V8: 8979 | W8: 9449 | X8: 9531 | Y8: 9497 | Z8: 9036 | AA8: 9469 | AB8: 9618 | AC8: 9605 | AD8: 9151 | AE8: 9601 | AF8: 9728 | AG8: 9698 | AH8: 9396 | AI8: 9777 | AJ8: 9864 | AK8: 9813
A9: Cardinia (S) | J9: 18286 | K9: 18491 | L9: 18852 | M9: 19018 | N9: 19445 | O9: 19798 | P9: 20307 | Q9: 20446 | R9: 20727 | S9: 20986 | T9: 21473 | U9: 21701 | V9: 22144 | W9: 22483 | X9: 23132 | Y9: 23463 | Z9: 23933 | AA9: 24372 | AB9: 25063 | AC9: 25294 | AD9: 25735 | AE9: 26024 | AF9: 26747 | AG9: 26999 | AH9: 27406 | AI9: 27686 | AJ9: 28143 | AK9: 28250
A10: Casey (C) | J10: 76745 | K10: 77652 | L10: 78571 | M10: 79222 | N10: 79682 | O10: 80770 | P10: 81722 | Q10: 82280 | R10: 82756 | S10: 83799 | T10: 84836 | U10: 85489 | V10: 86317 | W10: 87568 | X10: 88765 | Y10: 89666 | Z10: 90542 | AA10: 91865 | AB10: 93237 | AC10: 94275 | AD10: 95125 | AE10: 96582 | AF10: 97774 | AG10: 98690 | AH10: 99405 | AI10: 100394 | AJ10: 101305 | AK10: 102020
A11: Corowa Shire (A) | J11: 2862 | K11: 3193 | L11: 3238 | M11: 3258 | N11: 2779 | O11: 3275 | P11: 3312 | Q11: 3300 | R11: 2855 | S11: 3302 | T11: 3356 | U11: 3388 | V11: 3011 | W11: 3400 | X11: 3417 | Y11: 3431 | Z11: 3044 | AA11: 3421 | AB11: 3493 | AC11: 3511 | AD11: 3132 | AE11: 3537 | AF11: 3560 | AG11: 3595 | AH11: 3321 | AI11: 3617 | AJ11: 3627 | AK11: 3641
A12: Darebin (C) | J12: 50397 | K12: 50634 | L12: 50806 | M12: 50866 | N12: 50831 | O12: 51123 | P12: 51265 | Q12: 51386 | R12: 51244 | S12: 51616 | T12: 51790 | U12: 51976 | V12: 51873 | W12: 52111 | X12: 52254 | Y12: 52275 | Z12: 52215 | AA12: 52488 | AB12: 52639 | AC12: 52647 | AD12: 52525 | AE12: 52799 | AF12: 52962 | AG12: 53083 | AH12: 53106 | AI12: 53414 | AJ12: 53498 | AK12: 53466
A13: East Gippsland (S) | J13: 2979 | K13: 3186 | L13: 3300 | M13: 3384 | N13: 3320 | O13: 3510 | P13: 3595 | Q13: 3630 | R13: 3532 | S13: 3748 | T13: 3818 | U13: 3893 | V13: 3819 | W13: 3969 | X13: 4007 | Y13: 4062 | Z13: 3991 | AA13: 4168 | AB13: 4216 | AC13: 4253 | AD13: 4174 | AE13: 4333 | AF13: 4388 | AG13: 4421 | AH13: 4403 | AI13: 4493 | AJ13: 4573 | AK13: 4598
A14: Frankston (C) | J14: 46107 | K14: 46278 | L14: 46443 | M14: 46490 | N14: 46279 | O14: 46549 | P14: 46653 | Q14: 46664 | R14: 46485 | S14: 46759 | T14: 46932 | U14: 46963 | V14: 46880 | W14: 47055 | X14: 47145 | Y14: 47175 | Z14: 47029 | AA14: 47338 | AB14: 47496 | AC14: 47510 | AD14: 47361 | AE14: 47662 | AF14: 47830 | AG14: 47862 | AH14: 47805 | AI14: 48027 | AJ14: 48167 | AK14: 48219
A15: Greater Dandenong (C) | J15: 8 | K15: 8 | L15: 7 | M15: 7 | N15: 7 | O15: 7 | P15: 7 | Q15: 7 | R15: 7 | S15: 6 | T15: 6 | U15: 6 | V15: 6 | W15: 6 | X15: 8 | Y15: 9 | Z15: 8 | AA15: 8 | AB15: 8 | AC15: 8 | AD15: 8 | AE15: 8 | AF15: 8 | AG15: 8 | AH15: 8 | AI15: 8 | AJ15: 8 | AK15: 7
A16: Greater Hume Shire (A) | J16: 334 | K16: 361 | L16: 365 | M16: 371 | N16: 335 | O16: 381 | P16: 387 | Q16: 395 | R16: 347 | S16: 398 | T16: 399 | U16: 403 | V16: 376 | W16: 426 | X16: 425 | Y16: 433 | Z16: 405 | AA16: 445 | AB16: 455 | AC16: 460 | AD16: 424 | AE16: 471 | AF16: 475 | AG16: 487 | AH16: 460 | AI16: 505 | AJ16: 508 | AK16: 526
A17: Greater Shepparton (C) | J17: 17958 | K17: 18433 | L17: 18608 | M17: 18609 | N17: 17987 | O17: 18763 | P17: 18881 | Q17: 18854 | R17: 18258 | S17: 19037 | T17: 19190 | U17: 19214 | V17: 18793 | W17: 19310 | X17: 19414 | Y17: 19385 | Z17: 18902 | AA17: 19505 | AB17: 19651 | AC17: 19636 | AD17: 19258 | AE17: 19808 | AF17: 19972 | AG17: 19991 | AH17: 19718 | AI17: 20128 | AJ17: 20325 | AK17: 20334
A18: Hume (C) | J18: 0 | K18: 0 | L18: 0 | M18: 0 | N18: 0 | O18: 0 | P18: 0 | Q18: 1 | R18: 17 | S18: 225 | T18: 313 | U18: 382 | V18: 527 | W18: 679 | X18: 888 | Y18: 1015 | Z18: 1265 | AA18: 1490 | AB18: 1886 | AC18: 2131 | AD18: 2525 | AE18: 2911 | AF18: 3362 | AG18: 3659 | AH18: 4045 | AI18: 4481 | AJ18: 5067 | AK18: 5364
A19: Indigo (S) | J19: 1306 | K19: 1351 | L19: 1388 | M19: 1371 | N19: 1304 | O19: 1373 | P19: 1410 | Q19: 1390 | R19: 1286 | S19: 1363 | T19: 1450 | U19: 1442 | V19: 1422 | W19: 1442 | X19: 1473 | Y19: 1465 | Z19: 1407 | AA19: 1387 | AB19: 1482 | AC19: 1462 | AD19: 1421 | AE19: 1452 | AF19: 1503 | AG19: 1493 | AH19: 1476 | AI19: 1508 | AJ19: 1539 | AK19: 1527
A20: Latrobe (C) | J20: 25008 | K20: 25258 | L20: 25432 | M20: 25439 | N20: 25219 | O20: 25568 | P20: 25660 | Q20: 25687 | R20: 25424 | S20: 25738 | T20: 25851 | U20: 25911 | V20: 25742 | W20: 25955 | X20: 26016 | Y20: 26098 | Z20: 25770 | AA20: 26128 | AB20: 26229 | AC20: 26265 | AD20: 26026 | AE20: 26321 | AF20: 26423 | AG20: 26473 | AH20: 26409 | AI20: 26637 | AJ20: 26776 | AK20: 26816
A21: Manningham (C) | J21: 7 | K21: 8 | L21: 8 | M21: 8 | N21: 8 | O21: 8 | P21: 8 | Q21: 8 | R21: 8 | S21: 8 | T21: 8 | U21: 8 | V21: 8 | W21: 8 | X21: 8 | Y21: 8 | Z21: 8 | AA21: 8 | AB21: 8 | AC21: 8 | AD21: 8 | AE21: 8 | AF21: 8 | AG21: 7 | AH21: 7 | AI21: 8 | AJ21: 8 | AK21: 8
A22: Melbourne (C) | J22: 9870 | K22: 10034 | L22: 9996 | M22: 9989 | N22: 9863 | O22: 10033 | P22: 10065 | Q22: 10070 | R22: 9948 | S22: 10121 | T22: 10047 | U22: 10132 | V22: 9937 | W22: 10078 | X22: 10035 | Y22: 10069 | Z22: 9855 | AA22: 10077 | AB22: 9967 | AC22: 9984 | AD22: 9746 | AE22: 9906 | AF22: 9930 | AG22: 10005 | AH22: 9874 | AI22: 9955 | AJ22: 9807 | AK22: 9719
A23: Mildura (RC) | J23: 6338 | K23: 6934 | L23: 7071 | M23: 7078 | N23: 6537 | O23: 7245 | P23: 7342 | Q23: 7349 | R23: 6788 | S23: 7460 | T23: 7603 | U23: 7622 | V23: 7215 | W23: 7799 | X23: 7913 | Y23: 7956 | Z23: 7551 | AA23: 8081 | AB23: 8232 | AC23: 8284 | AD23: 7985 | AE23: 8446 | AF23: 8580 | AG23: 8591 | AH23: 8223 | AI23: 8718 | AJ23: 8829 | AK23: 8847
A24: Mitchell (S) | J24: 9988 | K24: 10085 | L24: 10273 | M24: 10320 | N24: 10351 | O24: 10486 | P24: 10639 | Q24: 10683 | R24: 10725 | S24: 10868 | T24: 11068 | U24: 11181 | V24: 11227 | W24: 11384 | X24: 11545 | Y24: 11663 | Z24: 11703 | AA24: 11919 | AB24: 12175 | AC24: 12319 | AD24: 12376 | AE24: 12578 | AF24: 12884 | AG24: 13010 | AH24: 13122 | AI24: 13320 | AJ24: 13532 | AK24: 13685
A25: Moira (S) | J25: 5205 | K25: 5819 | L25: 5874 | M25: 5943 | N25: 5314 | O25: 6046 | P25: 6069 | Q25: 6139 | R25: 5507 | S25: 6208 | T25: 6255 | U25: 6335 | V25: 5848 | W25: 6419 | X25: 6443 | Y25: 6527 | Z25: 6002 | AA25: 6551 | AB25: 6575 | AC25: 6672 | AD25: 6181 | AE25: 6735 | AF25: 6716 | AG25: 6778 | AH25: 6374 | AI25: 6879 | AJ25: 6904 | AK25: 6945
A26: Moreland (C) | J26: 16322 | K26: 16374 | L26: 16457 | M26: 16475 | N26: 16411 | O26: 16517 | P26: 16568 | Q26: 16542 | R26: 16484 | S26: 16658 | T26: 16694 | U26: 16783 | V26: 16746 | W26: 16820 | X26: 16840 | Y26: 16879 | Z26: 16806 | AA26: 16854 | AB26: 16871 | AC26: 16870 | AD26: 16775 | AE26: 16871 | AF26: 16906 | AG26: 16950 | AH26: 16900 | AI26: 16979 | AJ26: 16961 | AK26: 16882
A27: Mornington Peninsula (S) | J27: 68356 | K27: 68766 | L27: 68730 | M27: 69160 | N27: 69072 | O27: 69947 | P27: 69744 | Q27: 70489 | R27: 70055 | S27: 70836 | T27: 70672 | U27: 71366 | V27: 71404 | W27: 71944 | X27: 71712 | Y27: 72306 | Z27: 72139 | AA27: 72770 | AB27: 72496 | AC27: 73143 | AD27: 72910 | AE27: 73720 | AF27: 73376 | AG27: 74119 | AH27: 74310 | AI27: 74375 | AJ27: 74290 | AK27: 73716
A28: Murray (A) | J28: 1882 | K28: 2075 | L28: 2045 | M28: 2106 | N28: 1973 | O28: 2130 | P28: 2096 | Q28: 2168 | R28: 2045 | S28: 2212 | T28: 2172 | U28: 2253 | V28: 2141 | W28: 2316 | X28: 2275 | Y28: 2347 | Z28: 2222 | AA28: 2398 | AB28: 2344 | AC28: 2457 | AD28: 2346 | AE28: 2518 | AF28: 2467 | AG28: 2554 | AH28: 2467 | AI28: 2598 | AJ28: 2541 | AK28: 2624
A29: Nillumbik (S) | J29: 14730 | K29: 14779 | L29: 14850 | M29: 14888 | N29: 14819 | O29: 14957 | P29: 14981 | Q29: 15004 | R29: 14931 | S29: 15048 | T29: 15077 | U29: 15096 | V29: 15056 | W29: 15158 | X29: 15173 | Y29: 15200 | Z29: 15140 | AA29: 15243 | AB29: 15284 | AC29: 15353 | AD29: 15257 | AE29: 15378 | AF29: 15420 | AG29: 15461 | AH29: 15413 | AI29: 15523 | AJ29: 15556 | AK29: 15573
A30: Strathbogie (S) | J30: 1255 | K30: 1301 | L30: 1306 | M30: 1300 | N30: 1261 | O30: 1310 | P30: 1311 | Q30: 1309 | R30: 1248 | S30: 1311 | T30: 1326 | U30: 1321 | V30: 1289 | W30: 1321 | X30: 1337 | Y30: 1334 | Z30: 1292 | AA30: 1326 | AB30: 1336 | AC30: 1338 | AD30: 1303 | AE30: 1337 | AF30: 1358 | AG30: 1346 | AH30: 1329 | AI30: 1363 | AJ30: 1365 | AK30: 1354
A31: Wangaratta (RC) | J31: 7466 | K31: 7685 | L31: 7730 | M31: 7736 | N31: 7496 | O31: 7773 | P31: 7826 | Q31: 7826 | R31: 7648 | S31: 7873 | T31: 7945 | U31: 7969 | V31: 7803 | W31: 7960 | X31: 8008 | Y31: 7993 | Z31: 7815 | AA31: 8024 | AB31: 8065 | AC31: 8078 | AD31: 7904 | AE31: 8089 | AF31: 8142 | AG31: 8144 | AH31: 8044 | AI31: 8240 | AJ31: 8280 | AK31: 8292
A32: Wellington (S) | J32: 8789 | K32: 8879 | L32: 8899 | M32: 8922 | N32: 8901 | O32: 8992 | P32: 9011 | Q32: 9037 | R32: 8989 | S32: 9070 | T32: 9113 | U32: 9100 | V32: 9050 | W32: 9116 | X32: 9124 | Y32: 9147 | Z32: 9114 | AA32: 9186 | AB32: 9207 | AC32: 9239 | AD32: 9199 | AE32: 9282 | AF32: 9303 | AG32: 9338 | AH32: 9315 | AI32: 9385 | AJ32: 9416 | AK32: 9424
A33: Whittlesea (C) | J33: 65546 | K33: 66480 | L33: 67190 | M33: 67788 | N33: 67950 | O33: 69207 | P33: 69921 | Q33: 70632 | R33: 70823 | S33: 71966 | T33: 72603 | U33: 73322 | V33: 73463 | W33: 74417 | X33: 74898 | Y33: 75428 | Z33: 75538 | AA33: 76397 | AB33: 76826 | AC33: 77408 | AD33: 77462 | AE33: 78391 | AF33: 79074 | AG33: 79712 | AH33: 80006 | AI33: 80903 | AJ33: 81478 | AK33: 81965
A34: Wodonga (RC) | J34: 13879 | K34: 14284 | L34: 14442 | M34: 14463 | N34: 14182 | O34: 14686 | P34: 14844 | Q34: 14876 | R34: 14551 | S34: 15041 | T34: 15220 | U34: 15256 | V34: 15052 | W34: 15433 | X34: 15534 | Y34: 15578 | Z34: 15309 | AA34: 15769 | AB34: 15934 | AC34: 16015 | AD34: 15777 | AE34: 16168 | AF34: 16271 | AG34: 16367 | AH34: 16180 | AI34: 16544 | AJ34: 16652 | AK34: 16669
A35: Yarra (C) | J35: 26413 | K35: 26537 | L35: 26635 | M35: 26581 | N35: 26479 | O35: 26654 | P35: 26679 | Q35: 26617 | R35: 26445 | S35: 26700 | T35: 26774 | U35: 26792 | V35: 26664 | W35: 26701 | X35: 26726 | Y35: 26649 | Z35: 26507 | AA35: 26650 | AB35: 26695 | AC35: 26624 | AD35: 26528 | AE35: 26679 | AF35: 26832 | AG35: 26774 | AH35: 26675 | AI35: 26763 | AJ35: 26764 | AK35: 26511
A36: Yarra Ranges (S) | J36: 3075 | K36: 3142 | L36: 3147 | M36: 3189 | N36: 3065 | O36: 3202 | P36: 3199 | Q36: 3221 | R36: 3112 | S36: 3235 | T36: 3244 | U36: 3258 | V36: 3190 | W36: 3274 | X36: 3276 | Y36: 3276 | Z36: 3164 | AA36: 3284 | AB36: 3280 | AC36: 3299 | AD36: 3170 | AE36: 3289 | AF36: 3303 | AG36: 3321 | AH36: 3254 | AI36: 3326 | AJ36: 3324 | AK36: 3325
A37: AGN | J37: 589137 | K37: 598024 | L37: 602373 | M37: 604762 | N37: 599531 | O37: 611748 | P37: 615563 | Q37: 618032 | R37: 612198 | S37: 624129 | T37: 628564 | U37: 632144 | V37: 629229 | W37: 638632 | X37: 642502 | Y37: 645597 | Z37: 641822 | AA37: 652269 | AB37: 656971 | AC37: 660424 | AD37: 657157 | AE37: 667650 | AF37: 672621 | AG37: 676500 | AH37: 675457 | AI37: 683748 | AJ37: 687901 | AK37: 688981
A39: Residential New customers | C39: 2012Q2 | D39: 2012Q3 | E39: 2012Q4 | F39: 2013Q1 | G39: 2013Q2 | H39: 2013Q3 | I39: 2013Q4 | J39: 2014Q1 | K39: 2014Q2 | L39: 2014Q3 | M39: 2014Q4 | N39: 2015Q1 | O39: 2015Q2 | P39: 2015Q3 | Q39: 2015Q4 | R39: 2016Q1 | S39: 2016Q2 | T39: 2016Q3 | U39: 2016Q4 | V39: 2017Q1 | W39: 2017Q2 | X39: 2017Q3 | Y39: 2017Q4 | Z39: 2018Q1 | AA39: 2018Q2 | AB39: 2018Q3 | AC39: 2018Q4 | AD39: 2019Q1 | AE39: 2019Q2 | AF39: 2019Q3 | AG39: 2019Q4 | AH39: 2020Q1 | AI39: 2020Q2 | AJ39: 2020Q3 | AK39: 2020Q4
A40: Albury (C) | K40: 1093 | L40: 370 | M40: 223 | N40: 190 | O40: 1382 | P40: 365 | Q40: 233 | R40: 204 | S40: 1354 | T40: 400 | U40: 290 | V40: 207 | W40: 1036 | X40: 341 | Y40: 236 | Z40: 186 | AA40: 1037 | AB40: 407 | AC40: 211 | AD40: 181 | AE40: 889 | AF40: 355 | AG40: 204 | AH40: 233 | AI40: 800 | AJ40: 276 | AK40: 190
A41: Banyule (C) | K41: 432 | L41: 345 | M41: 259 | N41: 300 | O41: 578 | P41: 347 | Q41: 261 | R41: 274 | S41: 529 | T41: 416 | U41: 297 | V41: 359 | W41: 477 | X41: 442 | Y41: 287 | Z41: 384 | AA41: 543 | AB41: 407 | AC41: 297 | AD41: 357 | AE41: 525 | AF41: 354 | AG41: 356 | AH41: 313 | AI41: 453 | AJ41: 338 | AK41: 267
A42: Baw Baw (S) | K42: 231 | L42: 202 | M42: 179 | N42: 145 | O42: 264 | P42: 210 | Q42: 170 | R42: 139 | S42: 228 | T42: 229 | U42: 201 | V42: 165 | W42: 226 | X42: 183 | Y42: 179 | Z42: 171 | AA42: 305 | AB42: 250 | AC42: 219 | AD42: 183 | AE42: 311 | AF42: 315 | AG42: 221 | AH42: 216 | AI42: 342 | AJ42: 318 | AK42: 179
A43: Benalla (RC) | K43: 135 | L43: 56 | M43: 32 | N43: 46 | O43: 175 | P43: 51 | Q43: 29 | R43: 48 | S43: 161 | T43: 58 | U43: 41 | V43: 41 | W43: 114 | X43: 59 | Y43: 36 | Z43: 38 | AA43: 179 | AB43: 53 | AC43: 35 | AD43: 39 | AE43: 110 | AF43: 52 | AG43: 37 | AH43: 39 | AI43: 110 | AJ43: 51 | AK43: 27
A44: Berrigan (A) | K44: 86 | L44: 47 | M44: 14 | N44: 16 | O44: 143 | P44: 36 | Q44: 13 | R44: 31 | S44: 118 | T44: 47 | U44: 12 | V44: 36 | W44: 79 | X44: 48 | Y44: 9 | Z44: 29 | AA44: 89 | AB44: 42 | AC44: 12 | AD44: 18 | AE44: 63 | AF44: 37 | AG44: 15 | AH44: 21 | AI44: 69 | AJ44: 42 | AK44: 14
A45: Campaspe (S) | K45: 554 | L45: 150 | M45: 84 | N45: 64 | O45: 746 | P45: 178 | Q45: 101 | R45: 102 | S45: 725 | T45: 204 | U45: 109 | V45: 91 | W45: 559 | X45: 160 | Y45: 98 | Z45: 88 | AA45: 521 | AB45: 233 | AC45: 108 | AD45: 82 | AE45: 536 | AF45: 205 | AG45: 98 | AH45: 109 | AI45: 450 | AJ45: 153 | AK45: 81
A46: Cardinia (S) | K46: 290 | L46: 419 | M46: 254 | N46: 541 | O46: 439 | P46: 550 | Q46: 228 | R46: 396 | S46: 373 | T46: 543 | U46: 335 | V46: 541 | W46: 472 | X46: 722 | Y46: 443 | Z46: 611 | AA46: 552 | AB46: 756 | AC46: 363 | AD46: 566 | AE46: 421 | AF46: 763 | AG46: 385 | AH46: 515 | AI46: 435 | AJ46: 518 | AK46: 265
A47: Casey (C) | K47: 1115 | L47: 1145 | M47: 892 | N47: 904 | O47: 1287 | P47: 1177 | Q47: 803 | R47: 981 | S47: 1257 | T47: 1283 | U47: 913 | V47: 1267 | W47: 1504 | X47: 1488 | Y47: 1176 | Z47: 1430 | AA47: 1618 | AB47: 1752 | AC47: 1386 | AD47: 1462 | AE47: 1765 | AF47: 1519 | AG47: 1265 | AH47: 1168 | AI47: 1335 | AJ47: 1187 | AK47: 1123
A48: Corowa Shire (A) | K48: 371 | L48: 90 | M48: 79 | N48: 23 | O48: 526 | P48: 88 | Q48: 70 | R48: 35 | S48: 485 | T48: 103 | U48: 77 | V48: 27 | W48: 417 | X48: 70 | Y48: 81 | Z48: 36 | AA48: 416 | AB48: 125 | AC48: 74 | AD48: 33 | AE48: 422 | AF48: 81 | AG48: 81 | AH48: 50 | AI48: 335 | AJ48: 59 | AK48: 78
A49: Darebin (C) | K49: 606 | L49: 524 | M49: 464 | N49: 495 | O49: 659 | P49: 504 | Q49: 539 | R49: 471 | S49: 733 | T49: 521 | U49: 520 | V49: 485 | W49: 613 | X49: 529 | Y49: 436 | Z49: 509 | AA49: 649 | AB49: 585 | AC49: 443 | AD49: 522 | AE49: 694 | AF49: 530 | AG49: 531 | AH49: 558 | AI49: 715 | AJ49: 498 | AK49: 450
A50: East Gippsland (S) | K50: 228 | L50: 150 | M50: 124 | N50: 70 | O50: 212 | P50: 125 | Q50: 92 | R50: 75 | S50: 243 | T50: 123 | U50: 110 | V50: 69 | W50: 188 | X50: 100 | Y50: 97 | Z50: 100 | AA50: 218 | AB50: 100 | AC50: 85 | AD50: 79 | AE50: 198 | AF50: 106 | AG50: 83 | AH50: 85 | AI50: 137 | AJ50: 112 | AK50: 78
A51: Frankston (C) | K51: 391 | L51: 333 | M51: 283 | N51: 244 | O51: 474 | P51: 286 | Q51: 266 | R51: 258 | S51: 492 | T51: 353 | U51: 256 | V51: 290 | W51: 410 | X51: 312 | Y51: 280 | Z51: 312 | AA51: 534 | AB51: 387 | AC51: 255 | AD51: 323 | AE51: 522 | AF51: 372 | AG51: 279 | AH51: 315 | AI51: 457 | AJ51: 331 | AK51: 281
A52: Greater Dandenong (C) | K52: 0 | L52: 0 | M52: 0 | N52: 0 | O52: 0 | P52: 0 | Q52: 0 | R52: 0 | S52: 0 | T52: 0 | U52: 0 | V52: 0 | W52: 0 | X52: 2 | Y52: 1 | Z52: 0 | AA52: 0 | AB52: 0 | AC52: 0 | AD52: 0 | AE52: 0 | AF52: 0 | AG52: 0 | AH52: 0 | AI52: 0 | AJ52: 0 | AK52: 0
A53: Greater Hume Shire (A) | K53: 30 | L53: 7 | M53: 7 | N53: 3 | O53: 47 | P53: 10 | Q53: 8 | R53: 3 | S53: 51 | T53: 6 | U53: 9 | V53: 7 | W53: 51 | X53: 5 | Y53: 15 | Z53: 3 | AA53: 42 | AB53: 14 | AC53: 9 | AD53: 4 | AE53: 49 | AF53: 7 | AG53: 13 | AH53: 5 | AI53: 45 | AJ53: 7 | AK53: 19
A54: Greater Shepparton (C) | K54: 591 | L54: 257 | M54: 151 | N54: 159 | O54: 866 | P54: 224 | Q54: 147 | R54: 186 | S54: 874 | T54: 267 | U54: 171 | V54: 173 | W54: 627 | X54: 238 | Y54: 159 | Z54: 187 | AA54: 730 | AB54: 294 | AC54: 184 | AD54: 200 | AE54: 669 | AF54: 272 | AG54: 182 | AH54: 213 | AI54: 534 | AJ54: 276 | AK54: 163
A55: Hume (C) | K55: 0 | L55: 0 | M55: 0 | N55: 0 | O55: 0 | P55: 0 | Q55: 1 | R55: 16 | S55: 208 | T55: 88 | U55: 69 | V55: 151 | W55: 159 | X55: 213 | Y55: 134 | Z55: 259 | AA55: 239 | AB55: 397 | AC55: 254 | AD55: 407 | AE55: 398 | AF55: 454 | AG55: 313 | AH55: 410 | AI55: 458 | AJ55: 599 | AK55: 350
A56: Indigo (S) | K56: 64 | L56: 45 | M56: 8 | N56: 22 | O56: 88 | P56: 47 | Q56: 9 | R56: 25 | S56: 102 | T56: 95 | U56: 11 | V56: 22 | W56: 45 | X56: 44 | Y56: 13 | Z56: 19 | AA56: 38 | AB56: 108 | AC56: 12 | AD56: 27 | AE56: 57 | AF56: 67 | AG56: 20 | AH56: 26 | AI56: 55 | AJ56: 37 | AK56: 11
A57: Latrobe (C) | K57: 444 | L57: 322 | M57: 212 | N57: 196 | O57: 535 | P57: 284 | Q57: 246 | R57: 205 | S57: 512 | T57: 313 | U57: 265 | V57: 207 | W57: 420 | X57: 309 | Y57: 268 | Z57: 223 | AA57: 563 | AB57: 314 | AC57: 247 | AD57: 195 | AE57: 473 | AF57: 269 | AG57: 223 | AH57: 216 | AI57: 407 | AJ57: 288 | AK57: 201
A58: Manningham (C) | K58: 1 | L58: 0 | M58: 0 | N58: 0 | O58: 0 | P58: 0 | Q58: 0 | R58: 0 | S58: 0 | T58: 0 | U58: 0 | V58: 0 | W58: 0 | X58: 0 | Y58: 0 | Z58: 0 | AA58: 0 | AB58: 0 | AC58: 0 | AD58: 0 | AE58: 0 | AF58: 0 | AG58: 0 | AH58: 0 | AI58: 1 | AJ58: 0 | AK58: 0
A59: Melbourne (C) | K59: 297 | L59: 162 | M59: 187 | N59: 184 | O59: 325 | P59: 203 | Q59: 216 | R59: 174 | S59: 309 | T59: 156 | U59: 230 | V59: 143 | W59: 297 | X59: 150 | Y59: 190 | Z59: 145 | AA59: 356 | AB59: 186 | AC59: 212 | AD59: 152 | AE59: 373 | AF59: 226 | AG59: 238 | AH59: 171 | AI59: 280 | AJ59: 154 | AK59: 194
A60: Mildura (RC) | K60: 656 | L60: 191 | M60: 130 | N60: 124 | O60: 745 | P60: 145 | Q60: 109 | R60: 120 | S60: 721 | T60: 198 | U60: 109 | V60: 136 | W60: 644 | X60: 178 | Y60: 135 | Z60: 110 | AA60: 600 | AB60: 215 | AC60: 148 | AD60: 140 | AE60: 523 | AF60: 191 | AG60: 120 | AH60: 108 | AI60: 555 | AJ60: 184 | AK60: 124
A61: Mitchell (S) | K61: 176 | L61: 234 | M61: 125 | N61: 164 | O61: 209 | P61: 202 | Q61: 131 | R61: 176 | S61: 221 | T61: 245 | U61: 175 | V61: 165 | W61: 232 | X61: 215 | Y61: 192 | Z61: 186 | AA61: 288 | AB61: 307 | AC61: 232 | AD61: 219 | AE61: 265 | AF61: 359 | AG61: 214 | AH61: 237 | AI61: 287 | AJ61: 283 | AK61: 223
A62: Moira (S) | K62: 658 | L62: 135 | M62: 145 | N62: 73 | O62: 780 | P62: 136 | Q62: 146 | R62: 72 | S62: 751 | T62: 153 | U62: 156 | V62: 82 | W62: 632 | X62: 139 | Y62: 152 | Z62: 71 | AA62: 616 | AB62: 152 | AC62: 173 | AD62: 90 | AE62: 619 | AF62: 119 | AG62: 154 | AH62: 100 | AI62: 575 | AJ62: 132 | AK62: 153
A63: Moreland (C) | K63: 196 | L63: 194 | M63: 158 | N63: 154 | O63: 231 | P63: 183 | Q63: 146 | R63: 166 | S63: 282 | T63: 181 | U63: 220 | V63: 160 | W63: 201 | X63: 169 | Y63: 160 | Z63: 136 | AA63: 207 | AB63: 168 | AC63: 153 | AD63: 146 | AE63: 241 | AF63: 174 | AG63: 189 | AH63: 142 | AI63: 207 | AJ63: 130 | AK63: 134
A64: Mornington Peninsula (S) | K64: 1206 | L64: 1023 | M64: 1243 | N64: 1155 | O64: 1608 | P64: 958 | Q64: 1432 | R64: 921 | S64: 1599 | T64: 980 | U64: 1446 | V64: 1196 | W64: 1374 | X64: 965 | Y64: 1380 | Z64: 1208 | AA64: 1543 | AB64: 1070 | AC64: 1437 | AD64: 1195 | AE64: 1610 | AF64: 952 | AG64: 1459 | AH64: 1132 | AI64: 1197 | AJ64: 1140 | AK64: 1227
A65: Murray (A) | K65: 199 | L65: 20 | M65: 69 | N65: 20 | O65: 170 | P65: 23 | Q65: 87 | R65: 26 | S65: 176 | T65: 23 | U65: 90 | V65: 32 | W65: 185 | X65: 24 | Y65: 90 | Z65: 33 | AA65: 189 | AB65: 37 | AC65: 124 | AD65: 34 | AE65: 187 | AF65: 29 | AG65: 103 | AH65: 34 | AI65: 153 | AJ65: 17 | AK65: 106
A66: Nillumbik (S) | K66: 86 | L66: 107 | M66: 75 | N66: 63 | O66: 177 | P66: 72 | Q66: 64 | R66: 59 | S66: 151 | T66: 78 | U66: 68 | V66: 54 | W66: 126 | X66: 49 | Y66: 78 | Z66: 67 | AA66: 154 | AB66: 102 | AC66: 114 | AD66: 67 | AE66: 169 | AF66: 80 | AG66: 86 | AH66: 43 | AI66: 149 | AJ66: 69 | AK66: 68
A67: Strathbogie (S) | K67: 51 | L67: 17 | M67: 12 | N67: 20 | O67: 57 | P67: 16 | Q67: 17 | R67: 15 | S67: 75 | T67: 24 | U67: 15 | V67: 14 | W67: 46 | X67: 25 | Y67: 13 | Z67: 14 | AA67: 49 | AB67: 24 | AC67: 18 | AD67: 12 | AE67: 46 | AF67: 30 | AG67: 8 | AH67: 23 | AI67: 44 | AJ67: 11 | AK67: 7
A68: Wangaratta (RC) | K68: 250 | L68: 85 | M68: 53 | N68: 45 | O68: 311 | P68: 108 | Q68: 56 | R68: 67 | S68: 268 | T68: 101 | U68: 64 | V68: 39 | W68: 212 | X68: 91 | Y68: 46 | Z68: 63 | AA68: 242 | AB68: 93 | AC68: 71 | AD68: 42 | AE68: 221 | AF68: 95 | AG68: 55 | AH68: 77 | AI68: 224 | AJ68: 77 | AK68: 58
A69: Wellington (S) | K69: 132 | L69: 72 | M69: 72 | N69: 69 | O69: 125 | P69: 74 | Q69: 72 | R69: 59 | S69: 136 | T69: 107 | U69: 74 | V69: 72 | W69: 129 | X69: 87 | Y69: 90 | Z69: 107 | AA69: 140 | AB69: 115 | AC69: 96 | AD69: 88 | AE69: 147 | AF69: 88 | AG69: 101 | AH69: 81 | AI69: 127 | AJ69: 83 | AK69: 71
A70: Whittlesea (C) | K70: 1124 | L70: 910 | M70: 862 | N70: 695 | O70: 1459 | P70: 922 | Q70: 956 | R70: 782 | S70: 1376 | T70: 902 | U70: 955 | V70: 694 | W70: 1221 | X70: 792 | Y70: 789 | Z70: 660 | AA70: 1093 | AB70: 792 | AC70: 875 | AD70: 665 | AE70: 1201 | AF70: 978 | AG70: 895 | AH70: 814 | AI70: 1226 | AJ70: 884 | AK70: 805
A71: Wodonga (RC) | K71: 469 | L71: 218 | M71: 137 | N71: 161 | O71: 572 | P71: 226 | Q71: 128 | R71: 150 | S71: 555 | T71: 249 | U71: 137 | V71: 141 | W71: 453 | X71: 195 | Y71: 143 | Z71: 156 | AA71: 535 | AB71: 235 | AC71: 182 | AD71: 137 | AE71: 484 | AF71: 214 | AG71: 187 | AH71: 138 | AI71: 433 | AJ71: 172 | AK71: 121
A72: Yarra (C) | K72: 404 | L72: 366 | M72: 246 | N72: 308 | O72: 447 | P72: 341 | Q72: 283 | R72: 304 | S72: 518 | T72: 338 | U72: 299 | V72: 283 | W72: 366 | X72: 304 | Y72: 260 | Z72: 327 | AA72: 452 | AB72: 365 | AC72: 293 | AD72: 388 | AE72: 504 | AF72: 403 | AG72: 267 | AH72: 321 | AI72: 410 | AJ72: 340 | AK72: 259
A73: Yarra Ranges (S) | K73: 80 | L73: 30 | M73: 51 | N73: 14 | O73: 147 | P73: 20 | Q73: 32 | R73: 12 | S73: 130 | T73: 35 | U73: 33 | V73: 14 | W73: 91 | X73: 19 | Y73: 19 | Z73: 19 | AA73: 133 | AB73: 22 | AC73: 34 | AD73: 6 | AE73: 134 | AF73: 25 | AG73: 26 | AH73: 13 | AI73: 82 | AJ73: 23 | AK73: 22
A74: AGN | K74: 12646 | L74: 8226 | M74: 6830 | N74: 6667 | O74: 15784 | P74: 8111 | Q74: 7091 | R74: 6552 | S74: 15713 | T74: 8819 | U74: 7757 | V74: 7363 | W74: 13606 | X74: 8667 | Y74: 7685 | Z74: 7887 | AA74: 14870 | AB74: 10107 | AC74: 8356 | AD74: 8059 | AE74: 14826 | AF74: 9721 | AG74: 8408 | AH74: 7926 | AI74: 13087 | AJ74: 8789 | AK74: 7349
A76: Residential Disconnections | C76: 2012Q2 | D76: 2012Q3 | E76: 2012Q4 | F76: 2013Q1 | G76: 2013Q2 | H76: 2013Q3 | I76: 2013Q4 | J76: 2014Q1 | K76: 2014Q2 | L76: 2014Q3 | M76: 2014Q4 | N76: 2015Q1 | O76: 2015Q2 | P76: 2015Q3 | Q76: 2015Q4 | R76: 2016Q1 | S76: 2016Q2 | T76: 2016Q3 | U76: 2016Q4 | V76: 2017Q1 | W76: 2017Q2 | X76: 2017Q3 | Y76: 2017Q4 | Z76: 2018Q1 | AA76: 2018Q2 | AB76: 2018Q3 | AC76: 2018Q4 | AD76: 2019Q1 | AE76: 2019Q2 | AF76: 2019Q3 | AG76: 2019Q4 | AH76: 2020Q1 | AI76: 2020Q2 | AJ76: 2020Q3 | AK76: 2020Q4
A77: Albury (C) | K77: 133 | L77: 98 | M77: 199 | N77: 1265 | O77: 134 | P77: 145 | Q77: 257 | R77: 1269 | S77: 131 | T77: 149 | U77: 183 | V77: 958 | W77: 162 | X77: 160 | Y77: 203 | Z77: 1044 | AA77: 165 | AB77: 163 | AC77: 182 | AD77: 866 | AE77: 160 | AF77: 163 | AG77: 175 | AH77: 682 | AI77: 129 | AJ77: 121 | AK77: 152
A78: Banyule (C) | K78: 248 | L78: 203 | M78: 249 | N78: 479 | O78: 221 | P78: 223 | Q78: 280 | R78: 510 | S78: 241 | T78: 227 | U78: 265 | V78: 438 | W78: 267 | X78: 242 | Y78: 320 | Z78: 524 | AA78: 333 | AB78: 331 | AC78: 364 | AD78: 517 | AE78: 250 | AF78: 267 | AG78: 277 | AH78: 410 | AI78: 304 | AJ78: 220 | AK78: 270
A79: Baw Baw (S) | K79: 65 | L79: 54 | M79: 69 | N79: 131 | O79: 50 | P79: 70 | Q79: 64 | R79: 119 | S79: 52 | T79: 67 | U79: 75 | V79: 114 | W79: 62 | X79: 67 | Y79: 61 | Z79: 145 | AA79: 61 | AB79: 70 | AC79: 86 | AD79: 138 | AE79: 68 | AF79: 63 | AG79: 67 | AH79: 134 | AI79: 94 | AJ79: 55 | AK79: 95
A80: Benalla (RC) | K80: 33 | L80: 30 | M80: 53 | N80: 171 | O80: 33 | P80: 26 | Q80: 59 | R80: 170 | S80: 35 | T80: 27 | U80: 32 | V80: 115 | W80: 36 | X80: 47 | Y80: 43 | Z80: 158 | AA80: 34 | AB80: 31 | AC80: 38 | AD80: 113 | AE80: 25 | AF80: 39 | AG80: 35 | AH80: 90 | AI80: 34 | AJ80: 23 | AK80: 52
A81: Berrigan (A) | K81: 18 | L81: 11 | M81: 24 | N81: 132 | O81: 13 | P81: 11 | Q81: 41 | R81: 113 | S81: 13 | T81: 5 | U81: 34 | V81: 81 | W81: 21 | X81: 8 | Y81: 37 | Z81: 90 | AA81: 22 | AB81: 9 | AC81: 31 | AD81: 55 | AE81: 14 | AF81: 8 | AG81: 34 | AH81: 64 | AI81: 25 | AJ81: 6 | AK81: 41
A82: Campaspe (S) | K82: 63 | L82: 61 | M82: 126 | N82: 703 | O82: 60 | P82: 89 | Q82: 145 | R82: 686 | S82: 59 | T82: 87 | U82: 108 | V82: 549 | W82: 89 | X82: 78 | Y82: 132 | Z82: 549 | AA82: 88 | AB82: 84 | AC82: 121 | AD82: 536 | AE82: 86 | AF82: 78 | AG82: 128 | AH82: 411 | AI82: 69 | AJ82: 66 | AK82: 132
A83: Cardinia (S) | K83: 85 | L83: 58 | M83: 88 | N83: 114 | O83: 86 | P83: 41 | Q83: 89 | R83: 115 | S83: 114 | T83: 56 | U83: 107 | V83: 98 | W83: 133 | X83: 73 | Y83: 112 | Z83: 141 | AA83: 113 | AB83: 65 | AC83: 132 | AD83: 125 | AE83: 132 | AF83: 40 | AG83: 133 | AH83: 108 | AI83: 155 | AJ83: 61 | AK83: 158
A84: Casey (C) | K84: 208 | L84: 226 | M84: 241 | N84: 444 | O84: 199 | P84: 225 | Q84: 245 | R84: 505 | S84: 214 | T84: 246 | U84: 260 | V84: 439 | W84: 253 | X84: 291 | Y84: 275 | Z84: 554 | AA84: 295 | AB84: 380 | AC84: 348 | AD84: 612 | AE84: 308 | AF84: 327 | AG84: 349 | AH84: 453 | AI84: 346 | AJ84: 276 | AK84: 408
A85: Corowa Shire (A) | K85: 40 | L85: 45 | M85: 59 | N85: 502 | O85: 30 | P85: 51 | Q85: 82 | R85: 480 | S85: 38 | T85: 49 | U85: 45 | V85: 404 | W85: 28 | X85: 53 | Y85: 67 | Z85: 423 | AA85: 39 | AB85: 53 | AC85: 56 | AD85: 412 | AE85: 17 | AF85: 58 | AG85: 46 | AH85: 324 | AI85: 39 | AJ85: 49 | AK85: 64
A86: Darebin (C) | K86: 369 | L86: 352 | M86: 404 | N86: 530 | O86: 367 | P86: 362 | Q86: 418 | R86: 613 | S86: 361 | T86: 347 | U86: 334 | V86: 588 | W86: 375 | X86: 386 | Y86: 415 | Z86: 569 | AA86: 376 | AB86: 434 | AC86: 435 | AD86: 644 | AE86: 420 | AF86: 367 | AG86: 410 | AH86: 535 | AI86: 407 | AJ86: 414 | AK86: 482
A87: East Gippsland (S) | K87: 21 | L87: 36 | M87: 40 | N87: 134 | O87: 22 | P87: 40 | Q87: 57 | R87: 173 | S87: 27 | T87: 53 | U87: 35 | V87: 143 | W87: 38 | X87: 62 | Y87: 42 | Z87: 171 | AA87: 41 | AB87: 52 | AC87: 48 | AD87: 158 | AE87: 39 | AF87: 51 | AG87: 50 | AH87: 103 | AI87: 47 | AJ87: 32 | AK87: 53
A88: Frankston (C) | K88: 220 | L88: 168 | M88: 236 | N88: 455 | O88: 204 | P88: 182 | Q88: 255 | R88: 437 | S88: 218 | T88: 180 | U88: 225 | V88: 373 | W88: 235 | X88: 222 | Y88: 250 | Z88: 458 | AA88: 225 | AB88: 229 | AC88: 241 | AD88: 472 | AE88: 221 | AF88: 204 | AG88: 247 | AH88: 372 | AI88: 235 | AJ88: 191 | AK88: 229
A89: Greater Dandenong (C) | K89: 0 | L89: 1 | M89: 0 | N89: 0 | O89: 0 | P89: 0 | Q89: 0 | R89: 0 | S89: 1 | T89: 0 | U89: 0 | V89: 0 | W89: 0 | X89: 0 | Y89: 0 | Z89: 1 | AA89: 0 | AB89: 0 | AC89: 0 | AD89: 0 | AE89: 0 | AF89: 0 | AG89: 0 | AH89: 0 | AI89: 0 | AJ89: 0 | AK89: 1
A90: Greater Hume Shire (A) | K90: 3 | L90: 3 | M90: 1 | N90: 39 | O90: 1 | P90: 4 | Q90: 0 | R90: 51 | S90: 0 | T90: 5 | U90: 5 | V90: 34 | W90: 1 | X90: 6 | Y90: 7 | Z90: 31 | AA90: 2 | AB90: 4 | AC90: 4 | AD90: 40 | AE90: 2 | AF90: 3 | AG90: 1 | AH90: 32 | AI90: 0 | AJ90: 4 | AK90: 1
A91: Greater Shepparton (C) | K91: 116 | L91: 82 | M91: 150 | N91: 781 | O91: 90 | P91: 106 | Q91: 174 | R91: 782 | S91: 95 | T91: 114 | U91: 147 | V91: 594 | W91: 110 | X91: 134 | Y91: 188 | Z91: 670 | AA91: 127 | AB91: 148 | AC91: 199 | AD91: 578 | AE91: 119 | AF91: 108 | AG91: 163 | AH91: 486 | AI91: 124 | AJ91: 79 | AK91: 154
A92: Hume (C) | K92: 0 | L92: 0 | M92: 0 | N92: 0 | O92: 0 | P92: 0 | Q92: 0 | R92: 0 | S92: 0 | T92: 0 | U92: 0 | V92: 6 | W92: 7 | X92: 4 | Y92: 7 | Z92: 9 | AA92: 14 | AB92: 1 | AC92: 9 | AD92: 13 | AE92: 12 | AF92: 3 | AG92: 16 | AH92: 24 | AI92: 22 | AJ92: 13 | AK92: 53
A93: Indigo (S) | K93: 19 | L93: 8 | M93: 25 | N93: 89 | O93: 19 | P93: 10 | Q93: 29 | R93: 129 | S93: 25 | T93: 8 | U93: 19 | V93: 42 | W93: 25 | X93: 13 | Y93: 21 | Z93: 77 | AA93: 58 | AB93: 13 | AC93: 32 | AD93: 68 | AE93: 26 | AF93: 16 | AG93: 30 | AH93: 43 | AI93: 23 | AJ93: 6 | AK93: 23
A94: Latrobe (C) | K94: 194 | L94: 148 | M94: 205 | N94: 416 | O94: 186 | P94: 192 | Q94: 219 | R94: 468 | S94: 198 | T94: 200 | U94: 205 | V94: 376 | W94: 207 | X94: 248 | Y94: 186 | Z94: 551 | AA94: 205 | AB94: 213 | AC94: 211 | AD94: 434 | AE94: 178 | AF94: 167 | AG94: 173 | AH94: 280 | AI94: 179 | AJ94: 149 | AK94: 161
A95: Manningham (C) | K95: 0 | L95: 0 | M95: 0 | N95: 0 | O95: 0 | P95: 0 | Q95: 0 | R95: 0 | S95: 0 | T95: 0 | U95: 0 | V95: 0 | W95: 0 | X95: 0 | Y95: 0 | Z95: 0 | AA95: 0 | AB95: 0 | AC95: 0 | AD95: 0 | AE95: 0 | AF95: 0 | AG95: 1 | AH95: 0 | AI95: 0 | AJ95: 0 | AK95: 0
A96: Melbourne (C) | K96: 133 | L96: 200 | M96: 194 | N96: 310 | O96: 155 | P96: 171 | Q96: 211 | R96: 296 | S96: 136 | T96: 230 | U96: 145 | V96: 338 | W96: 156 | X96: 193 | Y96: 156 | Z96: 359 | AA96: 134 | AB96: 296 | AC96: 195 | AD96: 390 | AE96: 213 | AF96: 202 | AG96: 163 | AH96: 302 | AI96: 199 | AJ96: 302 | AK96: 282
A97: Mildura (RC) | K97: 60 | L97: 54 | M97: 123 | N97: 665 | O97: 37 | P97: 48 | Q97: 102 | R97: 681 | S97: 49 | T97: 55 | U97: 90 | V97: 543 | W97: 60 | X97: 64 | Y97: 92 | Z97: 515 | AA97: 70 | AB97: 64 | AC97: 96 | AD97: 439 | AE97: 62 | AF97: 57 | AG97: 109 | AH97: 476 | AI97: 60 | AJ97: 73 | AK97: 106
A98: Mitchell (S) | K98: 79 | L98: 46 | M98: 78 | N98: 133 | O98: 74 | P98: 49 | Q98: 87 | R98: 134 | S98: 78 | T98: 45 | U98: 62 | V98: 119 | W98: 75 | X98: 54 | Y98: 74 | Z98: 146 | AA98: 72 | AB98: 51 | AC98: 88 | AD98: 162 | AE98: 63 | AF98: 53 | AG98: 88 | AH98: 125 | AI98: 89 | AJ98: 71 | AK98: 70
A99: Moira (S) | K99: 44 | L99: 80 | M99: 76 | N99: 702 | O99: 48 | P99: 113 | Q99: 76 | R99: 704 | S99: 50 | T99: 106 | U99: 76 | V99: 569 | W99: 61 | X99: 115 | Y99: 68 | Z99: 596 | AA99: 67 | AB99: 128 | AC99: 76 | AD99: 581 | AE99: 65 | AF99: 138 | AG99: 92 | AH99: 504 | AI99: 70 | AJ99: 107 | AK99: 112
A100: Moreland (C) | K100: 144 | L100: 111 | M100: 140 | N100: 218 | O100: 125 | P100: 132 | Q100: 172 | R100: 224 | S100: 108 | T100: 145 | U100: 131 | V100: 197 | W100: 127 | X100: 149 | Y100: 121 | Z100: 209 | AA100: 159 | AB100: 151 | AC100: 154 | AD100: 241 | AE100: 145 | AF100: 139 | AG100: 145 | AH100: 192 | AI100: 128 | AJ100: 148 | AK100: 213
A101: Mornington Peninsula (S) | K101: 796 | L101: 1059 | M101: 813 | N101: 1243 | O101: 733 | P101: 1161 | Q101: 687 | R101: 1355 | S101: 818 | T101: 1144 | U101: 752 | V101: 1158 | W101: 834 | X101: 1197 | Y101: 786 | Z101: 1375 | AA101: 912 | AB101: 1344 | AC101: 790 | AD101: 1428 | AE101: 800 | AF101: 1296 | AG101: 716 | AH101: 941 | AI101: 1132 | AJ101: 1225 | AK101: 1801
A102: Murray (A) | K102: 6 | L102: 50 | M102: 8 | N102: 153 | O102: 13 | P102: 57 | Q102: 15 | R102: 149 | S102: 9 | T102: 63 | U102: 9 | V102: 144 | W102: 10 | X102: 65 | Y102: 18 | Z102: 158 | AA102: 13 | AB102: 91 | AC102: 11 | AD102: 145 | AE102: 15 | AF102: 80 | AG102: 16 | AH102: 121 | AI102: 22 | AJ102: 74 | AK102: 23
A103: Nillumbik (S) | K103: 37 | L103: 36 | M103: 37 | N103: 132 | O103: 39 | P103: 48 | Q103: 41 | R103: 132 | S103: 34 | T103: 49 | U103: 49 | V103: 94 | W103: 24 | X103: 34 | Y103: 51 | Z103: 127 | AA103: 51 | AB103: 61 | AC103: 45 | AD103: 163 | AE103: 48 | AF103: 38 | AG103: 45 | AH103: 91 | AI103: 39 | AJ103: 36 | AK103: 51
A104: Strathbogie (S) | K104: 5 | L104: 12 | M104: 18 | N104: 59 | O104: 8 | P104: 15 | Q104: 19 | R104: 76 | S104: 12 | T104: 9 | U104: 20 | V104: 46 | W104: 14 | X104: 9 | Y104: 16 | Z104: 56 | AA104: 15 | AB104: 14 | AC104: 16 | AD104: 47 | AE104: 12 | AF104: 9 | AG104: 20 | AH104: 40 | AI104: 10 | AJ104: 9 | AK104: 18
A105: Wangaratta (RC) | K105: 31 | L105: 40 | M105: 47 | N105: 285 | O105: 34 | P105: 55 | Q105: 56 | R105: 245 | S105: 43 | T105: 29 | U105: 40 | V105: 205 | W105: 55 | X105: 43 | Y105: 61 | Z105: 241 | AA105: 33 | AB105: 52 | AC105: 58 | AD105: 216 | AE105: 36 | AF105: 42 | AG105: 53 | AH105: 177 | AI105: 28 | AJ105: 37 | AK105: 46
A106: Wellington (S) | K106: 42 | L106: 52 | M106: 49 | N106: 90 | O106: 34 | P106: 55 | Q106: 46 | R106: 107 | S106: 55 | T106: 64 | U106: 87 | V106: 122 | W106: 63 | X106: 79 | Y106: 67 | Z106: 140 | AA106: 68 | AB106: 94 | AC106: 64 | AD106: 128 | AE106: 64 | AF106: 67 | AG106: 66 | AH106: 104 | AI106: 57 | AJ106: 52 | AK106: 63
A107: Whittlesea (C) | K107: 190 | L107: 200 | M107: 264 | N107: 533 | O107: 202 | P107: 208 | Q107: 245 | R107: 591 | S107: 233 | T107: 265 | U107: 236 | V107: 553 | W107: 267 | X107: 311 | Y107: 259 | Z107: 550 | AA107: 234 | AB107: 363 | AC107: 293 | AD107: 611 | AE107: 272 | AF107: 295 | AG107: 257 | AH107: 520 | AI107: 329 | AJ107: 309 | AK107: 318
A108: Wodonga (RC) | K108: 64 | L108: 60 | M108: 116 | N108: 442 | O108: 68 | P108: 68 | Q108: 96 | R108: 475 | S108: 65 | T108: 70 | U108: 101 | V108: 345 | W108: 72 | X108: 94 | Y108: 99 | Z108: 425 | AA108: 75 | AB108: 70 | AC108: 101 | AD108: 375 | AE108: 93 | AF108: 111 | AG108: 91 | AH108: 325 | AI108: 69 | AJ108: 64 | AK108: 104
A109: Yarra (C) | K109: 280 | L109: 268 | M109: 300 | N109: 410 | O109: 272 | P109: 316 | Q109: 345 | R109: 476 | S109: 263 | T109: 264 | U109: 281 | V109: 411 | W109: 329 | X109: 279 | Y109: 337 | Z109: 469 | AA109: 309 | AB109: 320 | AC109: 364 | AD109: 484 | AE109: 353 | AF109: 250 | AG109: 325 | AH109: 420 | AI109: 322 | AJ109: 339 | AK109: 512
A110: Yarra Ranges (S) | K110: 13 | L110: 25 | M110: 9 | N110: 138 | O110: 10 | P110: 23 | Q110: 10 | R110: 121 | S110: 7 | T110: 26 | U110: 19 | V110: 82 | W110: 7 | X110: 17 | Y110: 19 | Z110: 131 | AA110: 13 | AB110: 26 | AC110: 15 | AD110: 135 | AE110: 15 | AF110: 11 | AG110: 8 | AH110: 80 | AI110: 10 | AJ110: 25 | AK110: 21
A111: AGN | K111: 3759 | L111: 3877 | M111: 4441 | N111: 11898 | O111: 3567 | P111: 4296 | Q111: 4622 | R111: 12386 | S111: 3782 | T111: 4384 | U111: 4177 | V111: 10278 | W111: 4203 | X111: 4797 | Y111: 4590 | Z111: 11662 | AA111: 4423 | AB111: 5405 | AC111: 4903 | AD111: 11326 | AE111: 4333 | AF111: 4750 | AG111: 4529 | AH111: 8969 | AI111: 4796 | AJ111: 4636 | AK111: 6269
A113: Commercial Customers
A114: LGA | B114: 2012Q1 | C114: 2012Q2 | D114: 2012Q3 | E114: 2012Q4 | F114: 2013Q1 | G114: 2013Q2 | H114: 2013Q3 | I114: 2013Q4 | J114: 2014Q1 | K114: 2014Q2 | L114: 2014Q3 | M114: 2014Q4 | N114: 2015Q1 | O114: 2015Q2 | P114: 2015Q3 | Q114: 2015Q4 | R114: 2016Q1 | S114: 2016Q2 | T114: 2016Q3 | U114: 2016Q4 | V114: 2017Q1 | W114: 2017Q2 | X114: 2017Q3 | Y114: 2017Q4 | Z114: 2018Q1 | AA114: 2018Q2 | AB114: 2018Q3 | AC114: 2018Q4 | AD114: 2019Q1 | AE114: 2019Q2 | AF114: 2019Q3 | AG114: 2019Q4 | AH114: 2020Q1 | AI114: 2020Q2 | AJ114: 2020Q3 | AK114: 2020Q4
A115: Albury (C) | J115: 690 | K115: 741 | L115: 770 | M115: 758 | N115: 674 | O115: 757 | P115: 782 | Q115: 778 | R115: 703 | S115: 777 | T115: 815 | U115: 804 | V115: 741 | W115: 789 | X115: 812 | Y115: 797 | Z115: 726 | AA115: 787 | AB115: 810 | AC115: 796 | AD115: 725 | AE115: 779 | AF115: 805 | AG115: 794 | AH115: 738 | AI115: 792 | AJ115: 809 | AK115: 802
A116: Banyule (C) | J116: 1031 | K116: 1062 | L116: 1064 | M116: 1062 | N116: 1019 | O116: 1063 | P116: 1072 | Q116: 1066 | R116: 1029 | S116: 1088 | T116: 1090 | U116: 1090 | V116: 1067 | W116: 1073 | X116: 1082 | Y116: 1078 | Z116: 1057 | AA116: 1084 | AB116: 1087 | AC116: 1080 | AD116: 1039 | AE116: 1065 | AF116: 1079 | AG116: 1070 | AH116: 1047 | AI116: 1051 | AJ116: 1054 | AK116: 1027
A117: Baw Baw (S) | J117: 433 | K117: 453 | L117: 457 | M117: 453 | N117: 432 | O117: 447 | P117: 454 | Q117: 452 | R117: 433 | S117: 461 | T117: 466 | U117: 467 | V117: 440 | W117: 459 | X117: 462 | Y117: 456 | Z117: 436 | AA117: 449 | AB117: 461 | AC117: 458 | AD117: 444 | AE117: 449 | AF117: 457 | AG117: 456 | AH117: 437 | AI117: 444 | AJ117: 448 | AK117: 435
A118: Benalla (RC) | J118: 164 | K118: 189 | L118: 189 | M118: 181 | N118: 147 | O118: 185 | P118: 185 | Q118: 184 | R118: 154 | S118: 183 | T118: 183 | U118: 181 | V118: 153 | W118: 182 | X118: 184 | Y118: 176 | Z118: 150 | AA118: 180 | AB118: 181 | AC118: 177 | AD118: 162 | AE118: 182 | AF118: 183 | AG118: 186 | AH118: 154 | AI118: 177 | AJ118: 179 | AK118: 170
A119: Berrigan (A) | J119: 44 | K119: 50 | L119: 50 | M119: 50 | N119: 46 | O119: 51 | P119: 51 | Q119: 51 | R119: 46 | S119: 51 | T119: 51 | U119: 51 | V119: 46 | W119: 48 | X119: 50 | Y119: 49 | Z119: 46 | AA119: 47 | AB119: 50 | AC119: 48 | AD119: 47 | AE119: 48 | AF119: 51 | AG119: 51 | AH119: 49 | AI119: 51 | AJ119: 52 | AK119: 51
A120: Campaspe (S) | J120: 370 | K120: 409 | L120: 428 | M120: 417 | N120: 366 | O120: 414 | P120: 423 | Q120: 423 | R120: 362 | S120: 403 | T120: 427 | U120: 425 | V120: 379 | W120: 417 | X120: 428 | Y120: 424 | Z120: 369 | AA120: 395 | AB120: 429 | AC120: 426 | AD120: 386 | AE120: 410 | AF120: 422 | AG120: 423 | AH120: 383 | AI120: 405 | AJ120: 415 | AK120: 405
A121: Cardinia (S) | J121: 731 | K121: 742 | L121: 744 | M121: 750 | N121: 744 | O121: 756 | P121: 760 | Q121: 776 | R121: 794 | S121: 804 | T121: 806 | U121: 809 | V121: 808 | W121: 807 | X121: 812 | Y121: 811 | Z121: 801 | AA121: 810 | AB121: 815 | AC121: 814 | AD121: 814 | AE121: 821 | AF121: 834 | AG121: 833 | AH121: 829 | AI121: 822 | AJ121: 820 | AK121: 813
A122: Casey (C) | J122: 2262 | K122: 2270 | L122: 2279 | M122: 2275 | N122: 2257 | O122: 2285 | P122: 2305 | Q122: 2358 | R122: 2414 | S122: 2480 | T122: 2483 | U122: 2486 | V122: 2473 | W122: 2489 | X122: 2490 | Y122: 2478 | Z122: 2471 | AA122: 2502 | AB122: 2513 | AC122: 2511 | AD122: 2490 | AE122: 2524 | AF122: 2527 | AG122: 2534 | AH122: 2520 | AI122: 2521 | AJ122: 2523 | AK122: 2523
A123: Corowa Shire (A) | J123: 119 | K123: 139 | L123: 144 | M123: 141 | N123: 116 | O123: 145 | P123: 146 | Q123: 150 | R123: 119 | S123: 145 | T123: 149 | U123: 150 | V123: 127 | W123: 149 | X123: 150 | Y123: 148 | Z123: 124 | AA123: 148 | AB123: 148 | AC123: 148 | AD123: 126 | AE123: 146 | AF123: 147 | AG123: 150 | AH123: 129 | AI123: 146 | AJ123: 148 | AK123: 149
A124: Darebin (C) | J124: 1497 | K124: 1516 | L124: 1537 | M124: 1521 | N124: 1478 | O124: 1532 | P124: 1534 | Q124: 1545 | R124: 1511 | S124: 1544 | T124: 1579 | U124: 1579 | V124: 1550 | W124: 1575 | X124: 1588 | Y124: 1600 | Z124: 1549 | AA124: 1584 | AB124: 1588 | AC124: 1586 | AD124: 1544 | AE124: 1576 | AF124: 1594 | AG124: 1597 | AH124: 1561 | AI124: 1577 | AJ124: 1577 | AK124: 1567
A125: East Gippsland (S) | J125: 83 | K125: 88 | L125: 90 | M125: 91 | N125: 89 | O125: 91 | P125: 94 | Q125: 97 | R125: 93 | S125: 98 | T125: 102 | U125: 100 | V125: 100 | W125: 107 | X125: 106 | Y125: 109 | Z125: 106 | AA125: 110 | AB125: 112 | AC125: 115 | AD125: 112 | AE125: 116 | AF125: 117 | AG125: 117 | AH125: 114 | AI125: 115 | AJ125: 117 | AK125: 112
A126: Frankston (C) | J126: 1183 | K126: 1201 | L126: 1220 | M126: 1213 | N126: 1177 | O126: 1211 | P126: 1222 | Q126: 1210 | R126: 1189 | S126: 1210 | T126: 1219 | U126: 1222 | V126: 1193 | W126: 1214 | X126: 1221 | Y126: 1217 | Z126: 1181 | AA126: 1205 | AB126: 1213 | AC126: 1213 | AD126: 1167 | AE126: 1214 | AF126: 1223 | AG126: 1218 | AH126: 1201 | AI126: 1194 | AJ126: 1196 | AK126: 1185
A127: Greater Dandenong (C) | J127: 16 | K127: 14 | L127: 17 | M127: 14 | N127: 15 | O127: 15 | P127: 15 | Q127: 15 | R127: 15 | S127: 15 | T127: 15 | U127: 14 | V127: 15 | W127: 16 | X127: 15 | Y127: 16 | Z127: 16 | AA127: 16 | AB127: 16 | AC127: 15 | AD127: 16 | AE127: 16 | AF127: 16 | AG127: 16 | AH127: 16 | AI127: 15 | AJ127: 15 | AK127: 16
A128: Greater Hume Shire (A) | J128: 17 | K128: 21 | L128: 21 | M128: 23 | N128: 17 | O128: 23 | P128: 22 | Q128: 27 | R128: 23 | S128: 29 | T128: 29 | U128: 30 | V128: 24 | W128: 29 | X128: 29 | Y128: 30 | Z128: 23 | AA128: 29 | AB128: 27 | AC128: 27 | AD128: 22 | AE128: 27 | AF128: 27 | AG128: 28 | AH128: 25 | AI128: 24 | AJ128: 23 | AK128: 28
A129: Greater Shepparton (C) | J129: 673 | K129: 719 | L129: 717 | M129: 713 | N129: 637 | O129: 713 | P129: 723 | Q129: 708 | R129: 652 | S129: 718 | T129: 734 | U129: 731 | V129: 661 | W129: 722 | X129: 731 | Y129: 717 | Z129: 654 | AA129: 707 | AB129: 730 | AC129: 730 | AD129: 658 | AE129: 722 | AF129: 740 | AG129: 730 | AH129: 665 | AI129: 691 | AJ129: 702 | AK129: 689
A130: Hume (C) | J130: 0 | K130: 0 | L130: 0 | M130: 0 | N130: 0 | O130: 0 | P130: 0 | Q130: 0 | R130: 3 | S130: 6 | T130: 7 | U130: 6 | V130: 6 | W130: 6 | X130: 6 | Y130: 6 | Z130: 7 | AA130: 7 | AB130: 7 | AC130: 7 | AD130: 9 | AE130: 9 | AF130: 9 | AG130: 8 | AH130: 8 | AI130: 9 | AJ130: 10 | AK130: 12
A131: Indigo (S) | J131: 66 | K131: 70 | L131: 72 | M131: 72 | N131: 64 | O131: 68 | P131: 73 | Q131: 74 | R131: 64 | S131: 72 | T131: 79 | U131: 79 | V131: 79 | W131: 78 | X131: 80 | Y131: 80 | Z131: 72 | AA131: 71 | AB131: 78 | AC131: 78 | AD131: 74 | AE131: 75 | AF131: 78 | AG131: 79 | AH131: 75 | AI131: 75 | AJ131: 79 | AK131: 77
A132: Latrobe (C) | J132: 712 | K132: 741 | L132: 741 | M132: 742 | N132: 699 | O132: 736 | P132: 741 | Q132: 738 | R132: 708 | S132: 736 | T132: 736 | U132: 731 | V132: 713 | W132: 723 | X132: 725 | Y132: 723 | Z132: 689 | AA132: 714 | AB132: 713 | AC132: 718 | AD132: 684 | AE132: 708 | AF132: 707 | AG132: 707 | AH132: 679 | AI132: 687 | AJ132: 678 | AK132: 683
A133: Melbourne (C) | J133: 2929 | K133: 2984 | L133: 2999 | M133: 3034 | N133: 2999 | O133: 3059 | P133: 3088 | Q133: 3086 | R133: 3030 | S133: 3081 | T133: 3124 | U133: 3130 | V133: 3060 | W133: 3124 | X133: 3147 | Y133: 3150 | Z133: 3081 | AA133: 3124 | AB133: 3149 | AC133: 3162 | AD133: 3086 | AE133: 3124 | AF133: 3165 | AG133: 3160 | AH133: 3114 | AI133: 3145 | AJ133: 3079 | AK133: 3065
A134: Mildura (RC) | J134: 232 | K134: 247 | L134: 254 | M134: 250 | N134: 241 | O134: 265 | P134: 268 | Q134: 266 | R134: 245 | S134: 274 | T134: 279 | U134: 272 | V134: 256 | W134: 283 | X134: 288 | Y134: 285 | Z134: 266 | AA134: 287 | AB134: 291 | AC134: 289 | AD134: 277 | AE134: 293 | AF134: 295 | AG134: 294 | AH134: 272 | AI134: 297 | AJ134: 292 | AK134: 290
A135: Mitchell (S) | J135: 409 | K135: 427 | L135: 432 | M135: 432 | N135: 403 | O135: 431 | P135: 440 | Q135: 439 | R135: 408 | S135: 443 | T135: 440 | U135: 441 | V135: 423 | W135: 444 | X135: 444 | Y135: 439 | Z135: 410 | AA135: 432 | AB135: 442 | AC135: 436 | AD135: 415 | AE135: 440 | AF135: 443 | AG135: 439 | AH135: 425 | AI135: 428 | AJ135: 426 | AK135: 412
A136: Moira (S) | J136: 231 | K136: 253 | L136: 259 | M136: 258 | N136: 232 | O136: 259 | P136: 260 | Q136: 264 | R136: 240 | S136: 269 | T136: 272 | U136: 272 | V136: 249 | W136: 274 | X136: 270 | Y136: 274 | Z136: 251 | AA136: 276 | AB136: 269 | AC136: 273 | AD136: 252 | AE136: 273 | AF136: 268 | AG136: 270 | AH136: 251 | AI136: 267 | AJ136: 267 | AK136: 265
A137: Moreland (C) | J137: 739 | K137: 760 | L137: 760 | M137: 767 | N137: 743 | O137: 764 | P137: 770 | Q137: 781 | R137: 749 | S137: 778 | T137: 784 | U137: 789 | V137: 773 | W137: 794 | X137: 801 | Y137: 799 | Z137: 769 | AA137: 781 | AB137: 792 | AC137: 791 | AD137: 769 | AE137: 786 | AF137: 784 | AG137: 790 | AH137: 786 | AI137: 799 | AJ137: 791 | AK137: 776
A138: Mornington Peninsula (S) | J138: 1563 | K138: 1570 | L138: 1571 | M138: 1583 | N138: 1556 | O138: 1595 | P138: 1578 | Q138: 1645 | R138: 1666 | S138: 1688 | T138: 1691 | U138: 1700 | V138: 1696 | W138: 1716 | X138: 1702 | Y138: 1713 | Z138: 1695 | AA138: 1718 | AB138: 1707 | AC138: 1715 | AD138: 1692 | AE138: 1724 | AF138: 1711 | AG138: 1726 | AH138: 1718 | AI138: 1709 | AJ138: 1694 | AK138: 1657
A139: Murray (A) | J139: 84 | K139: 89 | L139: 89 | M139: 91 | N139: 88 | O139: 91 | P139: 92 | Q139: 94 | R139: 88 | S139: 94 | T139: 92 | U139: 94 | V139: 91 | W139: 93 | X139: 93 | Y139: 94 | Z139: 89 | AA139: 93 | AB139: 92 | AC139: 93 | AD139: 93 | AE139: 95 | AF139: 94 | AG139: 98 | AH139: 98 | AI139: 103 | AJ139: 99 | AK139: 102
A140: Nillumbik (S) | J140: 282 | K140: 291 | L140: 292 | M140: 292 | N140: 280 | O140: 290 | P140: 286 | Q140: 288 | R140: 281 | S140: 300 | T140: 303 | U140: 304 | V140: 290 | W140: 302 | X140: 302 | Y140: 299 | Z140: 286 | AA140: 301 | AB140: 302 | AC140: 302 | AD140: 290 | AE140: 291 | AF140: 292 | AG140: 296 | AH140: 287 | AI140: 284 | AJ140: 283 | AK140: 284
A141: Strathbogie (S) | J141: 66 | K141: 78 | L141: 79 | M141: 77 | N141: 66 | O141: 73 | P141: 79 | Q141: 77 | R141: 66 | S141: 71 | T141: 76 | U141: 77 | V141: 71 | W141: 70 | X141: 75 | Y141: 72 | Z141: 68 | AA141: 70 | AB141: 77 | AC141: 76 | AD141: 67 | AE141: 72 | AF141: 76 | AG141: 74 | AH141: 71 | AI141: 71 | AJ141: 73 | AK141: 72
A142: Wangaratta (RC) | J142: 311 | K142: 352 | L142: 352 | M142: 345 | N142: 297 | O142: 339 | P142: 346 | Q142: 344 | R142: 300 | S142: 341 | T142: 349 | U142: 339 | V142: 293 | W142: 337 | X142: 336 | Y142: 337 | Z142: 279 | AA142: 328 | AB142: 334 | AC142: 334 | AD142: 285 | AE142: 331 | AF142: 337 | AG142: 333 | AH142: 290 | AI142: 329 | AJ142: 331 | AK142: 324
A143: Wellington (S) | J143: 378 | K143: 397 | L143: 408 | M143: 398 | N143: 374 | O143: 393 | P143: 398 | Q143: 393 | R143: 370 | S143: 392 | T143: 403 | U143: 399 | V143: 377 | W143: 392 | X143: 402 | Y143: 401 | Z143: 374 | AA143: 389 | AB143: 394 | AC143: 390 | AD143: 367 | AE143: 387 | AF143: 385 | AG143: 374 | AH143: 367 | AI143: 364 | AJ143: 373 | AK143: 364
A144: Whittlesea (C) | J144: 1124 | K144: 1169 | L144: 1171 | M144: 1174 | N144: 1144 | O144: 1200 | P144: 1206 | Q144: 1270 | R144: 1269 | S144: 1346 | T144: 1349 | U144: 1366 | V144: 1324 | W144: 1372 | X144: 1387 | Y144: 1403 | Z144: 1357 | AA144: 1425 | AB144: 1436 | AC144: 1460 | AD144: 1417 | AE144: 1470 | AF144: 1475 | AG144: 1485 | AH144: 1455 | AI144: 1485 | AJ144: 1471 | AK144: 1478
A145: Wodonga (RC) | J145: 417 | K145: 446 | L145: 456 | M145: 452 | N145: 413 | O145: 447 | P145: 458 | Q145: 456 | R145: 414 | S145: 459 | T145: 473 | U145: 469 | V145: 434 | W145: 465 | X145: 474 | Y145: 471 | Z145: 425 | AA145: 468 | AB145: 486 | AC145: 486 | AD145: 435 | AE145: 477 | AF145: 494 | AG145: 491 | AH145: 452 | AI145: 473 | AJ145: 484 | AK145: 469
A146: Yarra (C) | J146: 2142 | K146: 2196 | L146: 2218 | M146: 2213 | N146: 2142 | O146: 2209 | P146: 2234 | Q146: 2215 | R146: 2179 | S146: 2218 | T146: 2241 | U146: 2219 | V146: 2171 | W146: 2220 | X146: 2228 | Y146: 2231 | Z146: 2173 | AA146: 2235 | AB146: 2239 | AC146: 2228 | AD146: 2158 | AE146: 2196 | AF146: 2229 | AG146: 2224 | AH146: 2182 | AI146: 2198 | AJ146: 2193 | AK146: 2169
